Workbook

Sheet NHL
A1: Strength | B1: Sit | C1: Team | D1: season | E1: gcode | F1: Date | G1: Opponent | H1: PN | I1: PN- | J1: PenD | K1: HITF | L1: HITA | M1: FO_W | N1: FO_L | O1: CF | P1: CA | Q1: FF | R1: FA | S1: SF | T1: SA | U1: GF | V1: GA | W1: SCF | X1: SCA | Y1: HSCF | Z1: HSCA | AA1: ZSO | AB1: ZSN | AC1: ZSD | AD1: TOI | AE1: Gm | AF1: CF% | AG1: CF60 | AH1: CA60 | AI1: C+/- | AJ1: CP60 | AK1: FF% | AL1: FF60 | AM1: FA60 | AN1: F+/- | AO1: FP60 | AP1: SF% | AQ1: SF60 | AR1: SA60 | AS1: S+/- | AT1: GF% | AU1: GF60 | AV1: GA60 | AW1: G+/- | AX1: SCF% | AY1: SCF60 | AZ1: SCA60 | BA1: SC+/- | BB1: SCP60 | BC1: HSCF% | BD1: HSCF60 | BE1: HSCA60 | BF1: HSC+/- | BG1: HSCP60 | BH1: ZSO% | BI1: PDO | BJ1: FO% | BK1: PenD60 | BL1: OFOn% | BM1: OCOn% | BN1: OSh% | BO1: OFenSh% | BP1: OFAOn% | BQ1: OCAOn% | BR1: OSv% | BS1: OFenSv% | BT1: MSF | BU1: MSA | BV1: BSF | BW1: BSA | BX1: Csh | BY1: Msh | BZ1: Bsh | CA1: CshA | CB1: MshA | CC1: BshA
A2: 5v5 | B2: ScAdj | C2: WSH | D2: 20132014 | E2: 20002 | F2: 2013-10-01 | G2: CHI | J2: 0 | K2: 28 | L2: 28 | O2: 33.90024793 | P2: 42.22353892 | Q2: 21.43647696 | R2: 30.3434665 | S2: 15.67016151 | T2: 24.37570757 | U2: 1 | V2: 4 | W2: 17.29694225 | X2: 17.95394731 | Y2: 1.950133481 | Z2: 7.182792095 | AD2: 46.26666667 | AF2: 44.53305508 | AG2: 43.96285754 | AH2: 54.75675076 | AK2: 41.39918958 | AL2: 27.79946579 | AM2: 39.35031678 | AP2: 39.13053174 | AQ2: 20.3215351 | AR2: 31.61114815 | AT2: 20 | AU2: 1.296829971 | AV2: 5.187319885 | AX2: 49.06810144 | AY2: 22.43119312 | AZ2: 23.28321698 | BC2: 21.35277973 | BD2: 2.528991546 | BE2: 9.314860066 | BH2: 41.17647059 | BI2: 89.9717751 | BJ2: 45.23809524 | BK2: 0 | BN2: 6.381555157 | BR2: 83.59021994 | BT2: 5.766315445 | BU2: 5.967758923 | BV2: 12.46377097 | BW2: 11.88007242 | BX2: =Table1[[#This Row],[SF]]/Table1[[#This Row],[CF]] -> 0.4622432716 | BY2: =Table1[[#This Row],[MSF]]/Table1[[#This Row],[CF]] -> 0.1700965567 | BZ2: =Table1[[#This Row],[BSF]]/Table1[[#This Row],[CF]] -> 0.3676601716 | CA2: =Table1[[#This Row],[SA]]/Table1[[#This Row],[CA]] -> 0.5773013867 | CB2: =Table1[[#This Row],[MSA]]/Table1[[#This Row],[CA]] -> 0.1413372511 | CC2: =Table1[[#This Row],[BSA]]/Table1[[#This Row],[CA]] -> 0.281361362
A3: 5v5 | B3: ScAdj | C3: WSH | D3: 20132014 | E3: 20009 | F3: 2013-10-03 | G3: CGY | J3: -3 | K3: 27 | L3: 23 | O3: 47.33943524 | P3: 45.54207414 | Q3: 35.69626431 | R3: 34.67439413 | S3: 25.21479438 | T3: 28.4536585 | U3: 2 | V3: 2 | W3: 29.35887058 | X3: 25.89314985 | Y3: 6.678846006 | Z3: 16.50323382 | AD3: 46.83333333 | AF3: 50.96755593 | AG3: 60.64838679 | AH3: 58.34571776 | AK3: 50.72606268 | AL3: 45.73186887 | AM3: 44.42271134 | AP3: 46.98252516 | AQ3: 32.30365116 | AR3: 36.45308562 | AT3: 50 | AU3: 2.56227758 | AV3: 2.56227758 | AX3: 53.13628416 | AY3: 37.61278793 | AZ3: 33.17271866 | BC3: 28.81038309 | BD3: 8.556528691 | BE3: 21.14293301 | BH3: 56.25 | BI3: 100.9028782 | BJ3: 60.37735849 | BK3: -230.6049822 | BN3: 7.931851317 | BR3: 92.97102691 | BT3: 10.48146993 | BU3: 6.220735627 | BV3: 11.64317093 | BW3: 10.86768001 | BX3: =Table1[[#This Row],[SF]]/Table1[[#This Row],[CF]] -> 0.5326382592 | BY3: =Table1[[#This Row],[MSF]]/Table1[[#This Row],[CF]] -> 0.2214109627 | BZ3: =Table1[[#This Row],[BSF]]/Table1[[#This Row],[CF]] -> 0.2459507781 | CA3: =Table1[[#This Row],[SA]]/Table1[[#This Row],[CA]] -> 0.6247773962 | CB3: =Table1[[#This Row],[MSA]]/Table1[[#This Row],[CA]] -> 0.1365931558 | CC3: =Table1[[#This Row],[BSA]]/Table1[[#This Row],[CA]] -> 0.2386294479
A4: 5v5 | B4: ScAdj | C4: WSH | D4: 20132014 | E4: 20028 | F4: 2013-10-05 | G4: DAL | J4: -1 | K4: 26 | L4: 25 | O4: 35.51587539 | P4: 41.0451656 | Q4: 26.13892367 | R4: 34.13429726 | S4: 19.55144201 | T4: 19.42951715 | U4: 0 | V4: 2 | W4: 20.15635537 | X4: 24.78462868 | Y4: 4.921980561 | Z4: 9.823144544 | AD4: 51.44166667 | AF4: 46.38896615 | AG4: 41.42464001 | AH4: 47.87383644 | AK4: 43.36739146 | AL4: 30.48764789 | AM4: 39.81320918 | AP4: 50.15639029 | AQ4: 22.80420906 | AR4: 22.66199959 | AT4: 0 | AU4: 0 | AV4: 2.332739349 | AX4: 44.850721 | AY4: 23.50976165 | AZ4: 28.90803928 | BC4: 33.380392 | BD4: 5.740848864 | BE4: 11.4574179 | BH4: 46.42857143 | BI4: 89.70638341 | BJ4: 48.88888889 | BK4: -69.98218046 | BN4: 0 | BR4: 89.70638341 | BT4: 6.587481652 | BU4: 14.70478011 | BV4: 9.376951723 | BW4: 6.910868347 | BX4: =Table1[[#This Row],[SF]]/Table1[[#This Row],[CF]] -> 0.5504986656 | BY4: =Table1[[#This Row],[MSF]]/Table1[[#This Row],[CF]] -> 0.1854799179 | BZ4: =Table1[[#This Row],[BSF]]/Table1[[#This Row],[CF]] -> 0.2640214163 | CA4: =Table1[[#This Row],[SA]]/Table1[[#This Row],[CA]] -> 0.4733691987 | CB4: =Table1[[#This Row],[MSA]]/Table1[[#This Row],[CA]] -> 0.3582585158 | CC4: =Table1[[#This Row],[BSA]]/Table1[[#This Row],[CA]] -> 0.1683722857
A5: 5v5 | B5: ScAdj | C5: WSH | D5: 20132014 | E5: 20050 | F5: 2013-10-10 | G5: CAR | J5: -3 | K5: 24 | L5: 23 | O5: 37.09433687 | P5: 39.12645528 | Q5: 31.16571025 | R5: 33.31720067 | S5: 22.68364839 | T5: 29.00048884 | U5: 2 | V5: 2 | W5: 16.7361775 | X5: 24.12710944 | Y5: 4.760179197 | Z5: 6.147569835 | AD5: 43.74166667 | AF5: 48.6669527 | AG5: 50.88192521 | AH5: 53.66936141 | AK5: 48.33173597 | AL5: 42.74968829 | AM5: 45.70086585 | AP5: 43.88899497 | AQ5: 31.11493016 | AR5: 39.77967607 | AT5: 50 | AU5: 2.743379691 | AV5: 2.743379691 | AX5: 40.95651318 | AY5: 22.95684473 | AZ5: 33.09491103 | BC5: 43.64034397 | BD5: 6.529489468 | BE5: 8.432559119 | BH5: 50 | BI5: 101.9204884 | BJ5: 65 | BK5: -246.9041722 | BN5: 8.816923827 | BR5: 93.10356453 | BT5: 8.482061861 | BU5: 4.316711827 | BV5: 5.928626612 | BW5: 5.809254612 | BX5: =Table1[[#This Row],[SF]]/Table1[[#This Row],[CF]] -> 0.6115124384 | BY5: =Table1[[#This Row],[MSF]]/Table1[[#This Row],[CF]] -> 0.2286619084 | BZ5: =Table1[[#This Row],[BSF]]/Table1[[#This Row],[CF]] -> 0.159825653 | CA5: =Table1[[#This Row],[SA]]/Table1[[#This Row],[CA]] -> 0.7411989824 | CB5: =Table1[[#This Row],[MSA]]/Table1[[#This Row],[CA]] -> 0.110327189 | CC5: =Table1[[#This Row],[BSA]]/Table1[[#This Row],[CA]] -> 0.1484738285
A6: 5v5 | B6: ScAdj | C6: WSH | D6: 20132014 | E6: 20067 | F6: 2013-10-12 | G6: COL | J6: -2 | K6: 23 | L6: 30 | O6: 51.3355371 | P6: 36.47006097 | Q6: 38.69268858 | R6: 29.27829527 | S6: 33.56560189 | T6: 21.83266001 | U6: 1 | V6: 3 | W6: 29.00378629 | X6: 16.94852743 | Y6: 15.39087453 | Z6: 5.227573763 | AD6: 50.75833333 | AF6: 58.46499338 | AG6: 60.68229636 | AH6: 43.1102346 | AK6: 56.9253031 | AL6: 45.73754027 | AM6: 34.6090504 | AP6: 60.58962996 | AQ6: 39.67695512 | AR6: 25.80777411 | AT6: 25 | AU6: 1.182071909 | AV6: 3.546215728 | AX6: 63.11714023 | AY6: 34.28456104 | AZ6: 20.03437818 | BC6: 74.64613395 | BD6: 18.19312045 | BE6: 6.1793681 | BH6: 63.41463415 | BI6: 89.23835871 | BJ6: 55 | BK6: -141.8486291 | BN6: 2.979240483 | BR6: 86.25911823 | BT6: 5.127086692 | BU6: 7.445635259 | BV6: 12.64284852 | BW6: 7.191765696 | BX6: =Table1[[#This Row],[SF]]/Table1[[#This Row],[CF]] -> 0.6538472915 | BY6: =Table1[[#This Row],[MSF]]/Table1[[#This Row],[CF]] -> 0.09987402454 | BZ6: =Table1[[#This Row],[BSF]]/Table1[[#This Row],[CF]] -> 0.246278684 | CA6: =Table1[[#This Row],[SA]]/Table1[[#This Row],[CA]] -> 0.5986461067 | CB6: =Table1[[#This Row],[MSA]]/Table1[[#This Row],[CA]] -> 0.2041574667 | CC6: =Table1[[#This Row],[BSA]]/Table1[[#This Row],[CA]] -> 0.1971964265
A7: 5v5 | B7: ScAdj | C7: WSH | D7: 20132014 | E7: 20080 | F7: 2013-10-14 | G7: EDM | J7: 0 | K7: 26 | L7: 28 | O7: 40.66586523 | P7: 38.01853812 | Q7: 27.09119735 | R7: 29.40980459 | S7: 18.35847176 | T7: 20.74391787 | U7: 2 | V7: 2 | W7: 21.22131508 | X7: 19.67883257 | Y7: 9.415954589 | Z7: 11.11265506 | AD7: 48.425 | AF7: 51.68224388 | AG7: 50.38620369 | AH7: 47.1060875 | AK7: 47.94817157 | AL7: 33.56679073 | AM7: 36.43961333 | AP7: 46.94974383 | AQ7: 22.74668675 | AR7: 25.70232467 | AT7: 50 | AU7: 2.478058854 | AV7: 2.478058854 | AX7: 51.88566864 | AY7: 26.29383386 | AZ7: 24.38265264 | BC7: 45.86747349 | BD7: 11.66664482 | BE7: 13.76890663 | BH7: 66.66666667 | BI7: 101.2527727 | BJ7: 43.58974359 | BK7: 0 | BN7: 10.89415299 | BR7: 90.35861975 | BT7: 8.732725588 | BU7: 8.665886721 | BV7: 13.57466788 | BW7: 8.608733528 | BX7: =Table1[[#This Row],[SF]]/Table1[[#This Row],[CF]] -> 0.451446727 | BY7: =Table1[[#This Row],[MSF]]/Table1[[#This Row],[CF]] -> 0.2147433858 | BZ7: =Table1[[#This Row],[BSF]]/Table1[[#This Row],[CF]] -> 0.3338098871 | CA7: =Table1[[#This Row],[SA]]/Table1[[#This Row],[CA]] -> 0.5456263943 | CB7: =Table1[[#This Row],[MSA]]/Table1[[#This Row],[CA]] -> 0.2279384519 | CC7: =Table1[[#This Row],[BSA]]/Table1[[#This Row],[CA]] -> 0.2264351538
A8: 5v5 | B8: ScAdj | C8: WSH | D8: 20132014 | E8: 20094 | F8: 2013-10-16 | G8: NYR | J8: 0 | K8: 20 | L8: 33 | O8: 33.66061805 | P8: 49.61703445 | Q8: 21.81902977 | R8: 39.73770346 | S8: 13.28907068 | T8: 28.62761819 | U8: 0 | V8: 1 | W8: 16.3862403 | X8: 25.45510106 | Y8: 4.446501522 | Z8: 9.210371195 | AD8: 44.93333333 | AF8: 40.41974892 | AG8: 44.94741283 | AH8: 66.25420031 | AK8: 35.4453991 | AL8: 29.13520296 | AM8: 53.06221531 | AP8: 31.70353155 | AQ8: 17.74504987 | AR8: 38.22678987 | AT8: 0 | AU8: 0 | AV8: 1.335311573 | AX8: 39.16279873 | AY8: 21.88073631 | AZ8: 33.99049103 | BC8: 32.55870956 | BD8: 5.937464941 | BE8: 12.29871525 | BH8: 51.2195122 | BI8: 96.50686972 | BJ8: 51.92307692 | BK8: 0 | BN8: 0 | BR8: 96.50686972 | BT8: 8.529959089 | BU8: 11.11008527 | BV8: 11.84158828 | BW8: 9.879330989 | BX8: =Table1[[#This Row],[SF]]/Table1[[#This Row],[CF]] -> 0.3947958014 | BY8: =Table1[[#This Row],[MSF]]/Table1[[#This Row],[CF]] -> 0.2534106497 | BZ8: =Table1[[#This Row],[BSF]]/Table1[[#This Row],[CF]] -> 0.3517935488 | CA8: =Table1[[#This Row],[SA]]/Table1[[#This Row],[CA]] -> 0.5769715685 | CB8: =Table1[[#This Row],[MSA]]/Table1[[#This Row],[CA]] -> 0.2239167535 | CC8: =Table1[[#This Row],[BSA]]/Table1[[#This Row],[CA]] -> 0.199111678
A9: 5v5 | B9: ScAdj | C9: WSH | D9: 20132014 | E9: 20118 | F9: 2013-10-19 | G9: CBJ | J9: 0 | K9: 26 | L9: 23 | O9: 55.62773495 | P9: 50.66499003 | Q9: 43.41263285 | R9: 42.55132894 | S9: 32.72675005 | T9: 31.51239774 | U9: 2 | V9: 1 | W9: 28.95291384 | X9: 21.93972459 | Y9: 7.489570487 | Z9: 8.589428335 | AD9: 49.26666667 | AF9: 52.33447064 | AG9: 67.74690319 | AH9: 61.70296485 | AK9: 50.50096801 | AL9: 52.87059481 | AM9: 51.82164553 | AP9: 50.9451809 | AQ9: 39.85666448 | AR9: 38.37775097 | AT9: 66.66666667 | AU9: 2.435723951 | AV9: 1.217861976 | AX9: 56.89018046 | AY9: 35.26065285 | AZ9: 26.71955634 | BC9: 46.57983106 | BD9: 9.12126311 | BE9: 10.46073816 | BH9: 54.16666667 | BI9: 102.9378545 | BJ9: 42.22222222 | BK9: 0 | BN9: 6.111208711 | BR9: 96.82664579 | BT9: 10.68588279 | BU9: 11.0389312 | BV9: 12.21510211 | BW9: 8.113661086 | BX9: =Table1[[#This Row],[SF]]/Table1[[#This Row],[CF]] -> 0.5883171421 | BY9: =Table1[[#This Row],[MSF]]/Table1[[#This Row],[CF]] -> 0.1920963131 | BZ9: =Table1[[#This Row],[BSF]]/Table1[[#This Row],[CF]] -> 0.2195865448 | CA9: =Table1[[#This Row],[SA]]/Table1[[#This Row],[CA]] -> 0.6219758007 | CB9: =Table1[[#This Row],[MSA]]/Table1[[#This Row],[CA]] -> 0.2178808521 | CC9: =Table1[[#This Row],[BSA]]/Table1[[#This Row],[CA]] -> 0.1601433471
A10: 5v5 | B10: ScAdj | C10: WSH | D10: 20132014 | E10: 20135 | F10: 2013-10-22 | G10: WPG | J10: 1 | K10: 19 | L10: 25 | O10: 38.0546473 | P10: 44.8263359 | Q10: 31.41643508 | R10: 38.60232961 | S10: 22.14237532 | T10: 31.75487144 | U10: 3 | V10: 3 | W10: 13.6279445 | X10: 23.78694306 | Y10: 8.420472288 | Z10: 10.41348488 | AD10: 45.89166667 | AF10: 45.91481162 | AG10: 49.75366998 | AH10: 58.60715789 | AK10: 44.86859376 | AL10: 41.07469268 | AM10: 50.46972456 | AP10: 41.08257221 | AQ10: 28.94953737 | AR10: 41.51717348 | AT10: 50 | AU10: 3.922280734 | AV10: 3.922280734 | AX10: 36.42385528 | AY10: 17.81754138 | AZ10: 31.0996895 | BC10: 44.70899138 | BD10: 11.00915207 | BE10: 13.61487038 | BH10: 51.61290323 | BI10: 104.1013125 | BJ10: 43.10344828 | BK10: 78.44561467 | BN10: 13.54868191 | BR10: 90.55263062 | BT10: 9.274059764 | BU10: 6.847458169 | BV10: 6.638212223 | BW10: 6.224006295 | BX10: =Table1[[#This Row],[SF]]/Table1[[#This Row],[CF]] -> 0.581857326 | BY10: =Table1[[#This Row],[MSF]]/Table1[[#This Row],[CF]] -> 0.2437037372 | BZ10: =Table1[[#This Row],[BSF]]/Table1[[#This Row],[CF]] -> 0.174438937 | CA10: =Table1[[#This Row],[SA]]/Table1[[#This Row],[CA]] -> 0.7083976596 | CB10: =Table1[[#This Row],[MSA]]/Table1[[#This Row],[CA]] -> 0.1527552505 | CC10: =Table1[[#This Row],[BSA]]/Table1[[#This Row],[CA]] -> 0.13884709
A11: 5v5 | B11: ScAdj | C11: WSH | D11: 20132014 | E11: 20147 | F11: 2013-10-24 | G11: EDM | J11: -1 | K11: 25 | L11: 20 | O11: 39.27011901 | P11: 36.37762467 | Q11: 32.73198385 | R11: 29.30321413 | S11: 24.86561282 | T11: 20.40392602 | U11: 4 | V11: 1 | W11: 19.42313392 | X11: 27.02810272 | Y11: 7.172647053 | Z11: 10.66291461 | AD11: 48.725 | AF11: 51.91181799 | AG11: 48.35725275 | AH11: 44.79543315 | AK11: 52.76356797 | AL11: 40.30618843 | AM11: 36.08399893 | AP11: 54.9279128 | AQ11: 30.61953348 | AR11: 25.12540915 | AT11: 80 | AU11: 4.925602873 | AV11: 1.231400718 | AX11: 41.81402978 | AY11: 23.91766106 | AZ11: 33.2824251 | BC11: 40.21542572 | BD11: 8.832402733 | BE11: 13.13032071 | BH11: 54.16666667 | BI11: 111.1854551 | BJ11: 35.71428571 | BK11: -73.8840431 | BN11: 16.08647263 | BR11: 95.09898243 | BT11: 7.866371038 | BU11: 8.899288113 | BV11: 6.538135153 | BW11: 7.07441054 | BX11: =Table1[[#This Row],[SF]]/Table1[[#This Row],[CF]] -> 0.6331942313 | BY11: =Table1[[#This Row],[MSF]]/Table1[[#This Row],[CF]] -> 0.2003144181 | BZ11: =Table1[[#This Row],[BSF]]/Table1[[#This Row],[CF]] -> 0.1664913506 | CA11: =Table1[[#This Row],[SA]]/Table1[[#This Row],[CA]] -> 0.5608922024 | CB11: =Table1[[#This Row],[MSA]]/Table1[[#This Row],[CA]] -> 0.2446363168 | CC11: =Table1[[#This Row],[BSA]]/Table1[[#This Row],[CA]] -> 0.1944714809
A12: 5v5 | B12: ScAdj | C12: WSH | D12: 20132014 | E12: 20165 | F12: 2013-10-26 | G12: CGY | J12: 0 | K12: 16 | L12: 12 | O12: 39.56557149 | P12: 34.47704458 | Q12: 27.93458208 | R12: 30.04174058 | S12: 19.36588088 | T12: 25.64488558 | U12: 2 | V12: 5 | W12: 13.68353904 | X12: 15.008552 | Y12: 4.006392324 | Z12: 7.115000416 | AD12: 45.84166667 | AF12: 53.43621497 | AG12: 51.78551441 | AH12: 45.12538101 | AK12: 48.18274219 | AL12: 36.56225976 | AM12: 39.32022036 | AP12: 43.02499692 | AQ12: 25.34709005 | AR12: 33.56538378 | AT12: 28.57142857 | AU12: 2.617705872 | AV12: 6.544264679 | AX12: 47.69097875 | AY12: 17.90974025 | AZ12: 19.64398735 | BC12: 36.02419605 | BD12: 5.243778356 | BE12: 9.312489183 | BH12: 39.13043478 | BI12: 90.83037644 | BJ12: 43.58974359 | BK12: 0 | BN12: 10.3274414 | BR12: 80.50293504 | BT12: 8.568701194 | BU12: 4.396855004 | BV12: 11.63098942 | BW12: 4.435303992 | BX12: =Table1[[#This Row],[SF]]/Table1[[#This Row],[CF]] -> 0.4894629384 | BY12: =Table1[[#This Row],[MSF]]/Table1[[#This Row],[CF]] -> 0.2165696304 | BZ12: =Table1[[#This Row],[BSF]]/Table1[[#This Row],[CF]] -> 0.2939674313 | CA12: =Table1[[#This Row],[SA]]/Table1[[#This Row],[CA]] -> 0.743824939 | CB12: =Table1[[#This Row],[MSA]]/Table1[[#This Row],[CA]] -> 0.1275299277 | CC12: =Table1[[#This Row],[BSA]]/Table1[[#This Row],[CA]] -> 0.1286451332
A13: 5v5 | B13: ScAdj | C13: WSH | D13: 20132014 | E13: 20175 | F13: 2013-10-28 | G13: VAN | J13: -1 | K13: 17 | L13: 14 | O13: 26.59767368 | P13: 41.43030842 | Q13: 18.98469113 | R13: 33.34101911 | S13: 13.06268111 | T13: 24.34586678 | U13: 2 | V13: 3 | W13: 12.74348902 | X13: 23.2176496 | Y13: 2.971819106 | Z13: 5.534235509 | AD13: 39.6 | AF13: 39.09813706 | AG13: 40.29950558 | AH13: 62.77319458 | AK13: 36.28176482 | AL13: 28.76468353 | AM13: 50.51669562 | AP13: 34.918974 | AQ13: 19.79194108 | AR13: 36.88767695 | AT13: 40 | AU13: 3.03030303 | AV13: 4.545454545 | AX13: 35.43683405 | AY13: 19.30831669 | AZ13: 35.17825697 | BC13: 34.93769133 | BD13: 4.502756221 | BE13: 8.385205317 | BH13: 47.05882353 | BI13: 102.9883723 | BJ13: 29.03225806 | BK13: -90.90909091 | BN13: 15.3107925 | BR13: 87.67757983 | BT13: 5.922010018 | BU13: 8.995152324 | BV13: 7.61298255 | BW13: 8.089289316 | BX13: =Table1[[#This Row],[SF]]/Table1[[#This Row],[CF]] -> 0.4911211885 | BY13: =Table1[[#This Row],[MSF]]/Table1[[#This Row],[CF]] -> 0.2226514277 | BZ13: =Table1[[#This Row],[BSF]]/Table1[[#This Row],[CF]] -> 0.2862273837 | CA13: =Table1[[#This Row],[SA]]/Table1[[#This Row],[CA]] -> 0.5876342153 | CB13: =Table1[[#This Row],[MSA]]/Table1[[#This Row],[CA]] -> 0.2171152634 | CC13: =Table1[[#This Row],[BSA]]/Table1[[#This Row],[CA]] -> 0.1952505213
A14: 5v5 | B14: ScAdj | C14: WSH | D14: 20132014 | E14: 20191 | F14: 2013-11-01 | G14: PHI | J14: 0 | K14: 20 | L14: 28 | O14: 43.27352181 | P14: 30.10589628 | Q14: 33.92965175 | R14: 22.12124386 | S14: 23.03350924 | T14: 15.19304635 | U14: 5 | V14: 0 | W14: 28.29698365 | X14: 15.57969893 | Y14: 11.69710798 | Z14: 6.378674442 | AD14: 42.14166667 | AF14: 58.97228806 | AG14: 61.61150031 | AH14: 42.86384284 | AK14: 60.53364783 | AL14: 48.30798747 | AM14: 31.49554197 | AP14: 60.25525682 | AQ14: 32.79439718 | AR14: 21.63138891 | AT14: 100 | AU14: 7.118845165 | AV14: 0 | AX14: 64.4920764 | AY14: 40.28836904 | AZ14: 22.18189288 | BC14: 64.71148914 | BD14: 16.65398011 | BE14: 9.081759142 | BH14: 45.83333333 | BI14: 121.7075043 | BJ14: 57.14285714 | BK14: 0 | BN14: 21.70750426 | BR14: 100 | BT14: 10.89614251 | BU14: 6.928197509 | BV14: 9.343870063 | BW14: 7.984652427 | BX14: =Table1[[#This Row],[SF]]/Table1[[#This Row],[CF]] -> 0.532277205 | BY14: =Table1[[#This Row],[MSF]]/Table1[[#This Row],[CF]] -> 0.2517969893 | BZ14: =Table1[[#This Row],[BSF]]/Table1[[#This Row],[CF]] -> 0.2159258057 | CA14: =Table1[[#This Row],[SA]]/Table1[[#This Row],[CA]] -> 0.504653514 | CB14: =Table1[[#This Row],[MSA]]/Table1[[#This Row],[CA]] -> 0.2301275951 | CC14: =Table1[[#This Row],[BSA]]/Table1[[#This Row],[CA]] -> 0.2652188911
A15: 5v5 | B15: ScAdj | C15: WSH | D15: 20132014 | E15: 20206 | F15: 2013-11-02 | G15: FLA | J15: -6 | K15: 18 | L15: 12 | O15: 33.31705829 | P15: 41.26130805 | Q15: 26.45273499 | R15: 25.72522895 | S15: 17.58352462 | T15: 18.23725934 | U15: 2 | V15: 1 | W15: 17.50512372 | X15: 23.55480057 | Y15: 4.685882466 | Z15: 8.171982916 | AD15: 44.19166667 | AF15: 44.67389127 | AG15: 45.23530449 | AH15: 56.02138751 | AK15: 50.69713916 | AL15: 35.91546143 | AM15: 34.92771043 | AP15: 49.08749245 | AQ15: 23.873539 | AR15: 24.76112903 | AT15: 66.66666667 | AU15: 2.715444088 | AV15: 1.357722044 | AX15: 42.63311251 | AY15: 23.76709236 | AZ15: 31.98087198 | BC15: 36.44370451 | BD15: 6.36212592 | BE15: 11.09528135 | BH15: 50 | BI15: 105.8910038 | BJ15: 63.15789474 | BK15: -488.7799359 | BN15: 11.37428384 | BR15: 94.51671997 | BT15: 8.869210367 | BU15: 7.487969606 | BV15: 6.8643233 | BW15: 15.5360791 | BX15: =Table1[[#This Row],[SF]]/Table1[[#This Row],[CF]] -> 0.5277634198 | BY15: =Table1[[#This Row],[MSF]]/Table1[[#This Row],[CF]] -> 0.2662062866 | BZ15: =Table1[[#This Row],[BSF]]/Table1[[#This Row],[CF]] -> 0.2060302936 | CA15: =Table1[[#This Row],[SA]]/Table1[[#This Row],[CA]] -> 0.4419942121 | CB15: =Table1[[#This Row],[MSA]]/Table1[[#This Row],[CA]] -> 0.1814767868 | CC15: =Table1[[#This Row],[BSA]]/Table1[[#This Row],[CA]] -> 0.376529001
A16: 5v5 | B16: ScAdj | C16: WSH | D16: 20132014 | E16: 20218 | F16: 2013-11-05 | G16: NYI | J16: 1 | K16: 19 | L16: 20 | O16: 50.68555074 | P16: 38.54953573 | Q16: 38.31703418 | R16: 28.95039324 | S16: 29.52100992 | T16: 20.66175704 | U16: 2 | V16: 2 | W16: 22.96479938 | X16: 20.32754126 | Y16: 8.551481343 | Z16: 7.007561047 | AD16: 46.025 | AF16: 56.80002424 | AG16: 66.07567723 | AH16: 50.25469079 | AK16: 56.96224109 | AL16: 49.95159263 | AM16: 37.74087114 | AP16: 58.82698725 | AQ16: 38.48474949 | AR16: 26.93547903 | AT16: 50 | AU16: 2.607278653 | AV16: 2.607278653 | AX16: 53.04587149 | AY16: 29.9378156 | AZ16: 26.4997822 | BC16: 54.96148881 | BD16: 11.14804738 | BE16: 9.135332164 | BH16: 55.55555556 | BI16: 97.09511708 | BJ16: 40.38461538 | BK16: 78.21835959 | BN16: 6.774835975 | BR16: 90.32028111 | BT16: 8.796024264 | BU16: 8.288636195 | BV16: 12.36851656 | BW16: 9.599142492 | BX16: =Table1[[#This Row],[SF]]/Table1[[#This Row],[CF]] -> 0.5824344313 | BY16: =Table1[[#This Row],[MSF]]/Table1[[#This Row],[CF]] -> 0.1735410612 | BZ16: =Table1[[#This Row],[BSF]]/Table1[[#This Row],[CF]] -> 0.2440245076 | CA16: =Table1[[#This Row],[SA]]/Table1[[#This Row],[CA]] -> 0.5359794002 | CB16: =Table1[[#This Row],[MSA]]/Table1[[#This Row],[CA]] -> 0.2150126075 | CC16: =Table1[[#This Row],[BSA]]/Table1[[#This Row],[CA]] -> 0.2490079922
A17: 5v5 | B17: ScAdj | C17: WSH | D17: 20132014 | E17: 20233 | F17: 2013-11-07 | G17: MIN | J17: 0 | K17: 23 | L17: 13 | O17: 35.29993763 | P17: 36.50661572 | Q17: 25.01509852 | R17: 30.52943156 | S17: 18.64920805 | T17: 25.44984815 | U17: 1 | V17: 1 | W17: 15.33894404 | X17: 22.6148602 | Y17: 4.609637141 | Z17: 14.40739296 | AD17: 52.36666667 | AF17: 49.15977161 | AG17: 40.4455046 | AH17: 41.82807658 | AK17: 45.03611514 | AL17: 28.66147507 | AM17: 34.97961605 | AP17: 42.28935868 | AQ17: 21.36764767 | AR17: 29.15959687 | AT17: 50 | AU17: 1.145767027 | AV17: 1.145767027 | AX17: 40.41477356 | AY17: 17.57485632 | AZ17: 25.91136115 | BC17: 24.23952171 | BD17: 5.281570245 | BE17: 16.50751581 | BH17: 66.66666667 | BI17: 101.4328615 | BJ17: 41.86046512 | BK17: 0 | BN17: 5.362157992 | BR17: 96.07070347 | BT17: 6.365890467 | BU17: 5.07958341 | BV17: 10.28483911 | BW17: 5.977184161 | BX17: =Table1[[#This Row],[SF]]/Table1[[#This Row],[CF]] -> 0.5283071105 | BY17: =Table1[[#This Row],[MSF]]/Table1[[#This Row],[CF]] -> 0.1803371591 | BZ17: =Table1[[#This Row],[BSF]]/Table1[[#This Row],[CF]] -> 0.2913557304 | CA17: =Table1[[#This Row],[SA]]/Table1[[#This Row],[CA]] -> 0.6971297571 | CB17: =Table1[[#This Row],[MSA]]/Table1[[#This Row],[CA]] -> 0.139141449 | CC17: =Table1[[#This Row],[BSA]]/Table1[[#This Row],[CA]] -> 0.1637287939
A18: 5v5 | B18: ScAdj | C18: WSH | D18: 20132014 | E18: 20253 | F18: 2013-11-09 | G18: PHX | J18: 1 | K18: 21 | L18: 29 | O18: 35.27861367 | P18: 33.9276415 | Q18: 28.23112816 | R18: 26.96041871 | S18: 20.95043199 | T18: 21.00536873 | U18: 1 | V18: 1 | W18: 20.68148914 | X18: 21.92095484 | Y18: 8.370854779 | Z18: 6.684028468 | AD18: 43.85 | AF18: 50.97604773 | AG18: 48.27176328 | AH18: 46.42322668 | AK18: 51.15118123 | AL18: 38.62868164 | AM18: 36.88996858 | AP18: 49.93453022 | AQ18: 28.66649759 | AR18: 28.74166759 | AT18: 50 | AU18: 1.368301026 | AV18: 1.368301026 | AX18: 48.5453115 | AY18: 28.29850281 | AZ18: 29.99446501 | BC18: 55.60225637 | BD18: 11.45384918 | BE18: 9.145763012 | BH18: 48.27586207 | BI18: 100.0124836 | BJ18: 47.91666667 | BK18: 82.09806157 | BN18: 4.773171267 | BR18: 95.23931233 | BT18: 7.280696177 | BU18: 5.955049973 | BV18: 7.047485502 | BW18: 6.967222796 | BX18: =Table1[[#This Row],[SF]]/Table1[[#This Row],[CF]] -> 0.5938564419 | BY18: =Table1[[#This Row],[MSF]]/Table1[[#This Row],[CF]] -> 0.2063770489 | BZ18: =Table1[[#This Row],[BSF]]/Table1[[#This Row],[CF]] -> 0.1997665092 | CA18: =Table1[[#This Row],[SA]]/Table1[[#This Row],[CA]] -> 0.6191225738 | CB18: =Table1[[#This Row],[MSA]]/Table1[[#This Row],[CA]] -> 0.1755220731 | CC18: =Table1[[#This Row],[BSA]]/Table1[[#This Row],[CA]] -> 0.205355353
A19: 5v5 | B19: ScAdj | C19: WSH | D19: 20132014 | E19: 20260 | F19: 2013-11-10 | G19: COL | J19: 1 | K19: 14 | L19: 21 | O19: 39.42029515 | P19: 52.69730459 | Q19: 30.17921472 | R19: 35.3397737 | S19: 23.06543764 | T19: 26.57122083 | U19: 1 | V19: 4 | W19: 17.04354463 | X19: 29.96563952 | Y19: 6.033751026 | Z19: 12.62563284 | AD19: 47.19166667 | AF19: 42.79344584 | AG19: 50.11939345 | AH19: 66.99992814 | AK19: 46.06178369 | AL19: 38.37018294 | AM19: 44.93137394 | AP19: 46.46855439 | AQ19: 29.32564912 | AR19: 33.78294014 | AT19: 20 | AU19: 1.271410913 | AV19: 5.085643652 | AX19: 36.25577626 | AY19: 21.66934863 | AZ19: 38.09864109 | BC19: 32.33628222 | BD19: 7.671376901 | BE19: 16.05236737 | BH19: 68.96551724 | BI19: 89.28160998 | BJ19: 60.97560976 | BK19: 76.28465478 | BN19: 4.335491118 | BR19: 84.94611887 | BT19: 7.113777087 | BU19: 8.768552865 | BV19: 9.241080429 | BW19: 17.35753089 | BX19: =Table1[[#This Row],[SF]]/Table1[[#This Row],[CF]] -> 0.5851158027 | BY19: =Table1[[#This Row],[MSF]]/Table1[[#This Row],[CF]] -> 0.1804597622 | BZ19: =Table1[[#This Row],[BSF]]/Table1[[#This Row],[CF]] -> 0.2344244353 | CA19: =Table1[[#This Row],[SA]]/Table1[[#This Row],[CA]] -> 0.5042235279 | CB19: =Table1[[#This Row],[MSA]]/Table1[[#This Row],[CA]] -> 0.1663947128 | CC19: =Table1[[#This Row],[BSA]]/Table1[[#This Row],[CA]] -> 0.3293817592
A20: 5v5 | B20: ScAdj | C20: WSH | D20: 20132014 | E20: 20266 | F20: 2013-11-12 | G20: CBJ | J20: -1 | K20: 23 | L20: 24 | O20: 39.78794167 | P20: 42.61332275 | Q20: 27.4730533 | R20: 28.809751 | S20: 24.69769408 | T20: 22.65057584 | U20: 2 | V20: 2 | W20: 20.01154413 | X20: 23.88977402 | Y20: 8.578404478 | Z20: 7.033792642 | AD20: 49.21666667 | AF20: 48.28559604 | AG20: 48.5054487 | AH20: 51.94986858 | AK20: 48.81251679 | AL20: 33.49237788 | AM20: 35.12194501 | AP20: 52.16176667 | AQ20: 30.10893962 | AR20: 27.61329937 | AT20: 50 | AU20: 2.438198442 | AV20: 2.438198442 | AX20: 45.58301431 | AY20: 24.39605786 | AZ20: 29.1240049 | BC20: 54.94681122 | BD20: 10.45792622 | BE20: 8.574891131 | BH20: 66.66666667 | BI20: 99.2681244 | BJ20: 40 | BK20: -73.14595327 | BN20: 8.09792199 | BR20: 91.17020241 | BT20: 2.775359223 | BU20: 6.159175157 | BV20: 12.31488836 | BW20: 13.80357175 | BX20: =Table1[[#This Row],[SF]]/Table1[[#This Row],[CF]] -> 0.6207331428 | BY20: =Table1[[#This Row],[MSF]]/Table1[[#This Row],[CF]] -> 0.06975377731 | BZ20: =Table1[[#This Row],[BSF]]/Table1[[#This Row],[CF]] -> 0.3095130797 | CA20: =Table1[[#This Row],[SA]]/Table1[[#This Row],[CA]] -> 0.5315374249 | CB20: =Table1[[#This Row],[MSA]]/Table1[[#This Row],[CA]] -> 0.1445363741 | CC20: =Table1[[#This Row],[BSA]]/Table1[[#This Row],[CA]] -> 0.323926201
A21: 5v5 | B21: ScAdj | C21: WSH | D21: 20132014 | E21: 20290 | F21: 2013-11-15 | G21: DET | J21: -2 | K21: 24 | L21: 21 | O21: 34.23472265 | P21: 38.08427924 | Q21: 29.4725816 | R21: 30.94373562 | S21: 22.1428131 | T21: 26.47445845 | U21: 3 | V21: 1 | W21: 15.6249284 | X21: 17.84666278 | Y21: 8.505217531 | Z21: 6.86037282 | AD21: 46.38333333 | AF21: 47.33848885 | AG21: 44.28494486 | AH21: 49.26460844 | AK21: 48.78248619 | AL21: 38.12479115 | AM21: 40.02782904 | AP21: 45.54515791 | AQ21: 28.6432365 | AR21: 34.24651471 | AT21: 75 | AU21: 3.880704276 | AV21: 1.293568092 | AX21: 46.68116408 | AY21: 20.21190881 | AZ21: 23.08587352 | BC21: 55.35236419 | BD21: 11.00207801 | BE21: 8.874359379 | BH21: 48.14814815 | BI21: 109.7711885 | BJ21: 53.65853659 | BK21: -155.228171 | BN21: 13.54841404 | BR21: 96.22277448 | BT21: 7.329768501 | BU21: 4.469277166 | BV21: 4.762141049 | BW21: 7.140543626 | BX21: =Table1[[#This Row],[SF]]/Table1[[#This Row],[CF]] -> 0.646793997 | BY21: =Table1[[#This Row],[MSF]]/Table1[[#This Row],[CF]] -> 0.2141033411 | BZ21: =Table1[[#This Row],[BSF]]/Table1[[#This Row],[CF]] -> 0.1391026619 | CA21: =Table1[[#This Row],[SA]]/Table1[[#This Row],[CA]] -> 0.6951545094 | CB21: =Table1[[#This Row],[MSA]]/Table1[[#This Row],[CA]] -> 0.1173522843 | CC21: =Table1[[#This Row],[BSA]]/Table1[[#This Row],[CA]] -> 0.1874932063
A22: 5v5 | B22: ScAdj | C22: WSH | D22: 20132014 | E22: 20304 | F22: 2013-11-17 | G22: STL | J22: -1 | K22: 18 | L22: 26 | O22: 37.43604737 | P22: 52.5109092 | Q22: 28.34831354 | R22: 42.20741293 | S22: 17.4142998 | T22: 29.03941861 | U22: 3 | V22: 0 | W22: 14.9818264 | X22: 20.98291013 | Y22: 4.999188158 | Z22: 8.879568095 | AD22: 45.825 | AF22: 41.62013791 | AG22: 49.0161013 | AH22: 68.7540546 | AK22: 40.17861477 | AL22: 37.11726814 | AM22: 55.26338846 | AP22: 37.48741844 | AQ22: 22.8010472 | AR22: 38.02215202 | AT22: 100 | AU22: 3.927986907 | AV22: 0 | AX22: 41.65698917 | AY22: 19.61613932 | AZ22: 27.47353208 | BC22: 36.02043344 | BD22: 6.545581876 | BE22: 11.62627574 | BH22: 27.5862069 | BI22: 117.2272215 | BJ22: 50 | BK22: -78.55973813 | BN22: 17.2272215 | BR22: 100 | BT22: 10.93401374 | BU22: 13.16799433 | BV22: 9.087733822 | BW22: 10.30349627 | BX22: =Table1[[#This Row],[SF]]/Table1[[#This Row],[CF]] -> 0.4651746384 | BY22: =Table1[[#This Row],[MSF]]/Table1[[#This Row],[CF]] -> 0.2920718 | BZ22: =Table1[[#This Row],[BSF]]/Table1[[#This Row],[CF]] -> 0.2427535614 | CA22: =Table1[[#This Row],[SA]]/Table1[[#This Row],[CA]] -> 0.5530168693 | CB22: =Table1[[#This Row],[MSA]]/Table1[[#This Row],[CA]] -> 0.2507668317 | CC22: =Table1[[#This Row],[BSA]]/Table1[[#This Row],[CA]] -> 0.1962162992
A23: 5v5 | B23: ScAdj | C23: WSH | D23: 20132014 | E23: 20323 | F23: 2013-11-20 | G23: PIT | J23: -2 | K23: 28 | L23: 26 | O23: 23.00797886 | P23: 54.19794753 | Q23: 13.2088639 | R23: 43.5592273 | S23: 7.576869785 | T23: 37.3426412 | U23: 0 | V23: 3 | W23: 10.27287388 | X23: 21.83935976 | Y23: 3.58426362 | Z23: 6.115985362 | AD23: 49.04166667 | AF23: 29.80079371 | AG23: 28.14909902 | AH23: 66.30844897 | AK23: 23.26811352 | AL23: 16.16037725 | AM23: 53.29251258 | AP23: 16.86765866 | AQ23: 9.269917154 | AR23: 45.68683375 | AT23: 0 | AU23: 0 | AV23: 3.670348343 | AX23: 31.99053044 | AY23: 12.56834187 | AZ23: 26.71935264 | BC23: 36.95022289 | BD23: 4.385165346 | BE23: 7.482598914 | BH23: 44.82758621 | BI23: 91.96628866 | BJ23: 50 | BK23: -146.8139337 | BN23: 0 | BR23: 91.96628866 | BT23: 5.631994119 | BU23: 6.216586102 | BV23: 9.799114951 | BW23: 10.63872023 | BX23: =Table1[[#This Row],[SF]]/Table1[[#This Row],[CF]] -> 0.3293148795 | BY23: =Table1[[#This Row],[MSF]]/Table1[[#This Row],[CF]] -> 0.2447843921 | BZ23: =Table1[[#This Row],[BSF]]/Table1[[#This Row],[CF]] -> 0.4259007282 | CA23: =Table1[[#This Row],[SA]]/Table1[[#This Row],[CA]] -> 0.6890047115 | CB23: =Table1[[#This Row],[MSA]]/Table1[[#This Row],[CA]] -> 0.1147015041 | CC23: =Table1[[#This Row],[BSA]]/Table1[[#This Row],[CA]] -> 0.1962937844
A24: 5v5 | B24: ScAdj | C24: WSH | D24: 20132014 | E24: 20337 | F24: 2013-11-22 | G24: MTL | J24: -5 | K24: 23 | L24: 19 | O24: 44.20136009 | P24: 45.07049128 | Q24: 33.60655079 | R24: 29.44203869 | S24: 16.99350589 | T24: 21.85623851 | U24: 1 | V24: 2 | W24: 24.71149023 | X24: 27.14457418 | Y24: 9.766705256 | Z24: 10.36051845 | AD24: 46.10833333 | AF24: 49.51321095 | AG24: 57.51848774 | AH24: 58.64947356 | AK24: 53.30262115 | AL24: 43.73164029 | AM24: 38.31243061 | AP24: 43.74161568 | AQ24: 22.11336389 | AR24: 28.4411562 | AT24: 33.33333333 | AU24: 1.30128321 | AV24: 2.60256642 | AX24: 47.6540025 | AY24: 32.15664732 | AZ24: 35.32277862 | BC24: 48.52485072 | BD24: 12.70924957 | BE24: 13.4819687 | BH24: 53.33333333 | BI24: 96.73389549 | BJ24: 55.73770492 | BK24: -390.3849629 | BN24: 5.884600898 | BR24: 90.84929459 | BT24: 16.61304491 | BU24: 7.585800181 | BV24: 10.5948093 | BW24: 15.62845259 | BX24: =Table1[[#This Row],[SF]]/Table1[[#This Row],[CF]] -> 0.3844566288 | BY24: =Table1[[#This Row],[MSF]]/Table1[[#This Row],[CF]] -> 0.3758491792 | BZ24: =Table1[[#This Row],[BSF]]/Table1[[#This Row],[CF]] -> 0.2396941922 | CA24: =Table1[[#This Row],[SA]]/Table1[[#This Row],[CA]] -> 0.4849345523 | CB24: =Table1[[#This Row],[MSA]]/Table1[[#This Row],[CA]] -> 0.1683096848 | CC24: =Table1[[#This Row],[BSA]]/Table1[[#This Row],[CA]] -> 0.3467557629
A25: 5v5 | B25: ScAdj | C25: WSH | D25: 20132014 | E25: 20343 | F25: 2013-11-23 | G25: TOR | J25: 2 | K25: 37 | L25: 32 | O25: 75.49914357 | P25: 42.75823767 | Q25: 52.44439427 | R25: 30.92407259 | S25: 36.72944861 | T25: 20.70203332 | U25: 1 | V25: 0 | W25: 32.01578268 | X25: 23.56179835 | Y25: 15.32160369 | Z25: 9.458934285 | AD25: 52.95833333 | AF25: 63.84307075 | AG25: 85.53797541 | AH25: 48.4436367 | AK25: 62.90675149 | AL25: 59.41772443 | AM25: 35.03592803 | AP25: 63.95351012 | AQ25: 41.61322266 | AR25: 23.45470337 | AT25: 100 | AU25: 1.132966168 | AV25: 0 | AX25: 57.60557061 | AY25: 36.27279864 | AZ25: 26.6947204 | BC25: 61.82918105 | BD25: 17.35885863 | BE25: 10.71665253 | BH25: 65.78947368 | BI25: 102.722611 | BJ25: 40.81632653 | BK25: 135.9559402 | BN25: 2.722610978 | BR25: 100 | BT25: 15.71494566 | BU25: 10.22203926 | BV25: 23.0547493 | BW25: 11.83416508 | BX25: =Table1[[#This Row],[SF]]/Table1[[#This Row],[CF]] -> 0.4864882815 | BY25: =Table1[[#This Row],[MSF]]/Table1[[#This Row],[CF]] -> 0.2081473367 | BZ25: =Table1[[#This Row],[BSF]]/Table1[[#This Row],[CF]] -> 0.3053643818 | CA25: =Table1[[#This Row],[SA]]/Table1[[#This Row],[CA]] -> 0.4841647937 | CB25: =Table1[[#This Row],[MSA]]/Table1[[#This Row],[CA]] -> 0.2390659629 | CC25: =Table1[[#This Row],[BSA]]/Table1[[#This Row],[CA]] -> 0.2767692432
A26: 5v5 | B26: ScAdj | C26: WSH | D26: 20132014 | E26: 20368 | F26: 2013-11-27 | G26: OTT | J26: 2 | K26: 14 | L26: 15 | O26: 37.00080054 | P26: 40.62312122 | Q26: 30.42630271 | R26: 33.31814137 | S26: 24.98643847 | T26: 26.8865258 | U26: 2 | V26: 2 | W26: 19.82884028 | X26: 25.46651002 | Y26: 9.519857571 | Z26: 9.878530748 | AD26: 42.9 | AF26: 47.66674976 | AG26: 51.74937138 | AH26: 56.81555416 | AK26: 47.73169356 | AL26: 42.55426952 | AM26: 46.59879912 | AP26: 48.16851865 | AQ26: 34.94606779 | AR26: 37.60353259 | AT26: 50 | AU26: 2.797202797 | AV26: 2.797202797 | AX26: 43.7767677 | AY26: 27.73264375 | AZ26: 35.61749653 | BC26: 49.07550779 | BD26: 13.31448611 | BE26: 13.81612692 | BH26: 46.875 | BI26: 100.5656718 | BJ26: 46.2962963 | BK26: 167.8321678 | BN26: 8.004342045 | BR26: 92.56132974 | BT26: 5.43986424 | BU26: 6.431615571 | BV26: 6.574497827 | BW26: 7.304979853 | BX26: =Table1[[#This Row],[SF]]/Table1[[#This Row],[CF]] -> 0.675294537 | BY26: =Table1[[#This Row],[MSF]]/Table1[[#This Row],[CF]] -> 0.1470201769 | BZ26: =Table1[[#This Row],[BSF]]/Table1[[#This Row],[CF]] -> 0.177685286 | CA26: =Table1[[#This Row],[SA]]/Table1[[#This Row],[CA]] -> 0.6618527822 | CB26: =Table1[[#This Row],[MSA]]/Table1[[#This Row],[CA]] -> 0.158324013 | CC26: =Table1[[#This Row],[BSA]]/Table1[[#This Row],[CA]] -> 0.179823205
A27: 5v5 | B27: ScAdj | C27: WSH | D27: 20132014 | E27: 20386 | F27: 2013-11-29 | G27: MTL | J27: 1 | K27: 29 | L27: 16 | O27: 38.34372467 | P27: 43.08836555 | Q27: 28.21663094 | R27: 33.67609824 | S27: 20.31792613 | T27: 24.5492796 | U27: 2 | V27: 2 | W27: 19.55353843 | X27: 24.86538647 | Y27: 8.247327012 | Z27: 17.4782664 | AD27: 48.36666667 | AF27: 47.08674991 | AG27: 47.56630214 | AH27: 53.45214196 | AK27: 45.58957298 | AL27: 35.00340158 | AM27: 41.77600058 | AP27: 45.28458101 | AQ27: 25.20487045 | AR27: 30.45396505 | AT27: 50 | AU27: 2.481047553 | AV27: 2.481047553 | AX27: 44.02073773 | AY27: 24.25662935 | AZ27: 30.84610313 | BC27: 32.0588407 | BD27: 10.23100525 | BE27: 21.68220505 | BH27: 67.74193548 | BI27: 101.6966457 | BJ27: 56 | BK27: 74.4314266 | BN27: 9.843524322 | BR27: 91.85312143 | BT27: 7.898704813 | BU27: 9.126818641 | BV27: 10.12709373 | BW27: 9.412267304 | BX27: =Table1[[#This Row],[SF]]/Table1[[#This Row],[CF]] -> 0.5298892141 | BY27: =Table1[[#This Row],[MSF]]/Table1[[#This Row],[CF]] -> 0.2059973276 | BZ27: =Table1[[#This Row],[BSF]]/Table1[[#This Row],[CF]] -> 0.2641134584 | CA27: =Table1[[#This Row],[SA]]/Table1[[#This Row],[CA]] -> 0.5697426506 | CB27: =Table1[[#This Row],[MSA]]/Table1[[#This Row],[CA]] -> 0.2118163111 | CC27: =Table1[[#This Row],[BSA]]/Table1[[#This Row],[CA]] -> 0.2184410382
A28: 5v5 | B28: ScAdj | C28: WSH | D28: 20132014 | E28: 20397 | F28: 2013-11-30 | G28: NYI | J28: -1 | K28: 22 | L28: 30 | O28: 51.4073222 | P28: 46.43932017 | Q28: 35.93376033 | R28: 35.17892897 | S28: 23.80146609 | T28: 30.4539928 | U28: 1 | V28: 1 | W28: 28.71676038 | X28: 17.15390798 | Y28: 10.88920609 | Z28: 7.994101647 | AD28: 55 | AF28: 52.53866761 | AG28: 56.08071513 | AH28: 50.66107655 | AK28: 50.53072902 | AL28: 39.20046582 | AM28: 38.37701342 | AP28: 43.86925589 | AQ28: 25.96523574 | AR28: 33.2225376 | AT28: 50 | AU28: 1.090909091 | AV28: 1.090909091 | AX28: 62.603754 | AY28: 31.32737496 | AZ28: 18.71335416 | BC28: 57.66577679 | BD28: 11.87913391 | BE28: 8.72083816 | BH28: 57.69230769 | BI28: 100.9177802 | BJ28: 43.90243902 | BK28: -65.45454545 | BN28: 4.201421863 | BR28: 96.71635832 | BT28: 12.13229424 | BU28: 4.724936175 | BV28: 15.47356187 | BW28: 11.2603912 | BX28: =Table1[[#This Row],[SF]]/Table1[[#This Row],[CF]] -> 0.4629975862 | BY28: =Table1[[#This Row],[MSF]]/Table1[[#This Row],[CF]] -> 0.236003233 | BZ28: =Table1[[#This Row],[BSF]]/Table1[[#This Row],[CF]] -> 0.3009991808 | CA28: =Table1[[#This Row],[SA]]/Table1[[#This Row],[CA]] -> 0.655780332 | CB28: =Table1[[#This Row],[MSA]]/Table1[[#This Row],[CA]] -> 0.1017443011 | CC28: =Table1[[#This Row],[BSA]]/Table1[[#This Row],[CA]] -> 0.242475367
A29: 5v5 | B29: ScAdj | C29: WSH | D29: 20132014 | E29: 20412 | F29: 2013-12-03 | G29: CAR | J29: 1 | K29: 17 | L29: 22 | O29: 36.79708397 | P29: 39.06872287 | Q29: 29.09211908 | R29: 28.48980846 | S29: 16.79920534 | T29: 23.50730487 | U29: 0 | V29: 3 | W29: 17.56770019 | X29: 11.66525472 | Y29: 6.015831739 | Z29: 5.157003043 | AD29: 45.7 | AF29: 48.50285722 | AG29: 48.31126998 | AH29: 51.29372806 | AK29: 50.52300317 | AL29: 38.19534233 | AM29: 37.40456254 | AP29: 41.67864013 | AQ29: 22.05584947 | AR29: 30.86298233 | AT29: 0 | AU29: 0 | AV29: 3.938730853 | AX29: 60.09553342 | AY29: 23.06481425 | AZ29: 15.31543289 | BC29: 53.84337866 | BD29: 7.898247359 | BE29: 6.770682333 | BH29: 54.83870968 | BI29: 87.23800956 | BJ29: 42.55319149 | BK29: 78.77461707 | BN29: 0 | BR29: 87.23800956 | BT29: 12.29291373 | BU29: 4.982503592 | BV29: 7.704964896 | BW29: 10.57891441 | BX29: =Table1[[#This Row],[SF]]/Table1[[#This Row],[CF]] -> 0.456536321 | BY29: =Table1[[#This Row],[MSF]]/Table1[[#This Row],[CF]] -> 0.3340730407 | BZ29: =Table1[[#This Row],[BSF]]/Table1[[#This Row],[CF]] -> 0.2093906382 | CA29: =Table1[[#This Row],[SA]]/Table1[[#This Row],[CA]] -> 0.601691152 | CB29: =Table1[[#This Row],[MSA]]/Table1[[#This Row],[CA]] -> 0.1275317754 | CC29: =Table1[[#This Row],[BSA]]/Table1[[#This Row],[CA]] -> 0.2707770726
A30: 5v5 | B30: ScAdj | C30: WSH | D30: 20132014 | E30: 20443 | F30: 2013-12-07 | G30: NSH | J30: 1 | K30: 15 | L30: 25 | O30: 56.64382095 | P30: 54.36654476 | Q30: 42.56144306 | R30: 37.90228094 | S30: 27.93965598 | T30: 31.84152926 | U30: 4 | V30: 2 | W30: 21.55548355 | X30: 25.88081745 | Y30: 9.327218213 | Z30: 12.91468497 | AD30: 52.375 | AF30: 51.0257043 | AG30: 64.89029608 | AH30: 62.28148326 | AK30: 52.89519419 | AL30: 48.75773907 | AM30: 43.42027411 | AP30: 46.73653737 | AQ30: 32.00724313 | AR30: 36.47716956 | AT30: 66.66666667 | AU30: 4.582338902 | AV30: 2.291169451 | AX30: 45.44090305 | AY30: 24.6936327 | AZ30: 29.64866915 | BC30: 41.93534222 | BD30: 10.68511872 | BE30: 14.79486583 | BH30: 39.39393939 | BI30: 108.0354632 | BJ30: 50 | BK30: 68.73508353 | BN30: 14.31656855 | BR30: 93.71889464 | BT30: 14.62178708 | BU30: 6.060751684 | BV30: 14.08237789 | BW30: 16.46426382 | BX30: =Table1[[#This Row],[SF]]/Table1[[#This Row],[CF]] -> 0.4932516118 | BY30: =Table1[[#This Row],[MSF]]/Table1[[#This Row],[CF]] -> 0.2581356066 | BZ30: =Table1[[#This Row],[BSF]]/Table1[[#This Row],[CF]] -> 0.2486127817 | CA30: =Table1[[#This Row],[SA]]/Table1[[#This Row],[CA]] -> 0.5856824155 | CB30: =Table1[[#This Row],[MSA]]/Table1[[#This Row],[CA]] -> 0.1114794348 | CC30: =Table1[[#This Row],[BSA]]/Table1[[#This Row],[CA]] -> 0.3028381497
A31: 5v5 | B31: ScAdj | C31: WSH | D31: 20132014 | E31: 20451 | F31: 2013-12-08 | G31: NYR | J31: -1 | K31: 23 | L31: 20 | O31: 53.11342027 | P31: 36.5745403 | Q31: 43.24386521 | R31: 26.62400575 | S31: 32.48728629 | T31: 20.02424374 | U31: 3 | V31: 1 | W31: 29.35454818 | X31: 22.27336505 | Y31: 13.61823453 | Z31: 8.442980042 | AD31: 49.81666667 | AF31: 59.22023416 | AG31: 63.97066342 | AH31: 44.05096858 | AK31: 61.89377838 | AL31: 52.0836115 | AM31: 32.06638364 | AP31: 61.86695811 | AQ31: 39.12821366 | AR31: 24.11752341 | AT31: 75 | AU31: 3.613248578 | AV31: 1.204416193 | AX31: 56.85790175 | AY31: 35.35509316 | AZ31: 26.82640153 | BC31: 61.72930545 | BD31: 16.40202218 | BE31: 10.16886188 | BH31: 53.33333333 | BI31: 104.2404352 | BJ31: 46.51162791 | BK31: -72.26497156 | BN31: 9.234381639 | BR31: 95.0060536 | BT31: 10.75657892 | BU31: 6.599762006 | BV31: 9.869555055 | BW31: 9.950534555 | BX31: =Table1[[#This Row],[SF]]/Table1[[#This Row],[CF]] -> 0.6116587131 | BY31: =Table1[[#This Row],[MSF]]/Table1[[#This Row],[CF]] -> 0.2025209234 | BZ31: =Table1[[#This Row],[BSF]]/Table1[[#This Row],[CF]] -> 0.1858203634 | CA31: =Table1[[#This Row],[SA]]/Table1[[#This Row],[CA]] -> 0.5474913307 | CB31: =Table1[[#This Row],[MSA]]/Table1[[#This Row],[CA]] -> 0.1804468888 | CC31: =Table1[[#This Row],[BSA]]/Table1[[#This Row],[CA]] -> 0.2720617805
A32: 5v5 | B32: ScAdj | C32: WSH | D32: 20132014 | E32: 20459 | F32: 2013-12-10 | G32: T.B | J32: -2 | K32: 23 | L32: 19 | O32: 20.27035026 | P32: 56.92726694 | Q32: 18.09706377 | R32: 40.07032663 | S32: 12.78806125 | T32: 30.64787946 | U32: 1 | V32: 3 | W32: 14.43707817 | X32: 25.42293058 | Y32: 7.129929741 | Z32: 6.087874832 | AD32: 42.075 | AF32: 26.25774084 | AG32: 28.90602533 | AH32: 81.1797033 | AK32: 31.11204344 | AL32: 25.80686456 | AM32: 57.14128575 | AP32: 29.44119787 | AQ32: 18.23609448 | AR32: 43.70464094 | AT32: 25 | AU32: 1.426024955 | AV32: 4.278074866 | AX32: 36.21945561 | AY32: 20.58763376 | AZ32: 36.25373344 | BC32: 53.94186078 | BD32: 10.16745774 | BE32: 8.681461436 | BH32: 22.72727273 | BI32: 98.03118818 | BJ32: 58.33333333 | BK32: -171.1229947 | BN32: 7.819793635 | BR32: 90.21139455 | BT32: 5.309002517 | BU32: 9.422447171 | BV32: 2.173286488 | BW32: 16.85694031 | BX32: =Table1[[#This Row],[SF]]/Table1[[#This Row],[CF]] -> 0.6308751988 | BY32: =Table1[[#This Row],[MSF]]/Table1[[#This Row],[CF]] -> 0.2619097573 | BZ32: =Table1[[#This Row],[BSF]]/Table1[[#This Row],[CF]] -> 0.1072150437 | CA32: =Table1[[#This Row],[SA]]/Table1[[#This Row],[CA]] -> 0.5383690647 | CB32: =Table1[[#This Row],[MSA]]/Table1[[#This Row],[CA]] -> 0.1655172939 | CC32: =Table1[[#This Row],[BSA]]/Table1[[#This Row],[CA]] -> 0.2961136414
A33: 5v5 | B33: ScAdj | C33: WSH | D33: 20132014 | E33: 20485 | F33: 2013-12-13 | G33: FLA | J33: 1 | K33: 20 | L33: 15 | O33: 33.6822804 | P33: 55.72316489 | Q33: 22.39503257 | R33: 44.88687618 | S33: 13.92325691 | T33: 29.20495111 | U33: 0 | V33: 1 | W33: 11.38258483 | X33: 28.8342966 | Y33: 3.304449467 | Z33: 14.22303732 | AD33: 49.3 | AF33: 37.67363418 | AG33: 40.99263335 | AH33: 67.81723922 | AK33: 33.28537045 | AL33: 27.25561774 | AM33: 54.62905823 | AP33: 32.2834116 | AQ33: 16.94514026 | AR33: 35.54355105 | AT33: 0 | AU33: 0 | AV33: 1.21703854 | AX33: 28.30300218 | AY33: 13.85304441 | AZ33: 35.09245023 | BC33: 18.85295654 | BD33: 4.021642354 | BE33: 17.30998457 | BH33: 34.61538462 | BI33: 96.57592305 | BJ33: 55.55555556 | BK33: 73.02231237 | BN33: 0 | BR33: 96.57592305 | BT33: 8.471775663 | BU33: 15.68192507 | BV33: 11.28724782 | BW33: 10.83628871 | BX33: =Table1[[#This Row],[SF]]/Table1[[#This Row],[CF]] -> 0.4133703759 | BY33: =Table1[[#This Row],[MSF]]/Table1[[#This Row],[CF]] -> 0.2515202523 | BZ33: =Table1[[#This Row],[BSF]]/Table1[[#This Row],[CF]] -> 0.3351093716 | CA33: =Table1[[#This Row],[SA]]/Table1[[#This Row],[CA]] -> 0.5241079032 | CB33: =Table1[[#This Row],[MSA]]/Table1[[#This Row],[CA]] -> 0.2814255992 | CC33: =Table1[[#This Row],[BSA]]/Table1[[#This Row],[CA]] -> 0.1944664976
A34: 5v5 | B34: ScAdj | C34: WSH | D34: 20132014 | E34: 20499 | F34: 2013-12-15 | G34: PHI | J34: -2 | K34: 27 | L34: 15 | O34: 28.86120795 | P34: 38.46410335 | Q34: 22.35749141 | R34: 25.97862366 | S34: 17.977268 | T34: 18.93065354 | U34: 2 | V34: 4 | W34: 14.20293273 | X34: 17.82315209 | Y34: 4.484727054 | Z34: 6.317455573 | AD34: 44.025 | AF34: 42.86828741 | AG34: 39.33384388 | AH34: 52.42126521 | AK34: 46.2542167 | AL34: 30.47017569 | AM34: 35.40527927 | AP34: 48.70842695 | AQ34: 24.50053561 | AR34: 25.79986854 | AT34: 33.33333333 | AU34: 2.72572402 | AV34: 5.451448041 | AX34: 44.34801447 | AY34: 19.35663745 | AZ34: 24.29049688 | BC34: 41.51686015 | BD34: 6.112064128 | BE34: 8.609820202 | BH34: 65 | BI34: 89.99540972 | BJ34: 58.69565217 | BK34: -163.5434412 | BN34: 11.12516095 | BR34: 78.87024877 | BT34: 4.380223408 | BU34: 7.047970121 | BV34: 6.503716535 | BW34: 12.48547968 | BX34: =Table1[[#This Row],[SF]]/Table1[[#This Row],[CF]] -> 0.6228868879 | BY34: =Table1[[#This Row],[MSF]]/Table1[[#This Row],[CF]] -> 0.1517685405 | BZ34: =Table1[[#This Row],[BSF]]/Table1[[#This Row],[CF]] -> 0.2253445714 | CA34: =Table1[[#This Row],[SA]]/Table1[[#This Row],[CA]] -> 0.492164171 | CB34: =Table1[[#This Row],[MSA]]/Table1[[#This Row],[CA]] -> 0.1832350037 | CC34: =Table1[[#This Row],[BSA]]/Table1[[#This Row],[CA]] -> 0.324600825
A35: 5v5 | B35: ScAdj | C35: WSH | D35: 20132014 | E35: 20515 | F35: 2013-12-17 | G35: PHI | J35: 1 | K35: 23 | L35: 21 | O35: 35.29737489 | P35: 45.50276746 | Q35: 24.55202111 | R35: 29.36354375 | S35: 20.86503572 | T35: 25.46758466 | U35: 1 | V35: 3 | W35: 16.73801714 | X35: 22.69960582 | Y35: 6.032125124 | Z35: 12.76533227 | AD35: 44.69166667 | AF35: 43.68479295 | AG35: 47.38786112 | AH35: 61.0889289 | AK35: 45.53790947 | AL35: 32.96187806 | AM35: 39.42150195 | AP35: 45.03314414 | AQ35: 28.01198158 | AR35: 34.19105157 | AT35: 25 | AU35: 1.342532165 | AV35: 4.027596494 | AX35: 42.44174948 | AY35: 22.47132638 | AZ35: 30.47495095 | BC35: 32.09011197 | BD35: 8.098322001 | BE35: 17.13786916 | BH35: 36.36363636 | BI35: 93.01302678 | BJ35: 55.88235294 | BK35: 80.55192989 | BN35: 4.792706867 | BR35: 88.22031991 | BT35: 3.68698539 | BU35: 3.895959081 | BV35: 10.74535378 | BW35: 16.13922371 | BX35: =Table1[[#This Row],[SF]]/Table1[[#This Row],[CF]] -> 0.5911214583 | BY35: =Table1[[#This Row],[MSF]]/Table1[[#This Row],[CF]] -> 0.1044549461 | BZ35: =Table1[[#This Row],[BSF]]/Table1[[#This Row],[CF]] -> 0.3044235956 | CA35: =Table1[[#This Row],[SA]]/Table1[[#This Row],[CA]] -> 0.559693093 | CB35: =Table1[[#This Row],[MSA]]/Table1[[#This Row],[CA]] -> 0.0856202666 | CC35: =Table1[[#This Row],[BSA]]/Table1[[#This Row],[CA]] -> 0.3546866402
A36: 5v5 | B36: ScAdj | C36: WSH | D36: 20132014 | E36: 20536 | F36: 2013-12-20 | G36: CAR | J36: -1 | K36: 21 | L36: 32 | O36: 24.65286333 | P36: 49.84704669 | Q36: 20.75542424 | R36: 37.78876697 | S36: 17.33526752 | T36: 23.86925438 | U36: 0 | V36: 1 | W36: 8.267407309 | X36: 29.76599718 | Y36: 2.14529846 | Z36: 9.801528567 | AD36: 43.49166667 | AF36: 33.09113169 | AG36: 34.01046483 | AH36: 68.76772105 | AK36: 35.45257661 | AL36: 28.63365673 | AM36: 52.13242425 | AP36: 42.07127451 | AQ36: 23.91529529 | AR36: 32.92941781 | AT36: 0 | AU36: 0 | AV36: 1.379574631 | AX36: 21.73722658 | AY36: 11.40550539 | AZ36: 41.06441459 | BC36: 17.95705634 | BD36: 2.959599332 | BE36: 13.52194016 | BH36: 26.66666667 | BI36: 95.81051011 | BJ36: 39.58333333 | BK36: -82.77447787 | BN36: 0 | BR36: 95.81051011 | BT36: 3.420156716 | BU36: 13.91951259 | BV36: 3.897439092 | BW36: 12.05827972 | BX36: =Table1[[#This Row],[SF]]/Table1[[#This Row],[CF]] -> 0.7031746085 | BY36: =Table1[[#This Row],[MSF]]/Table1[[#This Row],[CF]] -> 0.1387326361 | BZ36: =Table1[[#This Row],[BSF]]/Table1[[#This Row],[CF]] -> 0.1580927554 | CA36: =Table1[[#This Row],[SA]]/Table1[[#This Row],[CA]] -> 0.4788499212 | CB36: =Table1[[#This Row],[MSA]]/Table1[[#This Row],[CA]] -> 0.2792444791 | CC36: =Table1[[#This Row],[BSA]]/Table1[[#This Row],[CA]] -> 0.2419055996
A37: 5v5 | B37: ScAdj | C37: WSH | D37: 20132014 | E37: 20546 | F37: 2013-12-21 | G37: N.J | J37: -2 | K37: 29 | L37: 29 | O37: 29.51668179 | P37: 63.41567685 | Q37: 23.38975845 | R37: 44.22861491 | S37: 16.94073673 | T37: 31.13906774 | U37: 4 | V37: 2 | W37: 14.9535263 | X37: 34.86363443 | Y37: 6.724569714 | Z37: 10.13498595 | AD37: 56.625 | AF37: 31.76146848 | AG37: 31.27595422 | AH37: 67.19541918 | AK37: 34.59083276 | AL37: 24.78385001 | AM37: 46.86475752 | AP37: 35.23462069 | AQ37: 17.95044952 | AR37: 32.99503866 | AT37: 66.66666667 | AU37: 4.238410596 | AV37: 2.119205298 | AX37: 30.01681765 | AY37: 15.84479608 | AZ37: 36.9415994 | BC37: 39.88580629 | BD37: 7.125371882 | BE37: 10.73905796 | BH37: 38.0952381 | BI37: 117.1889241 | BJ37: 59.52380952 | BK37: -127.1523179 | BN37: 23.61172399 | BR37: 93.57720014 | BT37: 6.449021712 | BU37: 13.08954718 | BV37: 6.126923349 | BW37: 19.18706193 | BX37: =Table1[[#This Row],[SF]]/Table1[[#This Row],[CF]] -> 0.5739377092 | BY37: =Table1[[#This Row],[MSF]]/Table1[[#This Row],[CF]] -> 0.2184873543 | BZ37: =Table1[[#This Row],[BSF]]/Table1[[#This Row],[CF]] -> 0.2075749365 | CA37: =Table1[[#This Row],[SA]]/Table1[[#This Row],[CA]] -> 0.4910310713 | CB37: =Table1[[#This Row],[MSA]]/Table1[[#This Row],[CA]] -> 0.2064086962 | CC37: =Table1[[#This Row],[BSA]]/Table1[[#This Row],[CA]] -> 0.3025602325
A38: 5v5 | B38: ScAdj | C38: WSH | D38: 20132014 | E38: 20555 | F38: 2013-12-23 | G38: ANA | J38: 2 | K38: 17 | L38: 24 | O38: 37.26587524 | P38: 34.13402594 | Q38: 25.87248902 | R38: 27.32201132 | S38: 15.5578424 | T38: 19.81276341 | U38: 1 | V38: 3 | W38: 14.00104796 | X38: 20.86556456 | Y38: 3.759550352 | Z38: 10.10714488 | AD38: 43.21666667 | AF38: 52.19317481 | AG38: 51.73819933 | AH38: 47.39008615 | AK38: 48.63752617 | AL38: 35.92015445 | AM38: 37.93260345 | AP38: 43.98523023 | AQ38: 21.5997812 | AR38: 27.50711465 | AT38: 25 | AU38: 1.388353259 | AV38: 4.165059776 | AX38: 40.15603165 | AY38: 19.43840056 | AZ38: 28.96877455 | BC38: 27.1120861 | BD38: 5.219583983 | BE38: 14.03228754 | BH38: 66.66666667 | BI38: 91.28587197 | BJ38: 63.04347826 | BK38: 166.6023911 | BN38: 6.427626493 | BR38: 84.85824548 | BT38: 10.31464662 | BU38: 7.509247905 | BV38: 11.39338622 | BW38: 6.812014622 | BX38: =Table1[[#This Row],[SF]]/Table1[[#This Row],[CF]] -> 0.4174822757 | BY38: =Table1[[#This Row],[MSF]]/Table1[[#This Row],[CF]] -> 0.2767853043 | BZ38: =Table1[[#This Row],[BSF]]/Table1[[#This Row],[CF]] -> 0.30573242 | CA38: =Table1[[#This Row],[SA]]/Table1[[#This Row],[CA]] -> 0.5804402752 | CB38: =Table1[[#This Row],[MSA]]/Table1[[#This Row],[CA]] -> 0.2199930333 | CC38: =Table1[[#This Row],[BSA]]/Table1[[#This Row],[CA]] -> 0.1995666914
A39: 5v5 | B39: ScAdj | C39: WSH | D39: 20132014 | E39: 20570 | F39: 2013-12-27 | G39: NYR | J39: 2 | K39: 25 | L39: 19 | O39: 31.35657982 | P39: 48.33277002 | Q39: 22.21012454 | R39: 37.91197664 | S39: 19.20468224 | T39: 32.10308647 | U39: 1 | V39: 0 | W39: 12.30796122 | X39: 13.890493 | Y39: 6.555641544 | Z39: 5.883581868 | AD39: 43.625 | AF39: 39.34852008 | AG39: 43.12652812 | AH39: 66.47486994 | AK39: 36.94169715 | AL39: 30.54687616 | AM39: 52.14254667 | AP39: 37.43035943 | AQ39: 26.41331655 | AR39: 44.15324213 | AT39: 100 | AU39: 1.375358166 | AV39: 0 | AX39: 46.97972299 | AY39: 16.92785498 | AZ39: 19.10440298 | BC39: 52.70137312 | BD39: 9.016355132 | BE39: 8.092032369 | BH39: 33.33333333 | BI39: 105.2070635 | BJ39: 47.72727273 | BK39: 165.0429799 | BN39: 5.207063504 | BR39: 100 | BT39: 3.0054423 | BU39: 5.808890174 | BV39: 9.146455281 | BW39: 10.42079338 | BX39: =Table1[[#This Row],[SF]]/Table1[[#This Row],[CF]] -> 0.6124610002 | BY39: =Table1[[#This Row],[MSF]]/Table1[[#This Row],[CF]] -> 0.09584726132 | BZ39: =Table1[[#This Row],[BSF]]/Table1[[#This Row],[CF]] -> 0.2916917385 | CA39: =Table1[[#This Row],[SA]]/Table1[[#This Row],[CA]] -> 0.6642095302 | CB39: =Table1[[#This Row],[MSA]]/Table1[[#This Row],[CA]] -> 0.1201853354 | CC39: =Table1[[#This Row],[BSA]]/Table1[[#This Row],[CA]] -> 0.2156051345
A40: 5v5 | B40: ScAdj | C40: WSH | D40: 20132014 | E40: 20585 | F40: 2013-12-29 | G40: BUF | J40: 2 | K40: 9 | L40: 31 | O40: 57.18243073 | P40: 37.77196655 | Q40: 46.02697435 | R40: 26.9028648 | S40: 35.77895404 | T40: 15.61976353 | U40: 1 | V40: 1 | W40: 33.21551943 | X40: 14.56573765 | Y40: 7.013860942 | Z40: 5.885705623 | AD40: 53.94166667 | AF40: 60.22094012 | AG40: 63.60474297 | AH40: 42.01423748 | AK40: 63.11130655 | AL40: 51.19638735 | AM40: 29.92439774 | AP40: 69.61059679 | AQ40: 39.79738438 | AR40: 17.37406108 | AT40: 50 | AU40: 1.112312683 | AV40: 1.112312683 | AX40: 69.5157923 | AY40: 36.94604355 | AZ40: 16.20165473 | BC40: 54.37284196 | BD40: 7.801606485 | BE40: 6.546745016 | BH40: 56.75675676 | BI40: 96.39279359 | BJ40: 48.14814815 | BK40: 133.477522 | BN40: 2.794939167 | BR40: 93.59785442 | BT40: 10.24802031 | BU40: 11.28310127 | BV40: 11.15545638 | BW40: 10.86910175 | BX40: =Table1[[#This Row],[SF]]/Table1[[#This Row],[CF]] -> 0.6256983759 | BY40: =Table1[[#This Row],[MSF]]/Table1[[#This Row],[CF]] -> 0.1792162414 | BZ40: =Table1[[#This Row],[BSF]]/Table1[[#This Row],[CF]] -> 0.1950853827 | CA40: =Table1[[#This Row],[SA]]/Table1[[#This Row],[CA]] -> 0.4135279403 | CB40: =Table1[[#This Row],[MSA]]/Table1[[#This Row],[CA]] -> 0.2987162783 | CC40: =Table1[[#This Row],[BSA]]/Table1[[#This Row],[CA]] -> 0.2877557814
A41: 5v5 | B41: ScAdj | C41: WSH | D41: 20132014 | E41: 20595 | F41: 2013-12-30 | G41: OTT | J41: -1 | K41: 22 | L41: 26 | O41: 52.49960987 | P41: 43.69424297 | Q41: 41.00876557 | R41: 37.14053814 | S41: 28.37786464 | T41: 30.93809732 | U41: 1 | V41: 2 | W41: 22.70177983 | X41: 12.71270879 | Y41: 6.380420532 | Z41: 4.099751015 | AD41: 47.15 | AF41: 54.57688648 | AG41: 66.80756293 | AH41: 55.60243008 | AK41: 52.47489565 | AL41: 52.18506754 | AM41: 47.26261481 | AP41: 47.8418687 | AQ41: 36.11181078 | AR41: 39.36979511 | AT41: 33.33333333 | AU41: 1.272534464 | AV41: 2.545068929 | AX41: 64.10308525 | AY41: 28.88879724 | AZ41: 16.17736007 | BC41: 60.88087875 | BD41: 8.119305025 | BE41: 5.217074462 | BH41: 36.66666667 | BI41: 97.05935167 | BJ41: 48.8372093 | BK41: -76.35206787 | BN41: 3.523873317 | BR41: 93.53547835 | BT41: 12.63090093 | BU41: 6.20244082 | BV41: 11.4908443 | BW41: 6.553704831 | BX41: =Table1[[#This Row],[SF]]/Table1[[#This Row],[CF]] -> 0.5405347718 | BY41: =Table1[[#This Row],[MSF]]/Table1[[#This Row],[CF]] -> 0.240590377 | BZ41: =Table1[[#This Row],[BSF]]/Table1[[#This Row],[CF]] -> 0.2188748512 | CA41: =Table1[[#This Row],[SA]]/Table1[[#This Row],[CA]] -> 0.7080588933 | CB41: =Table1[[#This Row],[MSA]]/Table1[[#This Row],[CA]] -> 0.1419509848 | CC41: =Table1[[#This Row],[BSA]]/Table1[[#This Row],[CA]] -> 0.1499901219
A42: 5v5 | B42: ScAdj | C42: WSH | D42: 20132014 | E42: 20614 | F42: 2014-01-02 | G42: CAR | J42: -2 | K42: 19 | L42: 19 | O42: 56.90770474 | P42: 43.43878677 | Q42: 43.45553185 | R42: 34.97486383 | S42: 35.26530981 | T42: 25.1866998 | U42: 3 | V42: 2 | W42: 28.56586099 | X42: 20.99118971 | Y42: 10.14637514 | Z42: 8.262289449 | AD42: 51.95 | AF42: 56.71120522 | AG42: 65.72593425 | AH42: 50.16991735 | AK42: 55.4064932 | AL42: 50.18925719 | AM42: 40.39445293 | AP42: 58.33604216 | AQ42: 40.72990546 | AR42: 29.08954741 | AT42: 60 | AU42: 3.464870067 | AV42: 2.309913378 | AX42: 57.64237496 | AY42: 32.99233223 | AZ42: 24.24391497 | BC42: 55.11738829 | BD42: 11.71862384 | BE42: 9.542586467 | BH42: 70 | BI42: 100.5662446 | BJ42: 56.89655172 | BK42: -138.5948027 | BN42: 8.506943554 | BR42: 92.05930108 | BT42: 8.190222035 | BU42: 9.788164032 | BV42: 13.45217289 | BW42: 8.463922947 | BX42: =Table1[[#This Row],[SF]]/Table1[[#This Row],[CF]] -> 0.6196930621 | BY42: =Table1[[#This Row],[MSF]]/Table1[[#This Row],[CF]] -> 0.1439211452 | BZ42: =Table1[[#This Row],[BSF]]/Table1[[#This Row],[CF]] -> 0.2363857926 | CA42: =Table1[[#This Row],[SA]]/Table1[[#This Row],[CA]] -> 0.5798205169 | CB42: =Table1[[#This Row],[MSA]]/Table1[[#This Row],[CA]] -> 0.2253323529 | CC42: =Table1[[#This Row],[BSA]]/Table1[[#This Row],[CA]] -> 0.1948471303
A43: 5v5 | B43: ScAdj | C43: WSH | D43: 20132014 | E43: 20635 | F43: 2014-01-04 | G43: MIN | J43: -2 | K43: 10 | L43: 21 | O43: 41.40651966 | P43: 18.5085309 | Q43: 26.70787123 | R43: 11.64139934 | S43: 20.83282237 | T43: 7.81927758 | U43: 2 | V43: 2 | W43: 15.3695853 | X43: 5.442332523 | Y43: 5.440678107 | Z43: 1 | AD43: 46.91666667 | AF43: 69.10871187 | AG43: 52.95327559 | AH43: 23.66987966 | AK43: 69.6437529 | AL43: 34.15571454 | AM43: 14.88775759 | AP43: 72.70958292 | AQ43: 26.64233056 | AR43: 9.999786603 | AT43: 50 | AU43: 2.557726465 | AV43: 2.557726465 | AX43: 73.84992306 | AY43: 19.65559754 | AZ43: 6.959998963 | BC43: 84.47368455 | BD43: 6.957883192 | BE43: 1.278863233 | BH43: 67.85714286 | BI43: 84.02242498 | BJ43: 41.66666667 | BK43: -153.4635879 | BN43: 9.600235457 | BR43: 74.42218952 | BT43: 5.875048862 | BU43: 3.822121757 | BV43: 14.69864843 | BW43: 6.867131568 | BX43: =Table1[[#This Row],[SF]]/Table1[[#This Row],[CF]] -> 0.5031290372 | BY43: =Table1[[#This Row],[MSF]]/Table1[[#This Row],[CF]] -> 0.1418870485 | BZ43: =Table1[[#This Row],[BSF]]/Table1[[#This Row],[CF]] -> 0.3549839144 | CA43: =Table1[[#This Row],[SA]]/Table1[[#This Row],[CA]] -> 0.42246884 | CB43: =Table1[[#This Row],[MSA]]/Table1[[#This Row],[CA]] -> 0.20650595 | CC43: =Table1[[#This Row],[BSA]]/Table1[[#This Row],[CA]] -> 0.3710252102
A44: 5v5 | B44: ScAdj | C44: WSH | D44: 20132014 | E44: 20663 | F44: 2014-01-09 | G44: T.B | J44: 1 | K44: 16 | L44: 20 | O44: 51.53953314 | P44: 44.87170562 | Q44: 34.02751907 | R44: 34.98320809 | S44: 15.80787272 | T44: 28.79069758 | U44: 2 | V44: 3 | W44: 27.68885676 | X44: 32.15723095 | Y44: 8.863974619 | Z44: 18.91641172 | AD44: 52.14166667 | AF44: 53.45801361 | AG44: 59.3071182 | AH44: 51.63437437 | AK44: 49.30757937 | AL44: 39.15584742 | AM44: 40.25556948 | AP44: 35.44479703 | AQ44: 18.19029624 | AR44: 33.12977826 | AT44: 40 | AU44: 2.301422407 | AV44: 3.45213361 | AX44: 46.26677836 | AY44: 31.86187768 | AZ44: 37.00368593 | BC44: 31.90731227 | BD44: 10.1998749 | BE44: 21.7673269 | BH44: 26.92307692 | BI44: 102.2318914 | BJ44: 52.17391304 | BK44: 69.04267221 | BN44: 12.65192373 | BR44: 89.57996766 | BT44: 18.21964635 | BU44: 6.192510508 | BV44: 17.51201406 | BW44: 9.888497526 | BX44: =Table1[[#This Row],[SF]]/Table1[[#This Row],[CF]] -> 0.3067135412 | BY44: =Table1[[#This Row],[MSF]]/Table1[[#This Row],[CF]] -> 0.353508176 | BZ44: =Table1[[#This Row],[BSF]]/Table1[[#This Row],[CF]] -> 0.3397782827 | CA44: =Table1[[#This Row],[SA]]/Table1[[#This Row],[CA]] -> 0.6416225366 | CB44: =Table1[[#This Row],[MSA]]/Table1[[#This Row],[CA]] -> 0.1380047944 | CC44: =Table1[[#This Row],[BSA]]/Table1[[#This Row],[CA]] -> 0.2203726689
A45: 5v5 | B45: ScAdj | C45: WSH | D45: 20132014 | E45: 20670 | F45: 2014-01-10 | G45: TOR | J45: 1 | K45: 18 | L45: 27 | O45: 46.88848106 | P45: 47.93126012 | Q45: 34.83462083 | R45: 35.49060355 | S45: 25.20773678 | T45: 23.59633273 | U45: 3 | V45: 1 | W45: 22.42070513 | X45: 23.10921878 | Y45: 7.941935452 | Z45: 8.099935413 | AD45: 44.44166667 | AF45: 49.45012555 | AG45: 63.30340589 | AH45: 64.71124562 | AK45: 49.5336078 | AL45: 47.02967747 | AM45: 47.91530951 | AP45: 51.65089107 | AQ45: 34.03257169 | AR45: 31.85704025 | AT45: 75 | AU45: 4.050253141 | AV45: 1.35008438 | AX45: 49.24388887 | AY45: 30.2698438 | AZ45: 31.19939532 | BC45: 49.50753886 | BD45: 10.722283 | BE45: 10.93559628 | BH45: 45.94594595 | BI45: 107.6631614 | BJ45: 41.81818182 | BK45: 81.00506282 | BN45: 11.90110809 | BR45: 95.76205332 | BT45: 9.626884051 | BU45: 11.89427083 | BV45: 12.05386023 | BW45: 12.44065657 | BX45: =Table1[[#This Row],[SF]]/Table1[[#This Row],[CF]] -> 0.5376104367 | BY45: =Table1[[#This Row],[MSF]]/Table1[[#This Row],[CF]] -> 0.2053144788 | BZ45: =Table1[[#This Row],[BSF]]/Table1[[#This Row],[CF]] -> 0.2570750845 | CA45: =Table1[[#This Row],[SA]]/Table1[[#This Row],[CA]] -> 0.4922952718 | CB45: =Table1[[#This Row],[MSA]]/Table1[[#This Row],[CA]] -> 0.2481526837 | CC45: =Table1[[#This Row],[BSA]]/Table1[[#This Row],[CA]] -> 0.2595520447
A46: 5v5 | B46: ScAdj | C46: WSH | D46: 20132014 | E46: 20685 | F46: 2014-01-12 | G46: BUF | J46: -3 | K46: 26 | L46: 28 | O46: 44.98768546 | P46: 37.17307868 | Q46: 31.79142974 | R46: 25.45176923 | S46: 24.33268997 | T46: 19.65323165 | U46: 1 | V46: 0 | W46: 15.29691882 | X46: 15.87982981 | Y46: 7.734832942 | Z46: 4.97601617 | AD46: 48.44166667 | AF46: 54.75568044 | AG46: 55.72188806 | AH46: 46.04269164 | AK46: 55.53747923 | AL46: 39.37696441 | AM46: 31.52464105 | AP46: 55.31926824 | AQ46: 30.13854597 | AR46: 24.34255425 | AT46: 100 | AU46: 1.238603131 | AV46: 0 | AX46: 49.0651511 | AY46: 18.94681155 | AZ46: 19.66880692 | BC46: 60.85221273 | BD46: 9.580388299 | BE46: 6.163309208 | BH46: 55.17241379 | BI46: 104.1096977 | BJ46: 46.51162791 | BK46: -222.9485636 | BN46: 4.109697701 | BR46: 100 | BT46: 7.458739774 | BU46: 5.798537579 | BV46: 13.19625572 | BW46: 11.72130945 | BX46: =Table1[[#This Row],[SF]]/Table1[[#This Row],[CF]] -> 0.5408744576 | BY46: =Table1[[#This Row],[MSF]]/Table1[[#This Row],[CF]] -> 0.1657951437 | BZ46: =Table1[[#This Row],[BSF]]/Table1[[#This Row],[CF]] -> 0.2933303989 | CA46: =Table1[[#This Row],[SA]]/Table1[[#This Row],[CA]] -> 0.528695291 | CB46: =Table1[[#This Row],[MSA]]/Table1[[#This Row],[CA]] -> 0.155987553 | CC46: =Table1[[#This Row],[BSA]]/Table1[[#This Row],[CA]] -> 0.315317156
A47: 5v5 | B47: ScAdj | C47: WSH | D47: 20132014 | E47: 20698 | F47: 2014-01-14 | G47: S.J | J47: -1 | K47: 26 | L47: 27 | O47: 53.55058765 | P47: 50.89460844 | Q47: 37.20047963 | R47: 35.81747101 | S47: 28.26583672 | T47: 25.91924045 | U47: 1 | V47: 1 | W47: 19.95714743 | X47: 26.21654702 | Y47: 7.400123973 | Z47: 10.2168986 | AD47: 56.61666667 | AF47: 51.27147026 | AG47: 56.75069637 | AH47: 53.93599953 | AK47: 50.9470333 | AL47: 39.42352861 | AM47: 37.95787332 | AP47: 52.16535289 | AQ47: 29.95496384 | AR47: 27.46813824 | AT47: 50 | AU47: 1.059758611 | AV47: 1.059758611 | AX47: 43.22189868 | AY47: 21.14975884 | AZ47: 27.78321144 | BC47: 42.00553154 | BD47: 7.842345099 | BE47: 10.82744626 | BH47: 75.6097561 | BI47: 99.67970198 | BJ47: 49.12280702 | BK47: -63.58551663 | BN47: 3.537839725 | BR47: 96.14186225 | BT47: 8.934642916 | BU47: 9.898230566 | BV47: 16.35010802 | BW47: 15.07713743 | BX47: =Table1[[#This Row],[SF]]/Table1[[#This Row],[CF]] -> 0.5278342958 | BY47: =Table1[[#This Row],[MSF]]/Table1[[#This Row],[CF]] -> 0.1668449089 | BZ47: =Table1[[#This Row],[BSF]]/Table1[[#This Row],[CF]] -> 0.3053207955 | CA47: =Table1[[#This Row],[SA]]/Table1[[#This Row],[CA]] -> 0.5092728138 | CB47: =Table1[[#This Row],[MSA]]/Table1[[#This Row],[CA]] -> 0.1944848555 | CC47: =Table1[[#This Row],[BSA]]/Table1[[#This Row],[CA]] -> 0.2962423308
A48: 5v5 | B48: ScAdj | C48: WSH | D48: 20132014 | E48: 20708 | F48: 2014-01-15 | G48: PIT | J48: -2 | K48: 20 | L48: 30 | O48: 48.551652 | P48: 37.73025616 | Q48: 34.55054014 | R48: 29.80799248 | S48: 20.50629598 | T48: 22.84644064 | U48: 1 | V48: 3 | W48: 20.07866574 | X48: 22.99186787 | Y48: 7.445487312 | Z48: 10.7191073 | AD48: 47.99166667 | AF48: 56.27095301 | AG48: 60.70010321 | AH48: 47.17100961 | AK48: 53.68447466 | AL48: 43.19567442 | AM48: 37.26646048 | AP48: 47.30104159 | AQ48: 25.6373209 | AR48: 28.56300966 | AT48: 25 | AU48: 1.250217052 | AV48: 3.750651155 | AX48: 46.61810303 | AY48: 25.10269027 | AZ48: 28.74482526 | BC48: 40.98900895 | BD48: 9.308475195 | BE48: 13.40121072 | BH48: 60.86956522 | BI48: 91.7454028 | BJ48: 51.42857143 | BK48: -150.0260462 | BN48: 4.87655109 | BR48: 86.86885171 | BT48: 14.04424416 | BU48: 6.961551841 | BV48: 14.00111186 | BW48: 7.92226368 | BX48: =Table1[[#This Row],[SF]]/Table1[[#This Row],[CF]] -> 0.4223604169 | BY48: =Table1[[#This Row],[MSF]]/Table1[[#This Row],[CF]] -> 0.2892639814 | BZ48: =Table1[[#This Row],[BSF]]/Table1[[#This Row],[CF]] -> 0.2883756017 | CA48: =Table1[[#This Row],[SA]]/Table1[[#This Row],[CA]] -> 0.6055204222 | CB48: =Table1[[#This Row],[MSA]]/Table1[[#This Row],[CA]] -> 0.1845084701 | CC48: =Table1[[#This Row],[BSA]]/Table1[[#This Row],[CA]] -> 0.2099711077
A49: 5v5 | B49: ScAdj | C49: WSH | D49: 20132014 | E49: 20721 | F49: 2014-01-17 | G49: CBJ | J49: 1 | K49: 17 | L49: 33 | O49: 35.3959446 | P49: 46.3413682 | Q49: 26.36934965 | R49: 39.13883205 | S49: 18.26901888 | T49: 28.88885538 | U49: 1 | V49: 3 | W49: 13.82842674 | X49: 19.19701901 | Y49: 5.575652671 | Z49: 6.019779347 | AD49: 44.85 | AF49: 43.30451221 | AG49: 47.35243425 | AH49: 61.99514141 | AK49: 40.25352096 | AL49: 35.27672194 | AM49: 52.35964153 | AP49: 38.74012383 | AQ49: 24.44015904 | AR49: 38.64729817 | AT49: 25 | AU49: 1.337792642 | AV49: 4.013377926 | AX49: 41.87203663 | AY49: 18.49956755 | AZ49: 25.68163078 | BC49: 48.08490673 | BD49: 7.459067118 | BE49: 8.053216517 | BH49: 42.85714286 | BI49: 95.08912027 | BJ49: 46.66666667 | BK49: 80.26755853 | BN49: 5.473747695 | BR49: 89.61537257 | BT49: 8.100330766 | BU49: 10.24997667 | BV49: 9.026594954 | BW49: 7.202536156 | BX49: =Table1[[#This Row],[SF]]/Table1[[#This Row],[CF]] -> 0.5161331075 | BY49: =Table1[[#This Row],[MSF]]/Table1[[#This Row],[CF]] -> 0.2288491198 | BZ49: =Table1[[#This Row],[BSF]]/Table1[[#This Row],[CF]] -> 0.2550177727 | CA49: =Table1[[#This Row],[SA]]/Table1[[#This Row],[CA]] -> 0.6233923706 | CB49: =Table1[[#This Row],[MSA]]/Table1[[#This Row],[CA]] -> 0.2211841615 | CC49: =Table1[[#This Row],[BSA]]/Table1[[#This Row],[CA]] -> 0.155423468
A50: 5v5 | B50: ScAdj | C50: WSH | D50: 20132014 | E50: 20738 | F50: 2014-01-19 | G50: NYR | J50: 1 | K50: 24 | L50: 26 | O50: 42.67039058 | P50: 37.44657237 | Q50: 31.0194221 | R50: 28.40957649 | S50: 15.83141664 | T50: 19.61381648 | U50: 0 | V50: 2 | W50: 15.22122297 | X50: 17.45911293 | Y50: 2.999041531 | Z50: 4.747897907 | AD50: 44.5 | AF50: 53.26011996 | AG50: 57.53311089 | AH50: 50.4897605 | AK50: 52.19576778 | AL50: 41.8239399 | AM50: 38.30504696 | AP50: 44.66444496 | AQ50: 21.3457303 | AR50: 26.44559526 | AT50: 0 | AU50: 0 | AV50: 2.696629213 | AX50: 46.57609094 | AY50: 20.52299726 | AZ50: 23.54037699 | BC50: 38.71259811 | BD50: 4.043651502 | BE50: 6.4016601 | BH50: 69.56521739 | BI50: 89.80310639 | BJ50: 31.25 | BK50: 80.8988764 | BN50: 0 | BR50: 89.80310639 | BT50: 15.18800545 | BU50: 8.79576001 | BV50: 11.65096848 | BW50: 9.03699588 | BX50: =Table1[[#This Row],[SF]]/Table1[[#This Row],[CF]] -> 0.3710164455 | BY50: =Table1[[#This Row],[MSF]]/Table1[[#This Row],[CF]] -> 0.3559378118 | BZ50: =Table1[[#This Row],[BSF]]/Table1[[#This Row],[CF]] -> 0.2730457425 | CA50: =Table1[[#This Row],[SA]]/Table1[[#This Row],[CA]] -> 0.5237813567 | CB50: =Table1[[#This Row],[MSA]]/Table1[[#This Row],[CA]] -> 0.2348882542 | CC50: =Table1[[#This Row],[BSA]]/Table1[[#This Row],[CA]] -> 0.2413303891
A51: 5v5 | B51: ScAdj | C51: WSH | D51: 20132014 | E51: 20750 | F51: 2014-01-21 | G51: OTT | J51: -2 | K51: 24 | L51: 29 | O51: 29.57485221 | P51: 45.13905123 | Q51: 24.78771299 | R51: 35.4223408 | S51: 20.2795271 | T51: 20.52192009 | U51: 0 | V51: 1 | W51: 16.97820649 | X51: 22.28233198 | Y51: 8.194749056 | Z51: 8.833216507 | AD51: 42.075 | AF51: 39.58413474 | AG51: 42.1744773 | AH51: 64.36941353 | AK51: 41.16872753 | AL51: 35.34789731 | AM51: 50.51314196 | AP51: 49.70296031 | AQ51: 28.91911173 | AR51: 29.26477018 | AT51: 0 | AU51: 0 | AV51: 1.426024955 | AX51: 43.24496594 | AY51: 24.21134615 | AZ51: 31.77516147 | BC51: 48.1252386 | BD51: 11.68591666 | BE51: 12.59638718 | BH51: 52 | BI51: 95.12716161 | BJ51: 55.55555556 | BK51: -171.1229947 | BN51: 0 | BR51: 95.12716161 | BT51: 4.508185883 | BU51: 14.90042071 | BV51: 4.78713922 | BW51: 9.716710438 | BX51: =Table1[[#This Row],[SF]]/Table1[[#This Row],[CF]] -> 0.6857017224 | BY51: =Table1[[#This Row],[MSF]]/Table1[[#This Row],[CF]] -> 0.1524330824 | BZ51: =Table1[[#This Row],[BSF]]/Table1[[#This Row],[CF]] -> 0.161865195 | CA51: =Table1[[#This Row],[SA]]/Table1[[#This Row],[CA]] -> 0.4546378254 | CB51: =Table1[[#This Row],[MSA]]/Table1[[#This Row],[CA]] -> 0.3301004408 | CC51: =Table1[[#This Row],[BSA]]/Table1[[#This Row],[CA]] -> 0.215261734
A52: 5v5 | B52: ScAdj | C52: WSH | D52: 20132014 | E52: 20769 | F52: 2014-01-24 | G52: N.J | J52: -3 | K52: 10 | L52: 16 | O52: 33.31854457 | P52: 32.03906088 | Q52: 25.43616468 | R52: 27.56810315 | S52: 17.35051731 | T52: 20.19911026 | U52: 1 | V52: 1 | W52: 17.26889952 | X52: 18.00065775 | Y52: 9.819200453 | Z52: 14.80383437 | AD52: 43.74166667 | AF52: 50.97883306 | AG52: 45.70270926 | AH52: 43.94765447 | AK52: 47.98889924 | AL52: 34.8905288 | AM52: 37.81488715 | AP52: 46.20689586 | AQ52: 23.79952841 | AR52: 27.70691444 | AT52: 50 | AU52: 1.371689846 | AV52: 1.371689846 | AX52: 48.96262062 | AY52: 23.68757412 | AZ52: 24.69131945 | BC52: 39.87810813 | BD52: 13.46889755 | BE52: 20.30626929 | BH52: 44.44444444 | BI52: 100.8128038 | BJ52: 55.26315789 | BK52: -246.9041722 | BN52: 5.763516916 | BR52: 95.04928689 | BT52: 8.085647372 | BU52: 7.368992883 | BV52: 7.882379893 | BW52: 4.470957732 | BX52: =Table1[[#This Row],[SF]]/Table1[[#This Row],[CF]] -> 0.5207465552 | BY52: =Table1[[#This Row],[MSF]]/Table1[[#This Row],[CF]] -> 0.242677088 | BZ52: =Table1[[#This Row],[BSF]]/Table1[[#This Row],[CF]] -> 0.2365763569 | CA52: =Table1[[#This Row],[SA]]/Table1[[#This Row],[CA]] -> 0.630452632 | CB52: =Table1[[#This Row],[MSA]]/Table1[[#This Row],[CA]] -> 0.2300002772 | CC52: =Table1[[#This Row],[BSA]]/Table1[[#This Row],[CA]] -> 0.1395470906
A53: 5v5 | B53: ScAdj | C53: WSH | D53: 20132014 | E53: 20777 | F53: 2014-01-25 | G53: MTL | J53: 1 | K53: 7 | L53: 22 | O53: 41.69225431 | P53: 32.14242299 | Q53: 29.85213534 | R53: 21.20357116 | S53: 25.32012349 | T53: 13.57072127 | U53: 4 | V53: 0 | W53: 23.19743469 | X53: 14.17960608 | Y53: 10.32959734 | Z53: 6.81410909 | AD53: 39.14166667 | AF53: 56.46703667 | AG53: 63.9097788 | AH53: 49.27090601 | AK53: 58.46973313 | AL53: 45.76013933 | AM53: 32.50281294 | AP53: 65.10561456 | AQ53: 38.81304857 | AR53: 20.8024682 | AT53: 100 | AU53: 6.131573345 | AV53: 0 | AX53: 62.06332607 | AY53: 35.55919305 | AZ53: 21.73582367 | BC53: 60.25299944 | BD53: 15.83417092 | BE53: 10.44530242 | BH53: 50 | BI53: 115.7977113 | BJ53: 41.02564103 | BK53: 91.97360017 | BN53: 15.79771126 | BR53: 100 | BT53: 4.532011849 | BU53: 7.632849895 | BV53: 11.84011897 | BW53: 10.93885183 | BX53: =Table1[[#This Row],[SF]]/Table1[[#This Row],[CF]] -> 0.6073100126 | BY53: =Table1[[#This Row],[MSF]]/Table1[[#This Row],[CF]] -> 0.1087015304 | BZ53: =Table1[[#This Row],[BSF]]/Table1[[#This Row],[CF]] -> 0.283988457 | CA53: =Table1[[#This Row],[SA]]/Table1[[#This Row],[CA]] -> 0.42220592 | CB53: =Table1[[#This Row],[MSA]]/Table1[[#This Row],[CA]] -> 0.2374696487 | CC53: =Table1[[#This Row],[BSA]]/Table1[[#This Row],[CA]] -> 0.3403244315
A54: 5v5 | B54: ScAdj | C54: WSH | D54: 20132014 | E54: 20799 | F54: 2014-01-28 | G54: BUF | J54: 1 | K54: 10 | L54: 20 | O54: 50.7284467 | P54: 45.01114946 | Q54: 39.42883211 | R54: 33.90961697 | S54: 31.96825949 | T54: 24.02590055 | U54: 2 | V54: 3 | W54: 29.90149737 | X54: 20.07728294 | Y54: 11.34240408 | Z54: 8.795585221 | AD54: 53.125 | AF54: 52.98585823 | AG54: 57.2933045 | AH54: 50.83612175 | AK54: 53.76283874 | AL54: 44.53138686 | AM54: 38.29792034 | AP54: 57.09213151 | AQ54: 36.10532836 | AR54: 27.13513474 | AT54: 40 | AU54: 2.258823529 | AV54: 3.388235294 | AX54: 59.82838554 | AY54: 33.77110291 | AZ54: 22.67551955 | BC54: 56.32341894 | BD54: 12.81024461 | BE54: 9.933837426 | BH54: 50 | BI54: 93.7696808 | BJ54: 41.50943396 | BK54: 67.76470588 | BN54: 6.256205474 | BR54: 87.51347533 | BT54: 7.460572628 | BU54: 9.883716415 | BV54: 11.29961458 | BW54: 11.1015325 | BX54: =Table1[[#This Row],[SF]]/Table1[[#This Row],[CF]] -> 0.6301840795 | BY54: =Table1[[#This Row],[MSF]]/Table1[[#This Row],[CF]] -> 0.1470688167 | BZ54: =Table1[[#This Row],[BSF]]/Table1[[#This Row],[CF]] -> 0.2227471037 | CA54: =Table1[[#This Row],[SA]]/Table1[[#This Row],[CA]] -> 0.5337766495 | CB54: =Table1[[#This Row],[MSA]]/Table1[[#This Row],[CA]] -> 0.2195837372 | CC54: =Table1[[#This Row],[BSA]]/Table1[[#This Row],[CA]] -> 0.2466396134
A55: 5v5 | B55: ScAdj | C55: WSH | D55: 20132014 | E55: 20811 | F55: 2014-01-30 | G55: CBJ | J55: -1 | K55: 23 | L55: 30 | O55: 26.38018332 | P55: 25.08619483 | Q55: 15.6555825 | R55: 21.83438755 | S55: 13.39591252 | T55: 14.88712462 | U55: 1 | V55: 3 | W55: 11.23392008 | X55: 9.346671651 | Y55: 3.030363088 | Z55: 2 | AD55: 33.55 | AF55: 51.25712023 | AG55: 47.17767509 | AH55: 44.86353769 | AK55: 41.75938919 | AL55: 27.99806109 | AM55: 39.04808503 | AP55: 47.3637695 | AQ55: 23.95692254 | AR55: 26.62376982 | AT55: 25 | AU55: 1.788375559 | AV55: 5.365126677 | AX55: 54.58501984 | AY55: 20.0904681 | AZ55: 16.71535914 | BC55: 60.24143854 | BD55: 5.41942728 | BE55: 3.576751118 | BH55: 60.86956522 | BI55: 87.31332204 | BJ55: 45.71428571 | BK55: -107.3025335 | BN55: 7.464963649 | BR55: 79.84835839 | BT55: 2.259669976 | BU55: 6.947262923 | BV55: 10.72460083 | BW55: 3.251807279 | BX55: =Table1[[#This Row],[SF]]/Table1[[#This Row],[CF]] -> 0.5078021012 | BY55: =Table1[[#This Row],[MSF]]/Table1[[#This Row],[CF]] -> 0.08565785721 | BZ55: =Table1[[#This Row],[BSF]]/Table1[[#This Row],[CF]] -> 0.4065400418 | CA55: =Table1[[#This Row],[SA]]/Table1[[#This Row],[CA]] -> 0.5934389301 | CB55: =Table1[[#This Row],[MSA]]/Table1[[#This Row],[CA]] -> 0.2769356999 | CC55: =Table1[[#This Row],[BSA]]/Table1[[#This Row],[CA]] -> 0.1296253697
A56: 5v5 | B56: ScAdj | C56: WSH | D56: 20132014 | E56: 20821 | F56: 2014-01-31 | G56: DET | J56: -2 | K56: 22 | L56: 17 | O56: 39.07872695 | P56: 47.79561884 | Q56: 27.45108568 | R56: 38.02463758 | S56: 19.74519221 | T56: 26.30180574 | U56: 1 | V56: 3 | W56: 24.21564364 | X56: 20.24650833 | Y56: 10.82356257 | Z56: 6.069518288 | AD56: 46.65 | AF56: 44.98304602 | AG56: 50.26202823 | AH56: 61.47346474 | AK56: 41.92559365 | AL56: 35.30686261 | AM56: 48.90628628 | AP56: 42.8805201 | AQ56: 25.39574561 | AR56: 33.82868906 | AT56: 25 | AU56: 1.286173633 | AV56: 3.8585209 | AX56: 54.46349889 | AY56: 31.14552237 | AZ56: 26.04052518 | BC56: 64.07098066 | BD56: 13.92098079 | BE56: 7.80645439 | BH56: 50 | BI56: 93.65846303 | BJ56: 41.66666667 | BK56: -154.340836 | BN56: 5.064524007 | BR56: 88.59393903 | BT56: 7.705893462 | BU56: 11.72283184 | BV56: 11.62764127 | BW56: 9.770981253 | BX56: =Table1[[#This Row],[SF]]/Table1[[#This Row],[CF]] -> 0.5052670276 | BY56: =Table1[[#This Row],[MSF]]/Table1[[#This Row],[CF]] -> 0.1971889584 | BZ56: =Table1[[#This Row],[BSF]]/Table1[[#This Row],[CF]] -> 0.2975440138 | CA56: =Table1[[#This Row],[SA]]/Table1[[#This Row],[CA]] -> 0.5502974201 | CB56: =Table1[[#This Row],[MSA]]/Table1[[#This Row],[CA]] -> 0.2452700085 | CC56: =Table1[[#This Row],[BSA]]/Table1[[#This Row],[CA]] -> 0.2044325712
A57: 5v5 | B57: ScAdj | C57: WSH | D57: 20132014 | E57: 20835 | F57: 2014-02-02 | G57: DET | J57: 3 | K57: 37 | L57: 24 | O57: 34.85362645 | P57: 46.47929831 | Q57: 27.25626582 | R57: 32.64504099 | S57: 18.68788563 | T57: 23.38142403 | U57: 3 | V57: 3 | W57: 14.56927116 | X57: 21.37434886 | Y57: 7.907125509 | Z57: 4.820715595 | AD57: 48.55833333 | AF57: 42.85303467 | AG57: 43.06609069 | AH57: 57.43108767 | AK57: 45.50195525 | AL57: 33.67858484 | AM57: 40.3371023 | AP57: 44.42165984 | AQ57: 23.09126078 | AR57: 28.89072473 | AT57: 50 | AU57: 3.706881757 | AV57: 3.706881757 | AX57: 40.53367788 | AY57: 18.00218849 | AZ57: 26.41072795 | BC57: 62.12464034 | BD57: 9.770259767 | BE57: 5.956607565 | BH57: 41.17647059 | BI57: 103.222482 | BJ57: 62.71186441 | BK57: 222.4129054 | BN57: 16.05318043 | BR57: 87.16930159 | BT57: 8.568380185 | BU57: 9.263616964 | BV57: 7.597360631 | BW57: 13.83425732 | BX57: =Table1[[#This Row],[SF]]/Table1[[#This Row],[CF]] -> 0.5361819568 | BY57: =Table1[[#This Row],[MSF]]/Table1[[#This Row],[CF]] -> 0.245838986 | BZ57: =Table1[[#This Row],[BSF]]/Table1[[#This Row],[CF]] -> 0.2179790571 | CA57: =Table1[[#This Row],[SA]]/Table1[[#This Row],[CA]] -> 0.50305028 | CB57: =Table1[[#This Row],[MSA]]/Table1[[#This Row],[CA]] -> 0.1993062998 | CC57: =Table1[[#This Row],[BSA]]/Table1[[#This Row],[CA]] -> 0.2976434203
A58: 5v5 | B58: ScAdj | C58: WSH | D58: 20132014 | E58: 20849 | F58: 2014-02-04 | G58: NYI | J58: 3 | K58: 22 | L58: 32 | O58: 31.34433399 | P58: 36.68279965 | Q58: 21.76460272 | R58: 20.62695474 | S58: 13.56402957 | T58: 14.35851632 | U58: 0 | V58: 1 | W58: 8.059976801 | X58: 14.7556702 | Y58: 3.771961202 | Z58: 2.135472015 | AD58: 38.36666667 | AF58: 46.07622328 | AG58: 49.01807226 | AH58: 57.36667191 | AK58: 51.34183319 | AL58: 34.03673753 | AM58: 32.25761819 | AP58: 48.57733827 | AQ58: 21.21220958 | AR58: 22.45467365 | AT58: 0 | AU58: 0 | AV58: 1.563857515 | AX58: 35.32653183 | AY58: 12.60465529 | AZ58: 23.07576574 | BC58: 63.85110188 | BD58: 5.898809873 | BE58: 3.339573959 | BH58: 61.9047619 | BI58: 93.03549212 | BJ58: 51.85185185 | BK58: 281.4943527 | BN58: 0 | BR58: 93.03549212 | BT58: 8.200573149 | BU58: 6.268438427 | BV58: 9.579731269 | BW58: 16.0558449 | BX58: =Table1[[#This Row],[SF]]/Table1[[#This Row],[CF]] -> 0.4327426314 | BY58: =Table1[[#This Row],[MSF]]/Table1[[#This Row],[CF]] -> 0.2616285658 | BZ58: =Table1[[#This Row],[BSF]]/Table1[[#This Row],[CF]] -> 0.3056288027 | CA58: =Table1[[#This Row],[SA]]/Table1[[#This Row],[CA]] -> 0.391423677 | CB58: =Table1[[#This Row],[MSA]]/Table1[[#This Row],[CA]] -> 0.1708822251 | CC58: =Table1[[#This Row],[BSA]]/Table1[[#This Row],[CA]] -> 0.4376940979
A59: 5v5 | B59: ScAdj | C59: WSH | D59: 20132014 | E59: 20859 | F59: 2014-02-06 | G59: WPG | J59: 3 | K59: 24 | L59: 44 | O59: 40.34382297 | P59: 48.41402624 | Q59: 30.855847 | R59: 37.67927615 | S59: 21.09267484 | T59: 28.60086786 | U59: 4 | V59: 2 | W59: 23.69654805 | X59: 23.09588699 | Y59: 12.28627107 | Z59: 12.02226541 | AD59: 48.14166667 | AF59: 45.45380868 | AG59: 50.28137881 | AH59: 60.33944762 | AK59: 45.02194726 | AL59: 38.45630922 | AM59: 46.9604965 | AP59: 42.44550437 | AQ59: 26.28825669 | AR59: 35.64587998 | AT59: 66.66666667 | AU59: 4.985286481 | AV59: 2.49264324 | AX59: 50.64183565 | AY59: 29.53352015 | AZ59: 28.78490329 | BC59: 50.54303075 | BD59: 15.31264526 | BE59: 14.9836093 | BH59: 52.38095238 | BI59: 111.9711348 | BJ59: 57.5 | BK59: 224.3378916 | BN59: 18.96392956 | BR59: 93.0072052 | BT59: 9.763172153 | BU59: 9.078408287 | BV59: 9.487975971 | BW59: 10.73475009 | BX59: =Table1[[#This Row],[SF]]/Table1[[#This Row],[CF]] -> 0.5228229079 | BY59: =Table1[[#This Row],[MSF]]/Table1[[#This Row],[CF]] -> 0.2419991819 | BZ59: =Table1[[#This Row],[BSF]]/Table1[[#This Row],[CF]] -> 0.2351779101 | CA59: =Table1[[#This Row],[SA]]/Table1[[#This Row],[CA]] -> 0.5907558218 | CB59: =Table1[[#This Row],[MSA]]/Table1[[#This Row],[CA]] -> 0.1875160773 | CC59: =Table1[[#This Row],[BSA]]/Table1[[#This Row],[CA]] -> 0.2217281008
A60: 5v5 | B60: ScAdj | C60: WSH | D60: 20132014 | E60: 20879 | F60: 2014-02-08 | G60: N.J | J60: 1 | K60: 17 | L60: 9 | O60: 37.34741145 | P60: 47.71487202 | Q60: 25.53639025 | R60: 31.67424242 | S60: 17.45975609 | T60: 18.36079149 | U60: 1 | V60: 0 | W60: 22.84163801 | X60: 27.25840884 | Y60: 7.456152638 | Z60: 7.956198065 | AD60: 46.99166667 | AF60: 43.90595917 | AG60: 47.6860015 | AH60: 60.9234046 | AK60: 44.63574175 | AL60: 32.60542823 | AM60: 40.44237372 | AP60: 48.74229253 | AQ60: 22.29300298 | AR60: 23.44346493 | AT60: 100 | AU60: 1.276822132 | AV60: 0 | AX60: 45.5920492 | AY60: 29.16470893 | AZ60: 34.80413968 | BC60: 48.3777769 | BD60: 9.520180705 | BE60: 10.15864977 | BH60: 50 | BI60: 105.7274569 | BJ60: 53.48837209 | BK60: 76.6093279 | BN60: 5.727456873 | BR60: 100 | BT60: 8.076634165 | BU60: 13.31345092 | BV60: 11.8110212 | BW60: 16.0406296 | BX60: =Table1[[#This Row],[SF]]/Table1[[#This Row],[CF]] -> 0.467495749 | BY60: =Table1[[#This Row],[MSF]]/Table1[[#This Row],[CF]] -> 0.2162568663 | BZ60: =Table1[[#This Row],[BSF]]/Table1[[#This Row],[CF]] -> 0.3162473848 | CA60: =Table1[[#This Row],[SA]]/Table1[[#This Row],[CA]] -> 0.3848022789 | CB60: =Table1[[#This Row],[MSA]]/Table1[[#This Row],[CA]] -> 0.2790209919 | CC60: =Table1[[#This Row],[BSA]]/Table1[[#This Row],[CA]] -> 0.336176729
A61: 5v5 | B61: ScAdj | C61: WSH | D61: 20132014 | E61: 20892 | F61: 2014-02-27 | G61: FLA | J61: -4 | K61: 26 | L61: 38 | O61: 35.00694449 | P61: 37.14606631 | Q61: 28.71840818 | R61: 29.36536418 | S61: 24.39459766 | T61: 20.68188962 | U61: 3 | V61: 3 | W61: 21.83790882 | X61: 16.89589057 | Y61: 11.35863697 | Z61: 4.017319373 | AD61: 48.275 | AF61: 48.51764895 | AG61: 43.50940796 | AH61: 46.16807828 | AK61: 49.44308369 | AL61: 35.69351612 | AM61: 36.49760436 | AP61: 54.11823133 | AQ61: 30.31954137 | AR61: 25.70509326 | AT61: 50 | AU61: 3.728638011 | AV61: 3.728638011 | AX61: 56.37946487 | AY61: 27.14188564 | AZ61: 20.99955327 | BC61: 73.87271865 | BD61: 14.11741518 | BE61: 4.993043239 | BH61: 61.53846154 | BI61: 97.79236039 | BJ61: 51.11111111 | BK61: -298.2910409 | BN61: 12.29780479 | BR61: 85.4945556 | BT61: 4.32381052 | BU61: 8.683474561 | BV61: 6.288536312 | BW61: 7.780702137 | BX61: =Table1[[#This Row],[SF]]/Table1[[#This Row],[CF]] -> 0.6968502397 | BY61: =Table1[[#This Row],[MSF]]/Table1[[#This Row],[CF]] -> 0.1235129367 | BZ61: =Table1[[#This Row],[BSF]]/Table1[[#This Row],[CF]] -> 0.1796368236 | CA61: =Table1[[#This Row],[SA]]/Table1[[#This Row],[CA]] -> 0.5567719997 | CB61: =Table1[[#This Row],[MSA]]/Table1[[#This Row],[CA]] -> 0.2337656561 | CC61: =Table1[[#This Row],[BSA]]/Table1[[#This Row],[CA]] -> 0.2094623445
A62: 5v5 | B62: ScAdj | C62: WSH | D62: 20132014 | E62: 20902 | F62: 2014-03-01 | G62: BOS | J62: 4 | K62: 20 | L62: 16 | O62: 26.23986465 | P62: 43.09283278 | Q62: 20.15346061 | R62: 33.13674889 | S62: 17.00782396 | T62: 23.21754214 | U62: 2 | V62: 1 | W62: 16.59222462 | X62: 18.04473467 | Y62: 6.142485812 | Z62: 3.845201957 | AD62: 43.75 | AF62: 37.84630574 | AG62: 35.98610009 | AH62: 59.0987421 | AK62: 37.81831747 | AL62: 27.63903169 | AM62: 45.44468419 | AP62: 42.28134038 | AQ62: 23.32501571 | AR62: 31.84120064 | AT62: 66.66666667 | AU62: 2.742857143 | AV62: 1.371428571 | AX62: 47.90323676 | AY62: 22.7550509 | AZ62: 24.7470647 | BC62: 61.50057905 | BD62: 8.423980542 | BE62: 5.273419827 | BH62: 42.10526316 | BI62: 107.4522057 | BJ62: 37.83783784 | BK62: 329.1428571 | BN62: 11.75929387 | BR62: 95.69291188 | BT62: 3.145636653 | BU62: 9.919206753 | BV62: 6.086404042 | BW62: 9.956083891 | BX62: =Table1[[#This Row],[SF]]/Table1[[#This Row],[CF]] -> 0.6481673662 | BY62: =Table1[[#This Row],[MSF]]/Table1[[#This Row],[CF]] -> 0.119880064 | BZ62: =Table1[[#This Row],[BSF]]/Table1[[#This Row],[CF]] -> 0.23195257 | CA62: =Table1[[#This Row],[SA]]/Table1[[#This Row],[CA]] -> 0.538779668 | CB62: =Table1[[#This Row],[MSA]]/Table1[[#This Row],[CA]] -> 0.2301822858 | CC62: =Table1[[#This Row],[BSA]]/Table1[[#This Row],[CA]] -> 0.2310380462
A63: 5v5 | B63: ScAdj | C63: WSH | D63: 20132014 | E63: 20912 | F63: 2014-03-02 | G63: PHI | J63: 1 | K63: 12 | L63: 22 | O63: 33.17317444 | P63: 37.60603179 | Q63: 23.89388675 | R63: 26.81846219 | S63: 19.91550241 | T63: 16.73235327 | U63: 4 | V63: 0 | W63: 20.25191672 | X63: 17.9119802 | Y63: 7.732429638 | Z63: 4.784700251 | AD63: 41.425 | AF63: 46.86853131 | AG63: 48.04804988 | AH63: 54.46860369 | AK63: 47.11650564 | AL63: 34.60792288 | AM63: 38.84388006 | AP63: 54.34288594 | AQ63: 28.84562812 | AR63: 24.23515259 | AT63: 100 | AU63: 5.793602897 | AV63: 0 | AX63: 53.0656415 | AY63: 29.33289085 | AZ63: 25.94372509 | BC63: 61.77478149 | BD63: 11.19965669 | BE63: 6.930163309 | BH63: 47.36842105 | BI63: 120.0848561 | BJ63: 38.23529412 | BK63: 86.90404345 | BN63: 20.08485609 | BR63: 100 | BT63: 3.978384338 | BU63: 10.08610892 | BV63: 9.279287685 | BW63: 10.7875696 | BX63: =Table1[[#This Row],[SF]]/Table1[[#This Row],[CF]] -> 0.6003496122 | BY63: =Table1[[#This Row],[MSF]]/Table1[[#This Row],[CF]] -> 0.119927755 | BZ63: =Table1[[#This Row],[BSF]]/Table1[[#This Row],[CF]] -> 0.2797226326 | CA63: =Table1[[#This Row],[SA]]/Table1[[#This Row],[CA]] -> 0.4449380185 | CB63: =Table1[[#This Row],[MSA]]/Table1[[#This Row],[CA]] -> 0.2682045523 | CC63: =Table1[[#This Row],[BSA]]/Table1[[#This Row],[CA]] -> 0.2868574292
A64: 5v5 | B64: ScAdj | C64: WSH | D64: 20132014 | E64: 20935 | F64: 2014-03-05 | G64: PHI | J64: 2 | K64: 35 | L64: 31 | O64: 31.11992153 | P64: 48.12193957 | Q64: 21.85693265 | R64: 32.70386744 | S64: 15.5961276 | T64: 23.2484094 | U64: 0 | V64: 4 | W64: 11.66833616 | X64: 18.96826571 | Y64: 4.09411323 | Z64: 5.984137042 | AD64: 47.59166667 | AF64: 39.27207299 | AG64: 39.23366048 | AH64: 60.66852826 | AK64: 40.05977298 | AL64: 27.5555796 | AM64: 41.23058055 | AP64: 40.15011841 | AQ64: 19.66242667 | AR64: 29.30984901 | AT64: 0 | AU64: 0 | AV64: 5.042899667 | AX64: 38.08626103 | AY64: 14.71056213 | AZ64: 23.91376521 | BC64: 40.62325423 | BD64: 5.161550562 | BE64: 7.544350675 | BH64: 55.55555556 | BI64: 82.79452185 | BJ64: 36.95652174 | BK64: 151.28699 | BN64: 0 | BR64: 82.79452185 | BT64: 6.260805055 | BU64: 9.455458037 | BV64: 9.262988876 | BW64: 15.41807213 | BX64: =Table1[[#This Row],[SF]]/Table1[[#This Row],[CF]] -> 0.5011621763 | BY64: =Table1[[#This Row],[MSF]]/Table1[[#This Row],[CF]] -> 0.201183189 | BZ64: =Table1[[#This Row],[BSF]]/Table1[[#This Row],[CF]] -> 0.2976546347 | CA64: =Table1[[#This Row],[SA]]/Table1[[#This Row],[CA]] -> 0.4831145546 | CB64: =Table1[[#This Row],[MSA]]/Table1[[#This Row],[CA]] -> 0.1964895455 | CC64: =Table1[[#This Row],[BSA]]/Table1[[#This Row],[CA]] -> 0.3203958998
A65: 5v5 | B65: ScAdj | C65: WSH | D65: 20132014 | E65: 20938 | F65: 2014-03-06 | G65: BOS | J65: 0 | K65: 24 | L65: 29 | O65: 30.66967865 | P65: 68.06268775 | Q65: 23.7783354 | R65: 53.5639793 | S65: 15.19845546 | T65: 41.29282043 | U65: 0 | V65: 1 | W65: 12.42023764 | X65: 31.64651617 | Y65: 3.907982066 | Z65: 13.16018782 | AD65: 59.23333333 | AF65: 31.06344937 | AG65: 31.06664129 | AH65: 68.94363419 | AK65: 30.74427691 | AL65: 24.08610227 | AM65: 54.25726659 | AP65: 26.9040754 | AQ65: 15.39517154 | AR65: 41.82728012 | AT65: 0 | AU65: 0 | AV65: 1.012943163 | AX65: 28.18505238 | AY65: 12.5809948 | AZ65: 32.05612218 | BC65: 22.89631573 | BD65: 3.958563713 | BE65: 13.33052227 | BH65: 34.28571429 | BI65: 97.5782715 | BJ65: 44.23076923 | BK65: 0 | BN65: 0 | BR65: 97.5782715 | BT65: 8.579879941 | BU65: 12.27115886 | BV65: 6.891343243 | BW65: 14.49870846 | BX65: =Table1[[#This Row],[SF]]/Table1[[#This Row],[CF]] -> 0.4955531368 | BY65: =Table1[[#This Row],[MSF]]/Table1[[#This Row],[CF]] -> 0.2797512174 | BZ65: =Table1[[#This Row],[BSF]]/Table1[[#This Row],[CF]] -> 0.2246956455 | CA65: =Table1[[#This Row],[SA]]/Table1[[#This Row],[CA]] -> 0.6066880665 | CB65: =Table1[[#This Row],[MSA]]/Table1[[#This Row],[CA]] -> 0.1802920112 | CC65: =Table1[[#This Row],[BSA]]/Table1[[#This Row],[CA]] -> 0.2130199224
A66: 5v5 | B66: ScAdj | C66: WSH | D66: 20132014 | E66: 20958 | F66: 2014-03-08 | G66: PHX | J66: 0 | K66: 31 | L66: 24 | O66: 37.1485497 | P66: 43.05127752 | Q66: 29.94915511 | R66: 36.77266312 | S66: 24.36477949 | T66: 25.94633772 | U66: 2 | V66: 1 | W66: 21.1479141 | X66: 16.12515362 | Y66: 13.01573218 | Z66: 8.151071707 | AD66: 49.79166667 | AF66: 46.3199872 | AG66: 44.76477955 | AH66: 51.87769006 | AK66: 44.88659918 | AL66: 36.08935846 | AM66: 44.31182836 | AP66: 48.42822192 | AQ66: 29.36006901 | AR66: 31.26587977 | AT66: 66.66666667 | AU66: 2.410041841 | AV66: 1.205020921 | AX66: 56.73778789 | AY66: 25.48367891 | AZ66: 19.43114745 | BC66: 61.49124945 | BD66: 15.68422957 | BE66: 9.822211932 | BH66: 62.06896552 | BI66: 104.3544616 | BJ66: 39.13043478 | BK66: 0 | BN66: 8.208570082 | BR66: 96.14589153 | BT66: 5.58437562 | BU66: 10.82632539 | BV66: 7.199394584 | BW66: 6.278614401 | BX66: =Table1[[#This Row],[SF]]/Table1[[#This Row],[CF]] -> 0.6558743124 | BY66: =Table1[[#This Row],[MSF]]/Table1[[#This Row],[CF]] -> 0.1503255353 | BZ66: =Table1[[#This Row],[BSF]]/Table1[[#This Row],[CF]] -> 0.1938001521 | CA66: =Table1[[#This Row],[SA]]/Table1[[#This Row],[CA]] -> 0.6026845012 | CB66: =Table1[[#This Row],[MSA]]/Table1[[#This Row],[CA]] -> 0.2514751249 | CC66: =Table1[[#This Row],[BSA]]/Table1[[#This Row],[CA]] -> 0.1458403737
A67: 5v5 | B67: ScAdj | C67: WSH | D67: 20132014 | E67: 20968 | F67: 2014-03-10 | G67: PIT | J67: 2 | K67: 24 | L67: 21 | O67: 44.05014552 | P67: 38.61471378 | Q67: 32.23842775 | R67: 27.06961844 | S67: 19.32671633 | T67: 17.09989356 | U67: 1 | V67: 2 | W67: 16.70620348 | X67: 14.69873849 | Y67: 8.014306391 | Z67: 4.085778215 | AD67: 49.15833333 | AF67: 53.2876314 | AG67: 53.76522254 | AH67: 47.13102886 | AK67: 54.35759534 | AL67: 39.34847937 | AM67: 33.03971059 | AP67: 53.056588 | AQ67: 23.58914352 | AR67: 20.87120421 | AT67: 33.33333333 | AU67: 1.220545855 | AV67: 2.44109171 | AX67: 53.19609728 | AY67: 20.39068742 | AZ67: 17.94048434 | BC67: 66.233474 | BD67: 9.781828448 | BE67: 4.986879666 | BH67: 47.82608696 | BI67: 93.47820547 | BJ67: 41.46341463 | BK67: 146.4655026 | BN67: 5.174184702 | BR67: 88.30402076 | BT67: 12.91171141 | BU67: 9.969724882 | BV67: 11.81171778 | BW67: 11.54509534 | BX67: =Table1[[#This Row],[SF]]/Table1[[#This Row],[CF]] -> 0.4387435297 | BY67: =Table1[[#This Row],[MSF]]/Table1[[#This Row],[CF]] -> 0.2931139332 | BZ67: =Table1[[#This Row],[BSF]]/Table1[[#This Row],[CF]] -> 0.2681425371 | CA67: =Table1[[#This Row],[SA]]/Table1[[#This Row],[CA]] -> 0.4428336219 | CB67: =Table1[[#This Row],[MSA]]/Table1[[#This Row],[CA]] -> 0.2581846117 | CC67: =Table1[[#This Row],[BSA]]/Table1[[#This Row],[CA]] -> 0.2989817665
A68: 5v5 | B68: ScAdj | C68: WSH | D68: 20132014 | E68: 20981 | F68: 2014-03-11 | G68: PIT | J68: 0 | K68: 22 | L68: 27 | O68: 41.51335064 | P68: 42.13192508 | Q68: 34.47590041 | R68: 34.54456073 | S68: 22.50263601 | T68: 26.02790173 | U68: 0 | V68: 2 | W68: 18.60355135 | X68: 23.34885522 | Y68: 10.89793567 | Z68: 5.913708457 | AD68: 51.45 | AF68: 49.63023946 | AG68: 48.41207071 | AH68: 49.13344032 | AK68: 49.9502609 | AL68: 40.20513168 | AM68: 40.28520201 | AP68: 46.36799231 | AQ68: 26.24214112 | AR68: 30.35323817 | AT68: 0 | AU68: 0 | AV68: 2.332361516 | AX68: 44.34441995 | AY68: 21.69510362 | AZ68: 27.22898568 | BC68: 64.82373519 | BD68: 12.70896288 | BE68: 6.896453011 | BH68: 66.66666667 | BI68: 92.31593841 | BJ68: 29.72972973 | BK68: 0 | BN68: 0 | BR68: 92.31593841 | BT68: 11.97326441 | BU68: 8.516658993 | BV68: 7.037450223 | BW68: 7.587364352 | BX68: =Table1[[#This Row],[SF]]/Table1[[#This Row],[CF]] -> 0.5420578118 | BY68: =Table1[[#This Row],[MSF]]/Table1[[#This Row],[CF]] -> 0.2884196102 | BZ68: =Table1[[#This Row],[BSF]]/Table1[[#This Row],[CF]] -> 0.169522578 | CA68: =Table1[[#This Row],[SA]]/Table1[[#This Row],[CA]] -> 0.6177714804 | CB68: =Table1[[#This Row],[MSA]]/Table1[[#This Row],[CA]] -> 0.2021426502 | CC68: =Table1[[#This Row],[BSA]]/Table1[[#This Row],[CA]] -> 0.1800858693
A69: 5v5 | B69: ScAdj | C69: WSH | D69: 20132014 | E69: 20997 | F69: 2014-03-14 | G69: VAN | J69: -3 | K69: 21 | L69: 22 | O69: 37.82742658 | P69: 45.84781346 | Q69: 28.77039478 | R69: 34.97782763 | S69: 15.33302723 | T69: 29.67804433 | U69: 3 | V69: 3 | W69: 20.88592934 | X69: 18.33030508 | Y69: 9.700604602 | Z69: 4.804757604 | AD69: 48.43333333 | AF69: 45.20743121 | AG69: 46.86123045 | AH69: 56.79701598 | AK69: 45.13128946 | AL69: 35.64123236 | AM69: 43.33110098 | AP69: 34.06501267 | AQ69: 18.99480317 | AR69: 36.76564335 | AT69: 50 | AU69: 3.716448727 | AV69: 3.716448727 | AX69: 53.25837538 | AY69: 25.8738285 | AZ69: 22.70787966 | BC69: 66.87599017 | BD69: 12.01726654 | BE69: 5.95221176 | BH69: 37.03703704 | BI69: 109.4571252 | BJ69: 57.77777778 | BK69: -222.9869236 | BN69: 19.56560799 | BR69: 89.89151722 | BT69: 13.43736756 | BU69: 5.299783298 | BV69: 9.057031796 | BW69: 10.86998583 | BX69: =Table1[[#This Row],[SF]]/Table1[[#This Row],[CF]] -> 0.405341537 | BY69: =Table1[[#This Row],[MSF]]/Table1[[#This Row],[CF]] -> 0.3552281711 | BZ69: =Table1[[#This Row],[BSF]]/Table1[[#This Row],[CF]] -> 0.2394302921 | CA69: =Table1[[#This Row],[SA]]/Table1[[#This Row],[CA]] -> 0.6473164605 | CB69: =Table1[[#This Row],[MSA]]/Table1[[#This Row],[CA]] -> 0.1155951156 | CC69: =Table1[[#This Row],[BSA]]/Table1[[#This Row],[CA]] -> 0.2370884238
A70: 5v5 | B70: ScAdj | C70: WSH | D70: 20132014 | E70: 21014 | F70: 2014-03-16 | G70: TOR | J70: 1 | K70: 19 | L70: 13 | O70: 51.37327534 | P70: 31.30918325 | Q70: 37.50470515 | R70: 23.31202205 | S70: 28.2832038 | T70: 19.56397496 | U70: 1 | V70: 2 | W70: 24.42414917 | X70: 18.98325534 | Y70: 12.62697308 | Z70: 4.900282101 | AD70: 47.39166667 | AF70: 62.13322175 | AG70: 65.04089721 | AH70: 39.63884639 | AK70: 61.6684042 | AL70: 47.48265819 | AM70: 29.5140775 | AP70: 59.11153914 | AQ70: 35.80781912 | AR70: 24.76887985 | AT70: 33.33333333 | AU70: 1.266045367 | AV70: 2.532090733 | AX70: 56.2672416 | AY70: 30.92208089 | AZ70: 24.03366247 | BC70: 72.04193098 | BD70: 15.98632077 | BE70: 6.203979449 | BH70: 61.11111111 | BI70: 93.31279595 | BJ70: 46.42857143 | BK70: 75.962722 | BN70: 3.535667342 | BR70: 89.7771286 | BT70: 9.221501359 | BU70: 3.748047092 | BV70: 13.86857019 | BW70: 7.997161199 | BX70: =Table1[[#This Row],[SF]]/Table1[[#This Row],[CF]] -> 0.5505431299 | BY70: =Table1[[#This Row],[MSF]]/Table1[[#This Row],[CF]] -> 0.1794999695 | BZ70: =Table1[[#This Row],[BSF]]/Table1[[#This Row],[CF]] -> 0.2699569007 | CA70: =Table1[[#This Row],[SA]]/Table1[[#This Row],[CA]] -> 0.6248637917 | CB70: =Table1[[#This Row],[MSA]]/Table1[[#This Row],[CA]] -> 0.119710791 | CC70: =Table1[[#This Row],[BSA]]/Table1[[#This Row],[CA]] -> 0.2554254174
A71: 5v5 | B71: ScAdj | C71: WSH | D71: 20132014 | E71: 21036 | F71: 2014-03-18 | G71: ANA | J71: -1 | K71: 24 | L71: 32 | O71: 43.64626253 | P71: 45.37242084 | Q71: 32.00932549 | R71: 37.54694702 | S71: 25.01136903 | T71: 26.53254353 | U71: 1 | V71: 2 | W71: 24.90039484 | X71: 19.71888586 | Y71: 12.49433413 | Z71: 5.551464901 | AD71: 48.275 | AF71: 49.03045167 | AG71: 54.24703785 | AH71: 56.39244434 | AK71: 46.01932268 | AL71: 39.78372925 | AM71: 46.66632462 | AP71: 48.52438977 | AQ71: 31.08611376 | AR71: 32.97675011 | AT71: 33.33333333 | AU71: 1.242879337 | AV71: 2.485758674 | AX71: 55.80635646 | AY71: 30.94818623 | AZ71: 24.50819579 | BC71: 69.23680193 | BD71: 15.52894973 | BE71: 6.899801016 | BH71: 41.17647059 | BI71: 96.46026896 | BJ71: 50.94339623 | BK71: -74.57276023 | BN71: 3.998181782 | BR71: 92.46208718 | BT71: 6.997956459 | BU71: 11.01440349 | BV71: 11.63693704 | BW71: 7.82547382 | BX71: =Table1[[#This Row],[SF]]/Table1[[#This Row],[CF]] -> 0.5730472114 | BY71: =Table1[[#This Row],[MSF]]/Table1[[#This Row],[CF]] -> 0.1603334639 | BZ71: =Table1[[#This Row],[BSF]]/Table1[[#This Row],[CF]] -> 0.2666193247 | CA71: =Table1[[#This Row],[SA]]/Table1[[#This Row],[CA]] -> 0.5847724904 | CB71: =Table1[[#This Row],[MSA]]/Table1[[#This Row],[CA]] -> 0.2427554732 | CC71: =Table1[[#This Row],[BSA]]/Table1[[#This Row],[CA]] -> 0.1724720364
A72: 5v5 | B72: ScAdj | C72: WSH | D72: 20132014 | E72: 21049 | F72: 2014-03-20 | G72: L.A | J72: 0 | K72: 21 | L72: 46 | O72: 31.76287231 | P72: 48.04830893 | Q72: 22.11664113 | R72: 31.86990931 | S72: 15.57589175 | T72: 20.35335084 | U72: 1 | V72: 1 | W72: 19.93723538 | X72: 23.45932062 | Y72: 5.150044836 | Z72: 9.812379699 | AD72: 50.19166667 | AF72: 39.79752187 | AG72: 37.96989551 | AH72: 57.43779251 | AK72: 40.9669463 | AL72: 26.4386213 | AM72: 38.09784942 | AP72: 43.35157277 | AQ72: 18.6196946 | AR72: 24.33075312 | AT72: 50 | AU72: 1.195417566 | AV72: 1.195417566 | AX72: 45.94197608 | AY72: 23.83332139 | AZ72: 28.04368396 | BC72: 34.41985504 | BD72: 6.156454063 | BE72: 11.72989106 | BH72: 46.66666667 | BI72: 101.5069823 | BJ72: 43.75 | BK72: 0 | BN72: 6.42017816 | BR72: 95.0868041 | BT72: 6.540749382 | BU72: 11.51655847 | BV72: 9.646231183 | BW72: 16.17839961 | BX72: =Table1[[#This Row],[SF]]/Table1[[#This Row],[CF]] -> 0.4903804542 | BY72: =Table1[[#This Row],[MSF]]/Table1[[#This Row],[CF]] -> 0.2059243672 | BZ72: =Table1[[#This Row],[BSF]]/Table1[[#This Row],[CF]] -> 0.3036951787 | CA72: =Table1[[#This Row],[SA]]/Table1[[#This Row],[CA]] -> 0.4236018144 | CB72: =Table1[[#This Row],[MSA]]/Table1[[#This Row],[CA]] -> 0.2396870718 | CC72: =Table1[[#This Row],[BSA]]/Table1[[#This Row],[CA]] -> 0.3367111137
A73: 5v5 | B73: ScAdj | C73: WSH | D73: 20132014 | E73: 21065 | F73: 2014-03-22 | G73: S.J | J73: 0 | K73: 23 | L73: 19 | O73: 40.29627858 | P73: 41.65073647 | Q73: 26.2183493 | R73: 30.83951004 | S73: 17.06258837 | T73: 23.69938773 | U73: 2 | V73: 2 | W73: 17.84259992 | X73: 24.31586585 | Y73: 3.815686073 | Z73: 8.285998063 | AD73: 47.79166667 | AF73: 49.17357704 | AG73: 50.58992254 | AH73: 52.29037535 | AK73: 45.95046081 | AL73: 32.91580034 | AM73: 38.71743196 | AP73: 41.85908045 | AQ73: 21.42120946 | AR73: 29.75337257 | AT73: 50 | AU73: 2.510897995 | AV73: 2.510897995 | AX73: 42.32269745 | AY73: 22.40047418 | AZ73: 30.5273294 | BC73: 31.53020712 | BD73: 4.790399254 | BE73: 10.40264796 | BH73: 54.16666667 | BI73: 103.2825144 | BJ73: 33.33333333 | BK73: 0 | BN73: 11.72155101 | BR73: 91.56096342 | BT73: 9.155760928 | BU73: 7.140122309 | BV73: 14.07792928 | BW73: 10.81122643 | BX73: =Table1[[#This Row],[SF]]/Table1[[#This Row],[CF]] -> 0.4234283902 | BY73: =Table1[[#This Row],[MSF]]/Table1[[#This Row],[CF]] -> 0.2272110788 | BZ73: =Table1[[#This Row],[BSF]]/Table1[[#This Row],[CF]] -> 0.3493605309 | CA73: =Table1[[#This Row],[SA]]/Table1[[#This Row],[CA]] -> 0.5690028494 | CB73: =Table1[[#This Row],[MSA]]/Table1[[#This Row],[CA]] -> 0.1714284768 | CC73: =Table1[[#This Row],[BSA]]/Table1[[#This Row],[CA]] -> 0.2595686738
A74: 5v5 | B74: ScAdj | C74: WSH | D74: 20132014 | E74: 21081 | F74: 2014-03-25 | G74: L.A | J74: 1 | K74: 34 | L74: 34 | O74: 22.79072825 | P74: 48.60184265 | Q74: 18.35509941 | R74: 38.53707862 | S74: 13.49414869 | T74: 25.81681073 | U74: 1 | V74: 3 | W74: 9.598820321 | X74: 21.73690424 | Y74: 3.923679057 | Z74: 6.926826875 | AD74: 47.56666667 | AF74: 31.92310903 | AG74: 28.74794033 | AH74: 61.30575807 | AK74: 32.26295784 | AL74: 23.15289344 | AM74: 48.61019027 | AP74: 34.32668367 | AQ74: 17.02135083 | AR74: 32.56500302 | AT74: 25 | AU74: 1.261387526 | AV74: 3.784162579 | AX74: 30.63219522 | AY74: 12.10783222 | AZ74: 27.41865987 | BC74: 36.16125443 | BD74: 4.94927982 | BE74: 8.737413016 | BH74: 38.46153846 | BI74: 95.79028398 | BJ74: 46.51162791 | BK74: 75.68325158 | BN74: 7.410619397 | BR74: 88.37966458 | BT74: 4.860950726 | BU74: 12.72026789 | BV74: 4.435628835 | BW74: 10.06476403 | BX74: =Table1[[#This Row],[SF]]/Table1[[#This Row],[CF]] -> 0.5920894033 | BY74: =Table1[[#This Row],[MSF]]/Table1[[#This Row],[CF]] -> 0.2132863273 | BZ74: =Table1[[#This Row],[BSF]]/Table1[[#This Row],[CF]] -> 0.1946242694 | CA74: =Table1[[#This Row],[SA]]/Table1[[#This Row],[CA]] -> 0.5311899575 | CB74: =Table1[[#This Row],[MSA]]/Table1[[#This Row],[CA]] -> 0.261723984 | CC74: =Table1[[#This Row],[BSA]]/Table1[[#This Row],[CA]] -> 0.2070860585
A75: 5v5 | B75: ScAdj | C75: WSH | D75: 20132014 | E75: 21108 | F75: 2014-03-29 | G75: BOS | J75: -1 | K75: 31 | L75: 19 | O75: 42.49172635 | P75: 49.62235499 | Q75: 31.1293983 | R75: 36.33514544 | S75: 21.70362643 | T75: 27.03543665 | U75: 2 | V75: 2 | W75: 23.16569632 | X75: 23.64678064 | Y75: 4.72150034 | Z75: 11.11407303 | AD75: 46.775 | AF75: 46.12945788 | AG75: 54.50568853 | AH75: 63.65240619 | AK75: 46.14186441 | AL75: 39.93081557 | AM75: 46.60841746 | AP75: 44.53024958 | AQ75: 27.84003391 | AR75: 34.67934151 | AT75: 50 | AU75: 2.565473009 | AV75: 2.565473009 | AX75: 49.48615802 | AY75: 29.71548433 | AZ75: 30.33258874 | BC75: 29.81578393 | BD75: 6.056440843 | BE75: 14.25642719 | BH75: 50 | BI75: 101.8173517 | BJ75: 51.06382979 | BK75: -76.96419027 | BN75: 9.215049873 | BR75: 92.60230184 | BT75: 9.425771869 | BU75: 9.29970879 | BV75: 11.36232805 | BW75: 13.28720955 | BX75: =Table1[[#This Row],[SF]]/Table1[[#This Row],[CF]] -> 0.5107729973 | BY75: =Table1[[#This Row],[MSF]]/Table1[[#This Row],[CF]] -> 0.2218260513 | BZ75: =Table1[[#This Row],[BSF]]/Table1[[#This Row],[CF]] -> 0.2674009513 | CA75: =Table1[[#This Row],[SA]]/Table1[[#This Row],[CA]] -> 0.5448237323 | CB75: =Table1[[#This Row],[MSA]]/Table1[[#This Row],[CA]] -> 0.1874096623 | CC75: =Table1[[#This Row],[BSA]]/Table1[[#This Row],[CA]] -> 0.2677666054
A76: 5v5 | B76: ScAdj | C76: WSH | D76: 20132014 | E76: 21123 | F76: 2014-03-30 | G76: NSH | J76: 3 | K76: 16 | L76: 13 | O76: 22.67229074 | P76: 39.77247251 | Q76: 18.37186772 | R76: 32.63560959 | S76: 16.19409551 | T76: 24.28689115 | U76: 1 | V76: 3 | W76: 8.874185448 | X76: 20.08162123 | Y76: 4.35939936 | Z76: 8.101069813 | AD76: 53.35833333 | AF76: 36.30775354 | AG76: 25.49437659 | AH76: 44.72306764 | AK76: 36.0179893 | AL76: 20.65866743 | AM76: 36.69785867 | AP76: 40.00420158 | AQ76: 18.20982159 | AR76: 27.30995101 | AT76: 25 | AU76: 1.124472903 | AV76: 3.37341871 | AX76: 30.64734319 | AY76: 9.978781075 | AZ76: 22.58123893 | BC76: 34.9858364 | BD76: 4.902026455 | BE76: 9.109433493 | BH76: 41.66666667 | BI76: 93.82274758 | BJ76: 55.17241379 | BK76: 202.4051226 | BN76: 6.175090172 | BR76: 87.64765741 | BT76: 2.17777221 | BU76: 8.348718435 | BV76: 4.300423022 | BW76: 7.136862925 | BX76: =Table1[[#This Row],[SF]]/Table1[[#This Row],[CF]] -> 0.7142681653 | BY76: =Table1[[#This Row],[MSF]]/Table1[[#This Row],[CF]] -> 0.09605435264 | BZ76: =Table1[[#This Row],[BSF]]/Table1[[#This Row],[CF]] -> 0.1896774821 | CA76: =Table1[[#This Row],[SA]]/Table1[[#This Row],[CA]] -> 0.6106457461 | CB76: =Table1[[#This Row],[MSA]]/Table1[[#This Row],[CA]] -> 0.2099119795 | CC76: =Table1[[#This Row],[BSA]]/Table1[[#This Row],[CA]] -> 0.1794422744
A77: 5v5 | B77: ScAdj | C77: WSH | D77: 20132014 | E77: 21133 | F77: 2014-04-01 | G77: DAL | J77: 2 | K77: 21 | L77: 20 | O77: 42.23476157 | P77: 47.68247317 | Q77: 29.48617577 | R77: 40.12450005 | S77: 20.94242426 | T77: 32.87982629 | U77: 0 | V77: 4 | W77: 21.02015317 | X77: 17.90241597 | Y77: 6.322759731 | Z77: 7.18265655 | AD77: 45.68333333 | AF77: 46.97070778 | AG77: 55.47068284 | AH77: 62.62564882 | AK77: 42.35869774 | AL77: 38.72682699 | AM77: 52.699088 | AP77: 38.91034664 | AQ77: 27.50555539 | AR77: 43.18401118 | AT77: 0 | AU77: 0 | AV77: 5.253557096 | AX77: 54.00505063 | AY77: 27.60764371 | AZ77: 23.51284111 | BC77: 46.81647422 | BD77: 8.304244813 | BE77: 9.433624072 | BH77: 51.72413793 | BI77: 87.83448561 | BJ77: 54.54545455 | BK77: 157.6067129 | BN77: 0 | BR77: 87.83448561 | BT77: 8.543751514 | BU77: 7.244673766 | BV77: 12.7485858 | BW77: 7.557973119 | BX77: =Table1[[#This Row],[SF]]/Table1[[#This Row],[CF]] -> 0.4958575231 | BY77: =Table1[[#This Row],[MSF]]/Table1[[#This Row],[CF]] -> 0.202291932 | BZ77: =Table1[[#This Row],[BSF]]/Table1[[#This Row],[CF]] -> 0.3018505451 | CA77: =Table1[[#This Row],[SA]]/Table1[[#This Row],[CA]] -> 0.6895579047 | CB77: =Table1[[#This Row],[MSA]]/Table1[[#This Row],[CA]] -> 0.1519357803 | CC77: =Table1[[#This Row],[BSA]]/Table1[[#This Row],[CA]] -> 0.1585063151
A78: 5v5 | B78: ScAdj | C78: WSH | D78: 20132014 | E78: 21157 | F78: 2014-04-04 | G78: N.J | J78: -1 | K78: 12 | L78: 19 | O78: 37.23429405 | P78: 42.97978441 | Q78: 28.81463347 | R78: 26.18265084 | S78: 17.64969025 | T78: 20.46569869 | U78: 1 | V78: 2 | W78: 18.07099576 | X78: 14.84952442 | Y78: 7.221108254 | Z78: 5.988981702 | AD78: 43.475 | AF78: 46.41865214 | AG78: 51.38717982 | AH78: 59.31655123 | AK78: 52.39282963 | AL78: 39.76717673 | AM78: 36.13476827 | AP78: 46.30594292 | AQ78: 24.35839942 | AR78: 28.24478256 | AT78: 33.33333333 | AU78: 1.380103508 | AV78: 2.760207016 | AX78: 54.89280139 | AY78: 24.93984463 | AZ78: 20.49388074 | BC78: 54.66358123 | BD78: 9.965876831 | BE78: 8.265414655 | BH78: 58.33333333 | BI78: 95.89337265 | BJ78: 34.28571429 | BK78: -82.80621047 | BN78: 5.665821814 | BR78: 90.22755084 | BT78: 11.16494323 | BU78: 5.716952145 | BV78: 8.419660576 | BW78: 16.79713357 | BX78: =Table1[[#This Row],[SF]]/Table1[[#This Row],[CF]] -> 0.4740170507 | BY78: =Table1[[#This Row],[MSF]]/Table1[[#This Row],[CF]] -> 0.2998564499 | BZ78: =Table1[[#This Row],[BSF]]/Table1[[#This Row],[CF]] -> 0.2261264995 | CA78: =Table1[[#This Row],[SA]]/Table1[[#This Row],[CA]] -> 0.4761703431 | CB78: =Table1[[#This Row],[MSA]]/Table1[[#This Row],[CA]] -> 0.1330149098 | CC78: =Table1[[#This Row],[BSA]]/Table1[[#This Row],[CA]] -> 0.390814747
A79: 5v5 | B79: ScAdj | C79: WSH | D79: 20132014 | E79: 21162 | F79: 2014-04-05 | G79: NYI | J79: 3 | K79: 26 | L79: 34 | O79: 38.90847167 | P79: 47.33746184 | Q79: 27.58725853 | R79: 36.50156766 | S79: 19.63814926 | T79: 26.03286383 | U79: 3 | V79: 2 | W79: 14.88735225 | X79: 22.6087548 | Y79: 8.914622827 | Z79: 8.52216171 | AD79: 46.075 | AF79: 45.1133985 | AG79: 50.66757027 | AH79: 61.6440089 | AK79: 43.04534841 | AL79: 35.92480763 | AM79: 47.53324058 | AP79: 42.99915401 | AQ79: 25.57328173 | AR79: 33.90063657 | AT79: 60 | AU79: 3.906673901 | AV79: 2.604449267 | AX79: 39.70372772 | AY79: 19.38667683 | AZ79: 29.44167744 | BC79: 51.12538271 | BD79: 11.60884145 | BE79: 11.09776891 | BH79: 36 | BI79: 107.5937917 | BJ79: 51.2195122 | BK79: 234.4004341 | BN79: 15.27638863 | BR79: 92.31740306 | BT79: 7.949109266 | BU79: 10.46870383 | BV79: 11.32121314 | BW79: 10.83589417 | BX79: =Table1[[#This Row],[SF]]/Table1[[#This Row],[CF]] -> 0.5047268221 | BY79: =Table1[[#This Row],[MSF]]/Table1[[#This Row],[CF]] -> 0.2043027887 | BZ79: =Table1[[#This Row],[BSF]]/Table1[[#This Row],[CF]] -> 0.2909703891 | CA79: =Table1[[#This Row],[SA]]/Table1[[#This Row],[CA]] -> 0.5499421139 | CB79: =Table1[[#This Row],[MSA]]/Table1[[#This Row],[CA]] -> 0.22115051 | CC79: =Table1[[#This Row],[BSA]]/Table1[[#This Row],[CA]] -> 0.2289073759
A80: 5v5 | B80: ScAdj | C80: WSH | D80: 20132014 | E80: 21186 | F80: 2014-04-08 | G80: STL | J80: 1 | K80: 8 | L80: 20 | O80: 23.13106803 | P80: 47.83965754 | Q80: 14.64266336 | R80: 31.40382562 | S80: 12.6176139 | T80: 17.10291799 | U80: 1 | V80: 1 | W80: 10.96825574 | X80: 22.61529817 | Y80: 2.149201551 | Z80: 10.71088856 | AD80: 47.10833333 | AF80: 32.59240742 | AG80: 29.46111619 | AH80: 60.93145839 | AK80: 31.7997391 | AL80: 18.64977467 | AM80: 39.99779665 | AP80: 42.4541995 | AQ80: 16.07055016 | AR80: 21.78330258 | AT80: 50 | AU80: 1.273660004 | AV80: 1.273660004 | AX80: 32.65960407 | AY80: 13.96982865 | AZ80: 28.80420075 | BC80: 16.71218112 | BD80: 2.737352055 | BE80: 13.64203036 | BH80: 42.85714286 | BI80: 102.0784733 | BJ80: 29.26829268 | BK80: 76.41960021 | BN80: 7.925428754 | BR80: 94.15304452 | BT80: 2.025049463 | BU80: 14.30090763 | BV80: 8.488404666 | BW80: 16.43583192 | BX80: =Table1[[#This Row],[SF]]/Table1[[#This Row],[CF]] -> 0.5454834115 | BY80: =Table1[[#This Row],[MSF]]/Table1[[#This Row],[CF]] -> 0.08754673413 | BZ80: =Table1[[#This Row],[BSF]]/Table1[[#This Row],[CF]] -> 0.3669698544 | CA80: =Table1[[#This Row],[SA]]/Table1[[#This Row],[CA]] -> 0.3575050255 | CB80: =Table1[[#This Row],[MSA]]/Table1[[#This Row],[CA]] -> 0.2989341556 | CC80: =Table1[[#This Row],[BSA]]/Table1[[#This Row],[CA]] -> 0.3435608189
A81: 5v5 | B81: ScAdj | C81: WSH | D81: 20132014 | E81: 21195 | F81: 2014-04-10 | G81: CAR | J81: 0 | K81: 15 | L81: 40 | O81: 39.03572344 | P81: 53.66993999 | Q81: 29.07366741 | R81: 38.80028861 | S81: 21.62523765 | T81: 28.28921702 | U81: 5 | V81: 1 | W81: 18.81585704 | X81: 24.77898281 | Y81: 6.403794937 | Z81: 9.331616453 | AD81: 55.75833333 | AF81: 42.10716152 | AG81: 42.00526211 | AH81: 57.75273769 | AK81: 42.8347913 | AL81: 31.2853692 | AM81: 41.7519172 | AP81: 43.32459964 | AQ81: 23.27031999 | AR81: 30.44124384 | AT81: 83.33333333 | AU81: 5.38036168 | AV81: 1.076072336 | AX81: 43.16074357 | AY81: 20.24722323 | AZ81: 26.66397792 | BC81: 40.69671125 | BD81: 6.890946577 | BE81: 10.04149432 | BH81: 38.70967742 | BI81: 119.5862174 | BJ81: 29.78723404 | BK81: 0 | BN81: 23.12113319 | BR81: 96.46508421 | BT81: 7.44842976 | BU81: 10.51107158 | BV81: 9.962056031 | BW81: 14.86965138 | BX81: =Table1[[#This Row],[SF]]/Table1[[#This Row],[CF]] -> 0.55398583 | BY81: =Table1[[#This Row],[MSF]]/Table1[[#This Row],[CF]] -> 0.1908105987 | BZ81: =Table1[[#This Row],[BSF]]/Table1[[#This Row],[CF]] -> 0.2552035713 | CA81: =Table1[[#This Row],[SA]]/Table1[[#This Row],[CA]] -> 0.527096118 | CB81: =Table1[[#This Row],[MSA]]/Table1[[#This Row],[CA]] -> 0.1958465313 | CC81: =Table1[[#This Row],[BSA]]/Table1[[#This Row],[CA]] -> 0.2770573506
A82: 5v5 | B82: ScAdj | C82: WSH | D82: 20132014 | E82: 21205 | F82: 2014-04-11 | G82: CHI | J82: 1 | K82: 13 | L82: 7 | O82: 47.90147589 | P82: 52.12508964 | Q82: 39.7363592 | R82: 40.37393052 | S82: 25.42773658 | T82: 27.22605215 | U82: 3 | V82: 0 | W82: 30.81615753 | X82: 28.03936389 | Y82: 12.40617907 | Z82: 7.84955272 | AD82: 49.025 | AF82: 47.88875399 | AG82: 58.62495774 | AH82: 63.79409237 | AK82: 49.60206652 | AL82: 48.63195415 | AM82: 49.41225561 | AP82: 48.29232082 | AQ82: 31.12012635 | AR82: 33.32102252 | AT82: 100 | AU82: 3.671596124 | AV82: 0 | AX82: 52.35899163 | AY82: 37.71482819 | AZ82: 34.31640659 | BC82: 61.24774556 | BD82: 15.18349299 | BE82: 9.606795782 | BH82: 28.57142857 | BI82: 111.7981402 | BJ82: 55.88235294 | BK82: 73.43192249 | BN82: 11.79814016 | BR82: 100 | BT82: 14.30862262 | BU82: 13.14787838 | BV82: 8.165116687 | BW82: 11.75115912 | BX82: =Table1[[#This Row],[SF]]/Table1[[#This Row],[CF]] -> 0.5308340945 | BY82: =Table1[[#This Row],[MSF]]/Table1[[#This Row],[CF]] -> 0.2987094313 | BZ82: =Table1[[#This Row],[BSF]]/Table1[[#This Row],[CF]] -> 0.1704564742 | CA82: =Table1[[#This Row],[SA]]/Table1[[#This Row],[CA]] -> 0.5223214452 | CB82: =Table1[[#This Row],[MSA]]/Table1[[#This Row],[CA]] -> 0.2522370411 | CC82: =Table1[[#This Row],[BSA]]/Table1[[#This Row],[CA]] -> 0.2254415139
A83: 5v5 | B83: ScAdj | C83: WSH | D83: 20132014 | E83: 21223 | F83: 2014-04-13 | G83: T.B | J83: 1 | K83: 21 | L83: 9 | O83: 32.52793991 | P83: 55.57562902 | Q83: 23.21742226 | R83: 41.23920703 | S83: 13.0311489 | T83: 29.49367047 | U83: 0 | V83: 0 | W83: 21.63779794 | X83: 30.80638593 | Y83: 5.456753844 | Z83: 11.27415405 | AD83: 55.44166667 | AF83: 36.92011607 | AG83: 35.2023399 | AH83: 60.14497655 | AK83: 36.02022401 | AL83: 25.12632501 | AM83: 44.62983475 | AP83: 30.6436314 | AQ83: 14.10255104 | AR83: 31.91859723 | AU83: 0 | AV83: 0 | AX83: 41.25871802 | AY83: 23.41682627 | AZ83: 33.33924225 | BC83: 32.61481014 | BD83: 5.905400222 | BE83: 12.20109863 | BH83: 44.44444444 | BI83: 100 | BJ83: 51.28205128 | BK83: 64.93311288 | BN83: 0 | BR83: 100 | BT83: 10.18627336 | BU83: 11.74553656 | BV83: 9.310517652 | BW83: 14.336422 | BX83: =Table1[[#This Row],[SF]]/Table1[[#This Row],[CF]] -> 0.400614024 | BY83: =Table1[[#This Row],[MSF]]/Table1[[#This Row],[CF]] -> 0.31315458 | BZ83: =Table1[[#This Row],[BSF]]/Table1[[#This Row],[CF]] -> 0.2862313961 | CA83: =Table1[[#This Row],[SA]]/Table1[[#This Row],[CA]] -> 0.5306943167 | CB83: =Table1[[#This Row],[MSA]]/Table1[[#This Row],[CA]] -> 0.211343295 | CC83: =Table1[[#This Row],[BSA]]/Table1[[#This Row],[CA]] -> 0.2579623884
A84: 5v5 | B84: ScAdj | C84: WSH | D84: 20142015 | E84: 20008 | F84: 2014-10-09 | G84: MTL | J84: 4 | K84: 29 | L84: 22 | O84: 40.33533099 | P84: 23.96492143 | Q84: 30.56435849 | R84: 17.07862311 | S84: 21.87018709 | T84: 15.07055218 | U84: 1 | V84: 1 | W84: 18.46211219 | X84: 15.61645758 | Y84: 7.071059632 | Z84: 2.932675829 | AD84: 41.7 | AF84: 62.72966197 | AG84: 58.03644746 | AH84: 34.48190134 | AK84: 64.1529087 | AL84: 43.97749424 | AM84: 24.57355844 | AP84: 59.20343644 | AQ84: 31.4678951 | AR84: 21.68424773 | AT84: 50 | AU84: 1.438848921 | AV84: 1.438848921 | AX84: 54.17513796 | AY84: 26.56419021 | AZ84: 22.46972314 | BC84: 70.68419251 | BD84: 10.17418652 | BE84: 4.219677453 | BH84: 62.85714286 | BI84: 97.93697765 | BJ84: 45.83333333 | BK84: 345.323741 | BN84: 4.572434592 | BR84: 93.36454306 | BT84: 8.694171402 | BU84: 2.008070938 | BV84: 9.770972492 | BW84: 6.886298319 | BX84: =Table1[[#This Row],[SF]]/Table1[[#This Row],[CF]] -> 0.5422091886 | BY84: =Table1[[#This Row],[MSF]]/Table1[[#This Row],[CF]] -> 0.2155472929 | BZ84: =Table1[[#This Row],[BSF]]/Table1[[#This Row],[CF]] -> 0.2422435183 | CA84: =Table1[[#This Row],[SA]]/Table1[[#This Row],[CA]] -> 0.6288588187 | CB84: =Table1[[#This Row],[MSA]]/Table1[[#This Row],[CA]] -> 0.08379209353 | CC84: =Table1[[#This Row],[BSA]]/Table1[[#This Row],[CA]] -> 0.2873490881
A85: 5v5 | B85: ScAdj | C85: WSH | D85: 20142015 | E85: 20018 | F85: 2014-10-11 | G85: BOS | J85: -1 | K85: 21 | L85: 25 | O85: 29.36198968 | P85: 37.67481544 | Q85: 19.21195564 | R85: 29.83639164 | S85: 14.4634792 | T85: 19.39694093 | U85: 2 | V85: 0 | W85: 14.70677729 | X85: 21.45485232 | Y85: 6.956648672 | Z85: 7.408335687 | AD85: 45.13333333 | AF85: 43.79980464 | AG85: 39.03366427 | AH85: 50.08468818 | AK85: 39.16942507 | AL85: 25.54026599 | AM85: 39.66433158 | AP85: 42.71500219 | AQ85: 19.22766806 | AR85: 25.78618439 | AT85: 100 | AU85: 2.658788774 | AV85: 0 | AX85: 40.66956454 | AY85: 19.55110719 | AZ85: 28.52196025 | BC85: 48.42781933 | BD85: 9.248129697 | BE85: 9.84859988 | BH85: 45 | BI85: 113.8279315 | BJ85: 35.48387097 | BK85: -79.76366322 | BN85: 13.82793153 | BR85: 100 | BT85: 4.74847644 | BU85: 10.43945072 | BV85: 10.15003404 | BW85: 7.838423797 | BX85: =Table1[[#This Row],[SF]]/Table1[[#This Row],[CF]] -> 0.4925919312 | BY85: =Table1[[#This Row],[MSF]]/Table1[[#This Row],[CF]] -> 0.1617218891 | BZ85: =Table1[[#This Row],[BSF]]/Table1[[#This Row],[CF]] -> 0.3456861797 | CA85: =Table1[[#This Row],[SA]]/Table1[[#This Row],[CA]] -> 0.514851651 | CB85: =Table1[[#This Row],[MSA]]/Table1[[#This Row],[CA]] -> 0.2770936128 | CC85: =Table1[[#This Row],[BSA]]/Table1[[#This Row],[CA]] -> 0.2080547364
A86: 5v5 | B86: ScAdj | C86: WSH | D86: 20142015 | E86: 20040 | F86: 2014-10-14 | G86: S.J | J86: 1 | K86: 24 | L86: 11 | O86: 44.83257443 | P86: 40.31223147 | Q86: 31.80525431 | R86: 24.53755217 | S86: 22.43207433 | T86: 17.49606879 | U86: 3 | V86: 4 | W86: 26.79232783 | X86: 17.2381752 | Y86: 9.946520968 | Z86: 5.212275389 | AD86: 50.375 | AF86: 52.65450307 | AG86: 53.39859982 | AH86: 48.01456849 | AK86: 56.44953863 | AL86: 37.88218876 | AM86: 29.22586859 | AP86: 56.18111081 | AQ86: 26.71810342 | AR86: 20.83899013 | AT86: 42.85714286 | AU86: 3.573200993 | AV86: 4.76426799 | AX86: 60.84947022 | AY86: 31.91145747 | AZ86: 20.53182158 | BC86: 65.61550623 | BD86: 11.84697287 | BE86: 6.208169198 | BH86: 57.69230769 | BI86: 90.51142882 | BJ86: 49.05660377 | BK86: 71.46401985 | BN86: 13.37370747 | BR86: 77.13772135 | BT86: 9.373179978 | BU86: 7.041483375 | BV86: 13.02732012 | BW86: 15.7746793 | BX86: =Table1[[#This Row],[SF]]/Table1[[#This Row],[CF]] -> 0.5003521349 | BY86: =Table1[[#This Row],[MSF]]/Table1[[#This Row],[CF]] -> 0.2090707504 | BZ86: =Table1[[#This Row],[BSF]]/Table1[[#This Row],[CF]] -> 0.2905771146 | CA86: =Table1[[#This Row],[SA]]/Table1[[#This Row],[CA]] -> 0.4340138998 | CB86: =Table1[[#This Row],[MSA]]/Table1[[#This Row],[CA]] -> 0.1746736194 | CC86: =Table1[[#This Row],[BSA]]/Table1[[#This Row],[CA]] -> 0.3913124807
A87: 5v5 | B87: ScAdj | C87: WSH | D87: 20142015 | E87: 20052 | F87: 2014-10-16 | G87: N.J | J87: 1 | K87: 20 | L87: 20 | O87: 34.79214075 | P87: 40.73645003 | Q87: 26.52543683 | R87: 29.96716376 | S87: 22.32822884 | T87: 21.26597513 | U87: 5 | V87: 2 | W87: 19.22020406 | X87: 14.13183601 | Y87: 6.84337118 | Z87: 5.150977037 | AD87: 44.45 | AF87: 46.06486152 | AG87: 46.96351957 | AH87: 54.98733413 | AK87: 46.95382502 | AL87: 35.80486411 | AM87: 40.45061475 | AP87: 51.21834282 | AQ87: 30.13934152 | AR87: 28.70547824 | AT87: 71.42857143 | AU87: 6.749156355 | AV87: 2.699662542 | AX87: 57.62827108 | AY87: 25.94403248 | AZ87: 19.07559416 | BC87: 57.05496502 | BD87: 9.237396418 | BE87: 6.952949881 | BH87: 58.06451613 | BI87: 112.9884833 | BJ87: 46.93877551 | BK87: 80.98987627 | BN87: 22.39317787 | BR87: 90.59530547 | BT87: 4.197207987 | BU87: 8.701188629 | BV87: 8.266703921 | BW87: 10.76928627 | BX87: =Table1[[#This Row],[SF]]/Table1[[#This Row],[CF]] -> 0.6417607068 | BY87: =Table1[[#This Row],[MSF]]/Table1[[#This Row],[CF]] -> 0.1206366696 | BZ87: =Table1[[#This Row],[BSF]]/Table1[[#This Row],[CF]] -> 0.2376026235 | CA87: =Table1[[#This Row],[SA]]/Table1[[#This Row],[CA]] -> 0.5220380056 | CB87: =Table1[[#This Row],[MSA]]/Table1[[#This Row],[CA]] -> 0.2135971255 | CC87: =Table1[[#This Row],[BSA]]/Table1[[#This Row],[CA]] -> 0.2643648689
A88: 5v5 | B88: ScAdj | C88: WSH | D88: 20142015 | E88: 20069 | F88: 2014-10-18 | G88: FLA | J88: -2 | K88: 29 | L88: 28 | O88: 45.29842346 | P88: 32.55892482 | Q88: 33.96073328 | R88: 24.45022324 | S88: 23.6586716 | T88: 14.77112755 | U88: 1 | V88: 0 | W88: 16.51515981 | X88: 11.443623 | Y88: 6.728972206 | Z88: 3.790580103 | AD88: 47.95 | AF88: 58.18130781 | AG88: 56.68207315 | AH88: 40.74109467 | AK88: 58.14103261 | AL88: 42.49518241 | AM88: 30.59464848 | AP88: 61.5633496 | AQ88: 29.60417719 | AR88: 18.48316273 | AT88: 100 | AU88: 1.251303441 | AV88: 0 | AX88: 59.06966666 | AY88: 20.6654763 | AZ88: 14.31944484 | BC88: 63.96633629 | BD88: 8.419986076 | BE88: 4.743165927 | BH88: 69.6969697 | BI88: 104.22678 | BJ88: 61.2244898 | BK88: -150.1564129 | BN88: 4.226780002 | BR88: 100 | BT88: 10.30206168 | BU88: 9.679095696 | BV88: 11.33769018 | BW88: 8.10870158 | BX88: =Table1[[#This Row],[SF]]/Table1[[#This Row],[CF]] -> 0.5222846579 | BY88: =Table1[[#This Row],[MSF]]/Table1[[#This Row],[CF]] -> 0.2274264951 | BZ88: =Table1[[#This Row],[BSF]]/Table1[[#This Row],[CF]] -> 0.250288847 | CA88: =Table1[[#This Row],[SA]]/Table1[[#This Row],[CA]] -> 0.4536736895 | CB88: =Table1[[#This Row],[MSA]]/Table1[[#This Row],[CA]] -> 0.2972793404 | CC88: =Table1[[#This Row],[BSA]]/Table1[[#This Row],[CA]] -> 0.2490469702
A89: 5v5 | B89: ScAdj | C89: WSH | D89: 20142015 | E89: 20091 | F89: 2014-10-22 | G89: EDM | J89: 2 | K89: 31 | L89: 20 | O89: 51.86242226 | P89: 31.49717928 | Q89: 40.20479947 | R89: 24.35955207 | S89: 29.38811312 | T89: 16.6861537 | U89: 1 | V89: 2 | W89: 25.52902347 | X89: 11.63496367 | Y89: 12.2175247 | Z89: 6.075715684 | AD89: 52.34166667 | AF89: 62.2152953 | AG89: 59.45063529 | AH89: 36.10566643 | AK89: 62.27089486 | AL89: 46.0873358 | AM89: 27.92370242 | AP89: 63.78422305 | AQ89: 33.68801376 | AR89: 19.12757628 | AT89: 33.33333333 | AU89: 1.146314281 | AV89: 2.292628562 | AX89: 68.69290794 | AY89: 29.26428419 | AZ89: 13.33732501 | BC89: 66.78709974 | BD89: 14.00512305 | BE89: 6.964679657 | BH89: 42.85714286 | BI89: 91.4167506 | BJ89: 51.02040816 | BK89: 137.5577137 | BN89: 3.402736324 | BR89: 88.01401428 | BT89: 10.81668635 | BU89: 7.673398372 | BV89: 11.65762279 | BW89: 7.13762721 | BX89: =Table1[[#This Row],[SF]]/Table1[[#This Row],[CF]] -> 0.5666552359 | BY89: =Table1[[#This Row],[MSF]]/Table1[[#This Row],[CF]] -> 0.2085650048 | BZ89: =Table1[[#This Row],[BSF]]/Table1[[#This Row],[CF]] -> 0.2247797593 | CA89: =Table1[[#This Row],[SA]]/Table1[[#This Row],[CA]] -> 0.5297666039 | CB89: =Table1[[#This Row],[MSA]]/Table1[[#This Row],[CA]] -> 0.2436217638 | CC89: =Table1[[#This Row],[BSA]]/Table1[[#This Row],[CA]] -> 0.2266116323
A90: 5v5 | B90: ScAdj | C90: WSH | D90: 20142015 | E90: 20116 | F90: 2014-10-25 | G90: CGY | J90: 0 | K90: 27 | L90: 22 | O90: 44.14810408 | P90: 31.34042803 | Q90: 34.73013609 | R90: 22.67097436 | S90: 27.18229536 | T90: 14.99695791 | U90: 2 | V90: 0 | W90: 19.76386398 | X90: 10.46948215 | Y90: 9.217353311 | Z90: 4.640271427 | AD90: 46.35 | AF90: 58.4831932 | AG90: 57.14964929 | AH90: 40.57013337 | AK90: 60.50429307 | AL90: 44.95810497 | AM90: 29.34753962 | AP90: 64.44470505 | AQ90: 35.18743736 | AR90: 19.41353774 | AT90: 100 | AU90: 2.588996764 | AV90: 0 | AX90: 65.371077 | AY90: 25.58428994 | AZ90: 13.5527277 | BC90: 66.51466961 | BD90: 11.93184895 | BE90: 6.006823854 | BH90: 52.17391304 | BI90: 107.3577304 | BJ90: 51.1627907 | BK90: 0 | BN90: 7.357730366 | BR90: 100 | BT90: 7.547840727 | BU90: 7.674016453 | BV90: 9.41796799 | BW90: 8.669453668 | BX90: =Table1[[#This Row],[SF]]/Table1[[#This Row],[CF]] -> 0.6157069692 | BY90: =Table1[[#This Row],[MSF]]/Table1[[#This Row],[CF]] -> 0.1709663616 | BZ90: =Table1[[#This Row],[BSF]]/Table1[[#This Row],[CF]] -> 0.2133266691 | CA90: =Table1[[#This Row],[SA]]/Table1[[#This Row],[CA]] -> 0.4785179671 | CB90: =Table1[[#This Row],[MSA]]/Table1[[#This Row],[CA]] -> 0.2448599759 | CC90: =Table1[[#This Row],[BSA]]/Table1[[#This Row],[CA]] -> 0.276622057
A91: 5v5 | B91: ScAdj | C91: WSH | D91: 20142015 | E91: 20121 | F91: 2014-10-26 | G91: VAN | J91: -5 | K91: 24 | L91: 19 | O91: 40.33357112 | P91: 44.30083828 | Q91: 30.74832296 | R91: 34.33304479 | S91: 18.77548274 | T91: 30.2394184 | U91: 2 | V91: 2 | W91: 17.48172267 | X91: 22.51117473 | Y91: 7.030303689 | Z91: 10.70718268 | AD91: 50.85833333 | AF91: 47.65623274 | AG91: 47.58343635 | AH91: 52.26381052 | AK91: 47.24596919 | AL91: 36.27526221 | AM91: 40.50432943 | AP91: 38.30566278 | AQ91: 22.15033193 | AR91: 35.67488325 | AT91: 50 | AU91: 2.35949533 | AV91: 2.35949533 | AX91: 43.71206841 | AY91: 20.6240215 | AZ91: 26.55750582 | BC91: 39.63528733 | BD91: 8.293984362 | BE91: 12.63177377 | BH91: 55.55555556 | BI91: 104.0383057 | BJ91: 48.88888889 | BK91: -353.9242995 | BN91: 10.65218949 | BR91: 93.38611618 | BT91: 11.97284021 | BU91: 4.093626393 | BV91: 9.585248165 | BW91: 9.967793488 | BX91: =Table1[[#This Row],[SF]]/Table1[[#This Row],[CF]] -> 0.4655050921 | BY91: =Table1[[#This Row],[MSF]]/Table1[[#This Row],[CF]] -> 0.2968455279 | BZ91: =Table1[[#This Row],[BSF]]/Table1[[#This Row],[CF]] -> 0.2376493799 | CA91: =Table1[[#This Row],[SA]]/Table1[[#This Row],[CA]] -> 0.6825924649 | CB91: =Table1[[#This Row],[MSA]]/Table1[[#This Row],[CA]] -> 0.09240516776 | CC91: =Table1[[#This Row],[BSA]]/Table1[[#This Row],[CA]] -> 0.2250023673
A92: 5v5 | B92: ScAdj | C92: WSH | D92: 20142015 | E92: 20136 | F92: 2014-10-29 | G92: DET | J92: 1 | K92: 25 | L92: 20 | O92: 32.29155584 | P92: 24.97497447 | Q92: 23.63566882 | R92: 17.83034148 | S92: 16.35201806 | T92: 14.82230422 | U92: 1 | V92: 3 | W92: 16.99371878 | X92: 8.675889063 | Y92: 7.273688981 | Z92: 4.936014767 | AD92: 43.10833333 | AF92: 56.38818288 | AG92: 44.94475199 | AH92: 34.76122486 | AK92: 57.00010359 | AL92: 32.89712266 | AM92: 24.81702274 | AP92: 52.45348371 | AQ92: 22.75942974 | AR92: 20.63030938 | AT92: 25 | AU92: 1.391842258 | AV92: 4.175526774 | AX92: 66.2017078 | AY92: 23.65257591 | AZ92: 12.07546902 | BC92: 59.57301775 | BD92: 10.12382769 | BE92: 6.870153939 | BH92: 54.54545455 | BI92: 85.87568504 | BJ92: 50 | BK92: 83.51053547 | BN92: 6.115453129 | BR92: 79.76023191 | BT92: 7.283650763 | BU92: 3.008037252 | BV92: 8.655887019 | BW92: 7.144632996 | BX92: =Table1[[#This Row],[SF]]/Table1[[#This Row],[CF]] -> 0.5063868134 | BY92: =Table1[[#This Row],[MSF]]/Table1[[#This Row],[CF]] -> 0.2255589913 | BZ92: =Table1[[#This Row],[BSF]]/Table1[[#This Row],[CF]] -> 0.2680541954 | CA92: =Table1[[#This Row],[SA]]/Table1[[#This Row],[CA]] -> 0.5934862611 | CB92: =Table1[[#This Row],[MSA]]/Table1[[#This Row],[CA]] -> 0.1204420551 | CC92: =Table1[[#This Row],[BSA]]/Table1[[#This Row],[CA]] -> 0.2860716837
A93: 5v5 | B93: ScAdj | C93: WSH | D93: 20142015 | E93: 20155 | F93: 2014-11-01 | G93: T.B | J93: 2 | K93: 19 | L93: 32 | O93: 43.96493227 | P93: 39.29607895 | Q93: 38.04872725 | R93: 30.19008577 | S93: 29.98545505 | T93: 21.65781384 | U93: 2 | V93: 4 | W93: 29.81476116 | X93: 26.42990982 | Y93: 16.07156589 | Z93: 11.37410644 | AD93: 52.14166667 | AF93: 52.80374527 | AG93: 50.59094012 | AH93: 45.2184383 | AK93: 55.75819034 | AL93: 43.78309672 | AM93: 34.74006992 | AP93: 58.06265887 | AQ93: 34.50459906 | AR93: 24.92188903 | AT93: 33.33333333 | AU93: 2.301422407 | AV93: 4.602844814 | AX93: 53.00904182 | AY93: 34.30817969 | AZ93: 30.41319334 | BC93: 58.55774162 | BD93: 18.49373092 | BE93: 13.08831171 | BH93: 69.23076923 | BI93: 88.20081567 | BJ93: 46.66666667 | BK93: 138.0853444 | BN93: 6.669900447 | BR93: 81.53091522 | BT93: 8.063272201 | BU93: 8.532271924 | BV93: 5.916205026 | BW93: 9.105993182 | BX93: =Table1[[#This Row],[SF]]/Table1[[#This Row],[CF]] -> 0.6820311894 | BY93: =Table1[[#This Row],[MSF]]/Table1[[#This Row],[CF]] -> 0.1834023569 | BZ93: =Table1[[#This Row],[BSF]]/Table1[[#This Row],[CF]] -> 0.1345664538 | CA93: =Table1[[#This Row],[SA]]/Table1[[#This Row],[CA]] -> 0.5511443996 | CB93: =Table1[[#This Row],[MSA]]/Table1[[#This Row],[CA]] -> 0.2171278192 | CC93: =Table1[[#This Row],[BSA]]/Table1[[#This Row],[CA]] -> 0.2317277811
A94: 5v5 | B94: ScAdj | C94: WSH | D94: 20142015 | E94: 20167 | F94: 2014-11-02 | G94: ARI | J94: -4 | K94: 23 | L94: 22 | O94: 37.81437641 | P94: 44.02313016 | Q94: 28.40188977 | R94: 31.44070257 | S94: 25.82937495 | T94: 22.82246706 | U94: 2 | V94: 4 | W94: 27.89664372 | X94: 23.7080726 | Y94: 14.33017852 | Z94: 12.25744136 | AD94: 42.05833333 | AF94: 46.20665755 | AG94: 53.94561326 | AH94: 62.80295962 | AK94: 47.46099502 | AL94: 40.51785345 | AM94: 44.85299357 | AP94: 53.09023026 | AQ94: 36.84792939 | AR94: 32.5583045 | AT94: 33.33333333 | AU94: 2.853180107 | AV94: 5.706360214 | AX94: 54.05832201 | AY94: 39.79707446 | AZ94: 33.82170056 | BC94: 53.89793664 | BD94: 20.44329014 | BE94: 17.48634393 | BH94: 54.54545455 | BI94: 90.21653295 | BJ94: 35 | BK94: -342.3816128 | BN94: 7.743121946 | BR94: 82.473411 | BT94: 2.572514825 | BU94: 8.618235516 | BV94: 9.412486636 | BW94: 12.58242759 | BX94: =Table1[[#This Row],[SF]]/Table1[[#This Row],[CF]] -> 0.6830570117 | BY94: =Table1[[#This Row],[MSF]]/Table1[[#This Row],[CF]] -> 0.06803007399 | BZ94: =Table1[[#This Row],[BSF]]/Table1[[#This Row],[CF]] -> 0.2489129143 | CA94: =Table1[[#This Row],[SA]]/Table1[[#This Row],[CA]] -> 0.5184199074 | CB94: =Table1[[#This Row],[MSA]]/Table1[[#This Row],[CA]] -> 0.1957660776 | CC94: =Table1[[#This Row],[BSA]]/Table1[[#This Row],[CA]] -> 0.2858140151
A95: 5v5 | B95: ScAdj | C95: WSH | D95: 20142015 | E95: 20175 | F95: 2014-11-04 | G95: CGY | J95: 1 | K95: 23 | L95: 24 | O95: 53.89641416 | P95: 39.14513509 | Q95: 36.94835179 | R95: 27.40898926 | S95: 27.10032594 | T95: 19.76432211 | U95: 2 | V95: 3 | W95: 26.16432147 | X95: 20.91504538 | Y95: 11.35129999 | Z95: 9.188505484 | AD95: 50.875 | AF95: 57.92725357 | AG95: 63.56333857 | AH95: 46.16625269 | AK95: 57.41124662 | AL95: 43.57545174 | AM95: 32.32509789 | AP95: 57.82679923 | AQ95: 31.96107237 | AR95: 23.30927424 | AT95: 40 | AU95: 2.358722359 | AV95: 3.538083538 | AX95: 55.57492214 | AY95: 30.85718503 | AZ95: 24.66639259 | BC95: 55.26488557 | BD95: 13.38728255 | BE95: 10.83656666 | BH95: 54.54545455 | BI95: 92.20111888 | BJ95: 55.93220339 | BK95: 70.76167076 | BN95: 7.379985038 | BR95: 84.82113385 | BT95: 9.848025843 | BU95: 7.644667141 | BV95: 16.94806238 | BW95: 11.73614584 | BX95: =Table1[[#This Row],[SF]]/Table1[[#This Row],[CF]] -> 0.5028224301 | BY95: =Table1[[#This Row],[MSF]]/Table1[[#This Row],[CF]] -> 0.1827213553 | BZ95: =Table1[[#This Row],[BSF]]/Table1[[#This Row],[CF]] -> 0.3144562147 | CA95: =Table1[[#This Row],[SA]]/Table1[[#This Row],[CA]] -> 0.5048985542 | CB95: =Table1[[#This Row],[MSA]]/Table1[[#This Row],[CA]] -> 0.1952903502 | CC95: =Table1[[#This Row],[BSA]]/Table1[[#This Row],[CA]] -> 0.2998110956
A96: 5v5 | B96: ScAdj | C96: WSH | D96: 20142015 | E96: 20200 | F96: 2014-11-07 | G96: CHI | J96: -1 | K96: 36 | L96: 20 | O96: 26.71896008 | P96: 47.19238342 | Q96: 24.17924193 | R96: 35.26041794 | S96: 20.37015645 | T96: 30.03139657 | U96: 3 | V96: 1 | W96: 18.1368629 | X96: 16.82558624 | Y96: 7.731178333 | Z96: 8.204182381 | AD96: 51.54166667 | AF96: 36.15001272 | AG96: 31.1037207 | AH96: 54.93697019 | AK96: 40.67863441 | AL96: 28.14721777 | AM96: 41.04688911 | AP96: 40.41573171 | AQ96: 23.7130358 | AR96: 34.95975025 | AT96: 75 | AU96: 3.492320129 | AV96: 1.16410671 | AX96: 51.87526431 | AY96: 21.1132438 | AZ96: 19.58677784 | BC96: 48.51586652 | BD96: 8.999916572 | BE96: 9.550543758 | BH96: 38.88888889 | BI96: 111.3975789 | BJ96: 39.21568627 | BK96: -69.84640259 | BN96: 14.72742739 | BR96: 96.67015153 | BT96: 3.809085488 | BU96: 5.229021369 | BV96: 2.539718142 | BW96: 11.93196548 | BX96: =Table1[[#This Row],[SF]]/Table1[[#This Row],[CF]] -> 0.762385826 | BY96: =Table1[[#This Row],[MSF]]/Table1[[#This Row],[CF]] -> 0.142561143 | BZ96: =Table1[[#This Row],[BSF]]/Table1[[#This Row],[CF]] -> 0.09505303105 | CA96: =Table1[[#This Row],[SA]]/Table1[[#This Row],[CA]] -> 0.6363610904 | CB96: =Table1[[#This Row],[MSA]]/Table1[[#This Row],[CA]] -> 0.110802231 | CC96: =Table1[[#This Row],[BSA]]/Table1[[#This Row],[CA]] -> 0.2528366786
A97: 5v5 | B97: ScAdj | C97: WSH | D97: 20142015 | E97: 20209 | F97: 2014-11-08 | G97: CAR | J97: 0 | K97: 18 | L97: 15 | O97: 54.10181679 | P97: 42.6521295 | Q97: 35.88563857 | R97: 28.3835457 | S97: 30.74555432 | T97: 21.81476875 | U97: 2 | V97: 2 | W97: 29.46067338 | X97: 19.68984772 | Y97: 13.61497322 | Z97: 6.97940668 | AD97: 51.60833333 | AF97: 55.91690972 | AG97: 62.8989312 | AH97: 49.5874911 | AK97: 55.83646187 | AL97: 41.72074886 | AM97: 32.99879364 | AP97: 58.49574835 | AQ97: 35.74487181 | AR97: 25.36191426 | AT97: 50 | AU97: 2.325205878 | AV97: 2.325205878 | AX97: 59.93969691 | AY97: 34.25106545 | AZ97: 22.89147482 | BC97: 66.11013921 | BD97: 15.82880788 | BE97: 8.114278717 | BH97: 48.64864865 | BI97: 97.33690465 | BJ97: 55.55555556 | BK97: 0 | BN97: 6.505005502 | BR97: 90.83189915 | BT97: 5.140084252 | BU97: 6.568776945 | BV97: 18.21617822 | BW97: 14.2685838 | BX97: =Table1[[#This Row],[SF]]/Table1[[#This Row],[CF]] -> 0.5682906073 | BY97: =Table1[[#This Row],[MSF]]/Table1[[#This Row],[CF]] -> 0.09500760893 | BZ97: =Table1[[#This Row],[BSF]]/Table1[[#This Row],[CF]] -> 0.3367017838 | CA97: =Table1[[#This Row],[SA]]/Table1[[#This Row],[CA]] -> 0.5114579039 | CB97: =Table1[[#This Row],[MSA]]/Table1[[#This Row],[CA]] -> 0.1540081825 | CC97: =Table1[[#This Row],[BSA]]/Table1[[#This Row],[CA]] -> 0.3345339135
A98: 5v5 | B98: ScAdj | C98: WSH | D98: 20142015 | E98: 20223 | F98: 2014-11-11 | G98: CBJ | J98: -1 | K98: 32 | L98: 36 | O98: 36.23595191 | P98: 39.48249937 | Q98: 27.72196131 | R98: 27.29650695 | S98: 18.36149024 | T98: 18.9303793 | U98: 3 | V98: 2 | W98: 12.81797671 | X98: 17.60542302 | Y98: 4.821369749 | Z98: 7.851347001 | AD98: 43.08333333 | AF98: 47.85617151 | AG98: 50.46399492 | AH98: 54.98529893 | AK98: 50.38664687 | AL98: 38.60698674 | AM98: 38.01447776 | AP98: 49.23724787 | AQ98: 25.57112761 | AR98: 26.3633909 | AT98: 60 | AU98: 4.17794971 | AV98: 2.785299807 | AX98: 42.13196691 | AY98: 17.85095402 | AZ98: 24.51819067 | BC98: 38.04527351 | BD98: 6.714480115 | BE98: 10.93417764 | BH98: 46.42857143 | BI98: 105.7735144 | BJ98: 56.81818182 | BK98: -83.5589942 | BN98: 16.33854312 | BR98: 89.43497133 | BT98: 9.360471071 | BU98: 8.366127648 | BV98: 8.513990594 | BW98: 12.18599243 | BX98: =Table1[[#This Row],[SF]]/Table1[[#This Row],[CF]] -> 0.5067202398 | BY98: =Table1[[#This Row],[MSF]]/Table1[[#This Row],[CF]] -> 0.2583199993 | BZ98: =Table1[[#This Row],[BSF]]/Table1[[#This Row],[CF]] -> 0.2349597608 | CA98: =Table1[[#This Row],[SA]]/Table1[[#This Row],[CA]] -> 0.4794625366 | CB98: =Table1[[#This Row],[MSA]]/Table1[[#This Row],[CA]] -> 0.2118945807 | CC98: =Table1[[#This Row],[BSA]]/Table1[[#This Row],[CA]] -> 0.3086428829
A99: 5v5 | B99: ScAdj | C99: WSH | D99: 20142015 | E99: 20243 | F99: 2014-11-14 | G99: N.J | J99: 0 | K99: 15 | L99: 12 | O99: 30.4467875 | P99: 34.81324406 | Q99: 24.97679812 | R99: 24.03384365 | S99: 17.81658261 | T99: 20.07589701 | U99: 0 | V99: 1 | W99: 15.88252582 | X99: 19.61724988 | Y99: 5.636463637 | Z99: 9.972538955 | AD99: 41.09166667 | AF99: 46.65457061 | AG99: 44.45687893 | AH99: 50.83256078 | AK99: 50.96198951 | AL99: 36.46987354 | AM99: 35.09301851 | AP99: 47.0187826 | AQ99: 26.01488437 | AR99: 29.31382244 | AT99: 0 | AU99: 0 | AV99: 1.460150071 | AX99: 44.73979204 | AY99: 23.19087121 | AZ99: 28.6441288 | BC99: 36.11033827 | BD99: 8.23008278 | BE99: 14.56140346 | BH99: 56 | BI99: 95.01890252 | BJ99: 43.90243902 | BK99: 0 | BN99: 0 | BR99: 95.01890252 | BT99: 7.160215504 | BU99: 3.957946641 | BV99: 5.469989383 | BW99: 10.77940041 | BX99: =Table1[[#This Row],[SF]]/Table1[[#This Row],[CF]] -> 0.5851711814 | BY99: =Table1[[#This Row],[MSF]]/Table1[[#This Row],[CF]] -> 0.2351714612 | BZ99: =Table1[[#This Row],[BSF]]/Table1[[#This Row],[CF]] -> 0.1796573574 | CA99: =Table1[[#This Row],[SA]]/Table1[[#This Row],[CA]] -> 0.5766741237 | CB99: =Table1[[#This Row],[MSA]]/Table1[[#This Row],[CA]] -> 0.1136908308 | CC99: =Table1[[#This Row],[BSA]]/Table1[[#This Row],[CA]] -> 0.3096350455
A100: 5v5 | B100: ScAdj | C100: WSH | D100: 20142015 | E100: 20258 | F100: 2014-11-15 | G100: STL | J100: -3 | K100: 28 | L100: 17 | O100: 43.30652943 | P100: 51.70263419 | Q100: 33.73650817 | R100: 42.39851402 | S100: 24.44611274 | T100: 32.51277302 | U100: 1 | V100: 4 | W100: 13.16355161 | X100: 18.31098622 | Y100: 6.359196586 | Z100: 8.11011677 | AD100: 53.94166667 | AF100: 45.58142371 | AG100: 48.17040197 | AH100: 57.50949578 | AK100: 44.31141832 | AL100: 37.52554594 | AM100: 47.1604049 | AP100: 42.91887457 | AQ100: 27.19172126 | AR100: 36.16436981 | AT100: 20 | AU100: 1.112312683 | AV100: 4.449250734 | AX100: 41.82285911 | AY100: 14.64198542 | AZ100: 20.36754222 | BC100: 43.94953948 | BD100: 7.073415019 | BE100: 9.020985747 | BH100: 60.52631579 | BI100: 91.78777283 | BJ100: 41.37931034 | BK100: -200.216283 | BN100: 4.090629912 | BR100: 87.69714291 | BT100: 9.290395434 | BU100: 9.885740992 | BV100: 9.57002126 | BW100: 9.304120171 | BX100: =Table1[[#This Row],[SF]]/Table1[[#This Row],[CF]] -> 0.5644902296 | BY100: =Table1[[#This Row],[MSF]]/Table1[[#This Row],[CF]] -> 0.2145264365 | BZ100: =Table1[[#This Row],[BSF]]/Table1[[#This Row],[CF]] -> 0.2209833341 | CA100: =Table1[[#This Row],[SA]]/Table1[[#This Row],[CA]] -> 0.6288417124 | CB100: =Table1[[#This Row],[MSA]]/Table1[[#This Row],[CA]] -> 0.1912038167 | CC100: =Table1[[#This Row],[BSA]]/Table1[[#This Row],[CA]] -> 0.1799544707
A101: 5v5 | B101: ScAdj | C101: WSH | D101: 20142015 | E101: 20276 | F101: 2014-11-18 | G101: ARI | J101: -1 | K101: 38 | L101: 28 | O101: 29.66643166 | P101: 29.38636376 | Q101: 19.92129919 | R101: 19.29074839 | S101: 14.36397703 | T101: 13.32128664 | U101: 1 | V101: 1 | W101: 6.272657626 | X101: 16.30627834 | Y101: 1.118096349 | Z101: 5.650076312 | AD101: 46.54166667 | AF101: 50.23713348 | AG101: 38.24499695 | AH101: 37.88394254 | AK101: 50.80402686 | AL101: 25.68188973 | AM101: 24.8690042 | AP101: 51.88311443 | AQ101: 18.5175711 | AR101: 17.17336863 | AT101: 50 | AU101: 1.289167413 | AV101: 1.289167413 | AX101: 27.78101518 | AY101: 8.086505802 | AZ101: 21.02152265 | BC101: 16.51991468 | BD101: 1.441413377 | BE101: 7.28389426 | BH101: 67.74193548 | BI101: 99.45507781 | BJ101: 48.7804878 | BK101: -77.35004476 | BN101: 6.961860202 | BR101: 92.49321761 | BT101: 5.557322159 | BU101: 5.969461756 | BV101: 9.745132474 | BW101: 10.09561537 | BX101: =Table1[[#This Row],[SF]]/Table1[[#This Row],[CF]] -> 0.4841828365 | BY101: =Table1[[#This Row],[MSF]]/Table1[[#This Row],[CF]] -> 0.18732695 | BZ101: =Table1[[#This Row],[BSF]]/Table1[[#This Row],[CF]] -> 0.3284902136 | CA101: =Table1[[#This Row],[SA]]/Table1[[#This Row],[CA]] -> 0.4533152434 | CB101: =Table1[[#This Row],[MSA]]/Table1[[#This Row],[CA]] -> 0.2031371355 | CC101: =Table1[[#This Row],[BSA]]/Table1[[#This Row],[CA]] -> 0.3435476214
A102: 5v5 | B102: ScAdj | C102: WSH | D102: 20142015 | E102: 20286 | F102: 2014-11-20 | G102: COL | J102: 2 | K102: 34 | L102: 33 | O102: 45.55487993 | P102: 40.88172405 | Q102: 30.9858583 | R102: 32.04917832 | S102: 21.52789961 | T102: 24.87464141 | U102: 2 | V102: 2 | W102: 21.33974801 | X102: 18.70592313 | Y102: 8.298228445 | Z102: 6.821126067 | AD102: 54.43333333 | AF102: 52.70322738 | AG102: 50.21358474 | AH102: 45.06252498 | AK102: 49.15656428 | AL102: 34.15465091 | AM102: 35.32671218 | AP102: 46.39379468 | AQ102: 23.7294668 | AR102: 27.41846574 | AT102: 50 | AU102: 2.204531537 | AV102: 2.204531537 | AX102: 53.28852633 | AY102: 23.52207374 | AZ102: 20.61889874 | BC102: 54.88480635 | BD102: 9.146853154 | BE102: 7.518693767 | BH102: 66.66666667 | BI102: 101.2499531 | BJ102: 53.84615385 | BK102: 132.2718922 | BN102: 9.290270006 | BR102: 91.95968309 | BT102: 9.457958691 | BU102: 7.174536909 | BV102: 14.56902164 | BW102: 8.832545728 | BX102: =Table1[[#This Row],[SF]]/Table1[[#This Row],[CF]] -> 0.4725706586 | BY102: =Table1[[#This Row],[MSF]]/Table1[[#This Row],[CF]] -> 0.2076168065 | BZ102: =Table1[[#This Row],[BSF]]/Table1[[#This Row],[CF]] -> 0.3198125352 | CA102: =Table1[[#This Row],[SA]]/Table1[[#This Row],[CA]] -> 0.608453826 | CB102: =Table1[[#This Row],[MSA]]/Table1[[#This Row],[CA]] -> 0.1754949693 | CC102: =Table1[[#This Row],[BSA]]/Table1[[#This Row],[CA]] -> 0.2160512046
A103: 5v5 | B103: ScAdj | C103: WSH | D103: 20142015 | E103: 20301 | F103: 2014-11-22 | G103: BUF | J103: -2 | K103: 29 | L103: 30 | O103: 58.06393819 | P103: 38.37706834 | Q103: 43.75130352 | R103: 25.98914445 | S103: 34.87964015 | T103: 21.96813138 | U103: 0 | V103: 2 | W103: 32.70877976 | X103: 24.52070761 | Y103: 10.75489404 | Z103: 16.63501568 | AD103: 56.03333333 | AF103: 60.20669037 | AG103: 62.1743538 | AH103: 41.0938269 | AK103: 62.73447446 | AL103: 46.84851062 | AM103: 27.82894707 | AP103: 61.35621364 | AQ103: 37.34881159 | AR103: 23.52328167 | AT103: 0 | AU103: 0 | AV103: 2.141582391 | AX103: 57.15371789 | AY103: 35.02427339 | AZ103: 26.25655782 | BC103: 39.2658981 | BD103: 11.51624585 | BE103: 17.81262833 | BH103: 60.97560976 | BI103: 90.89590295 | BJ103: 58.92857143 | BK103: -128.4949435 | BN103: 0 | BR103: 90.89590295 | BT103: 8.871663372 | BU103: 4.021013075 | BV103: 14.31263467 | BW103: 12.38792389 | BX103: =Table1[[#This Row],[SF]]/Table1[[#This Row],[CF]] -> 0.6007108928 | BY103: =Table1[[#This Row],[MSF]]/Table1[[#This Row],[CF]] -> 0.1527912789 | BZ103: =Table1[[#This Row],[BSF]]/Table1[[#This Row],[CF]] -> 0.2464978284 | CA103: =Table1[[#This Row],[SA]]/Table1[[#This Row],[CA]] -> 0.5724285968 | CB103: =Table1[[#This Row],[MSA]]/Table1[[#This Row],[CA]] -> 0.1047764524 | CC103: =Table1[[#This Row],[BSA]]/Table1[[#This Row],[CA]] -> 0.3227949509
A104: 5v5 | B104: ScAdj | C104: WSH | D104: 20142015 | E104: 20324 | F104: 2014-11-26 | G104: NYI | J104: 1 | K104: 27 | L104: 53 | O104: 37.28288985 | P104: 55.23300784 | Q104: 31.73112229 | R104: 39.94070464 | S104: 21.68812471 | T104: 26.06788701 | U104: 0 | V104: 1 | W104: 15.54820066 | X104: 21.12663197 | Y104: 4.592285901 | Z104: 5.396123536 | AD104: 53.31666667 | AF104: 40.29890082 | AG104: 41.95636244 | AH104: 62.15655775 | AK104: 44.27279679 | AL104: 35.70867154 | AM104: 44.94733877 | AP104: 45.4144388 | AQ104: 24.40676742 | AR104: 29.33554024 | AT104: 0 | AU104: 0 | AV104: 1.125351672 | AX104: 42.39474196 | AY104: 17.49719361 | AZ104: 23.77489062 | BC104: 45.97614796 | BD104: 5.167936619 | BE104: 6.072536645 | BH104: 63.33333333 | BI104: 96.16386246 | BJ104: 50.98039216 | BK104: 67.52110034 | BN104: 0 | BR104: 96.16386246 | BT104: 10.04299758 | BU104: 13.87281764 | BV104: 5.551767556 | BW104: 15.2923032 | BX104: =Table1[[#This Row],[SF]]/Table1[[#This Row],[CF]] -> 0.5817179086 | BY104: =Table1[[#This Row],[MSF]]/Table1[[#This Row],[CF]] -> 0.2693728308 | BZ104: =Table1[[#This Row],[BSF]]/Table1[[#This Row],[CF]] -> 0.1489092605 | CA104: =Table1[[#This Row],[SA]]/Table1[[#This Row],[CA]] -> 0.4719621116 | CB104: =Table1[[#This Row],[MSA]]/Table1[[#This Row],[CA]] -> 0.2511689691 | CC104: =Table1[[#This Row],[BSA]]/Table1[[#This Row],[CA]] -> 0.2768689195
A105: 5v5 | B105: ScAdj | C105: WSH | D105: 20142015 | E105: 20335 | F105: 2014-11-28 | G105: NYI | J105: 1 | K105: 31 | L105: 24 | O105: 60.829564 | P105: 49.57790747 | Q105: 36.82312901 | R105: 37.3204466 | S105: 22.27819102 | T105: 24.14245617 | U105: 3 | V105: 2 | W105: 25.61655316 | X105: 19.05610849 | Y105: 6.537668363 | Z105: 8.841770899 | AD105: 53.64166667 | AF105: 55.09551409 | AG105: 68.03990381 | AH105: 55.45454929 | AK105: 49.66462529 | AL105: 41.18790257 | AM105: 41.74416895 | AP105: 47.99198712 | AQ105: 24.91890249 | AR105: 27.00414547 | AT105: 60 | AU105: 3.355600435 | AV105: 2.237066957 | AX105: 57.34279582 | AY105: 28.65297231 | AZ105: 21.31489532 | BC105: 42.50914647 | BD105: 7.312600934 | BE105: 9.889816759 | BH105: 40 | BI105: 105.1819231 | BJ105: 62 | BK105: 67.1120087 | BN105: 13.46608437 | BR105: 91.71583874 | BT105: 14.54493798 | BU105: 13.17799044 | BV105: 24.006435 | BW105: 12.25746087 | BX105: =Table1[[#This Row],[SF]]/Table1[[#This Row],[CF]] -> 0.3662395315 | BY105: =Table1[[#This Row],[MSF]]/Table1[[#This Row],[CF]] -> 0.2391096865 | BZ105: =Table1[[#This Row],[BSF]]/Table1[[#This Row],[CF]] -> 0.394650782 | CA105: =Table1[[#This Row],[SA]]/Table1[[#This Row],[CA]] -> 0.4869599667 | CB105: =Table1[[#This Row],[MSA]]/Table1[[#This Row],[CA]] -> 0.2658036838 | CC105: =Table1[[#This Row],[BSA]]/Table1[[#This Row],[CA]] -> 0.2472363497
A106: 5v5 | B106: ScAdj | C106: WSH | D106: 20142015 | E106: 20344 | F106: 2014-11-29 | G106: TOR | J106: 1 | K106: 33 | L106: 32 | O106: 46.69217123 | P106: 43.99155325 | Q106: 38.84580871 | R106: 30.90374406 | S106: 26.80134561 | T106: 18.6506174 | U106: 1 | V106: 3 | W106: 26.97260897 | X106: 17.70835943 | Y106: 8.376639827 | Z106: 9.028080895 | AD106: 47.65833333 | AF106: 51.48903124 | AG106: 58.78363924 | AH106: 55.38366558 | AK106: 55.69327281 | AL106: 48.90537204 | AM106: 38.90661956 | AP106: 58.96631043 | AQ106: 33.74185843 | AR106: 23.48040659 | AT106: 25 | AU106: 1.258961357 | AV106: 3.776884071 | AX106: 60.36710916 | AY106: 33.95747239 | AZ106: 22.29414022 | BC106: 48.12855064 | BD106: 10.54586584 | BE106: 11.36600497 | BH106: 57.69230769 | BI106: 87.64589756 | BJ106: 50 | BK106: 75.53768141 | BN106: 3.731155945 | BR106: 83.91474161 | BT106: 12.0444631 | BU106: 12.25312666 | BV106: 7.846362516 | BW106: 13.08780919 | BX106: =Table1[[#This Row],[SF]]/Table1[[#This Row],[CF]] -> 0.5740008422 | BY106: =Table1[[#This Row],[MSF]]/Table1[[#This Row],[CF]] -> 0.2579546588 | BZ106: =Table1[[#This Row],[BSF]]/Table1[[#This Row],[CF]] -> 0.1680444989 | CA106: =Table1[[#This Row],[SA]]/Table1[[#This Row],[CA]] -> 0.4239590563 | CB106: =Table1[[#This Row],[MSA]]/Table1[[#This Row],[CA]] -> 0.2785336219 | CC106: =Table1[[#This Row],[BSA]]/Table1[[#This Row],[CA]] -> 0.2975073218
A107: 5v5 | B107: ScAdj | C107: WSH | D107: 20142015 | E107: 20365 | F107: 2014-12-02 | G107: VAN | J107: -4 | K107: 27 | L107: 17 | O107: 47.72812009 | P107: 45.88870493 | Q107: 30.77896884 | R107: 35.09425898 | S107: 17.44627095 | T107: 26.07501842 | U107: 2 | V107: 1 | W107: 22.36608093 | X107: 20.77184887 | Y107: 7.475988316 | Z107: 9.401187548 | AD107: 49.56666667 | AF107: 50.98241697 | AG107: 57.77445606 | AH107: 55.54786071 | AK107: 46.72454935 | AL107: 37.25766235 | AM107: 42.48128189 | AP107: 40.08675111 | AQ107: 21.1185526 | AR107: 31.56357307 | AT107: 66.66666667 | AU107: 2.420981843 | AV107: 1.210490921 | AX107: 51.84783098 | AY107: 27.07393792 | AZ107: 25.14413448 | BC107: 44.2964414 | BD107: 9.049615985 | BE107: 11.38005218 | BH107: 51.42857143 | BI107: 107.6286795 | BJ107: 56.8627451 | BK107: -290.5178211 | BN107: 11.46376785 | BR107: 96.16491163 | BT107: 13.33269789 | BU107: 9.019240559 | BV107: 16.94915125 | BW107: 10.79444595 | BX107: =Table1[[#This Row],[SF]]/Table1[[#This Row],[CF]] -> 0.3655344253 | BY107: =Table1[[#This Row],[MSF]]/Table1[[#This Row],[CF]] -> 0.2793468057 | BZ107: =Table1[[#This Row],[BSF]]/Table1[[#This Row],[CF]] -> 0.3551187689 | CA107: =Table1[[#This Row],[SA]]/Table1[[#This Row],[CA]] -> 0.5682230183 | CB107: =Table1[[#This Row],[MSA]]/Table1[[#This Row],[CA]] -> 0.1965459817 | CC107: =Table1[[#This Row],[BSA]]/Table1[[#This Row],[CA]] -> 0.235231
A108: 5v5 | B108: ScAdj | C108: WSH | D108: 20142015 | E108: 20377 | F108: 2014-12-04 | G108: CAR | J108: 3 | K108: 31 | L108: 31 | O108: 56.29250325 | P108: 45.98348174 | Q108: 34.58842166 | R108: 29.54673083 | S108: 26.55482481 | T108: 24.02196075 | U108: 2 | V108: 1 | W108: 25.53017274 | X108: 21.11235475 | Y108: 11.20606187 | Z108: 5.543294578 | AD108: 51.11666667 | AF108: 55.03980554 | AG108: 66.07532171 | AH108: 53.97474218 | AK108: 53.93052065 | AL108: 40.59938636 | AM108: 34.68152298 | AP108: 52.50397888 | AQ108: 31.1696672 | AR108: 28.1966282 | AT108: 66.66666667 | AU108: 2.347570916 | AV108: 1.173785458 | AX108: 54.73582612 | AY108: 29.96694551 | AZ108: 24.78137499 | BC108: 66.90443245 | BD108: 13.15351247 | BE108: 6.506638566 | BH108: 47.05882353 | BI108: 103.3687305 | BJ108: 50 | BK108: 211.2813825 | BN108: 7.531588005 | BR108: 95.83714248 | BT108: 8.033596846 | BU108: 5.524770078 | BV108: 21.70408159 | BW108: 16.43675091 | BX108: =Table1[[#This Row],[SF]]/Table1[[#This Row],[CF]] -> 0.4717293294 | BY108: =Table1[[#This Row],[MSF]]/Table1[[#This Row],[CF]] -> 0.1427116646 | BZ108: =Table1[[#This Row],[BSF]]/Table1[[#This Row],[CF]] -> 0.3855590059 | CA108: =Table1[[#This Row],[SA]]/Table1[[#This Row],[CA]] -> 0.5224041295 | CB108: =Table1[[#This Row],[MSA]]/Table1[[#This Row],[CA]] -> 0.1201468412 | CC108: =Table1[[#This Row],[BSA]]/Table1[[#This Row],[CA]] -> 0.3574490293
A109: 5v5 | B109: ScAdj | C109: WSH | D109: 20142015 | E109: 20396 | F109: 2014-12-06 | G109: N.J | J109: 2 | K109: 9 | L109: 16 | O109: 36.9286422 | P109: 56.76102402 | Q109: 34.23248083 | R109: 39.62860586 | S109: 24.21362675 | T109: 25.15661084 | U109: 2 | V109: 1 | W109: 17.02712973 | X109: 29.81243865 | Y109: 11.79518475 | Z109: 14.57806616 | AD109: 46.80833333 | AF109: 39.4159182 | AG109: 47.33598431 | AH109: 72.7575882 | AK109: 46.34711235 | AL109: 43.87998255 | AM109: 50.79685993 | AP109: 49.04498729 | AQ109: 31.03758459 | AR109: 32.24632331 | AT109: 66.66666667 | AU109: 2.563646074 | AV109: 1.281823037 | AX109: 36.35202099 | AY109: 21.82576714 | AZ109: 38.21427065 | BC109: 44.72404556 | BD109: 15.11933954 | BE109: 18.68650104 | BH109: 35.48387097 | BI109: 104.2847135 | BJ109: 45.45454545 | BK109: 153.8187645 | BN109: 8.259811801 | BR109: 96.02490174 | BT109: 10.01885408 | BU109: 14.47199502 | BV109: 2.696161368 | BW109: 17.13241815 | BX109: =Table1[[#This Row],[SF]]/Table1[[#This Row],[CF]] -> 0.6556868953 | BY109: =Table1[[#This Row],[MSF]]/Table1[[#This Row],[CF]] -> 0.2713030722 | BZ109: =Table1[[#This Row],[BSF]]/Table1[[#This Row],[CF]] -> 0.07301003252 | CA109: =Table1[[#This Row],[SA]]/Table1[[#This Row],[CA]] -> 0.4432022021 | CB109: =Table1[[#This Row],[MSA]]/Table1[[#This Row],[CA]] -> 0.2549635999 | CC109: =Table1[[#This Row],[BSA]]/Table1[[#This Row],[CA]] -> 0.3018341978
A110: 5v5 | B110: ScAdj | C110: WSH | D110: 20142015 | E110: 20414 | F110: 2014-12-09 | G110: T.B | J110: -2 | K110: 18 | L110: 23 | O110: 56.21890088 | P110: 43.45462003 | Q110: 42.95774929 | R110: 36.09053445 | S110: 31.41237914 | T110: 26.87496724 | U110: 3 | V110: 2 | W110: 35.35522411 | X110: 21.06516057 | Y110: 21.93328753 | Z110: 9.312412966 | AD110: 49.28333333 | AF110: 56.40304502 | AG110: 68.44370753 | AH110: 52.90383231 | AK110: 54.3436837 | AL110: 52.29891695 | AM110: 43.93842544 | AP110: 53.89227867 | AQ110: 38.24300471 | AR110: 32.71893205 | AT110: 60 | AU110: 3.652350355 | AV110: 2.434900237 | AX110: 62.66391892 | AY110: 43.04322178 | AZ110: 25.64578222 | BC110: 70.19617797 | BD110: 26.7026835 | BE110: 11.33739827 | BH110: 57.14285714 | BI110: 102.1085054 | BJ110: 57.89473684 | BK110: -146.0940142 | BN110: 9.550374985 | BR110: 92.55813046 | BT110: 11.54537014 | BU110: 9.215567211 | BV110: 13.26115159 | BW110: 7.364085584 | BX110: =Table1[[#This Row],[SF]]/Table1[[#This Row],[CF]] -> 0.5587512144 | BY110: =Table1[[#This Row],[MSF]]/Table1[[#This Row],[CF]] -> 0.2053645653 | BZ110: =Table1[[#This Row],[BSF]]/Table1[[#This Row],[CF]] -> 0.2358842201 | CA110: =Table1[[#This Row],[SA]]/Table1[[#This Row],[CA]] -> 0.6184605278 | CB110: =Table1[[#This Row],[MSA]]/Table1[[#This Row],[CA]] -> 0.2120733585 | CC110: =Table1[[#This Row],[BSA]]/Table1[[#This Row],[CA]] -> 0.1694661138
A111: 5v5 | B111: ScAdj | C111: WSH | D111: 20142015 | E111: 20424 | F111: 2014-12-11 | G111: CBJ | J111: 3 | K111: 11 | L111: 28 | O111: 37.5234078 | P111: 33.64448374 | Q111: 27.78062872 | R111: 27.1792626 | S111: 18.34468035 | T111: 18.23067475 | U111: 1 | V111: 2 | W111: 25.71149487 | X111: 23.01730817 | Y111: 8.639979314 | Z111: 8.273807142 | AD111: 43.425 | AF111: 52.72519249 | AG111: 51.84581389 | AH111: 46.48633331 | AK111: 50.54709544 | AL111: 38.38428838 | AM111: 37.55338529 | AP111: 50.1558503 | AQ111: 25.3467086 | AR111: 25.18918791 | AT111: 33.33333333 | AU111: 1.381692573 | AV111: 2.763385147 | AX111: 52.76447043 | AY111: 35.52538152 | AZ111: 31.80284376 | BC111: 51.08246658 | BD111: 11.93779525 | BE111: 11.43185788 | BH111: 38.46153846 | BI111: 94.48065058 | BJ111: 57.5 | BK111: 248.7046632 | BN111: 5.45117157 | BR111: 89.02947901 | BT111: 9.435948364 | BU111: 8.948587848 | BV111: 9.742779085 | BW111: 6.465221135 | BX111: =Table1[[#This Row],[SF]]/Table1[[#This Row],[CF]] -> 0.4888863093 | BY111: =Table1[[#This Row],[MSF]]/Table1[[#This Row],[CF]] -> 0.2514683212 | BZ111: =Table1[[#This Row],[BSF]]/Table1[[#This Row],[CF]] -> 0.2596453695 | CA111: =Table1[[#This Row],[SA]]/Table1[[#This Row],[CA]] -> 0.541862223 | CB111: =Table1[[#This Row],[MSA]]/Table1[[#This Row],[CA]] -> 0.2659748896 | CC111: =Table1[[#This Row],[BSA]]/Table1[[#This Row],[CA]] -> 0.1921628872
A112: 5v5 | B112: ScAdj | C112: WSH | D112: 20142015 | E112: 20440 | F112: 2014-12-13 | G112: T.B | J112: -1 | K112: 25 | L112: 19 | O112: 30.05709266 | P112: 43.08069268 | Q112: 21.25132866 | R112: 32.54327689 | S112: 17.33021768 | T112: 20.00557204 | U112: 3 | V112: 2 | W112: 16.64162485 | X112: 16.29899207 | Y112: 5.947823687 | Z112: 10.72416316 | AD112: 44.59166667 | AF112: 41.09653105 | AG112: 40.4431073 | AH112: 57.9669197 | AK112: 39.50457196 | AL112: 28.59457416 | AM112: 43.7883748 | AP112: 46.41717185 | AQ112: 23.31855116 | AR112: 26.9183552 | AT112: 60 | AU112: 4.036628668 | AV112: 2.691085778 | AX112: 50.52007646 | AY112: 22.39201999 | AZ112: 21.93099288 | BC112: 35.6755541 | BD112: 8.003051869 | BE112: 14.42982149 | BH112: 42.85714286 | BI112: 107.3135892 | BJ112: 57.14285714 | BK112: -80.73257335 | BN112: 17.31080392 | BR112: 90.00278524 | BT112: 3.921110983 | BU112: 12.53770484 | BV112: 8.805764004 | BW112: 10.5374158 | BX112: =Table1[[#This Row],[SF]]/Table1[[#This Row],[CF]] -> 0.5765766462 | BY112: =Table1[[#This Row],[MSF]]/Table1[[#This Row],[CF]] -> 0.1304554312 | BZ112: =Table1[[#This Row],[BSF]]/Table1[[#This Row],[CF]] -> 0.2929679229 | CA112: =Table1[[#This Row],[SA]]/Table1[[#This Row],[CA]] -> 0.4643744284 | CB112: =Table1[[#This Row],[MSA]]/Table1[[#This Row],[CA]] -> 0.2910283949 | CC112: =Table1[[#This Row],[BSA]]/Table1[[#This Row],[CA]] -> 0.2445971767
A113: 5v5 | B113: ScAdj | C113: WSH | D113: 20142015 | E113: 20457 | F113: 2014-12-16 | G113: FLA | J113: 0 | K113: 45 | L113: 46 | O113: 42.67957505 | P113: 43.36354941 | Q113: 28.78932371 | R113: 36.03955993 | S113: 18.90575932 | T113: 23.53608434 | U113: 0 | V113: 1 | W113: 13.2644008 | X113: 11.53886879 | Y113: 3.512675478 | Z113: 3.305408083 | AD113: 53.60833333 | AF113: 49.6025398 | AG113: 47.76821706 | AH113: 48.53374098 | AK113: 44.4081744 | AL113: 32.22184528 | AM113: 40.33651975 | AP113: 44.5450944 | AQ113: 21.15987364 | AR113: 26.34226756 | AT113: 0 | AU113: 0 | AV113: 1.119228976 | AX113: 53.47843659 | AY113: 14.84590172 | AZ113: 12.91463629 | BC113: 51.5199828 | BD113: 3.931488176 | BE113: 3.699508503 | BH113: 53.57142857 | BI113: 95.75120489 | BJ113: 43.47826087 | BK113: 0 | BN113: 0 | BR113: 95.75120489 | BT113: 9.883564391 | BU113: 12.5034756 | BV113: 13.89025134 | BW113: 7.323989474 | BX113: =Table1[[#This Row],[SF]]/Table1[[#This Row],[CF]] -> 0.4429697179 | BY113: =Table1[[#This Row],[MSF]]/Table1[[#This Row],[CF]] -> 0.2315759794 | BZ113: =Table1[[#This Row],[BSF]]/Table1[[#This Row],[CF]] -> 0.3254543028 | CA113: =Table1[[#This Row],[SA]]/Table1[[#This Row],[CA]] -> 0.5427619432 | CB113: =Table1[[#This Row],[MSA]]/Table1[[#This Row],[CA]] -> 0.2883406864 | CC113: =Table1[[#This Row],[BSA]]/Table1[[#This Row],[CA]] -> 0.1688973706
A114: 5v5 | B114: ScAdj | C114: WSH | D114: 20142015 | E114: 20470 | F114: 2014-12-18 | G114: CBJ | J114: -2 | K114: 34 | L114: 31 | O114: 45.58650437 | P114: 29.03649883 | Q114: 34.69241185 | R114: 25.98412877 | S114: 25.90453493 | T114: 18.55348386 | U114: 4 | V114: 2 | W114: 15.56565114 | X114: 9.826611282 | Y114: 9.411051127 | Z114: 5.1102233 | AD114: 45.875 | AF114: 61.08907765 | AG114: 59.62267601 | AH114: 37.9768922 | AK114: 57.17598844 | AL114: 45.37427163 | AM114: 33.98469158 | AP114: 58.2674074 | AQ114: 33.88059065 | AR114: 24.26613693 | AT114: 66.66666667 | AU114: 5.231607629 | AV114: 2.615803815 | AX114: 61.30076509 | AY114: 20.35834481 | AZ114: 12.85224364 | BC114: 64.80871341 | BD114: 12.30873172 | BE114: 6.683670801 | BH114: 45 | BI114: 104.6616651 | BJ114: 40.90909091 | BK114: -156.9482289 | BN114: 15.44131176 | BR114: 89.22035336 | BT114: 8.787876921 | BU114: 7.43064491 | BV114: 10.89409251 | BW114: 3.052370059 | BX114: =Table1[[#This Row],[SF]]/Table1[[#This Row],[CF]] -> 0.5682500838 | BY114: =Table1[[#This Row],[MSF]]/Table1[[#This Row],[CF]] -> 0.1927736518 | BZ114: =Table1[[#This Row],[BSF]]/Table1[[#This Row],[CF]] -> 0.2389762641 | CA114: =Table1[[#This Row],[SA]]/Table1[[#This Row],[CA]] -> 0.638971109 | CB114: =Table1[[#This Row],[MSA]]/Table1[[#This Row],[CA]] -> 0.2559070552 | CC114: =Table1[[#This Row],[BSA]]/Table1[[#This Row],[CA]] -> 0.1051218357
A115: 5v5 | B115: ScAdj | C115: WSH | D115: 20142015 | E115: 20483 | F115: 2014-12-20 | G115: N.J | J115: 0 | K115: 11 | L115: 10 | O115: 27.41351296 | P115: 28.16821838 | Q115: 21.0990668 | R115: 24.48051981 | S115: 14.30667179 | T115: 14.95291163 | U115: 3 | V115: 0 | W115: 10.99783024 | X115: 10.91905871 | Y115: 4.210335772 | Z115: 7.176501498 | AD115: 47.54166667 | AF115: 49.321085 | AG115: 34.59724686 | AH115: 35.54972346 | AK115: 46.29060588 | AL115: 26.62809482 | AM115: 30.89566041 | AP115: 48.89567833 | AQ115: 18.05574704 | AR115: 18.87133458 | AT115: 100 | AU115: 3.786152498 | AV115: 0 | AX115: 50.1797051 | AY115: 13.87982081 | AZ115: 13.78040713 | BC115: 36.97546274 | BD115: 5.313657767 | BE115: 9.05710969 | BH115: 50 | BI115: 120.9692376 | BJ115: 48.71794872 | BK115: 0 | BN115: 20.9692376 | BR115: 100 | BT115: 6.792395008 | BU115: 9.527608176 | BV115: 6.314446163 | BW115: 3.687698574 | BX115: =Table1[[#This Row],[SF]]/Table1[[#This Row],[CF]] -> 0.5218839268 | BY115: =Table1[[#This Row],[MSF]]/Table1[[#This Row],[CF]] -> 0.2477754317 | BZ115: =Table1[[#This Row],[BSF]]/Table1[[#This Row],[CF]] -> 0.2303406416 | CA115: =Table1[[#This Row],[SA]]/Table1[[#This Row],[CA]] -> 0.5308433579 | CB115: =Table1[[#This Row],[MSA]]/Table1[[#This Row],[CA]] -> 0.3382396447 | CC115: =Table1[[#This Row],[BSA]]/Table1[[#This Row],[CA]] -> 0.1309169975
A116: 5v5 | B116: ScAdj | C116: WSH | D116: 20142015 | E116: 20497 | F116: 2014-12-22 | G116: OTT | J116: -1 | K116: 33 | L116: 23 | O116: 42.58986968 | P116: 40.20646822 | Q116: 28.42399365 | R116: 29.53768885 | S116: 18.1761233 | T116: 22.08849717 | U116: 1 | V116: 1 | W116: 23.66837741 | X116: 18.88639475 | Y116: 9.466873079 | Z116: 5.809951811 | AD116: 46.00833333 | AF116: 51.43931574 | AG116: 55.54194198 | AH116: 52.43372056 | AK116: 49.03928324 | AL116: 37.0680591 | AM116: 38.5204419 | AP116: 45.14167298 | AQ116: 23.70369276 | AR116: 28.80586481 | AT116: 50 | AU116: 1.304111574 | AV116: 1.304111574 | AX116: 55.61862092 | AY116: 30.86620491 | AZ116: 24.62996598 | BC116: 61.96885247 | BD116: 12.34585875 | BE116: 7.576825402 | BH116: 55.17241379 | BI116: 100.97448 | BJ116: 56.41025641 | BK116: -78.24669444 | BN116: 5.501723243 | BR116: 95.47275674 | BT116: 10.24787036 | BU116: 7.449191682 | BV116: 14.16587602 | BW116: 10.66877937 | BX116: =Table1[[#This Row],[SF]]/Table1[[#This Row],[CF]] -> 0.4267710476 | BY116: =Table1[[#This Row],[MSF]]/Table1[[#This Row],[CF]] -> 0.2406175562 | BZ116: =Table1[[#This Row],[BSF]]/Table1[[#This Row],[CF]] -> 0.3326113962 | CA116: =Table1[[#This Row],[SA]]/Table1[[#This Row],[CA]] -> 0.5493767085 | CB116: =Table1[[#This Row],[MSA]]/Table1[[#This Row],[CA]] -> 0.185273465 | CC116: =Table1[[#This Row],[BSA]]/Table1[[#This Row],[CA]] -> 0.2653498266
A117: 5v5 | B117: ScAdj | C117: WSH | D117: 20142015 | E117: 20506 | F117: 2014-12-23 | G117: NYR | J117: -3 | K117: 26 | L117: 20 | O117: 38.18634967 | P117: 24.17266122 | Q117: 27.90837949 | R117: 17.25211124 | S117: 19.55715571 | T117: 14.11909419 | U117: 1 | V117: 2 | W117: 15.96729944 | X117: 6.093639819 | Y117: 7.904664721 | Z117: 4 | AD117: 41.48333333 | AF117: 61.23629789 | AG117: 55.23136151 | AH117: 34.96246701 | AK117: 61.79822017 | AL117: 40.36567544 | AM117: 24.95283264 | AP117: 58.07403071 | AQ117: 28.286766 | AR117: 20.42134958 | AT117: 33.33333333 | AU117: 1.446364002 | AV117: 2.892728003 | AX117: 72.37814879 | AY117: 23.09452712 | AZ117: 8.813621273 | BC117: 66.39972571 | BD117: 11.4330225 | BE117: 5.785456006 | BH117: 54.16666667 | BI117: 90.94800331 | BJ117: 46.51162791 | BK117: -260.3455203 | BN117: 5.113217968 | BR117: 85.83478534 | BT117: 8.351223777 | BU117: 3.133017043 | BV117: 10.27797018 | BW117: 6.920549984 | BX117: =Table1[[#This Row],[SF]]/Table1[[#This Row],[CF]] -> 0.512150438 | BY117: =Table1[[#This Row],[MSF]]/Table1[[#This Row],[CF]] -> 0.2186965722 | BZ117: =Table1[[#This Row],[BSF]]/Table1[[#This Row],[CF]] -> 0.2691529897 | CA117: =Table1[[#This Row],[SA]]/Table1[[#This Row],[CA]] -> 0.5840934956 | CB117: =Table1[[#This Row],[MSA]]/Table1[[#This Row],[CA]] -> 0.1296099347 | CC117: =Table1[[#This Row],[BSA]]/Table1[[#This Row],[CA]] -> 0.2862965695
A118: 5v5 | B118: ScAdj | C118: WSH | D118: 20142015 | E118: 20518 | F118: 2014-12-27 | G118: PIT | J118: 2 | K118: 26 | L118: 38 | O118: 47.86166302 | P118: 31.75613786 | Q118: 37.51925448 | R118: 25.11459976 | S118: 26.11984849 | T118: 14.92350077 | U118: 3 | V118: 0 | W118: 27.5569758 | X118: 11.28659149 | Y118: 13.62312222 | Z118: 0.988054502 | AD118: 42.63333333 | AF118: 60.11427406 | AG118: 67.35808712 | AH118: 44.69198447 | AK118: 59.90251588 | AL118: 52.80270373 | AM118: 35.34501921 | AP118: 63.63966138 | AQ118: 36.75975549 | AR118: 21.00258122 | AT118: 100 | AU118: 4.222048475 | AV118: 0 | AX118: 70.94347333 | AY118: 38.78229588 | AZ118: 15.88417879 | BC118: 93.23768016 | BD118: 19.17249414 | BE118: 1.390538002 | BH118: 38.70967742 | BI118: 111.4855184 | BJ118: 59.09090909 | BK118: 168.881939 | BN118: 11.48551838 | BR118: 100 | BT118: 11.39940599 | BU118: 10.19109899 | BV118: 10.34240854 | BW118: 6.641538096 | BX118: =Table1[[#This Row],[SF]]/Table1[[#This Row],[CF]] -> 0.5457363335 | BY118: =Table1[[#This Row],[MSF]]/Table1[[#This Row],[CF]] -> 0.2381740473 | BZ118: =Table1[[#This Row],[BSF]]/Table1[[#This Row],[CF]] -> 0.2160896193 | CA118: =Table1[[#This Row],[SA]]/Table1[[#This Row],[CA]] -> 0.4699406721 | CB118: =Table1[[#This Row],[MSA]]/Table1[[#This Row],[CA]] -> 0.3209174565 | CC118: =Table1[[#This Row],[BSA]]/Table1[[#This Row],[CA]] -> 0.2091418713
A119: 5v5 | B119: ScAdj | C119: WSH | D119: 20142015 | E119: 20531 | F119: 2014-12-29 | G119: NYI | J119: -2 | K119: 37 | L119: 41 | O119: 36.78814618 | P119: 49.11962585 | Q119: 23.96126375 | R119: 39.66381124 | S119: 18.2931018 | T119: 20.69145826 | U119: 3 | V119: 1 | W119: 25.93242616 | X119: 26.70270793 | Y119: 10.24314323 | Z119: 18.03018338 | AD119: 43.3 | AF119: 42.82283816 | AG119: 50.97664598 | AH119: 68.06414668 | AK119: 37.6600951 | AL119: 33.20267494 | AM119: 54.96140126 | AP119: 46.92396624 | AQ119: 25.34840897 | AR119: 28.67176664 | AT119: 75 | AU119: 4.15704388 | AV119: 1.385681293 | AX119: 49.26828175 | AY119: 35.93407782 | AZ119: 37.00144286 | BC119: 36.22899906 | BD119: 14.19373196 | BE119: 24.98408782 | BH119: 54.16666667 | BI119: 111.5667123 | BJ119: 54.05405405 | BK119: -166.2817552 | BN119: 16.39962447 | BR119: 95.16708785 | BT119: 5.668161944 | BU119: 18.97235298 | BV119: 12.82688243 | BW119: 9.455814611 | BX119: =Table1[[#This Row],[SF]]/Table1[[#This Row],[CF]] -> 0.4972553308 | BY119: =Table1[[#This Row],[MSF]]/Table1[[#This Row],[CF]] -> 0.1540757698 | BZ119: =Table1[[#This Row],[BSF]]/Table1[[#This Row],[CF]] -> 0.3486688991 | CA119: =Table1[[#This Row],[SA]]/Table1[[#This Row],[CA]] -> 0.4212462514 | CB119: =Table1[[#This Row],[MSA]]/Table1[[#This Row],[CA]] -> 0.3862479132 | CC119: =Table1[[#This Row],[BSA]]/Table1[[#This Row],[CA]] -> 0.1925058354
A120: 5v5 | B120: ScAdj | C120: WSH | D120: 20142015 | E120: 20556 | F120: 2015-01-01 | G120: CHI | J120: 0 | K120: 22 | L120: 9 | O120: 41.59471007 | P120: 40.22247483 | Q120: 36.58495108 | R120: 33.65136552 | S120: 24.50830549 | T120: 24.72573716 | U120: 1 | V120: 1 | W120: 24.91393735 | X120: 20.03681836 | Y120: 9.016312462 | Z120: 5.997228274 | AD120: 45.36666667 | AF120: 50.83859842 | AG120: 55.01137261 | AH120: 53.19651337 | AK120: 52.08836803 | AL120: 48.38568107 | AM120: 44.50584712 | AP120: 49.77918564 | AQ120: 32.4136296 | AR120: 32.70119537 | AT120: 50 | AU120: 1.322556943 | AV120: 1.322556943 | AX120: 55.42495772 | AY120: 32.95010083 | AZ120: 26.49983325 | BC120: 60.05453757 | BD120: 11.92458665 | BE120: 7.931675894 | BH120: 50 | BI120: 100.0358806 | BJ120: 45.28301887 | BK120: 0 | BN120: 4.080249449 | BR120: 95.9556312 | BT120: 12.07664558 | BU120: 8.925628354 | BV120: 5.009758986 | BW120: 6.57110931 | BX120: =Table1[[#This Row],[SF]]/Table1[[#This Row],[CF]] -> 0.5892168848 | BY120: =Table1[[#This Row],[MSF]]/Table1[[#This Row],[CF]] -> 0.2903409006 | BZ120: =Table1[[#This Row],[BSF]]/Table1[[#This Row],[CF]] -> 0.1204422143 | CA120: =Table1[[#This Row],[SA]]/Table1[[#This Row],[CA]] -> 0.6147244113 | CB120: =Table1[[#This Row],[MSA]]/Table1[[#This Row],[CA]] -> 0.2219064936 | CC120: =Table1[[#This Row],[BSA]]/Table1[[#This Row],[CA]] -> 0.163369095
A121: 5v5 | B121: ScAdj | C121: WSH | D121: 20142015 | E121: 20577 | F121: 2015-01-04 | G121: FLA | J121: -1 | K121: 22 | L121: 21 | O121: 46.32961644 | P121: 32.522195 | Q121: 31.53499092 | R121: 26.88121904 | S121: 18.33297163 | T121: 21.06965184 | U121: 3 | V121: 2 | W121: 15.86247362 | X121: 20.38071978 | Y121: 2.577510626 | Z121: 4.857904274 | AD121: 44.15 | AF121: 58.75529756 | AG121: 62.96210615 | AH121: 44.1977735 | AK121: 53.9832881 | AL121: 42.8561598 | AM121: 36.531668 | AP121: 46.52728681 | AQ121: 24.91457073 | AR121: 28.63372844 | AT121: 60 | AU121: 4.077010193 | AV121: 2.718006795 | AX121: 43.76676593 | AY121: 21.55715555 | AZ121: 27.69746742 | BC121: 34.66532347 | BD121: 3.502845698 | BE121: 6.601908413 | BH121: 50 | BI121: 106.8716334 | BJ121: 63.46153846 | BK121: -81.54020385 | BN121: 16.36395921 | BR121: 90.50767419 | BT121: 13.20201929 | BU121: 5.811567199 | BV121: 14.79462552 | BW121: 5.640975964 | BX121: =Table1[[#This Row],[SF]]/Table1[[#This Row],[CF]] -> 0.3957073906 | BY121: =Table1[[#This Row],[MSF]]/Table1[[#This Row],[CF]] -> 0.2849585277 | BZ121: =Table1[[#This Row],[BSF]]/Table1[[#This Row],[CF]] -> 0.3193340817 | CA121: =Table1[[#This Row],[SA]]/Table1[[#This Row],[CA]] -> 0.6478545449 | CB121: =Table1[[#This Row],[MSA]]/Table1[[#This Row],[CA]] -> 0.1786954171 | CC121: =Table1[[#This Row],[BSA]]/Table1[[#This Row],[CA]] -> 0.1734500382
A122: 5v5 | B122: ScAdj | C122: WSH | D122: 20142015 | E122: 20594 | F122: 2015-01-07 | G122: TOR | J122: 1 | K122: 27 | L122: 34 | O122: 42.8905236 | P122: 43.04934258 | Q122: 35.74328355 | R122: 33.66473201 | S122: 22.30667323 | T122: 27.67432369 | U122: 4 | V122: 2 | W122: 24.30031324 | X122: 26.14885951 | Y122: 5.978618315 | Z122: 11.35196698 | AD122: 48.88333333 | AF122: 49.90759877 | AG122: 52.64435218 | AH122: 52.83928854 | AK122: 51.49734258 | AL122: 43.87174251 | AM122: 41.32050298 | AP122: 44.63030872 | AQ122: 27.37948299 | AR122: 33.96780269 | AT122: 66.66666667 | AU122: 4.909648824 | AV122: 2.454824412 | AX122: 48.16791221 | AY122: 29.82650108 | AZ122: 32.09542933 | BC122: 34.49749799 | BD122: 7.338229094 | BE122: 13.93354283 | BH122: 60.71428571 | BI122: 110.7049381 | BJ122: 32.60869565 | BK122: 73.64473236 | BN122: 17.93185366 | BR122: 92.77308446 | BT122: 13.43661032 | BU122: 5.990408319 | BV122: 7.147240046 | BW122: 9.384610569 | BX122: =Table1[[#This Row],[SF]]/Table1[[#This Row],[CF]] -> 0.520083957 | BY122: =Table1[[#This Row],[MSF]]/Table1[[#This Row],[CF]] -> 0.3132769011 | BZ122: =Table1[[#This Row],[BSF]]/Table1[[#This Row],[CF]] -> 0.1666391418 | CA122: =Table1[[#This Row],[SA]]/Table1[[#This Row],[CA]] -> 0.64285125 | CB122: =Table1[[#This Row],[MSA]]/Table1[[#This Row],[CA]] -> 0.139152144 | CC122: =Table1[[#This Row],[BSA]]/Table1[[#This Row],[CA]] -> 0.2179966059
A123: 5v5 | B123: ScAdj | C123: WSH | D123: 20142015 | E123: 20599 | F123: 2015-01-08 | G123: PHI | J123: -1 | K123: 22 | L123: 34 | O123: 42.25446317 | P123: 46.16683544 | Q123: 26.43197766 | R123: 31.30643279 | S123: 19.8426411 | T123: 19.17451249 | U123: 1 | V123: 2 | W123: 20.02178692 | X123: 25.47848112 | Y123: 11.70830338 | Z123: 9.109360727 | AD123: 49.09166667 | AF123: 47.78765279 | AG123: 51.64354691 | AH123: 56.42526144 | AK123: 45.77884541 | AL123: 32.30525194 | AM123: 38.26282737 | AP123: 50.85619855 | AQ123: 24.25174265 | AR123: 23.43515362 | AT123: 33.33333333 | AU123: 1.222203361 | AV123: 2.444406722 | AX123: 44.00366807 | AY123: 24.47069527 | AZ123: 31.13988526 | BC123: 56.24215723 | BD123: 14.30992774 | BE123: 11.1334913 | BH123: 52 | BI123: 94.6091388 | BJ123: 53.33333333 | BK123: -73.33220166 | BN123: 5.039651702 | BR123: 89.5694871 | BT123: 6.589336562 | BU123: 12.13192029 | BV123: 15.82248551 | BW123: 14.86040265 | BX123: =Table1[[#This Row],[SF]]/Table1[[#This Row],[CF]] -> 0.469598703 | BY123: =Table1[[#This Row],[MSF]]/Table1[[#This Row],[CF]] -> 0.1559441552 | BZ123: =Table1[[#This Row],[BSF]]/Table1[[#This Row],[CF]] -> 0.3744571419 | CA123: =Table1[[#This Row],[SA]]/Table1[[#This Row],[CA]] -> 0.4153308822 | CB123: =Table1[[#This Row],[MSA]]/Table1[[#This Row],[CA]] -> 0.2627843164 | CC123: =Table1[[#This Row],[BSA]]/Table1[[#This Row],[CA]] -> 0.3218848013
A124: 5v5 | B124: ScAdj | C124: WSH | D124: 20142015 | E124: 20617 | F124: 2015-01-10 | G124: DET | J124: 1 | K124: 21 | L124: 22 | O124: 26.70440951 | P124: 45.24044487 | Q124: 19.00747749 | R124: 32.36434246 | S124: 12.67509013 | T124: 19.76907278 | U124: 2 | V124: 1 | W124: 17.42268688 | X124: 22.76728388 | Y124: 10.94554127 | Z124: 4.862902752 | AD124: 50.79166667 | AF124: 37.11788667 | AG124: 31.54581599 | AH124: 53.44236309 | AK124: 36.99981334 | AL124: 22.45345988 | AM124: 38.23187297 | AP124: 39.06739762 | AQ124: 14.9730351 | AR124: 23.35312945 | AT124: 66.66666667 | AU124: 2.362592289 | AV124: 1.181296144 | AX124: 43.35083243 | AY124: 20.58135283 | AZ124: 26.89490467 | BC124: 69.23857436 | BD124: 12.9299257 | BE124: 5.744528272 | BH124: 48 | BI124: 110.7205743 | BJ124: 45.23809524 | BK124: 70.87776866 | BN124: 15.7789805 | BR124: 94.94159382 | BT124: 6.332387365 | BU124: 12.59526968 | BV124: 7.696932018 | BW124: 12.87610241 | BX124: =Table1[[#This Row],[SF]]/Table1[[#This Row],[CF]] -> 0.4746440892 | BY124: =Table1[[#This Row],[MSF]]/Table1[[#This Row],[CF]] -> 0.2371289042 | BZ124: =Table1[[#This Row],[BSF]]/Table1[[#This Row],[CF]] -> 0.2882270067 | CA124: =Table1[[#This Row],[SA]]/Table1[[#This Row],[CA]] -> 0.4369778599 | CB124: =Table1[[#This Row],[MSA]]/Table1[[#This Row],[CA]] -> 0.2784072906 | CC124: =Table1[[#This Row],[BSA]]/Table1[[#This Row],[CA]] -> 0.2846148495
A125: 5v5 | B125: ScAdj | C125: WSH | D125: 20142015 | E125: 20628 | F125: 2015-01-12 | G125: COL | J125: 3 | K125: 23 | L125: 25 | O125: 62.12803963 | P125: 35.19645849 | Q125: 48.57946742 | R125: 26.22672032 | S125: 30.61321866 | T125: 18.09487049 | U125: 1 | V125: 0 | W125: 34.80503249 | X125: 12.74877017 | Y125: 11.51397891 | Z125: 5.894303075 | AD125: 46.9 | AF125: 63.83597227 | AG125: 79.4815006 | AH125: 45.02745223 | AK125: 64.94043994 | AL125: 62.1485724 | AM125: 33.55230745 | AP125: 62.85037904 | AQ125: 39.1640324 | AR125: 23.14908805 | AT125: 100 | AU125: 1.279317697 | AV125: 0 | AX125: 73.19085024 | AY125: 44.52669402 | AZ125: 16.3097273 | BC125: 66.14081114 | BD125: 14.73003699 | BE125: 7.540686237 | BH125: 50 | BI125: 103.2665628 | BJ125: 56 | BK125: 230.2771855 | BN125: 3.266562759 | BR125: 100 | BT125: 17.96624877 | BU125: 8.13184983 | BV125: 13.54857221 | BW125: 8.969738166 | BX125: =Table1[[#This Row],[SF]]/Table1[[#This Row],[CF]] -> 0.4927439984 | BY125: =Table1[[#This Row],[MSF]]/Table1[[#This Row],[CF]] -> 0.2891810023 | BZ125: =Table1[[#This Row],[BSF]]/Table1[[#This Row],[CF]] -> 0.2180749995 | CA125: =Table1[[#This Row],[SA]]/Table1[[#This Row],[CA]] -> 0.514110546 | CB125: =Table1[[#This Row],[MSA]]/Table1[[#This Row],[CA]] -> 0.2310417064 | CC125: =Table1[[#This Row],[BSA]]/Table1[[#This Row],[CA]] -> 0.2548477475
A126: 5v5 | B126: ScAdj | C126: WSH | D126: 20142015 | E126: 20641 | F126: 2015-01-14 | G126: PHI | J126: 0 | K126: 23 | L126: 22 | O126: 43.94980577 | P126: 34.70895409 | Q126: 32.79755107 | R126: 22.69334117 | S126: 23.49122411 | T126: 14.31288601 | U126: 1 | V126: 0 | W126: 15.64467919 | X126: 19.77708174 | Y126: 8.669288303 | Z126: 4.833021537 | AD126: 49.19166667 | AF126: 55.87401308 | AG126: 53.60640379 | AH126: 42.33516338 | AK126: 59.10438587 | AL126: 40.00378922 | AM126: 27.67949456 | AP126: 62.13933891 | AQ126: 28.65268738 | AR126: 17.45769597 | AT126: 100 | AU126: 1.219718787 | AV126: 0 | AX126: 44.16685896 | AY126: 19.08210912 | AZ126: 24.12247815 | BC126: 64.2059648 | BD126: 10.57409381 | BE126: 5.894927167 | BH126: 42.85714286 | BI126: 104.2569089 | BJ126: 56.52173913 | BK126: 0 | BN126: 4.256908858 | BR126: 100 | BT126: 9.306326965 | BU126: 8.380455153 | BV126: 11.1522547 | BW126: 12.01561292 | BX126: =Table1[[#This Row],[SF]]/Table1[[#This Row],[CF]] -> 0.5345012042 | BY126: =Table1[[#This Row],[MSF]]/Table1[[#This Row],[CF]] -> 0.2117489896 | BZ126: =Table1[[#This Row],[BSF]]/Table1[[#This Row],[CF]] -> 0.2537498063 | CA126: =Table1[[#This Row],[SA]]/Table1[[#This Row],[CA]] -> 0.4123686923 | CB126: =Table1[[#This Row],[MSA]]/Table1[[#This Row],[CA]] -> 0.2414493716 | CC126: =Table1[[#This Row],[BSA]]/Table1[[#This Row],[CA]] -> 0.3461819359
A127: 5v5 | B127: ScAdj | C127: WSH | D127: 20142015 | E127: 20657 | F127: 2015-01-16 | G127: NSH | J127: -1 | K127: 20 | L127: 23 | O127: 55.94170114 | P127: 39.02906274 | Q127: 43.54610769 | R127: 22.86550447 | S127: 27.51263745 | T127: 19.82210715 | U127: 1 | V127: 3 | W127: 21.90447219 | X127: 17.90275008 | Y127: 4.337542722 | Z127: 9.996458441 | AD127: 48.76666667 | AF127: 58.90412886 | AG127: 68.82779361 | AH127: 48.01935265 | AK127: 65.57002047 | AL127: 53.57689258 | AM127: 28.13254139 | AP127: 58.1235574 | AQ127: 33.85013493 | AR127: 24.38810176 | AT127: 25 | AU127: 1.230348599 | AV127: 3.691045796 | AX127: 55.02637698 | AY127: 26.95013666 | AZ127: 22.02662347 | BC127: 30.26051605 | BD127: 5.33668961 | BE127: 12.29912864 | BH127: 58.82352941 | BI127: 88.50007633 | BJ127: 58.92857143 | BK127: -73.82091593 | BN127: 3.634693337 | BR127: 84.86538299 | BT127: 16.03347024 | BU127: 3.043397318 | BV127: 12.39559345 | BW127: 16.16355827 | BX127: =Table1[[#This Row],[SF]]/Table1[[#This Row],[CF]] -> 0.4918090957 | BY127: =Table1[[#This Row],[MSF]]/Table1[[#This Row],[CF]] -> 0.2866103446 | BZ127: =Table1[[#This Row],[BSF]]/Table1[[#This Row],[CF]] -> 0.2215805597 | CA127: =Table1[[#This Row],[SA]]/Table1[[#This Row],[CA]] -> 0.5078806858 | CB127: =Table1[[#This Row],[MSA]]/Table1[[#This Row],[CA]] -> 0.07797771979 | CC127: =Table1[[#This Row],[BSA]]/Table1[[#This Row],[CA]] -> 0.4141415944
A128: 5v5 | B128: ScAdj | C128: WSH | D128: 20142015 | E128: 20668 | F128: 2015-01-17 | G128: DAL | J128: -3 | K128: 21 | L128: 19 | O128: 46.68808034 | P128: 33.85186607 | Q128: 31.20073371 | R128: 23.8899973 | S128: 24.38636561 | T128: 18.97634672 | U128: 4 | V128: 4 | W128: 33.60280617 | X128: 21.00182839 | Y128: 9.827412629 | Z128: 6.999817223 | AD128: 45.875 | AF128: 57.96884952 | AG128: 61.06342933 | AH128: 44.27492021 | AK128: 56.63517826 | AL128: 40.80749914 | AM128: 31.24577304 | AP128: 56.2381002 | AQ128: 31.89497409 | AR128: 24.81920007 | AT128: 50 | AU128: 5.231607629 | AV128: 5.231607629 | AX128: 61.53837754 | AY128: 43.94917428 | AZ128: 27.46833141 | BC128: 58.4018446 | BD128: 12.85329172 | BE128: 9.155074297 | BH128: 73.33333333 | BI128: 95.32373532 | BJ128: 67.9245283 | BK128: -235.4223433 | BN128: 16.40260818 | BR128: 78.92112714 | BT128: 6.814368104 | BU128: 4.913650578 | BV128: 15.48734663 | BW128: 9.961868772 | BX128: =Table1[[#This Row],[SF]]/Table1[[#This Row],[CF]] -> 0.5223253009 | BY128: =Table1[[#This Row],[MSF]]/Table1[[#This Row],[CF]] -> 0.1459552 | BZ128: =Table1[[#This Row],[BSF]]/Table1[[#This Row],[CF]] -> 0.3317194992 | CA128: =Table1[[#This Row],[SA]]/Table1[[#This Row],[CA]] -> 0.5605701819 | CB128: =Table1[[#This Row],[MSA]]/Table1[[#This Row],[CA]] -> 0.1451515425 | CC128: =Table1[[#This Row],[BSA]]/Table1[[#This Row],[CA]] -> 0.2942782756
A129: 5v5 | B129: ScAdj | C129: WSH | D129: 20142015 | E129: 20685 | F129: 2015-01-20 | G129: EDM | J129: -5 | K129: 13 | L129: 12 | O129: 48.66674943 | P129: 30.52941833 | Q129: 30.93758911 | R129: 20.95594585 | S129: 17.05398813 | T129: 17.01328874 | U129: 2 | V129: 2 | W129: 27.77902351 | X129: 14.2819785 | Y129: 9.218675003 | Z129: 4.961911391 | AD129: 45.9 | AF129: 61.45088936 | AG129: 63.61666592 | AH129: 39.90773638 | AK129: 59.61742466 | AL129: 40.44129295 | AM129: 27.39339327 | AP129: 50.05973385 | AQ129: 22.29279494 | AR129: 22.23959312 | AT129: 50 | AU129: 2.614379085 | AV129: 2.614379085 | AX129: 66.04460708 | AY129: 36.31244903 | AZ129: 18.66925294 | BC129: 65.00912407 | BD129: 12.05055556 | BE129: 6.486158681 | BH129: 66.66666667 | BI129: 99.97194543 | BJ129: 53.65853659 | BK129: -392.1568627 | BN129: 11.72746213 | BR129: 88.24448329 | BT129: 13.88360098 | BU129: 3.942657113 | BV129: 17.72916032 | BW129: 9.573472476 | BX129: =Table1[[#This Row],[SF]]/Table1[[#This Row],[CF]] -> 0.3504238177 | BY129: =Table1[[#This Row],[MSF]]/Table1[[#This Row],[CF]] -> 0.285278987 | BZ129: =Table1[[#This Row],[BSF]]/Table1[[#This Row],[CF]] -> 0.3642971953 | CA129: =Table1[[#This Row],[SA]]/Table1[[#This Row],[CA]] -> 0.5572752339 | CB129: =Table1[[#This Row],[MSA]]/Table1[[#This Row],[CA]] -> 0.1291428834 | CC129: =Table1[[#This Row],[BSA]]/Table1[[#This Row],[CA]] -> 0.3135818826
A130: 5v5 | B130: ScAdj | C130: WSH | D130: 20142015 | E130: 20701 | F130: 2015-01-27 | G130: CBJ | J130: -2 | K130: 17 | L130: 28 | O130: 37.6570383 | P130: 33.93636181 | Q130: 31.7164286 | R130: 28.25590572 | S130: 21.30759637 | T130: 21.52797138 | U130: 3 | V130: 4 | W130: 20.90368737 | X130: 25.03417642 | Y130: 7.929797546 | Z130: 7.619181133 | AD130: 44.19166667 | AF130: 52.59847729 | AG130: 51.12779102 | AH130: 46.07614653 | AK130: 52.88509937 | AL130: 43.06209428 | AM130: 38.36366607 | AP130: 49.74276632 | AQ130: 28.92979329 | AR130: 29.22900131 | AT130: 42.85714286 | AU130: 4.073166132 | AV130: 5.430888177 | AX130: 45.5042652 | AY130: 28.38139714 | AZ130: 33.98945318 | BC130: 50.9988322 | BD130: 10.76646093 | BE130: 10.34473018 | BH130: 63.63636364 | BI130: 95.49900771 | BJ130: 47.5 | BK130: -162.9266453 | BN130: 14.07948578 | BR130: 81.41952194 | BT130: 10.40883224 | BU130: 6.727934341 | BV130: 5.940609698 | BW130: 5.680456092 | BX130: =Table1[[#This Row],[SF]]/Table1[[#This Row],[CF]] -> 0.5658330376 | BY130: =Table1[[#This Row],[MSF]]/Table1[[#This Row],[CF]] -> 0.2764113353 | BZ130: =Table1[[#This Row],[BSF]]/Table1[[#This Row],[CF]] -> 0.1577556273 | CA130: =Table1[[#This Row],[SA]]/Table1[[#This Row],[CA]] -> 0.6343629733 | CB130: =Table1[[#This Row],[MSA]]/Table1[[#This Row],[CA]] -> 0.1982514914 | CC130: =Table1[[#This Row],[BSA]]/Table1[[#This Row],[CA]] -> 0.1673855354
A131: 5v5 | B131: ScAdj | C131: WSH | D131: 20142015 | E131: 20709 | F131: 2015-01-28 | G131: PIT | J131: 0 | K131: 19 | L131: 23 | O131: 43.67787356 | P131: 41.87931858 | Q131: 31.75857553 | R131: 26.65016306 | S131: 22.99791991 | T131: 21.0702465 | U131: 3 | V131: 0 | W131: 18.91994741 | X131: 13.37109427 | Y131: 7.744301963 | Z131: 6.100028301 | AD131: 46.44166667 | AF131: 51.05108345 | AG131: 56.42933602 | AH131: 54.10570497 | AK131: 54.37298647 | AL131: 41.03027881 | AM131: 34.43049955 | AP131: 52.18714955 | AQ131: 29.7120085 | AR131: 27.22156375 | AT131: 100 | AU131: 3.875829894 | AV131: 0 | AX131: 58.59193891 | AY131: 24.44349926 | AZ131: 17.27469562 | BC131: 55.938437 | BD131: 10.00519902 | BE131: 7.880890681 | BH131: 33.33333333 | BI131: 113.044658 | BJ131: 67.34693878 | BK131: 0 | BN131: 13.044658 | BR131: 100 | BT131: 8.760655616 | BU131: 5.579916556 | BV131: 11.91929803 | BW131: 15.22915553 | BX131: =Table1[[#This Row],[SF]]/Table1[[#This Row],[CF]] -> 0.5265347883 | BY131: =Table1[[#This Row],[MSF]]/Table1[[#This Row],[CF]] -> 0.2005742245 | BZ131: =Table1[[#This Row],[BSF]]/Table1[[#This Row],[CF]] -> 0.2728909871 | CA131: =Table1[[#This Row],[SA]]/Table1[[#This Row],[CA]] -> 0.503118179 | CB131: =Table1[[#This Row],[MSA]]/Table1[[#This Row],[CA]] -> 0.1332379978 | CC131: =Table1[[#This Row],[BSA]]/Table1[[#This Row],[CA]] -> 0.3636438234
A132: 5v5 | B132: ScAdj | C132: WSH | D132: 20142015 | E132: 20727 | F132: 2015-01-31 | G132: MTL | J132: 0 | K132: 23 | L132: 18 | O132: 46.45150077 | P132: 39.94681657 | Q132: 32.83391501 | R132: 26.05470601 | S132: 23.15993533 | T132: 17.28047143 | U132: 0 | V132: 0 | W132: 25.43909958 | X132: 19.08575548 | Y132: 12.8014638 | Z132: 8.624536025 | AD132: 40.675 | AF132: 53.76435815 | AG132: 68.52095996 | AH132: 58.92585111 | AK132: 55.75595835 | AL132: 48.43355626 | AM132: 38.43349381 | AP132: 57.26929372 | AQ132: 34.16339569 | AR132: 25.49055405 | AU132: 0 | AV132: 0 | AX132: 57.13460392 | AY132: 37.52540811 | AZ132: 28.15354219 | BC132: 59.74733457 | BD132: 18.88353603 | BE132: 12.72211829 | BH132: 50 | BI132: 100 | BJ132: 51.61290323 | BK132: 0 | BN132: 0 | BR132: 100 | BT132: 9.673979685 | BU132: 8.774234582 | BV132: 13.61758576 | BW132: 13.89211055 | BX132: =Table1[[#This Row],[SF]]/Table1[[#This Row],[CF]] -> 0.4985831447 | BY132: =Table1[[#This Row],[MSF]]/Table1[[#This Row],[CF]] -> 0.2082597876 | BZ132: =Table1[[#This Row],[BSF]]/Table1[[#This Row],[CF]] -> 0.2931570678 | CA132: =Table1[[#This Row],[SA]]/Table1[[#This Row],[CA]] -> 0.4325869472 | CB132: =Table1[[#This Row],[MSA]]/Table1[[#This Row],[CA]] -> 0.2196479053 | CC132: =Table1[[#This Row],[BSA]]/Table1[[#This Row],[CA]] -> 0.3477651473
A133: 5v5 | B133: ScAdj | C133: WSH | D133: 20142015 | E133: 20739 | F133: 2015-02-01 | G133: STL | J133: -1 | K133: 33 | L133: 33 | O133: 41.33483796 | P133: 52.43507581 | Q133: 32.22502565 | R133: 41.16238223 | S133: 24.28608369 | T133: 33.39866019 | U133: 1 | V133: 3 | W133: 19.60591662 | X133: 29.05037144 | Y133: 9.173178227 | Z133: 13.83385453 | AD133: 43.91666667 | AF133: 44.08113039 | AG133: 56.47264389 | AH133: 71.63805424 | AK133: 43.91083782 | AL133: 44.02660051 | AM133: 56.23703075 | AP133: 42.10139814 | AQ133: 33.18022819 | AR133: 45.63004807 | AT133: 25 | AU133: 1.366223909 | AV133: 4.098671727 | AX133: 40.29472325 | AY133: 26.78607204 | AZ133: 39.68931203 | BC133: 39.87119209 | BD133: 12.53261541 | BE133: 18.90014282 | BH133: 60.86956522 | BI133: 95.13518818 | BJ133: 60 | BK133: -81.97343454 | BN133: 4.117584428 | BR133: 91.01760375 | BT133: 7.938941967 | BU133: 7.763722043 | BV133: 9.109812306 | BW133: 11.27269359 | BX133: =Table1[[#This Row],[SF]]/Table1[[#This Row],[CF]] -> 0.5875451529 | BY133: =Table1[[#This Row],[MSF]]/Table1[[#This Row],[CF]] -> 0.1920641851 | BZ133: =Table1[[#This Row],[BSF]]/Table1[[#This Row],[CF]] -> 0.2203906621 | CA133: =Table1[[#This Row],[SA]]/Table1[[#This Row],[CA]] -> 0.6369526443 | CB133: =Table1[[#This Row],[MSA]]/Table1[[#This Row],[CA]] -> 0.1480635228 | CC133: =Table1[[#This Row],[BSA]]/Table1[[#This Row],[CA]] -> 0.2149838332
A134: 5v5 | B134: ScAdj | C134: WSH | D134: 20142015 | E134: 20747 | F134: 2015-02-03 | G134: L.A | J134: 0 | K134: 25 | L134: 37 | O134: 36.24719308 | P134: 38.19081195 | Q134: 29.6143999 | R134: 31.41754078 | S134: 18.36604337 | T134: 24.71019996 | U134: 3 | V134: 0 | W134: 20.1143645 | X134: 13.78531137 | Y134: 9.702412985 | Z134: 6.379536739 | AD134: 52.31666667 | AF134: 48.69447141 | AG134: 41.57053045 | AH134: 43.79959319 | AK134: 48.52278916 | AL134: 33.96363161 | AM134: 36.03158548 | AP134: 42.63613061 | AQ134: 21.0633183 | AR134: 28.33919078 | AT134: 100 | AU134: 3.440586174 | AV134: 0 | AX134: 59.33497588 | AY134: 23.06840146 | AZ134: 15.80985056 | BC134: 60.33107398 | BD134: 11.12732932 | BE134: 7.316448633 | BH134: 29.62962963 | BI134: 116.3344926 | BJ134: 48.71794872 | BK134: 0 | BN134: 16.33449263 | BR134: 100 | BT134: 11.24835653 | BU134: 6.707340822 | BV134: 6.632793186 | BW134: 6.773271171 | BX134: =Table1[[#This Row],[SF]]/Table1[[#This Row],[CF]] -> 0.5066887063 | BY134: =Table1[[#This Row],[MSF]]/Table1[[#This Row],[CF]] -> 0.3103235195 | BZ134: =Table1[[#This Row],[BSF]]/Table1[[#This Row],[CF]] -> 0.1829877743 | CA134: =Table1[[#This Row],[SA]]/Table1[[#This Row],[CA]] -> 0.6470194976 | CB134: =Table1[[#This Row],[MSA]]/Table1[[#This Row],[CA]] -> 0.175627081 | CC134: =Table1[[#This Row],[BSA]]/Table1[[#This Row],[CA]] -> 0.1773534215
A135: 5v5 | B135: ScAdj | C135: WSH | D135: 20142015 | E135: 20761 | F135: 2015-02-05 | G135: OTT | J135: -3 | K135: 22 | L135: 25 | O135: 50.32308216 | P135: 28.21899498 | Q135: 34.56903529 | R135: 21.10238061 | S135: 25.51469862 | T135: 14.60925634 | U135: 2 | V135: 1 | W135: 15.17496886 | X135: 16.92634674 | Y135: 2.130352837 | Z135: 8.62086577 | AD135: 47.41666667 | AF135: 64.07149389 | AG135: 63.6777138 | AH135: 35.70769137 | AK135: 62.09476575 | AL135: 43.74289175 | AM135: 26.70248513 | AP135: 63.58969011 | AQ135: 32.28573464 | AR135: 18.48622947 | AT135: 66.66666667 | AU135: 2.530755712 | AV135: 1.265377856 | AX135: 47.27210887 | AY135: 19.20206956 | AZ135: 21.41822434 | BC135: 19.81498949 | BD135: 2.695701305 | BE135: 10.90865264 | BH135: 66.66666667 | BI135: 100.9936436 | BJ135: 55.88235294 | BK135: -227.7680141 | BN135: 7.838618944 | BR135: 93.15502462 | BT135: 9.054336665 | BU135: 6.493124262 | BV135: 15.75404687 | BW135: 7.116614375 | BX135: =Table1[[#This Row],[SF]]/Table1[[#This Row],[CF]] -> 0.5070178043 | BY135: =Table1[[#This Row],[MSF]]/Table1[[#This Row],[CF]] -> 0.1799241278 | BZ135: =Table1[[#This Row],[BSF]]/Table1[[#This Row],[CF]] -> 0.3130580679 | CA135: =Table1[[#This Row],[SA]]/Table1[[#This Row],[CA]] -> 0.5177100159 | CB135: =Table1[[#This Row],[MSA]]/Table1[[#This Row],[CA]] -> 0.230097644 | CC135: =Table1[[#This Row],[BSA]]/Table1[[#This Row],[CA]] -> 0.2521923399
A136: 5v5 | B136: ScAdj | C136: WSH | D136: 20142015 | E136: 20769 | F136: 2015-02-06 | G136: ANA | J136: -1 | K136: 30 | L136: 27 | O136: 51.25606493 | P136: 39.3503112 | Q136: 40.11454626 | R136: 26.19610028 | S136: 27.85854488 | T136: 18.3002497 | U136: 2 | V136: 1 | W136: 22.02138857 | X136: 17.38426809 | Y136: 10.21184734 | Z136: 7.049352639 | AD136: 54.66666667 | AF136: 56.57004189 | AG136: 56.25665663 | AH136: 43.18936595 | AK136: 60.49488031 | AL136: 44.02816053 | AM136: 28.75181738 | AP136: 60.35370969 | AQ136: 30.57645169 | AR136: 20.08563992 | AT136: 66.66666667 | AU136: 2.195121951 | AV136: 1.097560976 | AX136: 55.88382592 | AY136: 24.16981672 | AZ136: 19.08029424 | BC136: 59.1607035 | BD136: 11.20812513 | BE136: 7.73709436 | BH136: 58.82352941 | BI136: 101.7147195 | BJ136: 53.84615385 | BK136: -65.85365854 | BN136: 7.179125862 | BR136: 94.53559369 | BT136: 12.25600138 | BU136: 7.89585058 | BV136: 11.14151867 | BW136: 13.15421091 | BX136: =Table1[[#This Row],[SF]]/Table1[[#This Row],[CF]] -> 0.5435170437 | BY136: =Table1[[#This Row],[MSF]]/Table1[[#This Row],[CF]] -> 0.2391131937 | BZ136: =Table1[[#This Row],[BSF]]/Table1[[#This Row],[CF]] -> 0.2173697627 | CA136: =Table1[[#This Row],[SA]]/Table1[[#This Row],[CA]] -> 0.4650598468 | CB136: =Table1[[#This Row],[MSA]]/Table1[[#This Row],[CA]] -> 0.2006553529 | CC136: =Table1[[#This Row],[BSA]]/Table1[[#This Row],[CA]] -> 0.3342848
A137: 5v5 | B137: ScAdj | C137: WSH | D137: 20142015 | E137: 20786 | F137: 2015-02-08 | G137: PHI | J137: 6 | K137: 29 | L137: 36 | O137: 33.54569124 | P137: 41.55286341 | Q137: 21.9370262 | R137: 30.70668086 | S137: 10.11246471 | T137: 23.45690354 | U137: 0 | V137: 2 | W137: 13.23932421 | X137: 18.54608766 | Y137: 2.537709125 | Z137: 6.454343953 | AD137: 47.55 | AF137: 44.66889063 | AG137: 42.32894793 | AH137: 52.43263522 | AK137: 41.67074742 | AL137: 27.68079016 | AM137: 38.74660045 | AP137: 30.12408407 | AQ137: 12.76020784 | AR137: 29.59861646 | AT137: 0 | AU137: 0 | AV137: 2.523659306 | AX137: 41.65220278 | AY137: 16.70577187 | AZ137: 23.40200336 | BC137: 28.22168757 | BD137: 3.202156625 | BE137: 8.14428259 | BH137: 29.03225806 | BI137: 91.47372544 | BJ137: 43.47826087 | BK137: 454.2586751 | BN137: 0 | BR137: 91.47372544 | BT137: 11.82456149 | BU137: 7.249777316 | BV137: 11.60866503 | BW137: 10.84618255 | BX137: =Table1[[#This Row],[SF]]/Table1[[#This Row],[CF]] -> 0.3014534605 | BY137: =Table1[[#This Row],[MSF]]/Table1[[#This Row],[CF]] -> 0.3524912158 | BZ137: =Table1[[#This Row],[BSF]]/Table1[[#This Row],[CF]] -> 0.3460553234 | CA137: =Table1[[#This Row],[SA]]/Table1[[#This Row],[CA]] -> 0.564507512 | CB137: =Table1[[#This Row],[MSA]]/Table1[[#This Row],[CA]] -> 0.1744711849 | CC137: =Table1[[#This Row],[BSA]]/Table1[[#This Row],[CA]] -> 0.261021303
A138: 5v5 | B138: ScAdj | C138: WSH | D138: 20142015 | E138: 20808 | F138: 2015-02-11 | G138: S.J | J138: 0 | K138: 29 | L138: 42 | O138: 43.69484305 | P138: 54.19286058 | Q138: 34.28384909 | R138: 42.50083631 | S138: 24.18990989 | T138: 27.9776614 | U138: 3 | V138: 3 | W138: 20.99221267 | X138: 30.62618504 | Y138: 9.309288949 | Z138: 15.17148515 | AD138: 55.11666667 | AF138: 44.63772408 | AG138: 47.56620351 | AH138: 58.99434475 | AK138: 44.64933198 | AL138: 37.32139604 | AM138: 46.26640783 | AP138: 46.3696302 | AQ138: 26.33313444 | AR138: 30.4564805 | AT138: 50 | AU138: 3.265799819 | AV138: 3.265799819 | AX138: 40.6680827 | AY138: 22.85212144 | AZ138: 33.33966318 | BC138: 38.02693866 | BD138: 10.13409139 | BE138: 16.51567781 | BH138: 44 | BI138: 101.6790247 | BJ138: 44.18604651 | BK138: 0 | BN138: 12.40186513 | BR138: 89.27715953 | BT138: 10.0939392 | BU138: 14.52317491 | BV138: 9.410993965 | BW138: 11.69202428 | BX138: =Table1[[#This Row],[SF]]/Table1[[#This Row],[CF]] -> 0.5536101792 | BY138: =Table1[[#This Row],[MSF]]/Table1[[#This Row],[CF]] -> 0.2310098514 | BZ138: =Table1[[#This Row],[BSF]]/Table1[[#This Row],[CF]] -> 0.2153799695 | CA138: =Table1[[#This Row],[SA]]/Table1[[#This Row],[CA]] -> 0.5162610185 | CB138: =Table1[[#This Row],[MSA]]/Table1[[#This Row],[CA]] -> 0.2679905573 | CC138: =Table1[[#This Row],[BSA]]/Table1[[#This Row],[CA]] -> 0.2157484243
A139: 5v5 | B139: ScAdj | C139: WSH | D139: 20142015 | E139: 20832 | F139: 2015-02-14 | G139: L.A | J139: -2 | K139: 35 | L139: 31 | O139: 33.66609912 | P139: 53.96617647 | Q139: 25.29007912 | R139: 39.50398325 | S139: 17.28021493 | T139: 26.61510625 | U139: 0 | V139: 3 | W139: 14.70915264 | X139: 25.7834614 | Y139: 3.844333309 | Z139: 16.8748519 | AD139: 48.08333333 | AF139: 38.41746536 | AG139: 42.00969041 | AH139: 67.34080945 | AK139: 39.03147634 | AL139: 31.55781104 | AM139: 49.29439851 | AP139: 39.36687206 | AQ139: 21.56283319 | AR139: 33.21122444 | AT139: 0 | AU139: 0 | AV139: 3.743500867 | AX139: 36.32552007 | AY139: 18.35457522 | AZ139: 32.17347004 | BC139: 18.55446182 | BD139: 4.797088357 | BE139: 21.05700757 | BH139: 53.125 | BI139: 88.72820581 | BJ139: 46.93877551 | BK139: -149.7400347 | BN139: 0 | BR139: 88.72820581 | BT139: 8.00986419 | BU139: 12.88887699 | BV139: 8.376019996 | BW139: 14.46219322 | BX139: =Table1[[#This Row],[SF]]/Table1[[#This Row],[CF]] -> 0.5132823636 | BY139: =Table1[[#This Row],[MSF]]/Table1[[#This Row],[CF]] -> 0.2379207689 | BZ139: =Table1[[#This Row],[BSF]]/Table1[[#This Row],[CF]] -> 0.2487968673 | CA139: =Table1[[#This Row],[SA]]/Table1[[#This Row],[CA]] -> 0.4931812478 | CB139: =Table1[[#This Row],[MSA]]/Table1[[#This Row],[CA]] -> 0.2388325027 | CC139: =Table1[[#This Row],[BSA]]/Table1[[#This Row],[CA]] -> 0.2679862493
A140: 5v5 | B140: ScAdj | C140: WSH | D140: 20142015 | E140: 20836 | F140: 2015-02-15 | G140: ANA | J140: 0 | K140: 33 | L140: 19 | O140: 45.49473686 | P140: 40.07318083 | Q140: 34.64460107 | R140: 30.48043384 | S140: 23.31911664 | T140: 19.36313082 | U140: 4 | V140: 3 | W140: 19.34607866 | X140: 25.34837238 | Y140: 5.143342487 | Z140: 7.793374592 | AD140: 43.70833333 | AF140: 53.16798409 | AG140: 62.45226032 | AH140: 55.00989551 | AK140: 53.19705566 | AL140: 47.55788898 | AM140: 41.84158696 | AP140: 54.63422857 | AQ140: 32.01098947 | AR140: 26.58046557 | AT140: 57.14285714 | AU140: 5.490943756 | AV140: 4.118207817 | AX140: 43.28519136 | AY140: 26.55705745 | AZ140: 34.79662176 | BC140: 39.75771021 | BD140: 7.060451079 | BE140: 10.69824539 | BH140: 52.17391304 | BI140: 101.6599462 | BJ140: 51.2195122 | BK140: 0 | BN140: 17.15330843 | BR140: 84.50663776 | BT140: 11.32548443 | BU140: 11.11730301 | BV140: 10.85013579 | BW140: 9.592746991 | BX140: =Table1[[#This Row],[SF]]/Table1[[#This Row],[CF]] -> 0.5125673484 | BY140: =Table1[[#This Row],[MSF]]/Table1[[#This Row],[CF]] -> 0.2489405415 | BZ140: =Table1[[#This Row],[BSF]]/Table1[[#This Row],[CF]] -> 0.2384921101 | CA140: =Table1[[#This Row],[SA]]/Table1[[#This Row],[CA]] -> 0.4831942566 | CB140: =Table1[[#This Row],[MSA]]/Table1[[#This Row],[CA]] -> 0.2774250204 | CC140: =Table1[[#This Row],[BSA]]/Table1[[#This Row],[CA]] -> 0.2393807228
A141: 5v5 | B141: ScAdj | C141: WSH | D141: 20142015 | E141: 20848 | F141: 2015-02-17 | G141: PIT | J141: 2 | K141: 35 | L141: 44 | O141: 39.79680424 | P141: 35.47925231 | Q141: 33.95530603 | R141: 26.30710307 | S141: 22.71910432 | T141: 20.28697433 | U141: 0 | V141: 1 | W141: 24.12510761 | X141: 12.59762271 | Y141: 9.599492009 | Z141: 4.005259737 | AD141: 44.14166667 | AF141: 52.86781224 | AG141: 54.09420247 | AH141: 48.22552702 | AK141: 56.34574942 | AL141: 46.15408786 | AM141: 35.75819183 | AP141: 52.8276584 | AQ141: 30.88116879 | AR141: 27.57527188 | AT141: 0 | AU141: 0 | AV141: 1.359259958 | AX141: 65.69529934 | AY141: 32.79229277 | AZ141: 17.12344413 | BC141: 70.55984694 | BD141: 13.04820511 | BE141: 5.444189183 | BH141: 52.17391304 | BI141: 95.07072872 | BJ141: 48.57142857 | BK141: 163.111195 | BN141: 0 | BR141: 95.07072872 | BT141: 11.23620171 | BU141: 6.020128749 | BV141: 5.841498211 | BW141: 9.172149233 | BX141: =Table1[[#This Row],[SF]]/Table1[[#This Row],[CF]] -> 0.5708776057 | BY141: =Table1[[#This Row],[MSF]]/Table1[[#This Row],[CF]] -> 0.2823392964 | BZ141: =Table1[[#This Row],[BSF]]/Table1[[#This Row],[CF]] -> 0.1467830979 | CA141: =Table1[[#This Row],[SA]]/Table1[[#This Row],[CA]] -> 0.5717982485 | CB141: =Table1[[#This Row],[MSA]]/Table1[[#This Row],[CA]] -> 0.1696802598 | CC141: =Table1[[#This Row],[BSA]]/Table1[[#This Row],[CA]] -> 0.2585214917
A142: 5v5 | B142: ScAdj | C142: WSH | D142: 20142015 | E142: 20863 | F142: 2015-02-19 | G142: WPG | J142: 0 | K142: 22 | L142: 22 | O142: 33.92914416 | P142: 34.18119594 | Q142: 27.62259496 | R142: 21.28644876 | S142: 22.30576768 | T142: 12.65002915 | U142: 1 | V142: 1 | W142: 17.03133168 | X142: 11.67233581 | Y142: 4.806650401 | Z142: 6.134457041 | AD142: 44.00833333 | AF142: 49.81496805 | AG142: 46.25825373 | AH142: 46.60189562 | AK142: 56.47747913 | AL142: 37.66004236 | AM142: 29.02147908 | AP142: 63.8113552 | AQ142: 30.41119623 | AR142: 17.24677332 | AT142: 50 | AU142: 1.363378148 | AV142: 1.363378148 | AX142: 59.33503684 | AY142: 23.22014544 | AZ142: 15.91380758 | BC142: 43.93202815 | BD142: 6.553282122 | BE142: 8.36358468 | BH142: 55.55555556 | BI142: 96.57802529 | BJ142: 50 | BK142: 0 | BN142: 4.48314541 | BR142: 92.09487988 | BT142: 5.316827275 | BU142: 8.636419603 | BV142: 6.306549207 | BW142: 12.89474718 | BX142: =Table1[[#This Row],[SF]]/Table1[[#This Row],[CF]] -> 0.6574220551 | BY142: =Table1[[#This Row],[MSF]]/Table1[[#This Row],[CF]] -> 0.1567038429 | BZ142: =Table1[[#This Row],[BSF]]/Table1[[#This Row],[CF]] -> 0.1858741021 | CA142: =Table1[[#This Row],[SA]]/Table1[[#This Row],[CA]] -> 0.3700873771 | CB142: =Table1[[#This Row],[MSA]]/Table1[[#This Row],[CA]] -> 0.2526658113 | CC142: =Table1[[#This Row],[BSA]]/Table1[[#This Row],[CA]] -> 0.3772468115
A143: 5v5 | B143: ScAdj | C143: WSH | D143: 20142015 | E143: 20873 | F143: 2015-02-21 | G143: NYI | J143: 2 | K143: 28 | L143: 40 | O143: 50.82240983 | P143: 56.87882888 | Q143: 30.6994419 | R143: 39.80021096 | S143: 19.84062205 | T143: 24.91268438 | U143: 2 | V143: 1 | W143: 18.97982512 | X143: 19.94783593 | Y143: 7.280120092 | Z143: 8.170514088 | AD143: 55.28333333 | AF143: 47.18832433 | AG143: 55.15847916 | AH143: 61.73162013 | AK143: 43.54552208 | AL143: 33.31865868 | AM143: 43.19588768 | AP143: 44.33330994 | AQ143: 21.5333854 | AR143: 27.03818625 | AT143: 66.66666667 | AU143: 2.170636117 | AV143: 1.085318058 | AX143: 48.75665429 | AY143: 20.59914695 | AZ143: 21.64974656 | BC143: 47.11858431 | BD143: 7.901245804 | BE143: 8.867606487 | BH143: 54.28571429 | BI143: 106.0663096 | BJ143: 55 | BK143: 130.238167 | BN143: 10.08032911 | BR143: 95.98598054 | BT143: 10.85881985 | BU143: 14.88752657 | BV143: 20.12296793 | BW143: 17.07861792 | BX143: =Table1[[#This Row],[SF]]/Table1[[#This Row],[CF]] -> 0.3903912096 | BY143: =Table1[[#This Row],[MSF]]/Table1[[#This Row],[CF]] -> 0.2136620417 | BZ143: =Table1[[#This Row],[BSF]]/Table1[[#This Row],[CF]] -> 0.3959467486 | CA143: =Table1[[#This Row],[SA]]/Table1[[#This Row],[CA]] -> 0.4379957336 | CB143: =Table1[[#This Row],[MSA]]/Table1[[#This Row],[CA]] -> 0.2617410883 | CC143: =Table1[[#This Row],[BSA]]/Table1[[#This Row],[CA]] -> 0.300263178
A144: 5v5 | B144: ScAdj | C144: WSH | D144: 20142015 | E144: 20884 | F144: 2015-02-22 | G144: PHI | J144: 0 | K144: 41 | L144: 36 | O144: 32.73259975 | P144: 36.54576744 | Q144: 24.00002126 | R144: 28.37468664 | S144: 18.16728767 | T144: 20.8560293 | U144: 2 | V144: 1 | W144: 13.19680749 | X144: 19.20276264 | Y144: 3.075251612 | Z144: 6.765542992 | AD144: 45.15 | AF144: 47.24793767 | AG144: 43.49847142 | AH144: 48.5658039 | AK144: 45.82368517 | AL144: 31.89371595 | AM144: 37.70722478 | AP144: 46.55495504 | AQ144: 24.14257498 | AR144: 27.71565356 | AT144: 66.66666667 | AU144: 2.657807309 | AV144: 1.328903654 | AX144: 40.73142773 | AY144: 17.5372857 | AZ144: 25.51862145 | BC144: 31.25003352 | BD144: 4.086713106 | BE144: 8.990754806 | BH144: 43.75 | BI144: 106.2140215 | BJ144: 52.27272727 | BK144: 0 | BN144: 11.00879799 | BR144: 95.20522346 | BT144: 5.832733584 | BU144: 7.518657341 | BV144: 8.732578491 | BW144: 8.171080791 | BX144: =Table1[[#This Row],[SF]]/Table1[[#This Row],[CF]] -> 0.5550212268 | BY144: =Table1[[#This Row],[MSF]]/Table1[[#This Row],[CF]] -> 0.1781934105 | BZ144: =Table1[[#This Row],[BSF]]/Table1[[#This Row],[CF]] -> 0.2667853625 | CA144: =Table1[[#This Row],[SA]]/Table1[[#This Row],[CA]] -> 0.5706824828 | CB144: =Table1[[#This Row],[MSA]]/Table1[[#This Row],[CA]] -> 0.2057326434 | CC144: =Table1[[#This Row],[BSA]]/Table1[[#This Row],[CA]] -> 0.2235848735
A145: 5v5 | B145: ScAdj | C145: WSH | D145: 20142015 | E145: 20906 | F145: 2015-02-25 | G145: PIT | J145: -1 | K145: 28 | L145: 16 | O145: 25.78385786 | P145: 36.75580773 | Q145: 19.36108481 | R145: 27.56426141 | S145: 12.60716059 | T145: 16.32871925 | U145: 2 | V145: 2 | W145: 12.61352462 | X145: 19.93836372 | Y145: 8.316134358 | Z145: 7.406776796 | AD145: 37.10833333 | AF145: 41.22800724 | AG145: 41.68959725 | AH145: 59.43000577 | AK145: 41.25933289 | AL145: 31.30469585 | AM145: 44.56830949 | AP145: 43.56930101 | AQ145: 20.38436026 | AR145: 26.40170191 | AT145: 50 | AU145: 3.233774983 | AV145: 3.233774983 | AX145: 38.74897974 | AY145: 20.39465018 | AZ145: 32.2380909 | BC145: 52.89182313 | BD145: 13.44625362 | BE145: 11.97592475 | BH145: 42.85714286 | BI145: 103.6156423 | BJ145: 56.75675676 | BK145: -97.01324949 | BN145: 15.86400035 | BR145: 87.75164194 | BT145: 6.753924221 | BU145: 11.23554216 | BV145: 6.422773045 | BW145: 9.191546322 | BX145: =Table1[[#This Row],[SF]]/Table1[[#This Row],[CF]] -> 0.4889555573 | BY145: =Table1[[#This Row],[MSF]]/Table1[[#This Row],[CF]] -> 0.2619438975 | BZ145: =Table1[[#This Row],[BSF]]/Table1[[#This Row],[CF]] -> 0.249100545 | CA145: =Table1[[#This Row],[SA]]/Table1[[#This Row],[CA]] -> 0.444248685 | CB145: =Table1[[#This Row],[MSA]]/Table1[[#This Row],[CA]] -> 0.3056807306 | CC145: =Table1[[#This Row],[BSA]]/Table1[[#This Row],[CA]] -> 0.2500705845
A146: 5v5 | B146: ScAdj | C146: WSH | D146: 20142015 | E146: 20919 | F146: 2015-02-27 | G146: CAR | J146: -1 | K146: 32 | L146: 34 | O146: 39.95349492 | P146: 52.38013668 | Q146: 29.35923508 | R146: 38.06236607 | S146: 21.18282315 | T146: 32.96168183 | U146: 0 | V146: 2 | W146: 21.06400941 | X146: 29.43470877 | Y146: 8.695637987 | Z146: 11.50042169 | AD146: 48.5 | AF146: 43.27079335 | AG146: 49.42700402 | AH146: 64.80016908 | AK146: 43.54573992 | AL146: 36.3207032 | AM146: 47.08746318 | AP146: 39.12275707 | AQ146: 26.20555441 | AR146: 40.77733834 | AT146: 0 | AU146: 0 | AV146: 2.474226804 | AX146: 41.71196848 | AY146: 26.05856834 | AZ146: 36.4140727 | BC146: 43.05611157 | BD146: 10.75749029 | BE146: 14.2273258 | BH146: 45.16129032 | BI146: 93.93234844 | BJ146: 54.54545455 | BK146: -74.22680412 | BN146: 0 | BR146: 93.93234844 | BT146: 8.176411939 | BU146: 5.100684241 | BV146: 10.59425983 | BW146: 14.31777061 | BX146: =Table1[[#This Row],[SF]]/Table1[[#This Row],[CF]] -> 0.5301869885 | BY146: =Table1[[#This Row],[MSF]]/Table1[[#This Row],[CF]] -> 0.204648228 | BZ146: =Table1[[#This Row],[BSF]]/Table1[[#This Row],[CF]] -> 0.2651647835 | CA146: =Table1[[#This Row],[SA]]/Table1[[#This Row],[CA]] -> 0.6292782707 | CB146: =Table1[[#This Row],[MSA]]/Table1[[#This Row],[CA]] -> 0.09737821557 | CC146: =Table1[[#This Row],[BSA]]/Table1[[#This Row],[CA]] -> 0.2733435137
A147: 5v5 | B147: ScAdj | C147: WSH | D147: 20142015 | E147: 20936 | F147: 2015-03-01 | G147: TOR | J147: 1 | K147: 19 | L147: 26 | O147: 46.13226162 | P147: 37.14542284 | Q147: 34.6902838 | R147: 28.0908035 | S147: 25.20418422 | T147: 23.0993634 | U147: 2 | V147: 0 | W147: 26.03389754 | X147: 16.50829402 | Y147: 13.93240792 | Z147: 5.025944575 | AD147: 43.775 | AF147: 55.39570645 | AG147: 63.23096966 | AH147: 50.91320092 | AK147: 55.25594617 | AL147: 47.54807602 | AM147: 38.50252906 | AP147: 52.17874351 | AQ147: 34.54599779 | AR147: 31.66103493 | AT147: 100 | AU147: 2.741290691 | AV147: 0 | AX147: 61.19547815 | AY147: 35.68324049 | AZ147: 22.62701636 | BC147: 73.48954991 | BD147: 19.09639006 | BE147: 6.888787539 | BH147: 55.17241379 | BI147: 107.9351904 | BJ147: 46.51162791 | BK147: 82.23872073 | BN147: 7.935190374 | BR147: 100 | BT147: 9.486099579 | BU147: 4.991440098 | BV147: 11.44197782 | BW147: 9.054619344 | BX147: =Table1[[#This Row],[SF]]/Table1[[#This Row],[CF]] -> 0.546346165 | BY147: =Table1[[#This Row],[MSF]]/Table1[[#This Row],[CF]] -> 0.2056283227 | BZ147: =Table1[[#This Row],[BSF]]/Table1[[#This Row],[CF]] -> 0.2480255123 | CA147: =Table1[[#This Row],[SA]]/Table1[[#This Row],[CA]] -> 0.6218629816 | CB147: =Table1[[#This Row],[MSA]]/Table1[[#This Row],[CA]] -> 0.1343756435 | CC147: =Table1[[#This Row],[BSA]]/Table1[[#This Row],[CA]] -> 0.2437613749
A148: 5v5 | B148: ScAdj | C148: WSH | D148: 20142015 | E148: 20944 | F148: 2015-03-03 | G148: CBJ | J148: -2 | K148: 16 | L148: 24 | O148: 39.28152778 | P148: 35.91283453 | Q148: 34.46276176 | R148: 24.44055037 | S148: 26.92522254 | T148: 19.7444722 | U148: 3 | V148: 2 | W148: 21.55875425 | X148: 22.47607018 | Y148: 6.279589211 | Z148: 6.413981383 | AD148: 51.79166667 | AF148: 52.23999057 | AG148: 45.5071601 | AH148: 41.60457097 | AK148: 58.50734112 | AL148: 39.92467975 | AM148: 28.31407284 | AP148: 57.69316189 | AQ148: 31.19253456 | AR148: 22.87372484 | AT148: 60 | AU148: 3.475462591 | AV148: 2.31697506 | AX148: 48.95841991 | AY148: 24.97554797 | AZ148: 26.03824703 | BC148: 49.47062896 | BD148: 7.274825795 | BE148: 7.430517451 | BH148: 26.92307692 | BI148: 101.0125518 | BJ148: 48.07692308 | BK148: -139.0185036 | BN148: 11.14196919 | BR148: 89.87058261 | BT148: 7.537539213 | BU148: 4.69607817 | BV148: 4.818766021 | BW148: 11.47228415 | BX148: =Table1[[#This Row],[SF]]/Table1[[#This Row],[CF]] -> 0.6854423456 | BY148: =Table1[[#This Row],[MSF]]/Table1[[#This Row],[CF]] -> 0.1918850829 | BZ148: =Table1[[#This Row],[BSF]]/Table1[[#This Row],[CF]] -> 0.1226725714 | CA148: =Table1[[#This Row],[SA]]/Table1[[#This Row],[CA]] -> 0.5497887443 | CB148: =Table1[[#This Row],[MSA]]/Table1[[#This Row],[CA]] -> 0.130763228 | CC148: =Table1[[#This Row],[BSA]]/Table1[[#This Row],[CA]] -> 0.3194480274
A149: 5v5 | B149: ScAdj | C149: WSH | D149: 20142015 | E149: 20958 | F149: 2015-03-05 | G149: MIN | J149: 0 | K149: 31 | L149: 19 | O149: 40.45165139 | P149: 47.55129341 | Q149: 32.1486536 | R149: 36.43383123 | S149: 22.49113904 | T149: 28.03128969 | U149: 0 | V149: 2 | W149: 15.34328796 | X149: 23.69426002 | Y149: 5.869357737 | Z149: 11.75644047 | AD149: 55.525 | AF149: 45.96624747 | AG149: 43.711825 | AH149: 51.3836579 | AK149: 46.87589503 | AL149: 34.7396527 | AM149: 39.37019134 | AP149: 44.51713745 | AQ149: 24.30379725 | AR149: 30.29045261 | AT149: 0 | AU149: 0 | AV149: 2.161188654 | AX149: 39.30392342 | AY149: 16.57986993 | AZ149: 25.60388296 | BC149: 33.29981239 | BD149: 6.342394673 | BE149: 12.70394288 | BH149: 46.15384615 | BI149: 92.86511601 | BJ149: 54.38596491 | BK149: 0 | BN149: 0 | BR149: 92.86511601 | BT149: 9.657514561 | BU149: 8.402541543 | BV149: 8.302997785 | BW149: 11.11746218 | BX149: =Table1[[#This Row],[SF]]/Table1[[#This Row],[CF]] -> 0.5560005159 | BY149: =Table1[[#This Row],[MSF]]/Table1[[#This Row],[CF]] -> 0.2387421583 | BZ149: =Table1[[#This Row],[BSF]]/Table1[[#This Row],[CF]] -> 0.2052573257 | CA149: =Table1[[#This Row],[SA]]/Table1[[#This Row],[CA]] -> 0.5894958408 | CB149: =Table1[[#This Row],[MSA]]/Table1[[#This Row],[CA]] -> 0.1767047948 | CC149: =Table1[[#This Row],[BSA]]/Table1[[#This Row],[CA]] -> 0.2337993645
A150: 5v5 | B150: ScAdj | C150: WSH | D150: 20142015 | E150: 20974 | F150: 2015-03-07 | G150: BUF | J150: 0 | K150: 18 | L150: 27 | O150: 71.38733845 | P150: 29.75966382 | Q150: 52.83118163 | R150: 22.50678984 | S150: 38.21160151 | T150: 14.15198595 | U150: 4 | V150: 1 | W150: 32.82157863 | X150: 12.50979689 | Y150: 18.63536979 | Z150: 5.782846345 | AD150: 50.01666667 | AF150: 70.57780938 | AG150: 85.63626072 | AH150: 35.69969668 | AK150: 70.12556961 | AL150: 63.37629253 | AM150: 26.99914809 | AP150: 72.97361269 | AQ150: 45.83864226 | AR150: 16.97672424 | AT150: 80 | AU150: 4.798400533 | AV150: 1.199600133 | AX150: 72.40366799 | AY150: 39.3727701 | AZ150: 15.00675402 | BC150: 76.31749055 | BD150: 22.35499209 | BE150: 6.937103246 | BH150: 78.57142857 | BI150: 103.4018789 | BJ150: 60 | BK150: 0 | BN150: 10.468025 | BR150: 92.93385393 | BT150: 14.61958012 | BU150: 8.354803888 | BV150: 18.55615682 | BW150: 7.252873977 | BX150: =Table1[[#This Row],[SF]]/Table1[[#This Row],[CF]] -> 0.5352714128 | BY150: =Table1[[#This Row],[MSF]]/Table1[[#This Row],[CF]] -> 0.2047923405 | BZ150: =Table1[[#This Row],[BSF]]/Table1[[#This Row],[CF]] -> 0.2599362467 | CA150: =Table1[[#This Row],[SA]]/Table1[[#This Row],[CA]] -> 0.4755425342 | CB150: =Table1[[#This Row],[MSA]]/Table1[[#This Row],[CA]] -> 0.2807425493 | CC150: =Table1[[#This Row],[BSA]]/Table1[[#This Row],[CA]] -> 0.2437149163
A151: 5v5 | B151: ScAdj | C151: WSH | D151: 20142015 | E151: 21000 | F151: 2015-03-11 | G151: NYR | J151: -1 | K151: 32 | L151: 28 | O151: 43.07584492 | P151: 34.72572029 | Q151: 31.94262407 | R151: 28.85763241 | S151: 21.65857703 | T151: 24.79232991 | U151: 0 | V151: 3 | W151: 17.35726468 | X151: 12.87597322 | Y151: 4.666247571 | Z151: 8.053262075 | AD151: 47.25833333 | AF151: 55.36629604 | AG151: 54.68984014 | AH151: 44.08837702 | AK151: 52.53698902 | AL151: 40.55490977 | AM151: 36.63815083 | AP151: 46.62681195 | AQ151: 27.4981052 | AR151: 31.47677223 | AT151: 0 | AU151: 0 | AV151: 3.808852054 | AX151: 57.4112 | AY151: 22.03708441 | AZ151: 16.34755902 | BC151: 36.68575048 | BD151: 5.924348882 | BE151: 10.22456127 | BH151: 74.19354839 | BI151: 87.89948338 | BJ151: 58.49056604 | BK151: -76.17704109 | BN151: 0 | BR151: 87.89948338 | BT151: 10.28404705 | BU151: 4.065302504 | BV151: 11.13322085 | BW151: 5.868087882 | BX151: =Table1[[#This Row],[SF]]/Table1[[#This Row],[CF]] -> 0.5028009798 | BY151: =Table1[[#This Row],[MSF]]/Table1[[#This Row],[CF]] -> 0.2387427819 | BZ151: =Table1[[#This Row],[BSF]]/Table1[[#This Row],[CF]] -> 0.2584562385 | CA151: =Table1[[#This Row],[SA]]/Table1[[#This Row],[CA]] -> 0.7139471753 | CB151: =Table1[[#This Row],[MSA]]/Table1[[#This Row],[CA]] -> 0.1170689181 | CC151: =Table1[[#This Row],[BSA]]/Table1[[#This Row],[CA]] -> 0.1689839068
A152: 5v5 | B152: ScAdj | C152: WSH | D152: 20142015 | E152: 21014 | F152: 2015-03-13 | G152: DAL | J152: -2 | K152: 34 | L152: 10 | O152: 27.22464389 | P152: 42.58471343 | Q152: 20.13313703 | R152: 32.25529715 | S152: 10.6966813 | T152: 23.77088464 | U152: 1 | V152: 1 | W152: 13.87522312 | X152: 28.40954142 | Y152: 5.268589995 | Z152: 10.55752335 | AD152: 41.90833333 | AF152: 38.9985597 | AG152: 38.97741817 | AH152: 60.96837079 | AK152: 38.43049968 | AL152: 28.82453502 | AM152: 46.17978514 | AP152: 31.034049 | AQ152: 15.31439757 | AR152: 34.03268431 | AT152: 50 | AU152: 1.431696162 | AV152: 1.431696162 | AX152: 32.81376464 | AY152: 19.86510368 | AZ152: 40.67383143 | BC152: 33.29048566 | BD152: 7.543020076 | BE152: 15.11516567 | BH152: 47.82608696 | BI152: 105.1418669 | BJ152: 52.38095238 | BK152: -171.8035395 | BN152: 9.348693971 | BR152: 95.79317297 | BT152: 9.436455725 | BU152: 8.484412511 | BV152: 7.09150686 | BW152: 10.32941628 | BX152: =Table1[[#This Row],[SF]]/Table1[[#This Row],[CF]] -> 0.3929043606 | BY152: =Table1[[#This Row],[MSF]]/Table1[[#This Row],[CF]] -> 0.3466144778 | BZ152: =Table1[[#This Row],[BSF]]/Table1[[#This Row],[CF]] -> 0.2604811614 | CA152: =Table1[[#This Row],[SA]]/Table1[[#This Row],[CA]] -> 0.558202292 | CB152: =Table1[[#This Row],[MSA]]/Table1[[#This Row],[CA]] -> 0.1992361068 | CC152: =Table1[[#This Row],[BSA]]/Table1[[#This Row],[CA]] -> 0.2425616013
A153: 5v5 | B153: ScAdj | C153: WSH | D153: 20142015 | E153: 21035 | F153: 2015-03-15 | G153: BOS | J153: -3 | K153: 31 | L153: 28 | O153: 56.03340535 | P153: 41.40184294 | Q153: 46.97010486 | R153: 29.36101181 | S153: 33.45061186 | T153: 23.67831261 | U153: 1 | V153: 0 | W153: 33.72001381 | X153: 16.78430401 | Y153: 11.40774418 | Z153: 6.870408684 | AD153: 49.75833333 | AF153: 57.50835179 | AG153: 67.56665861 | AH153: 49.92350849 | AK153: 61.53467539 | AL153: 56.63787557 | AM153: 35.40433512 | AP153: 58.55284722 | AQ153: 40.33569007 | AR153: 28.55197635 | AT153: 100 | AU153: 1.205828169 | AV153: 0 | AX153: 66.76659593 | AY153: 40.66054253 | AZ153: 20.23898658 | BC153: 62.41190925 | BD153: 13.75577928 | BE153: 8.284532328 | BH153: 55 | BI153: 102.9894819 | BJ153: 42.30769231 | BK153: -217.0490705 | BN153: 2.989481938 | BR153: 100 | BT153: 13.519493 | BU153: 5.682699201 | BV153: 9.063300493 | BW153: 12.04083113 | BX153: =Table1[[#This Row],[SF]]/Table1[[#This Row],[CF]] -> 0.5969762439 | BY153: =Table1[[#This Row],[MSF]]/Table1[[#This Row],[CF]] -> 0.2412755912 | BZ153: =Table1[[#This Row],[BSF]]/Table1[[#This Row],[CF]] -> 0.161748165 | CA153: =Table1[[#This Row],[SA]]/Table1[[#This Row],[CA]] -> 0.5719144591 | CB153: =Table1[[#This Row],[MSA]]/Table1[[#This Row],[CA]] -> 0.1372571557 | CC153: =Table1[[#This Row],[BSA]]/Table1[[#This Row],[CA]] -> 0.2908283853
A154: 5v5 | B154: ScAdj | C154: WSH | D154: 20142015 | E154: 21037 | F154: 2015-03-16 | G154: BUF | J154: 1 | K154: 23 | L154: 23 | O154: 64.4243681 | P154: 38.52948631 | Q154: 38.10918658 | R154: 31.20355467 | S154: 24.47564499 | T154: 22.34471647 | U154: 1 | V154: 2 | W154: 23.7226602 | X154: 24.86720257 | Y154: 5.878627417 | Z154: 7.506604918 | AD154: 50.55 | AF154: 62.57596519 | AG154: 76.4680927 | AH154: 45.73232796 | AK154: 54.98150253 | AL154: 45.23345588 | AM154: 37.03686014 | AP154: 52.27564296 | AQ154: 29.05121067 | AR154: 26.52191866 | AT154: 33.33333333 | AU154: 1.18694362 | AV154: 2.37388724 | AX154: 48.82224161 | AY154: 28.15746017 | AZ154: 29.51596744 | BC154: 43.91875516 | BD154: 6.977599308 | BE154: 8.909916816 | BH154: 65.51724138 | BI154: 95.13503238 | BJ154: 52.17391304 | BK154: 71.21661721 | BN154: 4.085694168 | BR154: 91.04933821 | BT154: 13.63354159 | BU154: 8.858838196 | BV154: 26.31518152 | BW154: 7.325931638 | BX154: =Table1[[#This Row],[SF]]/Table1[[#This Row],[CF]] -> 0.3799128453 | BY154: =Table1[[#This Row],[MSF]]/Table1[[#This Row],[CF]] -> 0.2116208819 | BZ154: =Table1[[#This Row],[BSF]]/Table1[[#This Row],[CF]] -> 0.4084662729 | CA154: =Table1[[#This Row],[SA]]/Table1[[#This Row],[CA]] -> 0.579938084 | CB154: =Table1[[#This Row],[MSA]]/Table1[[#This Row],[CA]] -> 0.2299235999 | CC154: =Table1[[#This Row],[BSA]]/Table1[[#This Row],[CA]] -> 0.1901383159
A155: 5v5 | B155: ScAdj | C155: WSH | D155: 20142015 | E155: 21057 | F155: 2015-03-19 | G155: MIN | J155: 1 | K155: 15 | L155: 9 | O155: 37.99319509 | P155: 33.18200297 | Q155: 28.90239412 | R155: 23.95297894 | S155: 17.45814018 | T155: 17.0060996 | U155: 1 | V155: 1 | W155: 23.54482935 | X155: 14.49781475 | Y155: 8.536471152 | Z155: 5.940293421 | AD155: 42.99166667 | AF155: 53.37982349 | AG155: 53.02403656 | AH155: 46.30944396 | AK155: 54.68203599 | AL155: 40.33673922 | AM155: 33.42923984 | AP155: 50.65581105 | AQ155: 24.36491749 | AR155: 23.73404092 | AT155: 50 | AU155: 1.395619306 | AV155: 1.395619306 | AX155: 61.89062278 | AY155: 32.8596184 | AZ155: 20.23343015 | BC155: 58.96670564 | BD155: 11.91366395 | BE155: 8.290388182 | BH155: 52.63157895 | BI155: 99.84774389 | BJ155: 46.875 | BK155: 83.73715836 | BN155: 5.727986999 | BR155: 94.11975689 | BT155: 11.44425394 | BU155: 6.946879338 | BV155: 9.090800969 | BW155: 9.229024031 | BX155: =Table1[[#This Row],[SF]]/Table1[[#This Row],[CF]] -> 0.4595070285 | BY155: =Table1[[#This Row],[MSF]]/Table1[[#This Row],[CF]] -> 0.3012185186 | BZ155: =Table1[[#This Row],[BSF]]/Table1[[#This Row],[CF]] -> 0.2392744529 | CA155: =Table1[[#This Row],[SA]]/Table1[[#This Row],[CA]] -> 0.5125097365 | CB155: =Table1[[#This Row],[MSA]]/Table1[[#This Row],[CA]] -> 0.2093568415 | CC155: =Table1[[#This Row],[BSA]]/Table1[[#This Row],[CA]] -> 0.2781334219
A156: 5v5 | B156: ScAdj | C156: WSH | D156: 20142015 | E156: 21074 | F156: 2015-03-21 | G156: WPG | J156: 3 | K156: 27 | L156: 29 | O156: 50.26602876 | P156: 38.58654495 | Q156: 33.27839443 | R156: 25.22578227 | S156: 20.44251394 | T156: 16.09748735 | U156: 0 | V156: 2 | W156: 30.30322565 | X156: 17.55206892 | Y156: 12.09782768 | Z156: 3.882404736 | AD156: 46.46666667 | AF156: 56.57239477 | AG156: 64.90591949 | AH156: 49.82480697 | AK156: 56.88208314 | AL156: 42.97066712 | AM156: 32.57274611 | AP156: 55.94557531 | AQ156: 26.39635946 | AR156: 20.78585167 | AT156: 0 | AU156: 0 | AV156: 2.582496413 | AX156: 63.32261857 | AY156: 39.12898577 | AZ156: 22.66407752 | BC156: 75.7049545 | BD156: 15.62129829 | BE156: 5.013148153 | BH156: 52.38095238 | BI156: 87.57570075 | BJ156: 54.54545455 | BK156: 232.4246772 | BN156: 0 | BR156: 87.57570075 | BT156: 12.83588049 | BU156: 9.128294916 | BV156: 16.98763433 | BW156: 13.36076269 | BX156: =Table1[[#This Row],[SF]]/Table1[[#This Row],[CF]] -> 0.4066864728 | BY156: =Table1[[#This Row],[MSF]]/Table1[[#This Row],[CF]] -> 0.2553589533 | BZ156: =Table1[[#This Row],[BSF]]/Table1[[#This Row],[CF]] -> 0.3379545739 | CA156: =Table1[[#This Row],[SA]]/Table1[[#This Row],[CA]] -> 0.4171787697 | CB156: =Table1[[#This Row],[MSA]]/Table1[[#This Row],[CA]] -> 0.2365667859 | CC156: =Table1[[#This Row],[BSA]]/Table1[[#This Row],[CA]] -> 0.3462544446
A157: 5v5 | B157: ScAdj | C157: WSH | D157: 20142015 | E157: 21104 | F157: 2015-03-26 | G157: N.J | J157: 0 | K157: 29 | L157: 28 | O157: 36.48381762 | P157: 31.50729395 | Q157: 25.40179935 | R157: 27.71256441 | S157: 15.37288891 | T157: 18.95172278 | U157: 1 | V157: 0 | W157: 14.59425404 | X157: 18.4746709 | Y157: 3.660515226 | Z157: 10.09419547 | AD157: 49.00833333 | AF157: 53.65968695 | AG157: 44.66646605 | AH157: 38.57379976 | AK157: 47.82472678 | AL157: 31.09895516 | AM157: 33.92798227 | AP157: 44.78678172 | AQ157: 18.8207448 | AR157: 23.20224519 | AT157: 100 | AU157: 1.224281585 | AV157: 0 | AX157: 44.13283489 | AY157: 17.86747647 | AZ157: 22.61819936 | BC157: 26.61281147 | BD157: 4.481501382 | BE157: 12.35813763 | BH157: 60 | BI157: 106.5049582 | BJ157: 56.52173913 | BK157: 0 | BN157: 6.504958214 | BR157: 100 | BT157: 10.02891044 | BU157: 8.76084163 | BV157: 11.08201827 | BW157: 3.794729539 | BX157: =Table1[[#This Row],[SF]]/Table1[[#This Row],[CF]] -> 0.4213618506 | BY157: =Table1[[#This Row],[MSF]]/Table1[[#This Row],[CF]] -> 0.2748865413 | BZ157: =Table1[[#This Row],[BSF]]/Table1[[#This Row],[CF]] -> 0.3037516081 | CA157: =Table1[[#This Row],[SA]]/Table1[[#This Row],[CA]] -> 0.6015027127 | CB157: =Table1[[#This Row],[MSA]]/Table1[[#This Row],[CA]] -> 0.2780575712 | CC157: =Table1[[#This Row],[BSA]]/Table1[[#This Row],[CA]] -> 0.1204397161
A158: 5v5 | B158: ScAdj | C158: WSH | D158: 20142015 | E158: 21115 | F158: 2015-03-28 | G158: NSH | J158: -2 | K158: 41 | L158: 16 | O158: 38.89095326 | P158: 50.00452526 | Q158: 29.34249865 | R158: 37.88934307 | S158: 18.37517283 | T158: 24.76454545 | U158: 2 | V158: 4 | W158: 15.49358068 | X158: 20.2152551 | Y158: 5.539504451 | Z158: 8.181149059 | AD158: 49.25 | AF158: 43.74907915 | AG158: 47.37984154 | AH158: 60.91921859 | AK158: 43.64375257 | AL158: 35.74720648 | AM158: 46.15960577 | AP158: 42.59455918 | AQ158: 22.38599736 | AR158: 30.17000461 | AT158: 33.33333333 | AU158: 2.436548223 | AV158: 4.873096447 | AX158: 43.38864693 | AY158: 18.87542823 | AZ158: 24.62772194 | BC158: 40.37347381 | BD158: 6.748634865 | BE158: 9.966882102 | BH158: 55.26315789 | BI158: 94.73212772 | BJ158: 48.97959184 | BK158: -146.1928934 | BN158: 10.88425137 | BR158: 83.84787636 | BT158: 10.96732582 | BU158: 13.12479762 | BV158: 9.54845461 | BW158: 12.11518219 | BX158: =Table1[[#This Row],[SF]]/Table1[[#This Row],[CF]] -> 0.4724793632 | BY158: =Table1[[#This Row],[MSF]]/Table1[[#This Row],[CF]] -> 0.2820019799 | BZ158: =Table1[[#This Row],[BSF]]/Table1[[#This Row],[CF]] -> 0.2455186569 | CA158: =Table1[[#This Row],[SA]]/Table1[[#This Row],[CA]] -> 0.4952460867 | CB158: =Table1[[#This Row],[MSA]]/Table1[[#This Row],[CA]] -> 0.2624721973 | CC158: =Table1[[#This Row],[BSA]]/Table1[[#This Row],[CA]] -> 0.242281716
A159: 5v5 | B159: ScAdj | C159: WSH | D159: 20142015 | E159: 21128 | F159: 2015-03-29 | G159: NYR | J159: -1 | K159: 22 | L159: 18 | O159: 40.07914803 | P159: 29.36340266 | Q159: 30.82696104 | R159: 24.12040113 | S159: 24.94437855 | T159: 17.59351726 | U159: 3 | V159: 2 | W159: 10.08989998 | X159: 14.40703743 | Y159: 6.20681815 | Z159: 8.483714383 | AD159: 44.06666667 | AF159: 57.71554707 | AG159: 54.5707008 | AH159: 39.98042722 | AK159: 56.10271326 | AL159: 41.97316934 | AM159: 32.84169594 | AP159: 58.64036779 | AQ159: 33.96360165 | AR159: 23.95486464 | AT159: 60 | AU159: 4.084720121 | AV159: 2.723146747 | AX159: 41.18841393 | AY159: 13.73813916 | AZ159: 19.61623856 | BC159: 42.25046394 | BD159: 8.451038328 | BE159: 11.55119961 | BH159: 57.89473684 | BI159: 100.6589343 | BJ159: 42.42424242 | BK159: -81.69440242 | BN159: 12.02675783 | BR159: 88.63217644 | BT159: 5.882582491 | BU159: 6.526883872 | BV159: 9.252186993 | BW159: 5.243001528 | BX159: =Table1[[#This Row],[SF]]/Table1[[#This Row],[CF]] -> 0.622377964 | BY159: =Table1[[#This Row],[MSF]]/Table1[[#This Row],[CF]] -> 0.1467741402 | BZ159: =Table1[[#This Row],[BSF]]/Table1[[#This Row],[CF]] -> 0.2308478959 | CA159: =Table1[[#This Row],[SA]]/Table1[[#This Row],[CA]] -> 0.5991647992 | CB159: =Table1[[#This Row],[MSA]]/Table1[[#This Row],[CA]] -> 0.222279548 | CC159: =Table1[[#This Row],[BSA]]/Table1[[#This Row],[CA]] -> 0.1785556527
A160: 5v5 | B160: ScAdj | C160: WSH | D160: 20142015 | E160: 21143 | F160: 2015-03-31 | G160: CAR | J160: -2 | K160: 33 | L160: 18 | O160: 40.33429741 | P160: 37.56490064 | Q160: 30.69132522 | R160: 28.5091341 | S160: 20.33120043 | T160: 21.88522825 | U160: 4 | V160: 2 | W160: 19.97570183 | X160: 22.83646437 | Y160: 7.613979132 | Z160: 12.7517242 | AD160: 56.75833333 | AF160: 51.77755153 | AG160: 42.63793002 | AH160: 39.71036333 | AK160: 51.84305253 | AL160: 32.44421401 | AM160: 30.13739032 | AP160: 48.15945134 | AQ160: 21.4923863 | AR160: 23.13517008 | AT160: 66.66666667 | AU160: 4.228453972 | AV160: 2.114226986 | AX160: 46.6589374 | AY160: 21.11658393 | AZ160: 24.14073462 | BC160: 37.38628127 | BD160: 8.048840075 | BE160: 13.48001971 | BH160: 65.625 | BI160: 110.5356108 | BJ160: 56 | BK160: -126.8536191 | BN160: 19.67419491 | BR160: 90.86141585 | BT160: 10.36012479 | BU160: 6.623905843 | BV160: 9.642972186 | BW160: 9.055766545 | BX160: =Table1[[#This Row],[SF]]/Table1[[#This Row],[CF]] -> 0.5040673009 | BY160: =Table1[[#This Row],[MSF]]/Table1[[#This Row],[CF]] -> 0.2568564585 | BZ160: =Table1[[#This Row],[BSF]]/Table1[[#This Row],[CF]] -> 0.2390762405 | CA160: =Table1[[#This Row],[SA]]/Table1[[#This Row],[CA]] -> 0.5825977941 | CB160: =Table1[[#This Row],[MSA]]/Table1[[#This Row],[CA]] -> 0.1763323137 | CC160: =Table1[[#This Row],[BSA]]/Table1[[#This Row],[CA]] -> 0.2410698921
A161: 5v5 | B161: ScAdj | C161: WSH | D161: 20142015 | E161: 21154 | F161: 2015-04-02 | G161: MTL | J161: 0 | K161: 29 | L161: 26 | O161: 29.7211183 | P161: 44.95753003 | Q161: 17.08614169 | R161: 25.20180206 | S161: 11.66756458 | T161: 21.07839759 | U161: 1 | V161: 3 | W161: 12.82494179 | X161: 18.89607416 | Y161: 4.246008761 | Z161: 6.134436554 | AD161: 49.41666667 | AF161: 39.79868271 | AG161: 36.08634937 | AH161: 54.5858712 | AK161: 40.40428589 | AL161: 20.74539969 | AM161: 30.59915259 | AP161: 35.63054437 | AQ161: 14.1663516 | AR161: 25.59265812 | AT161: 25 | AU161: 1.214165261 | AV161: 3.642495784 | AX161: 40.43042571 | AY161: 15.5715988 | AZ161: 22.94295682 | BC161: 40.90391724 | BD161: 5.155356337 | BE161: 7.448219762 | BH161: 35.29411765 | BI161: 94.33818798 | BJ161: 55.35714286 | BK161: 0 | BN161: 8.57076893 | BR161: 85.76741905 | BT161: 5.41857711 | BU161: 4.123404471 | BV161: 12.63497661 | BW161: 19.75572797 | BX161: =Table1[[#This Row],[SF]]/Table1[[#This Row],[CF]] -> 0.3925681551 | BY161: =Table1[[#This Row],[MSF]]/Table1[[#This Row],[CF]] -> 0.1823140386 | BZ161: =Table1[[#This Row],[BSF]]/Table1[[#This Row],[CF]] -> 0.4251178062 | CA161: =Table1[[#This Row],[SA]]/Table1[[#This Row],[CA]] -> 0.4688513265 | CB161: =Table1[[#This Row],[MSA]]/Table1[[#This Row],[CA]] -> 0.0917177716 | CC161: =Table1[[#This Row],[BSA]]/Table1[[#This Row],[CA]] -> 0.4394309019
A162: 5v5 | B162: ScAdj | C162: WSH | D162: 20142015 | E162: 21171 | F162: 2015-04-04 | G162: OTT | J162: -2 | K162: 35 | L162: 20 | O162: 51.23235766 | P162: 35.86951558 | Q162: 41.69201813 | R162: 26.76565595 | S162: 25.19314941 | T162: 18.71040148 | U162: 3 | V162: 1 | W162: 31.04410587 | X162: 14.61501855 | Y162: 12.28494307 | Z162: 6.823745637 | AD162: 52.29166667 | AF162: 58.81889304 | AG162: 58.78453788 | AH162: 41.15705374 | AK162: 60.90189112 | AL162: 47.83785347 | AM162: 30.71119089 | AP162: 57.3829426 | AQ162: 28.9068806 | AR162: 21.46850848 | AT162: 75 | AU162: 3.442231076 | AV162: 1.147410359 | AX162: 67.99102318 | AY162: 35.62032865 | AZ162: 16.76942368 | BC162: 64.28982782 | BD162: 14.09587093 | BE162: 7.829636429 | BH162: 56.09756098 | BI162: 106.5633783 | BJ162: 45.76271186 | BK162: -137.689243 | BN162: 11.90799908 | BR162: 94.65537925 | BT162: 16.49886872 | BU162: 8.055254462 | BV162: 9.540339531 | BW162: 9.103859639 | BX162: =Table1[[#This Row],[SF]]/Table1[[#This Row],[CF]] -> 0.491742925 | BY162: =Table1[[#This Row],[MSF]]/Table1[[#This Row],[CF]] -> 0.3220400051 | BZ162: =Table1[[#This Row],[BSF]]/Table1[[#This Row],[CF]] -> 0.18621707 | CA162: =Table1[[#This Row],[SA]]/Table1[[#This Row],[CA]] -> 0.5216240358 | CB162: =Table1[[#This Row],[MSA]]/Table1[[#This Row],[CA]] -> 0.2245710412 | CC162: =Table1[[#This Row],[BSA]]/Table1[[#This Row],[CA]] -> 0.253804923
A163: 5v5 | B163: ScAdj | C163: WSH | D163: 20142015 | E163: 21180 | F163: 2015-04-05 | G163: DET | J163: 1 | K163: 15 | L163: 12 | O163: 42.30588255 | P163: 34.56801931 | Q163: 34.0308796 | R163: 23.46029354 | S163: 25.93467126 | T163: 18.13309856 | U163: 1 | V163: 0 | W163: 16.81056885 | X163: 17.69020843 | Y163: 2.25223707 | Z163: 2.807879279 | AD163: 44.31666667 | AF163: 55.03282847 | AG163: 57.27761458 | AH163: 46.80138004 | AK163: 59.19322523 | AL163: 46.07415065 | AM163: 31.76271408 | AP163: 58.85178978 | AQ163: 35.11275537 | AR163: 24.55026507 | AT163: 100 | AU163: 1.353892441 | AV163: 0 | AX163: 48.72518876 | AY163: 22.7597021 | AZ163: 23.95063947 | BC163: 44.50959058 | BD163: 3.049286744 | BE163: 3.801566531 | BH163: 50 | BI163: 103.8558422 | BJ163: 53.84615385 | BK163: 81.23354645 | BN163: 3.855842205 | BR163: 100 | BT163: 8.096208348 | BU163: 5.327194972 | BV163: 8.275002942 | BW163: 11.10772578 | BX163: =Table1[[#This Row],[SF]]/Table1[[#This Row],[CF]] -> 0.6130275436 | BY163: =Table1[[#This Row],[MSF]]/Table1[[#This Row],[CF]] -> 0.1913731108 | BZ163: =Table1[[#This Row],[BSF]]/Table1[[#This Row],[CF]] -> 0.1955993456 | CA163: =Table1[[#This Row],[SA]]/Table1[[#This Row],[CA]] -> 0.5245628451 | CB163: =Table1[[#This Row],[MSA]]/Table1[[#This Row],[CA]] -> 0.1541076139 | CC163: =Table1[[#This Row],[BSA]]/Table1[[#This Row],[CA]] -> 0.3213295411
A164: 5v5 | B164: ScAdj | C164: WSH | D164: 20142015 | E164: 21201 | F164: 2015-04-08 | G164: BOS | J164: 3 | K164: 34 | L164: 22 | O164: 50.96143744 | P164: 57.20000813 | Q164: 41.98057955 | R164: 43.62119615 | S164: 32.9199198 | T164: 25.71462096 | U164: 3 | V164: 0 | W164: 15.43688039 | X164: 24.31133422 | Y164: 2.857907998 | Z164: 9.0437809 | AD164: 55.90833333 | AF164: 47.1160839 | AG164: 54.69106417 | AH164: 61.38620637 | AK164: 49.04171579 | AL164: 45.05293975 | AM164: 46.81362532 | AP164: 56.14424429 | AQ164: 35.32917314 | AR164: 27.59655252 | AT164: 100 | AU164: 3.219555821 | AV164: 0 | AX164: 38.83666359 | AY164: 16.5666327 | AZ164: 26.09056586 | BC164: 24.01262562 | BD164: 3.067064777 | BE164: 9.705652479 | BH164: 57.5 | BI164: 109.1130234 | BJ164: 38.59649123 | BK164: 193.1733492 | BN164: 9.113023416 | BR164: 100 | BT164: 9.060659747 | BU164: 17.90657519 | BV164: 8.980857889 | BW164: 13.57881199 | BX164: =Table1[[#This Row],[SF]]/Table1[[#This Row],[CF]] -> 0.6459770653 | BY164: =Table1[[#This Row],[MSF]]/Table1[[#This Row],[CF]] -> 0.1777944305 | BZ164: =Table1[[#This Row],[BSF]]/Table1[[#This Row],[CF]] -> 0.1762285041 | CA164: =Table1[[#This Row],[SA]]/Table1[[#This Row],[CA]] -> 0.4495562466 | CB164: =Table1[[#This Row],[MSA]]/Table1[[#This Row],[CA]] -> 0.3130519693 | CC164: =Table1[[#This Row],[BSA]]/Table1[[#This Row],[CA]] -> 0.2373917843
A165: 5v5 | B165: ScAdj | C165: WSH | D165: 20142015 | E165: 21217 | F165: 2015-04-11 | G165: NYR | J165: -1 | K165: 36 | L165: 13 | O165: 39.76298755 | P165: 33.65523843 | Q165: 29.28082463 | R165: 27.92436951 | S165: 18.08764804 | T165: 23.78645212 | U165: 1 | V165: 2 | W165: 17.34773228 | X165: 13.13498752 | Y165: 4.332202604 | Z165: 5.016404092 | AD165: 48.73333333 | AF165: 54.15955919 | AG165: 48.95579863 | AH165: 41.43599806 | AK165: 51.18560486 | AL165: 36.05026288 | AM165: 34.3802087 | AP165: 43.19531158 | AQ165: 22.26933411 | AR165: 29.28564557 | AT165: 33.33333333 | AU165: 1.23119015 | AV165: 2.462380301 | AX165: 56.91005393 | AY165: 21.35835711 | AZ165: 16.17166726 | BC165: 46.34062321 | BD165: 5.333765176 | BE165: 6.176147309 | BH165: 52.38095238 | BI165: 97.12048719 | BJ165: 60 | BK165: -73.87140903 | BN165: 5.528634778 | BR165: 91.59185241 | BT165: 11.19317659 | BU165: 4.137917384 | BV165: 10.48216292 | BW165: 5.730868918 | BX165: =Table1[[#This Row],[SF]]/Table1[[#This Row],[CF]] -> 0.4548865454 | BY165: =Table1[[#This Row],[MSF]]/Table1[[#This Row],[CF]] -> 0.2814973743 | BZ165: =Table1[[#This Row],[BSF]]/Table1[[#This Row],[CF]] -> 0.2636160803 | CA165: =Table1[[#This Row],[SA]]/Table1[[#This Row],[CA]] -> 0.7067681951 | CB165: =Table1[[#This Row],[MSA]]/Table1[[#This Row],[CA]] -> 0.1229501729 | CC165: =Table1[[#This Row],[BSA]]/Table1[[#This Row],[CA]] -> 0.1702816318
A166: 5v5 | B166: ScAdj | C166: WSH | D166: 20142015 | E166: 30141 | F166: 2015-04-15 | G166: NYI | J166: -1 | K166: 43 | L166: 33 | O166: 38.66050161 | P166: 58.67804324 | Q166: 28.17659969 | R166: 43.84581447 | S166: 18.83397908 | T166: 23.94938807 | U166: 1 | V166: 3 | W166: 18.33848018 | X166: 23.61301831 | Y166: 2.62771776 | Z166: 12.92354047 | AD166: 51.26666667 | AF166: 39.71756684 | AG166: 45.24636079 | AH166: 68.67391276 | AK166: 39.12198726 | AL166: 32.97651459 | AM166: 51.31499743 | AP166: 44.02173166 | AQ166: 22.04236824 | AR166: 28.02919279 | AT166: 25 | AU166: 1.170351105 | AV166: 3.511053316 | AX166: 43.71352834 | AY166: 21.46246055 | AZ166: 27.63552208 | BC166: 16.89713926 | BD166: 3.075352384 | BE166: 15.12507987 | BH166: 48.38709677 | BI166: 92.78313637 | BJ166: 65.45454545 | BK166: -70.22106632 | BN166: 5.309552462 | BR166: 87.47358391 | BT166: 9.342620609 | BU166: 19.89642641 | BV166: 10.48390192 | BW166: 14.83222877 | BX166: =Table1[[#This Row],[SF]]/Table1[[#This Row],[CF]] -> 0.4871633397 | BY166: =Table1[[#This Row],[MSF]]/Table1[[#This Row],[CF]] -> 0.2416580287 | BZ166: =Table1[[#This Row],[BSF]]/Table1[[#This Row],[CF]] -> 0.2711786315 | CA166: =Table1[[#This Row],[SA]]/Table1[[#This Row],[CA]] -> 0.4081490579 | CB166: =Table1[[#This Row],[MSA]]/Table1[[#This Row],[CA]] -> 0.3390778784 | CC166: =Table1[[#This Row],[BSA]]/Table1[[#This Row],[CA]] -> 0.2527730638
A167: 5v5 | B167: ScAdj | C167: WSH | D167: 20142015 | E167: 30142 | F167: 2015-04-17 | G167: NYI | J167: 0 | K167: 58 | L167: 36 | O167: 67.0607923 | P167: 44.2246361 | Q167: 47.76035254 | R167: 36.9273374 | S167: 30.63926608 | T167: 18.58649581 | U167: 3 | V167: 3 | W167: 35.71209796 | X167: 23.9416378 | Y167: 13.00922316 | Z167: 8.404414016 | AD167: 55.75 | AF167: 60.26017356 | AG167: 72.17305 | AH167: 47.59602091 | AK167: 56.39586175 | AL167: 51.40127627 | AM167: 39.7424259 | AP167: 62.24234 | AQ167: 32.97499489 | AR167: 20.00340356 | AT167: 50 | AU167: 3.228699552 | AV167: 3.228699552 | AX167: 59.86565218 | AY167: 38.43454489 | AZ167: 25.76678507 | BC167: 60.75204812 | BD167: 14.00095766 | BE167: 9.045109254 | BH167: 46.875 | BI167: 93.65060629 | BJ167: 51.92307692 | BK167: 0 | BN167: 9.791357247 | BR167: 83.85924904 | BT167: 17.12108645 | BU167: 18.34084159 | BV167: 19.30043976 | BW167: 7.297298698 | BX167: =Table1[[#This Row],[SF]]/Table1[[#This Row],[CF]] -> 0.4568879226 | BY167: =Table1[[#This Row],[MSF]]/Table1[[#This Row],[CF]] -> 0.2553069515 | BZ167: =Table1[[#This Row],[BSF]]/Table1[[#This Row],[CF]] -> 0.2878051257 | CA167: =Table1[[#This Row],[SA]]/Table1[[#This Row],[CA]] -> 0.4202747032 | CB167: =Table1[[#This Row],[MSA]]/Table1[[#This Row],[CA]] -> 0.4147200115 | CC167: =Table1[[#This Row],[BSA]]/Table1[[#This Row],[CA]] -> 0.1650052853
A168: 5v5 | B168: ScAdj | C168: WSH | D168: 20142015 | E168: 30143 | F168: 2015-04-19 | G168: NYI | J168: 0 | K168: 41 | L168: 42 | O168: 41.0967638 | P168: 62.17004679 | Q168: 25.63942349 | R168: 42.68445018 | S168: 20.14124084 | T168: 31.74503966 | U168: 1 | V168: 2 | W168: 19.74678911 | X168: 27.28956118 | Y168: 3.577403252 | Z168: 12.73670415 | AD168: 48.675 | AF168: 39.79668159 | AG168: 50.65856862 | AH168: 76.63488048 | AK168: 37.52630246 | AL168: 31.60483635 | AM168: 52.61565508 | AP168: 38.81804718 | AQ168: 24.82741552 | AR168: 39.13101961 | AT168: 33.33333333 | AU168: 1.232665639 | AV168: 2.465331279 | AX168: 41.98197562 | AY168: 24.34118843 | AZ168: 33.63890438 | BC168: 21.92828062 | BD168: 4.409742068 | BE168: 15.70009757 | BH168: 51.35135135 | BI168: 98.66474052 | BJ168: 50 | BK168: 0 | BN168: 4.964937403 | BR168: 93.69980311 | BT168: 5.498182646 | BU168: 10.93941053 | BV168: 15.45734031 | BW168: 19.4855966 | BX168: =Table1[[#This Row],[SF]]/Table1[[#This Row],[CF]] -> 0.4900931114 | BY168: =Table1[[#This Row],[MSF]]/Table1[[#This Row],[CF]] -> 0.1337862678 | BZ168: =Table1[[#This Row],[BSF]]/Table1[[#This Row],[CF]] -> 0.3761206207 | CA168: =Table1[[#This Row],[SA]]/Table1[[#This Row],[CA]] -> 0.5106163064 | CB168: =Table1[[#This Row],[MSA]]/Table1[[#This Row],[CA]] -> 0.1759595029 | CC168: =Table1[[#This Row],[BSA]]/Table1[[#This Row],[CA]] -> 0.3134241907
A169: 5v5 | B169: ScAdj | C169: WSH | D169: 20142015 | E169: 30144 | F169: 2015-04-21 | G169: NYI | J169: -3 | K169: 37 | L169: 49 | O169: 57.41599168 | P169: 58.81676834 | Q169: 36.81072415 | R169: 44.52947055 | S169: 24.66631417 | T169: 26.52778589 | U169: 2 | V169: 1 | W169: 16.65197259 | X169: 24.927041 | Y169: 10.71044333 | Z169: 8.977439871 | AD169: 61.125 | AF169: 49.39742605 | AG169: 56.35925564 | AH169: 57.73425113 | AK169: 45.25526929 | AL169: 36.13322616 | AM169: 43.70990974 | AP169: 48.18194703 | AQ169: 24.21233293 | AR169: 26.03954443 | AT169: 66.66666667 | AU169: 1.963190184 | AV169: 0.981595092 | AX169: 40.04898421 | AY169: 16.34549457 | AZ169: 24.4682611 | BC169: 54.40119295 | BD169: 10.5133186 | BE169: 8.812210916 | BH169: 62.5 | BI169: 104.3385916 | BJ169: 55.55555556 | BK169: -176.6871166 | BN169: 8.108223977 | BR169: 96.23036764 | BT169: 12.14440997 | BU169: 18.00168466 | BV169: 20.60526754 | BW169: 14.28729779 | BX169: =Table1[[#This Row],[SF]]/Table1[[#This Row],[CF]] -> 0.4296070389 | BY169: =Table1[[#This Row],[MSF]]/Table1[[#This Row],[CF]] -> 0.211516158 | BZ169: =Table1[[#This Row],[BSF]]/Table1[[#This Row],[CF]] -> 0.3588768031 | CA169: =Table1[[#This Row],[SA]]/Table1[[#This Row],[CA]] -> 0.4510242 | CB169: =Table1[[#This Row],[MSA]]/Table1[[#This Row],[CA]] -> 0.3060638177 | CC169: =Table1[[#This Row],[BSA]]/Table1[[#This Row],[CA]] -> 0.2429119823
A170: 5v5 | B170: ScAdj | C170: WSH | D170: 20142015 | E170: 30145 | F170: 2015-04-23 | G170: NYI | J170: 2 | K170: 47 | L170: 48 | O170: 54.44699252 | P170: 48.89428683 | Q170: 41.36049161 | R170: 35.93830961 | S170: 34.27060103 | T170: 19.59239951 | U170: 5 | V170: 1 | W170: 26.50000915 | X170: 27.23869937 | Y170: 9.424803685 | Z170: 15.79937128 | AD170: 50.475 | AF170: 52.68658649 | AG170: 64.72153643 | AH170: 58.12099474 | AK170: 53.50728726 | AL170: 49.16551752 | AM170: 42.72013029 | AP170: 63.62549558 | AQ170: 40.73771296 | AR170: 23.28962795 | AT170: 83.33333333 | AU170: 5.943536404 | AV170: 1.188707281 | AX170: 49.31270193 | AY170: 31.50075382 | AZ170: 32.37884026 | BC170: 37.36417027 | BD170: 11.20333276 | BE170: 18.78082768 | BH170: 60.71428571 | BI170: 109.4857445 | BJ170: 58.13953488 | BK170: 142.6448737 | BN170: 14.58976455 | BR170: 94.89597995 | BT170: 7.089890589 | BU170: 16.34591009 | BV170: 13.08650091 | BW170: 12.95597722 | BX170: =Table1[[#This Row],[SF]]/Table1[[#This Row],[CF]] -> 0.6294305607 | BY170: =Table1[[#This Row],[MSF]]/Table1[[#This Row],[CF]] -> 0.1302163859 | BZ170: =Table1[[#This Row],[BSF]]/Table1[[#This Row],[CF]] -> 0.2403530536 | CA170: =Table1[[#This Row],[SA]]/Table1[[#This Row],[CA]] -> 0.400709383 | CB170: =Table1[[#This Row],[MSA]]/Table1[[#This Row],[CA]] -> 0.3343112488 | CC170: =Table1[[#This Row],[BSA]]/Table1[[#This Row],[CA]] -> 0.2649793679
A171: 5v5 | B171: ScAdj | C171: WSH | D171: 20142015 | E171: 30146 | F171: 2015-04-25 | G171: NYI | J171: 2 | K171: 31 | L171: 42 | O171: 46.25132704 | P171: 58.12193794 | Q171: 38.5141641 | R171: 41.68149232 | S171: 26.24535234 | T171: 32.99585735 | U171: 0 | V171: 2 | W171: 18.66631562 | X171: 22.75355149 | Y171: 8.047115618 | Z171: 7.169978787 | AD171: 48.28333333 | AF171: 44.31338528 | AG171: 57.47489725 | AH171: 72.22608788 | AK171: 48.02524952 | AL171: 47.86019701 | AM171: 51.79612439 | AP171: 44.30252602 | AQ171: 32.61417619 | AR171: 41.00279133 | AT171: 0 | AU171: 0 | AV171: 2.485329651 | AX171: 45.06609248 | AY171: 23.19597384 | AZ171: 28.2750381 | BC171: 52.88207725 | BD171: 9.999867527 | BE171: 8.909880439 | BH171: 32.43243243 | BI171: 93.93863303 | BJ171: 58.18181818 | BK171: 149.1197791 | BN171: 0 | BR171: 93.93863303 | BT171: 12.26881176 | BU171: 8.685634969 | BV171: 7.737162943 | BW171: 16.44044561 | BX171: =Table1[[#This Row],[SF]]/Table1[[#This Row],[CF]] -> 0.5674507959 | BY171: =Table1[[#This Row],[MSF]]/Table1[[#This Row],[CF]] -> 0.2652639945 | BZ171: =Table1[[#This Row],[BSF]]/Table1[[#This Row],[CF]] -> 0.1672852097 | CA171: =Table1[[#This Row],[SA]]/Table1[[#This Row],[CA]] -> 0.5677005709 | CB171: =Table1[[#This Row],[MSA]]/Table1[[#This Row],[CA]] -> 0.1494381515 | CC171: =Table1[[#This Row],[BSA]]/Table1[[#This Row],[CA]] -> 0.2828612774
A172: 5v5 | B172: ScAdj | C172: WSH | D172: 20142015 | E172: 30147 | F172: 2015-04-27 | G172: NYI | J172: -1 | K172: 46 | L172: 52 | O172: 54.51866209 | P172: 40.65096766 | Q172: 38.22882745 | R172: 27.08203809 | S172: 25.17279597 | T172: 10.75853789 | U172: 2 | V172: 1 | W172: 23.29511065 | X172: 17.8953714 | Y172: 9.629729202 | Z172: 6.856236309 | AD172: 57.1 | AF172: 57.28577723 | AG172: 57.28756087 | AH172: 42.71555271 | AK172: 58.53364082 | AL172: 40.17039662 | AM172: 28.45748311 | AP172: 70.05806148 | AQ172: 26.45127422 | AR172: 11.3049435 | AT172: 66.66666667 | AU172: 2.101576182 | AV172: 1.050788091 | AX172: 56.55459586 | AY172: 24.47822486 | AZ172: 18.80424315 | BC172: 58.41167868 | BD172: 10.11880477 | BE172: 7.204451463 | BH172: 50 | BI172: 98.65014153 | BJ172: 58.82352941 | BK172: -63.04728546 | BN172: 7.945084854 | BR172: 90.70505667 | BT172: 13.05603148 | BU172: 16.3235002 | BV172: 16.28983465 | BW172: 13.56892957 | BX172: =Table1[[#This Row],[SF]]/Table1[[#This Row],[CF]] -> 0.461728058 | BY172: =Table1[[#This Row],[MSF]]/Table1[[#This Row],[CF]] -> 0.2394782076 | BZ172: =Table1[[#This Row],[BSF]]/Table1[[#This Row],[CF]] -> 0.2987937346 | CA172: =Table1[[#This Row],[SA]]/Table1[[#This Row],[CA]] -> 0.2646563787 | CB172: =Table1[[#This Row],[MSA]]/Table1[[#This Row],[CA]] -> 0.4015525617 | CC172: =Table1[[#This Row],[BSA]]/Table1[[#This Row],[CA]] -> 0.3337910596
A173: 5v5 | B173: ScAdj | C173: WSH | D173: 20142015 | E173: 30221 | F173: 2015-04-30 | G173: NYR | J173: 0 | K173: 32 | L173: 33 | O173: 63.78721348 | P173: 52.14870667 | Q173: 47.31914121 | R173: 35.83698764 | S173: 30.14983405 | T173: 25.53129808 | U173: 1 | V173: 1 | W173: 30.86808268 | X173: 21.12124109 | Y173: 12.80980086 | Z173: 4.634371751 | AD173: 54 | AF173: 55.01937052 | AG173: 70.87468164 | AH173: 57.94300741 | AK173: 56.90397312 | AL173: 52.57682356 | AM173: 39.81887516 | AP173: 54.1473079 | AQ173: 33.49981562 | AR173: 28.36810897 | AT173: 50 | AU173: 1.111111111 | AV173: 1.111111111 | AX173: 59.37388764 | AY173: 34.29786964 | AZ173: 23.46804566 | BC173: 73.43312375 | BD173: 14.23311207 | BE173: 5.149301946 | BH173: 47.36842105 | BI173: 99.40000655 | BJ173: 45.45454545 | BK173: 0 | BN173: 3.316767841 | BR173: 96.08323871 | BT173: 17.16930715 | BU173: 10.30568957 | BV173: 16.46807227 | BW173: 16.31171903 | BX173: =Table1[[#This Row],[SF]]/Table1[[#This Row],[CF]] -> 0.4726626608 | BY173: =Table1[[#This Row],[MSF]]/Table1[[#This Row],[CF]] -> 0.2691653423 | BZ173: =Table1[[#This Row],[BSF]]/Table1[[#This Row],[CF]] -> 0.2581719967 | CA173: =Table1[[#This Row],[SA]]/Table1[[#This Row],[CA]] -> 0.4895864099 | CB173: =Table1[[#This Row],[MSA]]/Table1[[#This Row],[CA]] -> 0.1976211919 | CC173: =Table1[[#This Row],[BSA]]/Table1[[#This Row],[CA]] -> 0.3127923983
A174: 5v5 | B174: ScAdj | C174: WSH | D174: 20142015 | E174: 30222 | F174: 2015-05-02 | G174: NYR | J174: -1 | K174: 36 | L174: 28 | O174: 43.71724103 | P174: 47.02457688 | Q174: 34.37562973 | R174: 34.12799557 | S174: 24.09015475 | T174: 23.03992495 | U174: 2 | V174: 2 | W174: 27.81958892 | X174: 23.04188094 | Y174: 10.89845308 | Z174: 10.53674583 | AD174: 48.33333333 | AF174: 48.17761208 | AG174: 54.26967852 | AH174: 58.37533682 | AK174: 50.18074529 | AL174: 42.67319553 | AM174: 42.3657876 | AP174: 51.11418208 | AQ174: 29.90501969 | AR174: 28.60128614 | AT174: 50 | AU174: 2.482758621 | AV174: 2.482758621 | AX174: 54.6967852 | AY174: 34.5346621 | AZ174: 28.60371427 | BC174: 50.84372263 | BD174: 13.52911417 | BE174: 13.08009827 | BH174: 34.48275862 | BI174: 99.62156292 | BJ174: 54.16666667 | BK174: -74.48275862 | BN174: 8.30214675 | BR174: 91.31941617 | BT174: 10.28547498 | BU174: 11.08807062 | BV174: 9.3416113 | BW174: 12.89658131 | BX174: =Table1[[#This Row],[SF]]/Table1[[#This Row],[CF]] -> 0.5510447179 | BY174: =Table1[[#This Row],[MSF]]/Table1[[#This Row],[CF]] -> 0.2352727377 | BZ174: =Table1[[#This Row],[BSF]]/Table1[[#This Row],[CF]] -> 0.2136825445 | CA174: =Table1[[#This Row],[SA]]/Table1[[#This Row],[CA]] -> 0.4899549657 | CB174: =Table1[[#This Row],[MSA]]/Table1[[#This Row],[CA]] -> 0.235793097 | CC174: =Table1[[#This Row],[BSA]]/Table1[[#This Row],[CA]] -> 0.2742519373
A175: 5v5 | B175: ScAdj | C175: WSH | D175: 20142015 | E175: 30223 | F175: 2015-05-04 | G175: NYR | J175: 0 | K175: 38 | L175: 30 | O175: 41.30831281 | P175: 51.55839321 | Q175: 31.7684588 | R175: 35.53234506 | S175: 18.77601037 | T175: 25.19589613 | U175: 1 | V175: 0 | W175: 18.74837532 | X175: 28.24891122 | Y175: 3.865930856 | Z175: 6.661970393 | AD175: 50.625 | AF175: 44.4812943 | AG175: 48.95800037 | AH175: 61.1062438 | AK175: 47.20368403 | AL175: 37.65150673 | AM175: 42.11240896 | AP175: 42.70001432 | AQ175: 22.25304933 | AR175: 29.86180282 | AT175: 100 | AU175: 1.185185185 | AV175: 0 | AX175: 39.89246337 | AY175: 22.22029667 | AZ175: 33.48019108 | BC175: 36.72081229 | BD175: 4.581843977 | BE175: 7.895668614 | BH175: 39.39393939 | BI175: 105.3259451 | BJ175: 71.42857143 | BK175: 0 | BN175: 5.325945077 | BR175: 100 | BT175: 12.99244843 | BU175: 10.33644893 | BV175: 9.539854014 | BW175: 16.02604815 | BX175: =Table1[[#This Row],[SF]]/Table1[[#This Row],[CF]] -> 0.4545334605 | BY175: =Table1[[#This Row],[MSF]]/Table1[[#This Row],[CF]] -> 0.3145238221 | BZ175: =Table1[[#This Row],[BSF]]/Table1[[#This Row],[CF]] -> 0.2309427175 | CA175: =Table1[[#This Row],[SA]]/Table1[[#This Row],[CA]] -> 0.4886866049 | CB175: =Table1[[#This Row],[MSA]]/Table1[[#This Row],[CA]] -> 0.2004804317 | CC175: =Table1[[#This Row],[BSA]]/Table1[[#This Row],[CA]] -> 0.3108329634
A176: 5v5 | B176: ScAdj | C176: WSH | D176: 20142015 | E176: 30224 | F176: 2015-05-06 | G176: NYR | J176: -4 | K176: 34 | L176: 31 | O176: 39.39537427 | P176: 53.6021092 | Q176: 35.14378456 | R176: 36.64651252 | S176: 25.48589654 | T176: 25.66041185 | U176: 2 | V176: 1 | W176: 12.7501081 | X176: 29.47610564 | Y176: 6.887296923 | Z176: 16.85572907 | AD176: 50.39166667 | AF176: 42.36176378 | AG176: 46.90701087 | AH176: 63.82258744 | AK176: 48.95339062 | AL176: 41.84475754 | AM176: 43.63401524 | AP176: 49.82939599 | AQ176: 30.34537045 | AR176: 30.55316112 | AT176: 66.66666667 | AU176: 2.381346122 | AV176: 1.190673061 | AX176: 30.19476996 | AY176: 15.18121024 | AZ176: 35.09640492 | BC176: 29.00766282 | BD176: 8.20051891 | BE176: 20.06966252 | BH176: 46.875 | BI176: 103.9504239 | BJ176: 56.36363636 | BK176: -285.7615346 | BN176: 7.847477512 | BR176: 96.10294641 | BT176: 9.657888016 | BU176: 10.98610067 | BV176: 4.251589712 | BW176: 16.95559668 | BX176: =Table1[[#This Row],[SF]]/Table1[[#This Row],[CF]] -> 0.6469261179 | BY176: =Table1[[#This Row],[MSF]]/Table1[[#This Row],[CF]] -> 0.2451528433 | BZ176: =Table1[[#This Row],[BSF]]/Table1[[#This Row],[CF]] -> 0.1079210387 | CA176: =Table1[[#This Row],[SA]]/Table1[[#This Row],[CA]] -> 0.4787201891 | CB176: =Table1[[#This Row],[MSA]]/Table1[[#This Row],[CA]] -> 0.2049564995 | CC176: =Table1[[#This Row],[BSA]]/Table1[[#This Row],[CA]] -> 0.3163233114
A177: 5v5 | B177: ScAdj | C177: WSH | D177: 20142015 | E177: 30225 | F177: 2015-05-08 | G177: NYR | J177: 0 | K177: 24 | L177: 32 | O177: 54.56634764 | P177: 51.64064408 | Q177: 33.79137475 | R177: 41.60611656 | S177: 28.77739956 | T177: 33.24487814 | U177: 1 | V177: 2 | W177: 21.33887032 | X177: 18.43980771 | Y177: 13.36708921 | Z177: 7.582277576 | AD177: 61.45 | AF177: 51.37735921 | AG177: 53.2787772 | AH177: 50.42210976 | AK177: 44.81763804 | AL177: 32.99401928 | AM177: 40.62436117 | AP177: 46.39848878 | AQ177: 28.09835596 | AR177: 32.46041804 | AT177: 33.33333333 | AU177: 0.97640358 | AV177: 1.95280716 | AX177: 53.64399065 | AY177: 20.83534938 | AZ177: 18.00469426 | BC177: 63.80665032 | BD177: 13.05167376 | BE177: 7.403362971 | BH177: 52.63157895 | BI177: 97.45898485 | BJ177: 53.33333333 | BK177: 0 | BN177: 3.474949145 | BR177: 93.9840357 | BT177: 5.013975185 | BU177: 8.361238418 | BV177: 20.7749729 | BW177: 10.03452752 | BX177: =Table1[[#This Row],[SF]]/Table1[[#This Row],[CF]] -> 0.5273836495 | BY177: =Table1[[#This Row],[MSF]]/Table1[[#This Row],[CF]] -> 0.09188768173 | BZ177: =Table1[[#This Row],[BSF]]/Table1[[#This Row],[CF]] -> 0.3807286688 | CA177: =Table1[[#This Row],[SA]]/Table1[[#This Row],[CA]] -> 0.6437734992 | CB177: =Table1[[#This Row],[MSA]]/Table1[[#This Row],[CA]] -> 0.1619119701 | CC177: =Table1[[#This Row],[BSA]]/Table1[[#This Row],[CA]] -> 0.1943145307
A178: 5v5 | B178: ScAdj | C178: WSH | D178: 20142015 | E178: 30226 | F178: 2015-05-10 | G178: NYR | J178: -1 | K178: 34 | L178: 28 | O178: 63.48989611 | P178: 52.43181496 | Q178: 44.74466918 | R178: 40.3630107 | S178: 31.82116174 | T178: 28.22383645 | U178: 3 | V178: 3 | W178: 30.60592188 | X178: 23.44967991 | Y178: 15.24114474 | Z178: 14.72531234 | AD178: 47.53333333 | AF178: 54.76963334 | AG178: 80.14152385 | AH178: 66.18321664 | AK178: 52.57418513 | AL178: 56.47994707 | AM178: 50.94910186 | AP178: 52.99552453 | AQ178: 40.16696433 | AR178: 35.62616101 | AT178: 50 | AU178: 3.786816269 | AV178: 3.786816269 | AX178: 56.61933429 | AY178: 38.63300097 | AZ178: 29.59987646 | BC178: 50.860683 | BD178: 19.23847162 | BE178: 18.58735078 | BH178: 65.51724138 | BI178: 98.79837518 | BJ178: 51.06382979 | BK178: -75.73632539 | BN178: 9.42768848 | BR178: 89.3706867 | BT178: 12.92350744 | BU178: 12.13917425 | BV178: 18.74522693 | BW178: 12.06880426 | BX178: =Table1[[#This Row],[SF]]/Table1[[#This Row],[CF]] -> 0.5012004065 | BY178: =Table1[[#This Row],[MSF]]/Table1[[#This Row],[CF]] -> 0.2035521907 | BZ178: =Table1[[#This Row],[BSF]]/Table1[[#This Row],[CF]] -> 0.2952474028 | CA178: =Table1[[#This Row],[SA]]/Table1[[#This Row],[CA]] -> 0.5382960035 | CB178: =Table1[[#This Row],[MSA]]/Table1[[#This Row],[CA]] -> 0.2315230602 | CC178: =Table1[[#This Row],[BSA]]/Table1[[#This Row],[CA]] -> 0.2301809363
A179: 5v5 | B179: ScAdj | C179: WSH | D179: 20142015 | E179: 30227 | F179: 2015-05-13 | G179: NYR | J179: -2 | K179: 26 | L179: 30 | O179: 57.14824069 | P179: 52.01794221 | Q179: 42.17661244 | R179: 37.87349165 | S179: 30.28065505 | T179: 26.72171117 | U179: 1 | V179: 1 | W179: 22.48459283 | X179: 17.34539438 | Y179: 10.21137037 | Z179: 6.323192204 | AD179: 57.93333333 | AF179: 52.34976544 | AG179: 59.1869006 | AH179: 53.87358802 | AK179: 52.68776714 | AL179: 43.68118664 | AM179: 39.22455982 | AP179: 53.12175101 | AQ179: 31.36086254 | AR179: 27.67495979 | AT179: 50 | AU179: 1.035673188 | AV179: 1.035673188 | AX179: 56.45141866 | AY179: 23.28668993 | AZ179: 17.96415989 | BC179: 61.75772915 | BD179: 10.5756425 | BE179: 6.548760626 | BH179: 50 | BI179: 99.56016315 | BJ179: 62.5 | BK179: -124.2807825 | BN179: 3.302438465 | BR179: 96.25772469 | BT179: 11.89595738 | BU179: 11.15178048 | BV179: 14.97162826 | BW179: 14.14445057 | BX179: =Table1[[#This Row],[SF]]/Table1[[#This Row],[CF]] -> 0.529861544 | BY179: =Table1[[#This Row],[MSF]]/Table1[[#This Row],[CF]] -> 0.208159643 | BZ179: =Table1[[#This Row],[BSF]]/Table1[[#This Row],[CF]] -> 0.261978813 | CA179: =Table1[[#This Row],[SA]]/Table1[[#This Row],[CA]] -> 0.513701812 | CB179: =Table1[[#This Row],[MSA]]/Table1[[#This Row],[CA]] -> 0.2143833456 | CC179: =Table1[[#This Row],[BSA]]/Table1[[#This Row],[CA]] -> 0.2719148426
A180: 5v5 | B180: ScAdj | C180: WSH | D180: 20152016 | E180: 20022 | F180: 2015-10-10 | G180: N.J | J180: 2 | K180: 22 | L180: 32 | O180: 28.15779181 | P180: 33.41365556 | Q180: 18.69250572 | R180: 22.7573192 | S180: 12.29292469 | T180: 16.86558496 | U180: 2 | V180: 1 | W180: 13.47151975 | X180: 15.53558576 | Y180: 5.539788716 | Z180: 3.068362872 | AD180: 44.725 | AF180: 45.7318985 | AG180: 37.774567 | AH180: 44.8254742 | AK180: 45.0967061 | AL180: 25.07658677 | AM180: 30.52966242 | AP180: 42.15896092 | AQ180: 16.4913467 | AR180: 22.62571487 | AT180: 66.66666667 | AU180: 2.683063164 | AV180: 1.341531582 | AX180: 46.44213723 | AY180: 18.0724692 | AZ180: 20.84147895 | BC180: 64.35514825 | BD180: 7.43180152 | BE180: 4.116305697 | BH180: 60 | BI180: 110.3402873 | BJ180: 59.57446809 | BK180: 160.9837898 | BN180: 16.26952129 | BR180: 94.07076599 | BT180: 6.399581035 | BU180: 5.891734234 | BV180: 9.46528609 | BW180: 10.65633636 | BX180: =Table1[[#This Row],[SF]]/Table1[[#This Row],[CF]] -> 0.436572753 | BY180: =Table1[[#This Row],[MSF]]/Table1[[#This Row],[CF]] -> 0.2272756713 | BZ180: =Table1[[#This Row],[BSF]]/Table1[[#This Row],[CF]] -> 0.3361515759 | CA180: =Table1[[#This Row],[SA]]/Table1[[#This Row],[CA]] -> 0.5047512664 | CB180: =Table1[[#This Row],[MSA]]/Table1[[#This Row],[CA]] -> 0.1763271374 | CC180: =Table1[[#This Row],[BSA]]/Table1[[#This Row],[CA]] -> 0.318921596
A181: 5v5 | B181: ScAdj | C181: WSH | D181: 20152016 | E181: 20040 | F181: 2015-10-13 | G181: S.J | J181: 0 | K181: 21 | L181: 8 | O181: 33.72461128 | P181: 40.01743532 | Q181: 25.32753137 | R181: 31.23132457 | S181: 18.4754082 | T181: 20.81537504 | U181: 0 | V181: 2 | W181: 12.99873614 | X181: 22.7249101 | Y181: 4.603099045 | Z181: 13.43428086 | AD181: 39.33333333 | AF181: 45.73321848 | AG181: 51.44432229 | AH181: 61.0435454 | AK181: 44.78084104 | AL181: 38.63521735 | AM181: 47.64100359 | AP181: 47.0222446 | AQ181: 28.18282607 | AR181: 31.75226701 | AT181: 0 | AU181: 0 | AV181: 3.050847458 | AX181: 36.38692437 | AY181: 19.82858055 | AZ181: 34.6651171 | BC181: 25.51977654 | BD181: 7.021676509 | BE181: 20.4929708 | BH181: 50 | BI181: 90.39171768 | BJ181: 45.71428571 | BK181: 0 | BN181: 0 | BR181: 90.39171768 | BT181: 6.852123173 | BU181: 10.41594953 | BV181: 8.397079906 | BW181: 8.786110743 | BX181: =Table1[[#This Row],[SF]]/Table1[[#This Row],[CF]] -> 0.5478316131 | BY181: =Table1[[#This Row],[MSF]]/Table1[[#This Row],[CF]] -> 0.2031787147 | BZ181: =Table1[[#This Row],[BSF]]/Table1[[#This Row],[CF]] -> 0.2489896722 | CA181: =Table1[[#This Row],[SA]]/Table1[[#This Row],[CA]] -> 0.5201576481 | CB181: =Table1[[#This Row],[MSA]]/Table1[[#This Row],[CA]] -> 0.2602852843 | CC181: =Table1[[#This Row],[BSA]]/Table1[[#This Row],[CA]] -> 0.2195570674
A182: 5v5 | B182: ScAdj | C182: WSH | D182: 20152016 | E182: 20052 | F182: 2015-10-15 | G182: CHI | J182: 0 | K182: 29 | L182: 16 | O182: 49.6649838 | P182: 44.60195213 | Q182: 35.60080867 | R182: 31.78295472 | S182: 22.41128302 | T182: 23.18827298 | U182: 3 | V182: 1 | W182: 23.98972906 | X182: 29.90792831 | Y182: 8.363292342 | Z182: 11.74601166 | AD182: 55.075 | AF182: 52.68547589 | AG182: 54.10620114 | AH182: 48.5904154 | AK182: 52.83291832 | AL182: 38.78435807 | AM182: 34.62509819 | AP182: 49.14802903 | AQ182: 24.41537868 | AR182: 25.26184981 | AT182: 75 | AU182: 3.26827054 | AV182: 1.089423513 | AX182: 44.50978063 | AY182: 26.13497492 | AZ182: 32.58240034 | BC182: 41.58916857 | BD182: 9.111167327 | BE182: 12.79638129 | BH182: 45.83333333 | BI182: 109.0735898 | BJ182: 50 | BK182: 0 | BN182: 13.38611448 | BR182: 95.6874753 | BT182: 13.18952566 | BU182: 8.59468174 | BV182: 14.06417512 | BW182: 12.81899742 | BX182: =Table1[[#This Row],[SF]]/Table1[[#This Row],[CF]] -> 0.4512491761 | BY182: =Table1[[#This Row],[MSF]]/Table1[[#This Row],[CF]] -> 0.2655699177 | BZ182: =Table1[[#This Row],[BSF]]/Table1[[#This Row],[CF]] -> 0.2831809062 | CA182: =Table1[[#This Row],[SA]]/Table1[[#This Row],[CA]] -> 0.5198936789 | CB182: =Table1[[#This Row],[MSA]]/Table1[[#This Row],[CA]] -> 0.1926974343 | CC182: =Table1[[#This Row],[BSA]]/Table1[[#This Row],[CA]] -> 0.287408887
A183: 5v5 | B183: ScAdj | C183: WSH | D183: 20152016 | E183: 20070 | F183: 2015-10-17 | G183: CAR | J183: -2 | K183: 18 | L183: 16 | O183: 47.23609353 | P183: 24.34771459 | Q183: 38.06040128 | R183: 13.25097624 | S183: 29.93177177 | T183: 7.763728437 | U183: 2 | V183: 1 | W183: 23.06946387 | X183: 9.684158853 | Y183: 8.524724651 | Z183: 0.925228444 | AD183: 50.3 | AF183: 65.98712023 | AG183: 56.34524079 | AH183: 29.04299951 | AK183: 74.17536445 | AL183: 45.40008105 | AM183: 15.80633349 | AP183: 79.40409759 | AQ183: 35.70390271 | AR183: 9.260908672 | AT183: 66.66666667 | AU183: 2.385685885 | AV183: 1.192842942 | AX183: 70.43331989 | AY183: 27.51824716 | AZ183: 11.55168054 | BC183: 90.20917422 | BD183: 10.16865764 | BE183: 1.10365222 | BH183: 67.74193548 | BI183: 93.80145375 | BJ183: 50 | BK183: -143.1411531 | BN183: 6.681863055 | BR183: 87.11959069 | BT183: 8.128629508 | BU183: 5.487247804 | BV183: 9.175692244 | BW183: 11.09673835 | BX183: =Table1[[#This Row],[SF]]/Table1[[#This Row],[CF]] -> 0.6336631489 | BY183: =Table1[[#This Row],[MSF]]/Table1[[#This Row],[CF]] -> 0.1720851345 | BZ183: =Table1[[#This Row],[BSF]]/Table1[[#This Row],[CF]] -> 0.1942517164 | CA183: =Table1[[#This Row],[SA]]/Table1[[#This Row],[CA]] -> 0.3188688782 | CB183: =Table1[[#This Row],[MSA]]/Table1[[#This Row],[CA]] -> 0.2253701383 | CC183: =Table1[[#This Row],[BSA]]/Table1[[#This Row],[CA]] -> 0.4557609836
A184: 5v5 | B184: ScAdj | C184: WSH | D184: 20152016 | E184: 20087 | F184: 2015-10-20 | G184: CGY | J184: -1 | K184: 16 | L184: 15 | O184: 59.26904469 | P184: 32.47476161 | Q184: 44.00690494 | R184: 23.38428166 | S184: 30.0620013 | T184: 16.41786276 | U184: 6 | V184: 2 | W184: 28.14869691 | X184: 20.01306343 | Y184: 18.44252124 | Z184: 11.30092954 | AD184: 51.95 | AF184: 64.60277493 | AG184: 68.45317962 | AH184: 37.50694315 | AK184: 65.30068272 | AL184: 50.82606923 | AM184: 27.00783252 | AP184: 64.67747251 | AQ184: 34.72030949 | AR184: 18.96192042 | AT184: 75 | AU184: 6.929740135 | AV184: 2.309913378 | AX184: 58.44615461 | AY184: 32.51052579 | AZ184: 23.11422147 | BC184: 62.005318 | BD184: 21.30031327 | BE184: 13.05208417 | BH184: 53.33333333 | BI184: 107.7768975 | BJ184: 52.72727273 | BK184: -69.29740135 | BN184: 19.95875105 | BR184: 87.81814644 | BT184: 13.94490364 | BU184: 6.966418895 | BV184: 15.26213975 | BW184: 9.09047995 | BX184: =Table1[[#This Row],[SF]]/Table1[[#This Row],[CF]] -> 0.5072125164 | BY184: =Table1[[#This Row],[MSF]]/Table1[[#This Row],[CF]] -> 0.2352813971 | BZ184: =Table1[[#This Row],[BSF]]/Table1[[#This Row],[CF]] -> 0.2575060865 | CA184: =Table1[[#This Row],[SA]]/Table1[[#This Row],[CA]] -> 0.5055576068 | CB184: =Table1[[#This Row],[MSA]]/Table1[[#This Row],[CA]] -> 0.2145179379 | CC184: =Table1[[#This Row],[BSA]]/Table1[[#This Row],[CA]] -> 0.2799244552
A185: 5v5 | B185: ScAdj | C185: WSH | D185: 20152016 | E185: 20098 | F185: 2015-10-22 | G185: VAN | J185: -1 | K185: 11 | L185: 11 | O185: 40.18867799 | P185: 34.94149745 | Q185: 36.40007888 | R185: 28.80798091 | S185: 29.94453058 | T185: 20.50662285 | U185: 3 | V185: 1 | W185: 25.83044938 | X185: 16.41106954 | Y185: 12.39524647 | Z185: 9.494027599 | AD185: 49.13333333 | AF185: 53.49205929 | AG185: 49.07708303 | AH185: 42.66939987 | AK185: 55.82144139 | AL185: 44.45057122 | AM185: 35.17935254 | AP185: 59.35351037 | AQ185: 36.56726936 | AR185: 25.0420089 | AT185: 75 | AU185: 3.663500678 | AV185: 1.221166893 | AX185: 61.14943316 | AY185: 31.54328961 | AZ185: 20.0406548 | BC185: 56.62703309 | BD185: 15.13666462 | BE185: 11.59379218 | BH185: 65 | BI185: 105.1420507 | BJ185: 42.42424242 | BK185: -73.27001357 | BN185: 10.01852406 | BR185: 95.12352664 | BT185: 6.455548299 | BU185: 8.301358068 | BV185: 3.788599115 | BW185: 6.133516531 | BX185: =Table1[[#This Row],[SF]]/Table1[[#This Row],[CF]] -> 0.7450986715 | BY185: =Table1[[#This Row],[MSF]]/Table1[[#This Row],[CF]] -> 0.160631019 | BZ185: =Table1[[#This Row],[BSF]]/Table1[[#This Row],[CF]] -> 0.09427030956 | CA185: =Table1[[#This Row],[SA]]/Table1[[#This Row],[CA]] -> 0.5868844883 | CB185: =Table1[[#This Row],[MSA]]/Table1[[#This Row],[CA]] -> 0.2375787723 | CC185: =Table1[[#This Row],[BSA]]/Table1[[#This Row],[CA]] -> 0.1755367394
A186: 5v5 | B186: ScAdj | C186: WSH | D186: 20152016 | E186: 20104 | F186: 2015-10-23 | G186: EDM | J186: -3 | K186: 17 | L186: 22 | O186: 42.50120183 | P186: 35.43635698 | Q186: 32.06031742 | R186: 26.52516479 | S186: 20.68448584 | T186: 16.68610601 | U186: 4 | V186: 3 | W186: 23.62357522 | X186: 18.08311676 | Y186: 14.00417911 | Z186: 6.728856787 | AD186: 44.53333333 | AF186: 54.53237499 | AG186: 57.26209828 | AH186: 47.74359473 | AK186: 54.72399682 | AL186: 43.19503843 | AM186: 35.73749747 | AP186: 55.34963407 | AQ186: 27.86831925 | AR186: 22.48128055 | AT186: 57.14285714 | AU186: 5.389221557 | AV186: 4.041916168 | AX186: 56.64216964 | AY186: 31.82817021 | AZ186: 24.36348066 | BC186: 67.54524122 | BD186: 18.86790598 | BE186: 9.065825012 | BH186: 44.44444444 | BI186: 101.359135 | BJ186: 55 | BK186: -242.5149701 | BN186: 19.33816499 | BR186: 82.02097003 | BT186: 11.37583157 | BU186: 9.839058776 | BV186: 10.44088442 | BW186: 8.911192193 | BX186: =Table1[[#This Row],[SF]]/Table1[[#This Row],[CF]] -> 0.486680022 | BY186: =Table1[[#This Row],[MSF]]/Table1[[#This Row],[CF]] -> 0.2676590562 | BZ186: =Table1[[#This Row],[BSF]]/Table1[[#This Row],[CF]] -> 0.2456609218 | CA186: =Table1[[#This Row],[SA]]/Table1[[#This Row],[CA]] -> 0.4708753222 | CB186: =Table1[[#This Row],[MSA]]/Table1[[#This Row],[CA]] -> 0.2776543532 | CC186: =Table1[[#This Row],[BSA]]/Table1[[#This Row],[CA]] -> 0.2514703246
A187: 5v5 | B187: ScAdj | C187: WSH | D187: 20152016 | E187: 20135 | F187: 2015-10-28 | G187: PIT | J187: 2 | K187: 34 | L187: 23 | O187: 44.61478912 | P187: 40.80164514 | Q187: 33.94380905 | R187: 27.70610931 | S187: 24.31758625 | T187: 18.2914968 | U187: 0 | V187: 2 | W187: 26.32810025 | X187: 21.25633825 | Y187: 13.10226169 | Z187: 11.27004381 | AD187: 46.74166667 | AF187: 52.23209035 | AG187: 57.26983092 | AH187: 52.3750838 | AK187: 55.05896837 | AL187: 43.57201376 | AM187: 35.56498254 | AP187: 57.07136721 | AQ187: 31.21530059 | AR187: 23.47990318 | AT187: 0 | AU187: 0 | AV187: 2.567302549 | AX187: 55.32922334 | AY187: 33.79609945 | AZ187: 27.28572569 | BC187: 53.75881117 | BD187: 16.81873492 | BE187: 14.4668061 | BH187: 56.25 | BI187: 89.06595769 | BJ187: 45.83333333 | BK187: 154.038153 | BN187: 0 | BR187: 89.06595769 | BT187: 9.6262228 | BU187: 9.414612511 | BV187: 10.67098006 | BW187: 13.09553583 | BX187: =Table1[[#This Row],[SF]]/Table1[[#This Row],[CF]] -> 0.545056622 | BY187: =Table1[[#This Row],[MSF]]/Table1[[#This Row],[CF]] -> 0.2157630461 | BZ187: =Table1[[#This Row],[BSF]]/Table1[[#This Row],[CF]] -> 0.2391803317 | CA187: =Table1[[#This Row],[SA]]/Table1[[#This Row],[CA]] -> 0.4483029235 | CB187: =Table1[[#This Row],[MSA]]/Table1[[#This Row],[CA]] -> 0.2307410027 | CC187: =Table1[[#This Row],[BSA]]/Table1[[#This Row],[CA]] -> 0.3209560738
A188: 5v5 | B188: ScAdj | C188: WSH | D188: 20152016 | E188: 20147 | F188: 2015-10-30 | G188: CBJ | J188: 0 | K188: 17 | L188: 17 | O188: 43.27297563 | P188: 32.28276936 | Q188: 34.23891618 | R188: 29.2634681 | S188: 24.63129277 | T188: 21.54143902 | U188: 2 | V188: 1 | W188: 23.35729688 | X188: 16.30643905 | Y188: 5.95538238 | Z188: 5.004377639 | AD188: 48.4 | AF188: 57.27291238 | AG188: 53.64418467 | AH188: 40.01996202 | AK188: 53.91752856 | AL188: 42.44493742 | AM188: 36.27702658 | AP188: 53.34597243 | AQ188: 30.53466046 | AR188: 26.70426324 | AT188: 66.66666667 | AU188: 2.479338843 | AV188: 1.239669421 | AX188: 58.88829263 | AY188: 28.95532671 | AZ188: 20.21459386 | BC188: 54.33862028 | BD188: 7.38270543 | BE188: 6.203773932 | BH188: 60.71428571 | BI188: 103.4775371 | BJ188: 50 | BK188: 0 | BN188: 8.119752458 | BR188: 95.3577846 | BT188: 9.607623415 | BU188: 7.722029088 | BV188: 9.034059449 | BW188: 3.019301261 | BX188: =Table1[[#This Row],[SF]]/Table1[[#This Row],[CF]] -> 0.5692072803 | BY188: =Table1[[#This Row],[MSF]]/Table1[[#This Row],[CF]] -> 0.2220236366 | BZ188: =Table1[[#This Row],[BSF]]/Table1[[#This Row],[CF]] -> 0.2087690832 | CA188: =Table1[[#This Row],[SA]]/Table1[[#This Row],[CA]] -> 0.667273578 | CB188: =Table1[[#This Row],[MSA]]/Table1[[#This Row],[CA]] -> 0.2391997106 | CC188: =Table1[[#This Row],[BSA]]/Table1[[#This Row],[CA]] -> 0.09352671164
A189: 5v5 | B189: ScAdj | C189: WSH | D189: 20152016 | E189: 20160 | F189: 2015-10-31 | G189: FLA | J189: 0 | K189: 35 | L189: 32 | O189: 42.47402793 | P189: 27.50494826 | Q189: 30.60279031 | R189: 25.43095322 | S189: 22.92626306 | T189: 17.98131756 | U189: 1 | V189: 1 | W189: 11.6129321 | X189: 22.64451272 | Y189: 3.009910959 | Z189: 8.699976093 | AD189: 50.1 | AF189: 60.69541202 | AG189: 50.86709931 | AH189: 32.9400578 | AK189: 54.6149309 | AL189: 36.65004827 | AM189: 30.45623141 | AP189: 56.04404541 | AQ189: 27.45660247 | AR189: 21.53451205 | AT189: 50 | AU189: 1.19760479 | AV189: 1.19760479 | AX189: 33.89900257 | AY189: 13.90770311 | AZ189: 27.1191769 | BC189: 25.70401359 | BD189: 3.604683783 | BE189: 10.41913304 | BH189: 54.54545455 | BI189: 98.80048212 | BJ189: 53.65853659 | BK189: 0 | BN189: 4.361809848 | BR189: 94.43867227 | BT189: 7.676527249 | BU189: 7.449635664 | BV189: 11.87123762 | BW189: 2.073995035 | BX189: =Table1[[#This Row],[SF]]/Table1[[#This Row],[CF]] -> 0.5397713421 | BY189: =Table1[[#This Row],[MSF]]/Table1[[#This Row],[CF]] -> 0.1807346189 | BZ189: =Table1[[#This Row],[BSF]]/Table1[[#This Row],[CF]] -> 0.279494039 | CA189: =Table1[[#This Row],[SA]]/Table1[[#This Row],[CA]] -> 0.6537484597 | CB189: =Table1[[#This Row],[MSA]]/Table1[[#This Row],[CA]] -> 0.270847107 | CC189: =Table1[[#This Row],[BSA]]/Table1[[#This Row],[CA]] -> 0.07540443325
A190: 5v5 | B190: ScAdj | C190: WSH | D190: 20152016 | E190: 20174 | F190: 2015-11-03 | G190: NYR | J190: 1 | K190: 20 | L190: 32 | O190: 55.85648505 | P190: 35.54992915 | Q190: 38.83573939 | R190: 29.36282446 | S190: 27.57155624 | T190: 22.21245013 | U190: 2 | V190: 5 | W190: 33.33567902 | X190: 17.85491772 | Y190: 12.93219003 | Z190: 6.853120705 | AD190: 54.3 | AF190: 61.10783968 | AG190: 61.71987298 | AH190: 39.28168967 | AK190: 56.94509855 | AL190: 42.91241922 | AM190: 32.4451099 | AP190: 55.38235721 | AQ190: 30.465808 | AR190: 24.54414379 | AT190: 28.57142857 | AU190: 2.209944751 | AV190: 5.524861878 | AX190: 65.12070799 | AY190: 36.83500444 | AZ190: 19.72919085 | BC190: 65.36258239 | BD190: 14.28971274 | BE190: 7.572509067 | BH190: 64.51612903 | BI190: 84.74395382 | BJ190: 59.57446809 | BK190: 66.29834254 | BN190: 7.253852422 | BR190: 77.4901014 | BT190: 11.26418315 | BU190: 7.15037433 | BV190: 17.02074566 | BW190: 6.187104696 | BX190: =Table1[[#This Row],[SF]]/Table1[[#This Row],[CF]] -> 0.4936142368 | BY190: =Table1[[#This Row],[MSF]]/Table1[[#This Row],[CF]] -> 0.2016629428 | BZ190: =Table1[[#This Row],[BSF]]/Table1[[#This Row],[CF]] -> 0.3047228204 | CA190: =Table1[[#This Row],[SA]]/Table1[[#This Row],[CA]] -> 0.6248240337 | CB190: =Table1[[#This Row],[MSA]]/Table1[[#This Row],[CA]] -> 0.2011361063 | CC190: =Table1[[#This Row],[BSA]]/Table1[[#This Row],[CA]] -> 0.1740398601
A191: 5v5 | B191: ScAdj | C191: WSH | D191: 20152016 | E191: 20186 | F191: 2015-11-05 | G191: BOS | J191: 0 | K191: 23 | L191: 23 | O191: 41.25608897 | P191: 45.8592104 | Q191: 32.63545622 | R191: 33.70389773 | S191: 23.19683341 | T191: 23.95360909 | U191: 2 | V191: 0 | W191: 18.27440161 | X191: 20.78293152 | Y191: 10.71357481 | Z191: 7.068362872 | AD191: 48.09166667 | AF191: 47.35802926 | AG191: 51.47181434 | AH191: 57.21474873 | AK191: 49.19471517 | AL191: 40.71656295 | AM191: 42.04956916 | AP191: 49.19748826 | AQ191: 28.94077292 | AR191: 29.88493942 | AT191: 100 | AU191: 2.495234795 | AV191: 0 | AX191: 46.78865695 | AY191: 22.79946138 | AZ191: 25.92914693 | BC191: 60.24976019 | BD191: 13.36644232 | BE191: 8.818612489 | BH191: 38.88888889 | BI191: 108.6218665 | BJ191: 42 | BK191: 0 | BN191: 8.621866462 | BR191: 100 | BT191: 9.438622808 | BU191: 9.75028864 | BV191: 8.620632751 | BW191: 12.15531268 | BX191: =Table1[[#This Row],[SF]]/Table1[[#This Row],[CF]] -> 0.56226448 | BY191: =Table1[[#This Row],[MSF]]/Table1[[#This Row],[CF]] -> 0.2287813276 | BZ191: =Table1[[#This Row],[BSF]]/Table1[[#This Row],[CF]] -> 0.2089541924 | CA191: =Table1[[#This Row],[SA]]/Table1[[#This Row],[CA]] -> 0.5223292961 | CB191: =Table1[[#This Row],[MSA]]/Table1[[#This Row],[CA]] -> 0.2126135307 | CC191: =Table1[[#This Row],[BSA]]/Table1[[#This Row],[CA]] -> 0.2650571733
A192: 5v5 | B192: ScAdj | C192: WSH | D192: 20152016 | E192: 20203 | F192: 2015-11-07 | G192: TOR | J192: 1 | K192: 16 | L192: 20 | O192: 33.95748253 | P192: 26.29719975 | Q192: 25.57918065 | R192: 22.08128311 | S192: 18.58203152 | T192: 16.76509154 | U192: 0 | V192: 1 | W192: 10.7176186 | X192: 14.40035564 | Y192: 3.695077501 | Z192: 8.492145809 | AD192: 41.36666667 | AF192: 56.35658715 | AG192: 49.25339932 | AH192: 38.14259432 | AK192: 53.66960082 | AL192: 37.1011484 | AM192: 32.02764673 | AP192: 52.57013841 | AQ192: 26.95218109 | AR192: 24.31681287 | AT192: 0 | AU192: 0 | AV192: 1.450443191 | AX192: 42.66912012 | AY192: 15.54529692 | AZ192: 20.88689778 | BC192: 30.31927296 | BD192: 5.359500002 | BE192: 12.31737507 | BH192: 65 | BI192: 94.03522493 | BJ192: 62.06896552 | BK192: 87.02659146 | BN192: 0 | BR192: 94.03522493 | BT192: 6.99714913 | BU192: 5.316191569 | BV192: 8.378301885 | BW192: 4.21591664 | BX192: =Table1[[#This Row],[SF]]/Table1[[#This Row],[CF]] -> 0.5472146383 | BY192: =Table1[[#This Row],[MSF]]/Table1[[#This Row],[CF]] -> 0.2060561799 | BZ192: =Table1[[#This Row],[BSF]]/Table1[[#This Row],[CF]] -> 0.2467291819 | CA192: =Table1[[#This Row],[SA]]/Table1[[#This Row],[CA]] -> 0.6375238314 | CB192: =Table1[[#This Row],[MSA]]/Table1[[#This Row],[CA]] -> 0.202158086 | CC192: =Table1[[#This Row],[BSA]]/Table1[[#This Row],[CA]] -> 0.1603180825
A193: 5v5 | B193: ScAdj | C193: WSH | D193: 20152016 | E193: 20220 | F193: 2015-11-10 | G193: DET | J193: 2 | K193: 15 | L193: 21 | O193: 34.52385643 | P193: 45.35161312 | Q193: 29.05348851 | R193: 37.47923085 | S193: 25.64494582 | T193: 23.79336501 | U193: 0 | V193: 1 | W193: 11.33699596 | X193: 19.18156493 | Y193: 4.898687875 | Z193: 5.008233098 | AD193: 50.70833333 | AF193: 43.22210139 | AG193: 40.84992051 | AH193: 53.66172793 | AK193: 43.66797087 | AL193: 34.37717621 | AM193: 44.34683026 | AP193: 51.87261739 | AQ193: 30.34406078 | AR193: 28.15320099 | AT193: 0 | AU193: 0 | AV193: 1.183237469 | AX193: 37.14787207 | AY193: 13.4143584 | AZ193: 22.69634635 | BC193: 49.4471278 | BD193: 5.796311043 | BE193: 5.925929056 | BH193: 45.83333333 | BI193: 95.79714765 | BJ193: 42.42424242 | BK193: 141.9884963 | BN193: 0 | BR193: 95.79714765 | BT193: 3.408542693 | BU193: 13.68586584 | BV193: 5.470367923 | BW193: 7.872382266 | BX193: =Table1[[#This Row],[SF]]/Table1[[#This Row],[CF]] -> 0.7428181111 | BY193: =Table1[[#This Row],[MSF]]/Table1[[#This Row],[CF]] -> 0.098730068 | BZ193: =Table1[[#This Row],[BSF]]/Table1[[#This Row],[CF]] -> 0.1584518211 | CA193: =Table1[[#This Row],[SA]]/Table1[[#This Row],[CA]] -> 0.5246420882 | CB193: =Table1[[#This Row],[MSA]]/Table1[[#This Row],[CA]] -> 0.3017724155 | CC193: =Table1[[#This Row],[BSA]]/Table1[[#This Row],[CA]] -> 0.1735854962
A194: 5v5 | B194: ScAdj | C194: WSH | D194: 20152016 | E194: 20232 | F194: 2015-11-12 | G194: PHI | J194: 0 | K194: 30 | L194: 28 | O194: 45.62852444 | P194: 34.86232951 | Q194: 32.48899284 | R194: 26.75116963 | S194: 26.74187734 | T194: 15.11876042 | U194: 3 | V194: 1 | W194: 29.75855219 | X194: 18.75504511 | Y194: 15.12042793 | Z194: 4.540073978 | AD194: 48.04166667 | AF194: 56.68783744 | AG194: 56.98618838 | AH194: 43.54011665 | AK194: 54.84284898 | AL194: 40.57601882 | AM194: 33.40996034 | AP194: 63.88311017 | AQ194: 33.39835505 | AR194: 18.88205985 | AT194: 75 | AU194: 3.746747615 | AV194: 1.248915872 | AX194: 61.34064231 | AY194: 37.16592815 | AZ194: 23.42347351 | BC194: 76.9076395 | BD194: 18.88414243 | BE194: 5.67017045 | BH194: 37.03703704 | BI194: 104.6040609 | BJ194: 56.52173913 | BK194: 0 | BN194: 11.21835973 | BR194: 93.38570113 | BT194: 5.747115502 | BU194: 11.63240921 | BV194: 13.1395316 | BW194: 8.11115988 | BX194: =Table1[[#This Row],[SF]]/Table1[[#This Row],[CF]] -> 0.5860780656 | BY194: =Table1[[#This Row],[MSF]]/Table1[[#This Row],[CF]] -> 0.1259544457 | BZ194: =Table1[[#This Row],[BSF]]/Table1[[#This Row],[CF]] -> 0.2879674888 | CA194: =Table1[[#This Row],[SA]]/Table1[[#This Row],[CA]] -> 0.433670401 | CB194: =Table1[[#This Row],[MSA]]/Table1[[#This Row],[CA]] -> 0.3336670089 | CC194: =Table1[[#This Row],[BSA]]/Table1[[#This Row],[CA]] -> 0.2326625901
A195: 5v5 | B195: ScAdj | C195: WSH | D195: 20152016 | E195: 20243 | F195: 2015-11-13 | G195: CGY | J195: 1 | K195: 18 | L195: 19 | O195: 57.27818064 | P195: 44.15479574 | Q195: 39.79522094 | R195: 37.12836986 | S195: 29.42106449 | T195: 24.2084816 | U195: 2 | V195: 2 | W195: 25.20556872 | X195: 21.80614087 | Y195: 8.652123067 | Z195: 8.39757344 | AD195: 53.83333333 | AF195: 56.46899331 | AG195: 63.8394583 | AH195: 49.21277544 | AK195: 51.73344162 | AL195: 44.35380662 | AM195: 41.38146486 | AP195: 54.85980516 | AQ195: 32.79127931 | AR195: 26.9815894 | AT195: 50 | AU195: 2.229102167 | AV195: 2.229102167 | AX195: 53.61551183 | AY195: 28.09289392 | AZ195: 24.30405794 | BC195: 50.74649313 | BD195: 9.64323314 | BE195: 9.359524577 | BH195: 51.51515152 | BI195: 98.53628327 | BJ195: 49.09090909 | BK195: 66.87306502 | BN195: 6.797850569 | BR195: 91.7384327 | BT195: 10.37415645 | BU195: 12.91988826 | BV195: 17.4829597 | BW195: 7.026425879 | BX195: =Table1[[#This Row],[SF]]/Table1[[#This Row],[CF]] -> 0.5136522173 | BY195: =Table1[[#This Row],[MSF]]/Table1[[#This Row],[CF]] -> 0.1811188193 | BZ195: =Table1[[#This Row],[BSF]]/Table1[[#This Row],[CF]] -> 0.3052289634 | CA195: =Table1[[#This Row],[SA]]/Table1[[#This Row],[CA]] -> 0.5482639245 | CB195: =Table1[[#This Row],[MSA]]/Table1[[#This Row],[CA]] -> 0.2926044169 | CC195: =Table1[[#This Row],[BSA]]/Table1[[#This Row],[CA]] -> 0.1591316585
A196: 5v5 | B196: ScAdj | C196: WSH | D196: 20152016 | E196: 20276 | F196: 2015-11-18 | G196: DET | J196: 3 | K196: 18 | L196: 16 | O196: 33.93453107 | P196: 36.83874906 | Q196: 26.82505405 | R196: 28.72985431 | S196: 16.00988547 | T196: 19.85009385 | U196: 0 | V196: 1 | W196: 15.44563946 | X196: 15.17162013 | Y196: 3.40282422 | Z196: 7.325337202 | AD196: 44.76666667 | AF196: 47.94822426 | AG196: 45.48187337 | AH196: 49.37434722 | AK196: 48.2856598 | AL196: 35.95316254 | AM196: 38.50613385 | AP196: 44.64555131 | AQ196: 21.4577765 | AR196: 26.60474232 | AT196: 0 | AU196: 0 | AV196: 1.340282949 | AX196: 50.4474916 | AY196: 20.7015272 | AZ196: 20.33426376 | BC196: 31.71861502 | BD196: 4.560747279 | BE196: 9.818024545 | BH196: 37.03703704 | BI196: 94.96224044 | BJ196: 53.84615385 | BK196: 241.2509308 | BN196: 0 | BR196: 94.96224044 | BT196: 10.81516859 | BU196: 8.87976046 | BV196: 7.109477021 | BW196: 8.108894754 | BX196: =Table1[[#This Row],[SF]]/Table1[[#This Row],[CF]] -> 0.4717874379 | BY196: =Table1[[#This Row],[MSF]]/Table1[[#This Row],[CF]] -> 0.318706882 | BZ196: =Table1[[#This Row],[BSF]]/Table1[[#This Row],[CF]] -> 0.2095056804 | CA196: =Table1[[#This Row],[SA]]/Table1[[#This Row],[CA]] -> 0.5388373481 | CB196: =Table1[[#This Row],[MSA]]/Table1[[#This Row],[CA]] -> 0.241044028 | CC196: =Table1[[#This Row],[BSA]]/Table1[[#This Row],[CA]] -> 0.220118624
A197: 5v5 | B197: ScAdj | C197: WSH | D197: 20152016 | E197: 20281 | F197: 2015-11-19 | G197: DAL | J197: -2 | K197: 19 | L197: 9 | O197: 56.63687818 | P197: 58.20531069 | Q197: 42.86883004 | R197: 43.13779539 | S197: 30.35620023 | T197: 30.74677277 | U197: 2 | V197: 3 | W197: 36.27606144 | X197: 36.57091285 | Y197: 12.385766 | Z197: 12.14541966 | AD197: 55.375 | AF197: 49.31713575 | AG197: 61.36727206 | AH197: 63.06670232 | AK197: 49.84363684 | AL197: 46.44929665 | AM197: 46.74072638 | AP197: 49.68039809 | AQ197: 32.89159393 | AR197: 33.31478765 | AT197: 40 | AU197: 2.167042889 | AV197: 3.250564334 | AX197: 49.79762275 | AY197: 39.3058905 | AZ197: 39.62536832 | BC197: 50.48987918 | BD197: 13.42024307 | BE197: 13.15982266 | BH197: 61.76470588 | BI197: 96.8313183 | BJ197: 36 | BK197: -130.0225734 | BN197: 6.588439873 | BR197: 90.24287842 | BT197: 12.51262981 | BU197: 12.39102262 | BV197: 13.76804814 | BW197: 15.0675153 | BX197: =Table1[[#This Row],[SF]]/Table1[[#This Row],[CF]] -> 0.5359794043 | BY197: =Table1[[#This Row],[MSF]]/Table1[[#This Row],[CF]] -> 0.2209272511 | BZ197: =Table1[[#This Row],[BSF]]/Table1[[#This Row],[CF]] -> 0.2430933445 | CA197: =Table1[[#This Row],[SA]]/Table1[[#This Row],[CA]] -> 0.5282468628 | CB197: =Table1[[#This Row],[MSA]]/Table1[[#This Row],[CA]] -> 0.2128847432 | CC197: =Table1[[#This Row],[BSA]]/Table1[[#This Row],[CA]] -> 0.258868394
A198: 5v5 | B198: ScAdj | C198: WSH | D198: 20152016 | E198: 20298 | F198: 2015-11-21 | G198: COL | J198: 1 | K198: 18 | L198: 21 | O198: 44.49077632 | P198: 38.998669 | Q198: 29.84681191 | R198: 33.94052345 | S198: 22.65760645 | T198: 22.79122395 | U198: 5 | V198: 2 | W198: 24.91159779 | X198: 25.07131942 | Y198: 4.879771517 | Z198: 8.072142662 | AD198: 48.86666667 | AF198: 53.28910277 | AG198: 54.62714692 | AH198: 47.88376821 | AK198: 46.79112514 | AL198: 36.64683591 | AM198: 41.67322115 | AP198: 49.85300227 | AQ198: 27.81970779 | AR198: 27.98376747 | AT198: 71.42857143 | AU198: 6.139154161 | AV198: 2.455661664 | AX198: 49.84022379 | AY198: 30.58722785 | AZ198: 30.78333898 | BC198: 37.67606432 | BD198: 5.991533923 | BE198: 9.911225643 | BH198: 50 | BI198: 113.2923367 | BJ198: 65.2173913 | BK198: 73.66984993 | BN198: 22.0676443 | BR198: 91.22469243 | BT198: 7.189205461 | BU198: 11.1492995 | BV198: 14.64396441 | BW198: 5.058145549 | BX198: =Table1[[#This Row],[SF]]/Table1[[#This Row],[CF]] -> 0.5092652528 | BY198: =Table1[[#This Row],[MSF]]/Table1[[#This Row],[CF]] -> 0.161588672 | BZ198: =Table1[[#This Row],[BSF]]/Table1[[#This Row],[CF]] -> 0.3291460752 | CA198: =Table1[[#This Row],[SA]]/Table1[[#This Row],[CA]] -> 0.5844103026 | CB198: =Table1[[#This Row],[MSA]]/Table1[[#This Row],[CA]] -> 0.2858892312 | CC198: =Table1[[#This Row],[BSA]]/Table1[[#This Row],[CA]] -> 0.1297004662
A199: 5v5 | B199: ScAdj | C199: WSH | D199: 20152016 | E199: 20311 | F199: 2015-11-23 | G199: EDM | J199: 2 | K199: 26 | L199: 14 | O199: 41.71873718 | P199: 51.60431183 | Q199: 34.53787255 | R199: 40.14923629 | S199: 24.03313278 | T199: 25.38319355 | U199: 1 | V199: 0 | W199: 27.47775547 | X199: 28.17151555 | Y199: 8.621809632 | Z199: 7.915696457 | AD199: 47.61666667 | AF199: 44.70357283 | AG199: 52.56823726 | AH199: 65.02468414 | AK199: 46.24341882 | AL199: 43.5198954 | AM199: 50.59056726 | AP199: 48.63399319 | AQ199: 30.28326147 | AR199: 31.98442309 | AT199: 100 | AU199: 1.260063003 | AV199: 0 | AX199: 49.37666742 | AY199: 34.62370308 | AZ199: 35.49788448 | BC199: 52.1348841 | BD199: 10.86402334 | BE199: 9.974276249 | BH199: 51.72413793 | BI199: 104.1609224 | BJ199: 55.81395349 | BK199: 151.2075604 | BN199: 4.160922378 | BR199: 100 | BT199: 10.50473976 | BU199: 14.76604275 | BV199: 7.180864636 | BW199: 11.45507553 | BX199: =Table1[[#This Row],[SF]]/Table1[[#This Row],[CF]] -> 0.5760752699 | BY199: =Table1[[#This Row],[MSF]]/Table1[[#This Row],[CF]] -> 0.2517990829 | BZ199: =Table1[[#This Row],[BSF]]/Table1[[#This Row],[CF]] -> 0.1721256472 | CA199: =Table1[[#This Row],[SA]]/Table1[[#This Row],[CA]] -> 0.4918812527 | CB199: =Table1[[#This Row],[MSA]]/Table1[[#This Row],[CA]] -> 0.2861397086 | CC199: =Table1[[#This Row],[BSA]]/Table1[[#This Row],[CA]] -> 0.2219790386
A200: 5v5 | B200: ScAdj | C200: WSH | D200: 20152016 | E200: 20322 | F200: 2015-11-25 | G200: WPG | J200: 0 | K200: 23 | L200: 24 | O200: 47.14036797 | P200: 40.36574338 | Q200: 38.45021939 | R200: 29.55967574 | S200: 27.4744289 | T200: 20.07469954 | U200: 4 | V200: 2 | W200: 25.19574354 | X200: 21.29301082 | Y200: 13.69694403 | Z200: 6.882146305 | AD200: 50.69166667 | AF200: 53.87094369 | AG200: 55.79658876 | AH200: 47.77796356 | AK200: 56.53621333 | AL200: 45.51069861 | AM200: 34.98761554 | AP200: 57.78114091 | AQ200: 32.51946213 | AR200: 23.76094635 | AT200: 66.66666667 | AU200: 4.734506 | AV200: 2.367253 | AX200: 54.19750193 | AY200: 29.82234974 | AZ200: 25.20297187 | BC200: 66.55757765 | BD200: 16.21206593 | BE200: 8.145890744 | BH200: 47.82608696 | BI200: 104.5962031 | BJ200: 44.44444444 | BK200: 0 | BN200: 14.55899234 | BR200: 90.03721079 | BT200: 10.97579049 | BU200: 9.4849762 | BV200: 8.690148582 | BW200: 10.80606765 | BX200: =Table1[[#This Row],[SF]]/Table1[[#This Row],[CF]] -> 0.5828216894 | BY200: =Table1[[#This Row],[MSF]]/Table1[[#This Row],[CF]] -> 0.232832092 | BZ200: =Table1[[#This Row],[BSF]]/Table1[[#This Row],[CF]] -> 0.1843462187 | CA200: =Table1[[#This Row],[SA]]/Table1[[#This Row],[CA]] -> 0.4973201992 | CB200: =Table1[[#This Row],[MSA]]/Table1[[#This Row],[CA]] -> 0.2349758832 | CC200: =Table1[[#This Row],[BSA]]/Table1[[#This Row],[CA]] -> 0.2677039179
... 925 more rows

Sheet NHL Aver
B1: season | C1: 20152016 | T1: season | U1: 20152016 | AY1: season | AZ1: 20152016 | BN1: season | BO1: 20152016 | CD1: season | CE1: 20152016 | CR1: season | CS1: 20152016
B2: Strength | C2: 5v5 | T2: Strength | U2: 5v5 | AY2: Strength | AZ2: 5v5 | BN2: Strength | BO2: 5v5 | CD2: Strength | CE2: 5v5 | CR2: Strength | CS2: 5v5
B3: Sit | C3: ScAdj | T3: Sit | U3: ScAdj | AY3: Sit | AZ3: ScAdj | BN3: Sit | BO3: ScAdj | CD3: Sit | CE3: ScAdj | CR3: Sit | CS3: ScAdj
B5: Per 60 | C5: Csh | D5: Msh | E5: Bsh | F5: CshA | G5: MshA | H5: BshA | K5: Csh | L5: Msh | M5: Bsh | N5: CshA | O5: MshA | P5: BshA | T5: Per 60 | U5: CF60 | V5: CA60 | W5: SF60 | X5: SA60 | Y5: GF60 | Z5: GA60 | AA5: SCF60 | AB5: SCA60 | AC5: HSCF60 | AD5: HSCA60 | AE5: PDO | AF5: OSh% | AG5: OSv% | AH5: Per 60 | AI5: CF60 | AJ5: CA60 | AK5: SF60 | AL5: SA60 | AM5: GF60 | AN5: GA60 | AO5: SCF60 | AP5: SCA60 | AQ5: HSCF60 | AR5: HSCA60 | AS5: PDO | AT5: OSh% | AU5: OSv% | AY5: Per 60 | AZ5: PDO | BA5: CF% | BB5: SCF% | BG5: Date | BH5: PDO | BI5: CF% | BJ5: SCF% | BN5: Per 60 | BO5: SF60 | BP5: SCF60 | BQ5: SA60 | BR5: SCA60 | BV5: Date | BW5: SF60 | BX5: SCF60 | BY5: SA60 | BZ5: SCA60 | CD5: Per 60 | CE5: HSCF60 | CF5: SCF60 | CG5: HSCA60 | CH5: SCA60 | CL5: Date | CM5: HSCF60 | CN5: SCF60 | CO5: HSCA60 | CP5: SCA60 | CR5: Per 60 | CS5: Csh | CT5: OSh% | CU5: SF | CV5: CF | CW5: CF% | CZ5: Date | DA5: Csh | DB5: OSh% | DC5: SF | DD5: CF | DE5: CF%
B6: 2015-10-07 | C6: 0.5319366566 | D6: 0.222937945 | E6: 0.2451253984 | F6: 0.3889720879 | G6: 0.3091545182 | H6: 0.301873394 | T6: 2015-10-07 | U6: 59.55782263 | V6: 34.02039296 | W6: 31.68098904 | X6: 13.23298328 | Y6: 4.689535389 | Z6: 1.563178463 | AA6: 22.53359954 | AB6: 9.877174622 | AC6: 6.947607999 | AD6: 4.198202561 | AE6: 102.98962 | AF6: 14.80236423 | AG6: 88.18725581 | AY6: 2015-10-07 | AZ6: 102.98962 | BA6: 63.64496507 | BB6: 69.52502716 | BN6: 2015-10-07 | BO6: 31.68098904 | BP6: 22.53359954 | BQ6: 13.23298328 | BR6: 9.877174622 | CD6: 2015-10-07 | CE6: 6.947607999 | CF6: 22.53359954 | CG6: 4.198202561 | CH6: 9.877174622 | CR6: 2015-10-07 | CS6: 0.5319366566 | CT6: 14.80236423 | CU6: 20.26703271 | CV6: 38.10046264 | CW6: 63.64496507
B7: 2015-10-10 | C7: 0.6309620002 | D7: 0.1162678173 | E7: 0.2527701825 | F7: 0.4778492942 | G7: 0.2339660319 | H7: 0.2881846739 | T7: 2015-10-10 | U7: 73.1118832 | V7: 54.00768225 | W7: 46.13082006 | X7: 25.80753285 | Y7: 2.192114477 | Z7: 0 | AA7: 36.55779101 | AB7: 26.35131223 | AC7: 19.59309286 | AD7: 11.74406173 | AE7: 104.7519521 | AF7: 4.75195211 | AG7: 100 | AY7: 2015-10-10 | AZ7: 104.7519521 | BA7: 57.51426458 | BB7: 58.11208415 | BN7: 2015-10-10 | BO7: 46.13082006 | BP7: 36.55779101 | BQ7: 25.80753285 | BR7: 26.35131223 | CD7: 2015-10-10 | CE7: 19.59309286 | CF7: 36.55779101 | CG7: 11.74406173 | CH7: 26.35131223 | CR7: 2015-10-10 | CS7: 0.6309620002 | CT7: 4.75195211 | CU7: 42.08796625 | CV7: 66.70443899 | CW7: 57.51426458
B8: 2015-10-13 | C8: 0.5201576481 | D8: 0.2602852843 | E8: 0.2195570674 | F8: 0.5478316131 | G8: 0.2031787147 | H8: 0.2489896722 | T8: 2015-10-13 | U8: 61.0435454 | V8: 51.44432229 | W8: 31.75226701 | X8: 28.18282607 | Y8: 3.050847458 | Z8: 0 | AA8: 34.6651171 | AB8: 19.82858055 | AC8: 20.4929708 | AD8: 7.021676509 | AE8: 109.6082823 | AF8: 9.608282321 | AG8: 100 | AY8: 2015-10-13 | AZ8: 109.6082823 | BA8: 54.26678152 | BB8: 63.61307563 | BN8: 2015-10-13 | BO8: 31.75226701 | BP8: 34.6651171 | BQ8: 28.18282607 | BR8: 19.82858055 | CD8: 2015-10-13 | CE8: 20.4929708 | CF8: 34.6651171 | CG8: 7.021676509 | CH8: 19.82858055 | CR8: 2015-10-13 | CS8: 0.5201576481 | CT8: 9.608282321 | CU8: 20.81537504 | CV8: 40.01743532 | CW8: 54.26678152
B9: 2015-10-16 | C9: 0.6617508186 | D9: 0.1858188981 | E9: 0.1524302834 | F9: 0.5717974066 | G9: 0.24331565 | H9: 0.1848869436 | T9: 2015-10-16 | U9: 45.68491922 | V9: 39.22892089 | W9: 30.23203269 | X9: 22.43099523 | Y9: 1.229508197 | Z9: 0 | AA9: 17.40281436 | AB9: 17.77182175 | AC9: 12.15749126 | AD9: 2.287046242 | AE9: 104.0669055 | AF9: 4.066905488 | AG9: 100 | AY9: 2015-10-16 | AZ9: 104.0669055 | BA9: 53.80149945 | BB9: 49.47546381 | BN9: 2015-10-16 | BO9: 30.23203269 | BP9: 17.40281436 | BQ9: 22.43099523 | BR9: 17.77182175 | CD9: 2015-10-16 | CE9: 12.15749126 | CF9: 17.40281436 | CG9: 2.287046242 | CH9: 17.77182175 | CR9: 2015-10-16 | CS9: 0.6617508186 | CT9: 4.066905488 | CU9: 24.58871992 | CV9: 37.15706763 | CW9: 53.80149945
B10: 2015-10-17 | C10: 0.4893206914 | D10: 0.2822965436 | E10: 0.2283827651 | F10: 0.5112372814 | G10: 0.2271216397 | H10: 0.2616410788 | T10: 2015-10-17 | U10: 52.33411221 | V10: 58.23131698 | W10: 25.60816397 | X10: 29.77002019 | Y10: 3.494014882 | Z10: 4.658686509 | AA10: 24.68249681 | AB10: 36.40990156 | AC10: 9.785485294 | AD10: 8.528193721 | AE10: 97.9952249 | AF10: 13.64414445 | AG10: 84.35108045 | AY10: 2015-10-17 | AZ10: 97.9952249 | BA10: 47.33316064 | BB10: 40.40191164 | BN10: 2015-10-17 | BO10: 25.60816397 | BP10: 24.68249681 | BQ10: 29.77002019 | BR10: 36.40990156 | CD10: 2015-10-17 | CE10: 9.785485294 | CF10: 24.68249681 | CG10: 8.528193721 | CH10: 36.40990156 | CR10: 2015-10-17 | CS10: 0.4893206914 | CT10: 13.64414445 | CU10: 21.98745412 | CV10: 44.93465023 | CW10: 47.33316064
B11: 2015-10-19 | C11: 0.4702169932 | D11: 0.1377318565 | E11: 0.3920511502 | F11: 0.5145995978 | G11: 0.2444201482 | H11: 0.2409802542 | T11: 2015-10-19 | U11: 45.83234029 | V11: 50.47568722 | W11: 21.55114524 | X11: 25.97476835 | Y11: 0 | Z11: 3.209509658 | AA11: 22.1109908 | AB11: 16.31120067 | AC11: 12.06178844 | AD11: 6.394227169 | AE11: 87.64374097 | AF11: 0 | AG11: 87.64374097 | AY11: 2015-10-19 | AZ11: 87.64374097 | BA11: 47.58932508 | BB11: 57.54744837 | BN11: 2015-10-19 | BO11: 21.55114524 | BP11: 22.1109908 | BQ11: 25.97476835 | BR11: 16.31120067 | CD11: 2015-10-19 | CE11: 12.06178844 | CF11: 22.1109908 | CG11: 6.394227169 | CH11: 16.31120067 | CR11: 2015-10-19 | CS11: 0.4702169932 | CT11: 0 | CU11: 20.14433437 | CV11: 42.84050696 | CW11: 47.58932508
B12: 2015-10-22 | C12: 0.6594095602 | D12: 0.117611691 | E12: 0.2229787488 | F12: 0.4901954737 | G12: 0.194229025 | H12: 0.3155755011 | T12: 2015-10-22 | U12: 54.61895656 | V12: 67.44801944 | W12: 36.01626213 | X12: 33.06271384 | Y12: 1.350844278 | Z12: 2.701688555 | AA12: 31.95527978 | AB12: 27.04889529 | AC12: 22.92135222 | AD12: 9.939916748 | AE12: 95.57924503 | AF12: 3.75065095 | AG12: 91.82859408 | AY12: 2015-10-22 | AZ12: 95.57924503 | BA12: 44.74507222 | BB12: 54.15765874 | BN12: 2015-10-22 | BO12: 36.01626213 | BP12: 31.95527978 | BQ12: 33.06271384 | BR12: 27.04889529 | CD12: 2015-10-22 | CE12: 22.92135222 | CF12: 31.95527978 | CG12: 9.939916748 | CH12: 27.04889529 | CR12: 2015-10-22 | CS12: 0.6594095602 | CT12: 3.75065095 | CU12: 26.66203849 | CV12: 40.43319979 | CW12: 44.74507222
B13: 2015-10-24 | C13: 0.6427930588 | D13: 0.2570963311 | E13: 0.10011061 | F13: 0.5108909261 | G13: 0.1231649504 | H13: 0.3659441235 | T13: 2015-10-24 | U13: 35.526136 | V13: 50.91294131 | W13: 22.83595363 | X13: 26.01095974 | Y13: 4.627992929 | Z13: 1.156998232 | AA13: 23.00608647 | AB13: 26.86359111 | AC13: 13.82128267 | AD13: 12.75699631 | AE13: 115.8181383 | AF13: 20.26625647 | AG13: 95.55188181 | AY13: 2015-10-24 | AZ13: 115.8181383 | BA13: 41.09962427 | BB13: 46.1324147 | BN13: 2015-10-24 | BO13: 22.83595363 | BP13: 23.00608647 | BQ13: 26.01095974 | BR13: 26.86359111 | CD13: 2015-10-24 | CE13: 13.82128267 | CF13: 23.00608647 | CG13: 12.75699631 | CH13: 26.86359111 | CR13: 2015-10-24 | CS13: 0.6427930588 | CT13: 20.26625647 | CU13: 19.73724159 | CV13: 30.70543672 | CW13: 41.09962427
B14: 2015-10-28 | C14: 0.4229301283 | D14: 0.2041037815 | E14: 0.3729660901 | F14: 0.4170889238 | G14: 0.1615891074 | H14: 0.4213219686 | T14: 2015-10-28 | U14: 45.81190871 | V14: 60.47413771 | W14: 19.37523643 | X14: 25.22309302 | Y14: 1.235839341 | Z14: 2.471678682 | AA14: 27.34098374 | AB14: 21.17702369 | AC14: 12.17660618 | AD14: 8.861512854 | AE14: 96.57917901 | AF14: 6.378447796 | AG14: 90.20073121 | AY14: 2015-10-28 | AZ14: 96.57917901 | BA14: 43.10246759 | BB14: 56.35223948 | BN14: 2015-10-28 | BO14: 19.37523643 | BP14: 27.34098374 | BQ14: 25.22309302 | BR14: 21.17702369 | CD14: 2015-10-28 | CE14: 12.17660618 | CF14: 27.34098374 | CG14: 8.861512854 | CH14: 21.17702369 | CR14: 2015-10-28 | CS14: 0.4229301283 | CT14: 6.378447796 | CU14: 15.67779548 | CV14: 37.06946947 | CW14: 43.10246759
B15: 2015-10-31 | C15: 0.6866524429 | D15: 0.1677876638 | E15: 0.1455598934 | F15: 0.5061304759 | G15: 0.2536277599 | H15: 0.2402417643 | J15: =B15 -> 2015-10-31 | K15: =AVERAGE(C6:C15) -> 0.5716129998 | L15: =AVERAGE(D6:D15) -> 0.1951937812 | M15: 0.2331932189 | N15: 0.4936593081 | O15: 0.2193767545 | P15: 0.2869639374 | T15: 2015-10-31 | U15: 37.65377607 | V15: 52.07179807 | W15: 25.85505732 | X15: 26.35512393 | Y15: 0 | Z15: 3.923705722 | AA15: 23.39292423 | AB15: 29.6521402 | AC15: 11.90417448 | AD15: 15.42192122 | AE15: 85.11217123 | AF15: 0 | AG15: 85.11217123 | AH15: =T15 -> 2015-10-31 | AI15: =AVERAGE(U6:U15) -> 51.11754003 | AJ15: =AVERAGE(V6:V15) -> 51.83152191 | AK15: =AVERAGE(W6:W15) -> 29.10379275 | AL15: =AVERAGE(X6:X15) -> 25.60510165 | AM15: =AVERAGE(Y6:Y15) -> 2.187069695 | AN15: =AVERAGE(Z6:Z15) -> 1.968544582 | AO15: =AVERAGE(AA6:AA15) -> 26.36480838 | AP15: =AVERAGE(AB6:AB15) -> 23.12916417 | AQ15: =AVERAGE(AC6:AC15) -> 14.18618522 | AR15: =AVERAGE(AD6:AD15) -> 8.715375506 | AS15: 100.0144459 | AT15: =AVERAGE(AF6:AF15) -> 7.726900382 | AU15: =AVERAGE(AG6:AG15) -> 92.28754556 | AY15: 2015-10-31 | AZ15: 85.11217123 | BA15: 41.96548914 | BB15: 44.10009579 | BG15: =AY15 -> 2015-10-31 | BH15: =AVERAGE(AZ6:AZ15) -> 100.0144459 | BI15: =AVERAGE(BA6:BA15) -> 49.50626496 | BJ15: =AVERAGE(BB6:BB15) -> 53.94174195 | BN15: 2015-10-31 | BO15: 25.85505732 | BP15: 23.39292423 | BQ15: 26.35512393 | BR15: 29.6521402 | BV15: =BN15 -> 2015-10-31 | BW15: =AVERAGE(BO6:BO15) -> 29.10379275 | BX15: =AVERAGE(BP6:BP15) -> 26.36480838 | BY15: =AVERAGE(BQ6:BQ15) -> 25.60510165 | BZ15: 23.12916417 | CD15: 2015-10-31 | CE15: 11.90417448 | CF15: 23.39292423 | CG15: 15.42192122 | CH15: 29.6521402 | CL15: =CD15 -> 2015-10-31 | CM15: =AVERAGE(CE6:CE15) -> 14.18618522 | CN15: =AVERAGE(CF6:CF15) -> 26.36480838 | CO15: =AVERAGE(CG6:CG15) -> 8.715375506 | CP15: =AVERAGE(CH6:CH15) -> 23.12916417 | CR15: 2015-10-31 | CS15: 0.6866524429 | CT15: 0 | CU15: 19.76834591 | CV15: 28.78944962 | CW15: 41.96548914 | CZ15: =CR15 -> 2015-10-31 | DA15: =AVERAGE(CS6:CS15)*100 -> 57.16129998 | DB15: =AVERAGE(CT6:CT15) -> 7.726900382 | DC15: =AVERAGE(CU6:CU15) -> 23.17363039 | DD15: =AVERAGE(CV6:CV15) -> 40.67521174 | DE15: 49.50626496
B16: 2015-11-01 | C16: 0.7222397475 | D16: 0.1473873517 | E16: 0.1303729006 | F16: 0.6055681352 | G16: 0.1887124856 | H16: 0.2057193792 | J16: =B16 -> 2015-11-01 | K16: =AVERAGE(C7:C16) -> 0.5906433089 | L16: =AVERAGE(D7:D16) -> 0.1876387219 | M16: =AVERAGE(E7:E16) -> 0.2217179692 | N16: =AVERAGE(F7:F16) -> 0.5153189128 | O16: =AVERAGE(G7:G16) -> 0.2073325513 | P16: =AVERAGE(H7:H16) -> 0.2773485359 | T16: 2015-11-01 | U16: 42.3285467 | V16: 35.8056429 | W16: 30.57135889 | X16: 21.6827564 | Y16: 2.366474938 | Z16: 1.183237469 | AA16: 20.44091399 | AB16: 15.13356151 | AC16: 7.453478403 | AD16: 9.486258266 | AE16: 102.2837799 | AF16: 7.740823517 | AG16: 94.54295641 | AH16: 2015-11-01 | AI16: =AVERAGE(U7:U16) -> 49.39461244 | AJ16: =AVERAGE(V7:V16) -> 52.01004691 | AK16: =AVERAGE(W7:W16) -> 28.99282974 | AL16: =AVERAGE(X7:X16) -> 26.45007896 | AM16: =AVERAGE(Y7:Y16) -> 1.95476365 | AN16: =AVERAGE(Z7:Z16) -> 1.930550483 | AO16: =AVERAGE(AA7:AA16) -> 26.15553983 | AP16: =AVERAGE(AB7:AB16) -> 23.65480286 | AQ16: =AVERAGE(AC7:AC16) -> 14.23677226 | AR16: =AVERAGE(AD7:AD16) -> 9.244181077 | AS16: 99.94386192 | AT16: =AVERAGE(AF7:AF16) -> 7.02074631 | AU16: =AVERAGE(AG7:AG16) -> 92.92311562 | AY16: 2015-11-01 | AZ16: 102.2837799 | BA16: 54.17416744 | BB16: 57.45949506 | BG16: =AY16 -> 2015-11-01 | BH16: =AVERAGE(AZ7:AZ16) -> 99.94386192 | BI16: 48.55918519 | BJ16: 52.73518874 | BN16: 2015-11-01 | BO16: 30.57135889 | BP16: 20.44091399 | BQ16: 21.6827564 | BR16: 15.13356151 | BV16: =BN16 -> 2015-11-01 | BW16: =AVERAGE(BO7:BO16) -> 28.99282974 | BX16: 26.15553983 | BY16: 26.45007896 | BZ16: 23.65480286 | CD16: 2015-11-01 | CE16: 7.453478403 | CF16: 20.44091399 | CG16: 9.486258266 | CH16: 15.13356151 | CL16: =CD16 -> 2015-11-01 | CM16: =AVERAGE(CE7:CE16) -> 14.23677226 | CN16: 26.15553983 | CO16: 9.244181077 | CP16: 23.65480286 | CR16: 2015-11-01 | CS16: 0.7222397475 | CT16: 7.740823517 | CU16: 25.83704428 | CV16: 35.77350093 | CW16: 54.17416744 | CZ16: =CR16 -> 2015-11-01 | DA16: =AVERAGE(CS7:CS16)*100 -> 59.06433089 | DB16: 7.02074631 | DC16: 23.73063154 | DD16: 40.44251557 | DE16: 48.55918519
B17: 2015-11-03 | C17: 0.5377939058 | D17: 0.2259731957 | E17: 0.2362328982 | F17: 0.4916920162 | G17: 0.1130220785 | H17: 0.3952859051 | J17: 2015-11-03 | K17: 0.5813264995 | L17: 0.1986092598 | M17: 0.2200642407 | N17: 0.516703185 | O17: 0.1952381559 | P17: 0.288058659 | T17: 2015-11-03 | U17: 62.1172046 | V17: 47.64429697 | W17: 33.40625409 | X17: 23.42632044 | Y17: 2.593192869 | Z17: 3.889789303 | AA17: 26.40277162 | AB17: 17.37409744 | AC17: 13.48472271 | AD17: 6.92595966 | AE17: 91.15824242 | AF17: 7.762596974 | AG17: 83.39564545 | AH17: 2015-11-03 | AI17: 48.29514458 | AJ17: 51.37370838 | AK17: 27.72037314 | AL17: 26.21195772 | AM17: 1.994871489 | AN17: 2.319529413 | AO17: 25.14003789 | AP17: 22.75708138 | AQ17: 13.62593525 | AR17: 8.76237087 | AS17: 98.58449096 | AT17: 7.321810797 | AU17: 91.26268016 | AY17: 2015-11-03 | AZ17: 91.15824242 | BA17: 56.59288887 | BB17: 60.31215157 | BG17: 2015-11-03 | BH17: 98.58449096 | BI17: 48.46704762 | BJ17: 52.95519548 | BN17: 2015-11-03 | BO17: 33.40625409 | BP17: 26.40277162 | BQ17: 23.42632044 | BR17: 17.37409744 | BV17: 2015-11-03 | BW17: 27.72037314 | BX17: 25.14003789 | BY17: 26.21195772 | BZ17: 22.75708138 | CD17: 2015-11-03 | CE17: 13.48472271 | CF17: 26.40277162 | CG17: 6.92595966 | CH17: 17.37409744 | CL17: 2015-11-03 | CM17: 13.62593525 | CN17: 25.14003789 | CO17: 8.76237087 | CP17: 22.75708138 | CR17: 2015-11-03 | CS17: 0.5377939058 | CT17: 7.762596974 | CU17: 25.76457346 | CV17: 47.90789405 | CW17: 56.59288887 | CZ17: 2015-11-03 | DA17: 58.13264995 | DB17: 7.321810797 | DC17: 22.09829227 | DD17: 38.56286107 | DE17: 48.46704762
B18: 2015-11-05 | C18: 0.6239261138 | D18: 0.1880312295 | E18: 0.1880426569 | F18: 0.5592767164 | G18: 0.2037957618 | H18: 0.236927522 | J18: 2015-11-05 | K18: 0.591703346 | L18: 0.1913838543 | M18: 0.2169127997 | N18: 0.5178476953 | O18: 0.1952998606 | P18: 0.286852444 | T18: 2015-11-05 | U18: 56.52017719 | V18: 52.06459841 | W18: 35.2644145 | X18: 29.11851763 | Y18: 4.821697639 | Z18: 1.20542441 | AA18: 33.35642454 | AB18: 23.30965699 | AC18: 22.71447762 | AD18: 4.756426775 | AE18: 109.533266 | AF18: 13.67298368 | AG18: 95.86028236 | AH18: 2015-11-05 | AI18: 47.84280776 | AJ18: 51.43573599 | AK18: 28.07158789 | AL18: 26.30552688 | AM18: 2.171956507 | AN18: 2.440071854 | AO18: 25.00916863 | AP18: 23.10518902 | AQ18: 13.84808593 | AR18: 8.535845896 | AS18: 98.57698933 | AT18: 7.728280933 | AU18: 90.8487084 | AY18: 2015-11-05 | AZ18: 109.533266 | BA18: 52.05165907 | BB18: 58.86488644 | BG18: 2015-11-05 | BH18: 98.57698933 | BI18: 48.24553538 | BJ18: 52.48037656 | BN18: 2015-11-05 | BO18: 35.2644145 | BP18: 33.35642454 | BQ18: 29.11851763 | BR18: 23.30965699 | BV18: 2015-11-05 | BW18: 28.07158789 | BX18: 25.00916863 | BY18: 26.30552688 | BZ18: 23.10518902 | CD18: 2015-11-05 | CE18: 22.71447762 | CF18: 33.35642454 | CG18: 4.756426775 | CH18: 23.30965699 | CL18: 2015-11-05 | CM18: 13.84808593 | CN18: 25.00916863 | CO18: 8.535845896 | CP18: 23.10518902 | CR18: 2015-11-05 | CS18: 0.6239261138 | CT18: 13.67298368 | CU18: 29.25477053 | CV18: 46.88819699 | CW18: 52.05165907 | CZ18: 2015-11-05 | DA18: 59.1703346 | DB18: 7.728280933 | DC18: 22.94223181 | DD18: 39.24993724 | DE18: 48.24553538
B19: 2015-11-07 | C19: 0.6319464839 | D19: 0.2158958195 | E19: 0.1521576966 | F19: 0.4131555008 | G19: 0.3012689424 | H19: 0.285575557 | J19: 2015-11-07 | K19: 0.5887229126 | L19: 0.1943915464 | M19: 0.216885541 | N19: 0.5019835047 | O19: 0.2010951899 | P19: 0.2969213054 | T19: 2015-11-07 | U19: 40.3018049 | V19: 51.47652331 | W19: 25.4685839 | X19: 21.26780877 | Y19: 0 | Z19: 1.225740552 | AA19: 20.28549078 | AB19: 25.83319499 | AC19: 13.70981278 | AD19: 5.447976538 | AE19: 94.23663921 | AF19: 0 | AG19: 94.23663921 | AH19: 2015-11-07 | AI19: 47.30449632 | AJ19: 52.66049623 | AK19: 27.59524301 | AL19: 26.18920823 | AM19: 2.049005688 | AN19: 2.562645909 | AO19: 25.29743628 | AP19: 23.91132634 | AQ19: 14.00331808 | AR19: 8.851938926 | AS19: 97.5939627 | AT19: 7.321590384 | AU19: 90.27237232 | AY19: 2015-11-07 | AZ19: 94.23663921 | BA19: 43.91211486 | BB19: 43.98540514 | BG19: 2015-11-07 | BH19: 97.5939627 | BI19: 47.25659692 | BJ19: 51.93137069 | BN19: 2015-11-07 | BO19: 25.4685839 | BP19: 20.28549078 | BQ19: 21.26780877 | BR19: 25.83319499 | BV19: 2015-11-07 | BW19: 27.59524301 | BX19: 25.29743628 | BY19: 26.18920823 | BZ19: 23.91132634 | CD19: 2015-11-07 | CE19: 13.70981278 | CF19: 20.28549078 | CG19: 5.447976538 | CH19: 25.83319499 | CL19: 2015-11-07 | CM19: 14.00331808 | CN19: 25.29743628 | CO19: 8.851938926 | CP19: 23.91132634 | CR19: 2015-11-07 | CS19: 0.6319464839 | CT19: 0 | CU19: 20.7781197 | CV19: 32.87955583 | CW19: 43.91211486 | CZ19: 2015-11-07 | DA19: 58.87229126 | DB19: 7.321590384 | DC19: 22.56117179 | DD19: 38.82218606 | DE19: 47.25659692
B20: 2015-11-10 | C20: 0.6745664031 | D20: 0.06249103889 | E20: 0.2629425579 | F20: 0.5051698616 | G20: 0.04987126254 | H20: 0.4449588758 | J20: 2015-11-10 | K20: 0.6072474837 | L20: 0.1724109959 | M20: 0.2203415203 | N20: 0.5013767628 | O20: 0.1833701522 | P20: 0.3152530851 | T20: 2015-11-10 | U20: 47.78872652 | V20: 54.08487539 | W20: 32.23666936 | X20: 27.32204902 | Y20: 2.449812862 | Z20: 3.674719292 | AA20: 23.54884976 | AB20: 11.37794472 | AC20: 7.782601386 | AD20: 4.938409782 | AE20: 94.14981268 | AF20: 7.599460211 | AG20: 86.55035247 | AH20: =T20 -> 2015-11-10 | AI20: 46.84995775 | AJ20: 52.24585207 | AK20: 28.25809355 | AL20: 25.94441111 | AM20: 1.944585486 | AN20: 2.464249187 | AO20: 25.18407157 | AP20: 21.40813066 | AQ20: 13.80302969 | AR20: 8.492960532 | AS20: 97.20942147 | AT20: 6.71712196 | AU20: 90.49229952 | AY20: 2015-11-10 | AZ20: 94.14981268 | BA20: 46.90982318 | BB20: 67.42344984 | BG20: 2015-11-10 | BH20: 97.20942147 | BI20: 47.21426317 | BJ20: 54.63352451 | BN20: 2015-11-10 | BO20: 32.23666936 | BP20: 23.54884976 | BQ20: 27.32204902 | BR20: 11.37794472 | BV20: 2015-11-10 | BW20: 28.25809355 | BX20: 25.18407157 | BY20: 25.94441111 | BZ20: 21.40813066 | CD20: 2015-11-10 | CE20: 7.782601386 | CF20: 23.54884976 | CG20: 4.938409782 | CH20: 11.37794472 | CL20: 2015-11-10 | CM20: 13.80302969 | CN20: 25.18407157 | CO20: 8.492960532 | CP20: 21.40813066 | CR20: 2015-11-10 | CS20: 0.6745664031 | CT20: 7.599460211 | CU20: 26.31765868 | CV20: 39.01418535 | CW20: 46.90982318 | CZ20: 2015-11-10 | DA20: 60.72474837 | DB20: 6.71712196 | DC20: 22.99419225 | DD20: 38.23013957 | DE20: 47.21426317
B21: 2015-11-13 | C21: 0.5329748892 | D21: 0.3567631481 | E21: 0.1102619631 | F21: 0.5000266906 | G21: 0.2020739684 | H21: 0.2978993414 | J21: 2015-11-13 | K21: 0.6135232733 | L21: 0.1943141251 | M21: 0.1921626016 | N21: 0.499919472 | O21: 0.1791355342 | P21: 0.3209449938 | T21: 2015-11-13 | U21: 26.02513624 | V21: 49.51151982 | W21: 13.87074409 | X21: 24.75708139 | Y21: 3.591022444 | Z21: 1.197007481 | AA21: 19.34044198 | AB21: 26.59451239 | AC21: 8.760424771 | AD21: 12.66561088 | AE21: 121.0541734 | AF21: 25.88918388 | AG21: 95.16498951 | AH21: 2015-11-13 | AI21: 44.86923735 | AJ21: 52.14943533 | AK21: 27.49005343 | AL21: 25.82264242 | AM21: 2.30368773 | AN21: 2.26299897 | AO21: 24.90701669 | AP21: 22.43646183 | AQ21: 13.47289332 | AR21: 9.120098903 | AS21: 100.5504647 | AT21: 9.306040348 | AU21: 91.24442437 | AY21: 2015-11-13 | AZ21: 121.0541734 | BA21: 34.4536515 | BB21: 42.1039756 | BG21: 2015-11-13 | BH21: 100.5504647 | BI21: 45.90069581 | BJ21: 53.08917724 | BN21: 2015-11-13 | BO21: 13.87074409 | BP21: 19.34044198 | BQ21: 24.75708139 | BR21: 26.59451239 | BV21: 2015-11-13 | BW21: 27.49005343 | BX21: 24.90701669 | BY21: 25.82264242 | BZ21: 22.43646183 | CD21: 2015-11-13 | CE21: 8.760424771 | CF21: 19.34044198 | CG21: 12.66561088 | CH21: 26.59451239 | CL21: 2015-11-13 | CM21: 13.47289332 | CN21: 24.90701669 | CO21: 9.120098903 | CP21: 22.43646183 | CR21: 2015-11-13 | CS21: 0.5329748892 | CT21: 25.88918388 | CU21: 11.5878508 | CV21: 21.74183256 | CW21: 34.4536515 | CZ21: 2015-11-13 | DA21: 61.35232733 | DB21: 9.306040348 | DC21: 22.13854389 | DD21: 36.12027213 | DE21: 45.90069581
B22: 2015-11-14 | C22: 0.526018631 | D22: 0.2857894302 | E22: 0.1881919388 | F22: 0.5797164543 | G22: 0.161035069 | H22: 0.2592484765 | J22: 2015-11-14 | K22: 0.6001841804 | L22: 0.211131899 | M22: 0.1886839206 | N22: 0.5088715701 | O22: 0.1758161386 | P22: 0.3153122913 | T22: 2015-11-14 | U22: 46.20758136 | V22: 48.98210085 | W22: 24.30604869 | X22: 28.39572984 | Y22: 0 | Z22: 1.187530925 | AA22: 17.43617786 | AB22: 25.51629868 | AC22: 7.385229275 | AD22: 14.23228815 | AE22: 95.81792427 | AF22: 0 | AG22: 95.81792427 | AH22: 2015-11-14 | AI22: 44.02809983 | AJ22: 50.30284347 | AK22: 26.31903209 | AL22: 25.35594402 | AM22: 2.168603302 | AN22: 2.111583207 | AO22: 23.4551065 | AP22: 22.28320217 | AQ22: 11.91928103 | AR22: 9.549336044 | AS22: 100.5743326 | AT22: 8.930975253 | AU22: 91.64335739 | AY22: 2015-11-14 | AZ22: 95.81792427 | BA22: 48.54263643 | BB22: 40.59411532 | BG22: 2015-11-14 | BH22: 100.5743326 | BI22: 46.28045223 | BJ22: 51.73282289 | BN22: 2015-11-14 | BO22: 24.30604869 | BP22: 17.43617786 | BQ22: 28.39572984 | BR22: 25.51629868 | BV22: 2015-11-14 | BW22: 26.31903209 | BX22: 23.4551065 | BY22: 25.35594402 | BZ22: 22.28320217 | CD22: 2015-11-14 | CE22: 7.385229275 | CF22: 17.43617786 | CG22: 14.23228815 | CH22: 25.51629868 | CL22: 2015-11-14 | CM22: 11.91928103 | CN22: 23.4551065 | CO22: 9.549336044 | CP22: 22.28320217 | CR22: 2015-11-14 | CS22: 0.526018631 | CT22: 0 | CU22: 20.4677185 | CV22: 38.91063414 | CW22: 48.54263643 | CZ22: 2015-11-14 | DA22: 60.01841804 | DB22: 8.930975253 | DC22: 21.51911189 | DD22: 35.96801557 | DE22: 46.28045223
B23: 2015-11-17 | C23: 0.5804879767 | D23: 0.1576818584 | E23: 0.2618301649 | F23: 0.6000559219 | G23: 0.2041828001 | H23: 0.1957612781 | J23: 2015-11-17 | K23: 0.5939536722 | L23: 0.2011904517 | M23: 0.204855876 | N23: 0.5177880697 | O23: 0.1839179235 | P23: 0.2982940068 | T23: 2015-11-17 | U23: 51.85233778 | V23: 40.24171597 | W23: 30.09965864 | X23: 24.14727997 | Y23: 3.675970048 | Z23: 2.450646698 | AA23: 28.27819176 | AB23: 19.798472 | AC23: 11.67679597 | AD23: 1.225323349 | AE23: 102.0639151 | AF23: 12.21266358 | AG23: 89.85125156 | AH23: 2015-11-17 | AI23: 45.66072001 | AJ23: 49.23572094 | AK23: 27.04540259 | AL23: 25.16957604 | AM23: 2.073401014 | AN23: 2.240948053 | AO23: 23.98231703 | AP23: 21.57669026 | AQ23: 11.70483236 | AR23: 8.396168747 | AS23: 99.19891032 | AT23: 8.125615964 | AU23: 91.07329437 | AY23: 2015-11-17 | AZ23: 102.0639151 | BA23: 56.30367615 | BB23: 58.81895611 | BG23: 2015-11-17 | BH23: 99.19891032 | BI23: 47.80085742 | BJ23: 53.00147704 | BN23: 2015-11-17 | BO23: 30.09965864 | BP23: 28.27819176 | BQ23: 24.14727997 | BR23: 19.798472 | BV23: 2015-11-17 | BW23: 27.04540259 | BX23: 23.98231703 | BY23: 25.16957604 | BZ23: 21.57669026 | CD23: 2015-11-17 | CE23: 11.67679597 | CF23: 28.27819176 | CG23: 1.225323349 | CH23: 19.798472 | CL23: 2015-11-17 | CM23: 11.70483236 | CN23: 23.98231703 | CO23: 8.396168747 | CP23: 21.57669026 | CR23: 2015-11-17 | CS23: 0.5804879767 | CT23: 12.21266358 | CU23: 24.56466586 | CV23: 42.317269 | CW23: 56.30367615 | CZ23: 2015-11-17 | DA23: 59.39536722 | DB23: 8.125615964 | DC23: 22.00185432 | DD23: 37.12919879 | DE23: 47.80085742
B24: 2015-11-19 | C24: 0.4671341516 | D24: 0.2949922621 | E24: 0.2378735863 | F24: 0.476231461 | G24: 0.1841385795 | H24: 0.3396299597 | J24: 2015-11-19 | K24: 0.5983740745 | L24: 0.2102792998 | M24: 0.1913466257 | N24: 0.5237023234 | O24: 0.1861728708 | P24: 0.2901248059 | T24: 2015-11-19 | U24: 42.35448395 | V24: 57.26845304 | W24: 19.78522592 | X24: 27.27303905 | Y24: 0 | Z24: 0 | AA24: 18.62009868 | AB24: 27.83584618 | AC24: 4.892062951 | AD24: 11.41713694 | AE24: 100 | AF24: 0 | AG24: 100 | AH24: 2015-11-19 | AI24: 45.31497753 | AJ24: 48.91515247 | AK24: 27.08640154 | AL24: 25.37457064 | AM24: 1.94981708 | AN24: 1.993780185 | AO24: 23.11022852 | AP24: 22.24257251 | AQ24: 10.97637803 | AR24: 8.651731156 | AS24: 99.54099242 | AT24: 7.487771184 | AU24: 92.05322125 | AY24: 2015-11-19 | AZ24: 100 | BA24: 42.5147915 | BB24: 40.08119679 | BG24: 2015-11-19 | BH24: 99.54099242 | BI24: 47.74208981 | BJ24: 51.37437277 | BN24: 2015-11-19 | BO24: 19.78522592 | BP24: 18.62009868 | BQ24: 27.27303905 | BR24: 27.83584618 | BV24: 2015-11-19 | BW24: 27.08640154 | BX24: 23.11022852 | BY24: 25.37457064 | BZ24: 22.24257251 | CD24: 2015-11-19 | CE24: 4.892062951 | CF24: 18.62009868 | CG24: 11.41713694 | CH24: 27.83584618 | CL24: 2015-11-19 | CM24: 10.97637803 | CN24: 23.11022852 | CO24: 8.651731156 | CP24: 22.24257251 | CR24: 2015-11-19 | CS24: 0.4671341516 | CT24: 0 | CU24: 16.53440339 | CV24: 35.39540694 | CW24: 42.5147915 | CZ24: 2015-11-19 | DA24: 59.83740745 | DB24: 7.487771184 | DC24: 22.08751511 | DD24: 36.96179254 | DE24: 47.74208981
B25: 2015-11-21 | C25: 0.5292005742 | D25: 0.3127461208 | E25: 0.158053305 | F25: 0.5908801666 | G25: 0.08137868653 | H25: 0.3277411467 | J25: 2015-11-21 | K25: 0.5826288877 | L25: 0.2247751455 | M25: 0.1925959668 | N25: 0.5321772925 | O25: 0.1689479634 | P25: 0.2988747441 | T25: 2015-11-21 | U25: 68.15826409 | V25: 55.87060482 | W25: 36.0693925 | X25: 33.01283229 | Y25: 4.661199827 | Z25: 0 | AA25: 35.2838887 | AB25: 21.52109271 | AC25: 14.2732939 | AD25: 11.8980843 | AE25: 112.9228676 | AF25: 12.92286757 | AG25: 100 | AH25: 2015-11-21 | AI25: 48.36542633 | AJ25: 49.29503315 | AK25: 28.10783506 | AL25: 26.04034148 | AM25: 2.415937063 | AN25: 1.601409613 | AO25: 24.29932497 | AP25: 21.42946776 | AQ25: 11.21328998 | AR25: 8.299347464 | AS25: 102.3220621 | AT25: 8.780057941 | AU25: 93.54200412 | AY25: 2015-11-21 | AZ25: 112.9228676 | BA25: 54.95354806 | BB25: 62.1140749 | BG25: 2015-11-21 | BH25: 102.3220621 | BI25: 49.04089571 | BJ25: 53.17577068 | BN25: 2015-11-21 | BO25: 36.0693925 | BP25: 35.2838887 | BQ25: 33.01283229 | BR25: 21.52109271 | BV25: 2015-11-21 | BW25: 28.10783506 | BX25: 24.29932497 | BY25: 26.04034148 | BZ25: 21.42946776 | CD25: 2015-11-21 | CE25: 14.2732939 | CF25: 35.2838887 | CG25: 11.8980843 | CH25: 21.52109271 | CL25: 2015-11-21 | CM25: 11.21328998 | CN25: 24.29932497 | CO25: 8.299347464 | CP25: 21.42946776 | CR25: 2015-11-21 | CS25: 0.5292005742 | CT25: 12.92286757 | CU25: 23.21466178 | CV25: 43.86741608 | CW25: 54.95354806 | CZ25: 2015-11-21 | DA25: 58.26288877 | DB25: 8.780057941 | DC25: 22.4321467 | DD25: 38.46958919 | DE25: 49.04089571
